{"text_format":"1","workbook":"xlsx","n_sheets":4,"sheets":["Cronograma_PIPC_IDPC 2022","Hoja2","Hoja1","RevisCronograma_PIPC_ IDPC 2021"],"not_rendered":{"charts":0,"images":1,"macros":1,"external_links":13,"defined_names":3,"comments":0,"pivot_tables":0},"unopened":[],"bounds":{"document_bytes":16777216,"sheet_cells":100000,"rows_first":2000,"rows_last":500,"rows_between":2000,"halvings":0,"cell_chars":16384,"cell_head_chars":4096},"cells_cut":0,"cells_raw":0,"read":"whole","date_system":"1900"}

{"sheet":"Cronograma_PIPC_IDPC 2022","index":0,"n_rows":38,"n_cols":61,"rows_kept":38,"cut":false,"hidden":false,"merged":[[0,5,1,5],[0,0,1,0],[0,1,1,1],[0,2,1,2],[0,3,1,3],[0,4,1,4],[0,53,1,53],[0,6,1,6],[0,7,1,7],[0,8,1,8],[0,10,0,11],[0,12,0,19],[0,20,0,27],[0,28,0,35],[0,36,0,43],[0,44,0,50],[0,51,1,51],[0,52,1,52],[0,60,1,60],[0,54,1,54],[0,55,1,55],[0,56,1,56],[0,57,1,57],[0,58,1,58],[0,59,1,59]]}
["No. Ámbito"," Producto/servicio del IDPC","Ámbito de participación ciudadana","Subdirección IDPC"," Equipo responsable IDPC","Equipos corresponsables IDPC","Sinergias trabajadas dentro de la gestión integral del patrimonio cultural en el  IDPC (versiones o vigencias anteriores)","Articulación con instancias de los Sistemas Distritales de Participación del Sector Cultura, Recreación y Deporte ","Posibles sinergias con actores públicos, privados y sociales ","Meta cualitativa","Meta cuantitativa",null,"Primer trimestre 2022 (enero-marzo)",null,null,null,null,null,null,null,"Segundo trimestre 2022 (abril-junio)",null,null,null,null,null,null,null,"Tercer trimestre 2022 (julio-septiembre)",null,null,null,null,null,null,null,"Cuarto trimestre 2022 (octubre-diciembre)",null,null,null,null,null,null,null,"Cumplimiento acumulado 2022",null,null,null,null,null,null,"Evidencias (mínimo listas de asistencia y fotos)","Fases del ciclo de la gestión pública (frente al producto/servicio del IDPC): 1. Diagnóstico (identificación, problemas), 2. Formulación (elaboración, aprobación), 3. Implementación (ejecución), 4. Evaluación (seguimiento, control)"," Nivel de incidencia (respecto al ámbito de participación): 1.Informativo, 2. Consultivo, 3. Decisorio, 4.Co-gestión/creación","Dimensión relacionada con el Patrimonio Cultural (respecto al ámbito de participación): 1. Sensibilización, 2. Creación de capacidades, 3. Movilización de actores; y 4. Control social)","Modalidad: Presencial, Virtual, Mixta"," Actores/grupos de valor involucrados ","Enfoque poblacional-diferencial: sexo, orientación sexual, identidad de género, transcurrir vital, pertenencia étnica, personas con discapacidad, víctimas del conflicto armado"," ","Territorialización (respecto al ámbito de participación)","Recursos asociados (equipos humanos técnicos, expertos, hardware, software, transporte, alimentación, papelería)"]
[null,null,null,null,null,null,null,null,null,"Resultados/impactos esperados de la participación ciudadana","Mecanismo de participación ciudadana (audiencia pública, debate, comité, asamblea, mesa de trabajo, taller, ejercicios de colaboración e innovación, foro, evento y feria, instancias de participación ciudadana, consulta ciudadana, campaña informativa, entrega de material informativo, encuesta, entrevista, visita, buzones, redes sociales, página web)","Proyección 2022","Programado","Ejecutado","Avance cualitativo (describir actividades realizadas con número de participantes y principales resultados)","Número total de participantes involucrados en el trimestre.","Número de participantes reportados en el trimestre constantes en el proceso.","Enfoque Poblacional diferencial: sexo, orientación sexual, identidad de género, transcurrir vital, pertenencia étnica, personas con discapacidad, víctimas del conflicto armado","Localidades con intervención","Lecciones aprendidas trimestre (enero-marzo)","Programado","Ejecutado","Avance cualitativo (describir actividades realizadas con número de participantes y principales resultados)","Número total de participantes involucrados en el trimestre.","Número de participantes reportados en el trimestre constantes en el proceso.","Enfoque Poblacional diferencial: sexo, orientación sexual, identidad de género, transcurrir vital, pertenencia étnica, personas con discapacidad, víctimas del conflicto armado","Localidades con intervención","Lecciones aprendidas trimestre (abril-junio)","Programado","Ejecutado","Avance cualitativo (describir actividades realizadas con número de participantes y principales resultados)","Número total de participantes involucrados en el trimestre.","Número de participantes reportados en el trimestre constantes en el proceso.","Enfoque Poblacional diferencial: sexo, orientación sexual, identidad de género, transcurrir vital, pertenencia étnica, personas con discapacidad, víctimas del conflicto armado","Localidades con intervención","Lecciones aprendidas trimestre (julio-septiembre)","Programado","Ejecutado","Avance cualitativo (describir actividades realizadas con número de participantes y principales resultados)","Número total de participantes involucrados en el trimestre.","Número de participantes reportados en el trimestre constantes en el proceso.","Enfoque Poblacional diferencial: sexo, orientación sexual, identidad de género, transcurrir vital, pertenencia étnica, personas con discapacidad, víctimas del conflicto armado","Localidades con intervención","Lecciones aprendidas trimestre (octubre-diciembre)","Programado","Ejecutado 1er trimestre","Ejecutado 2to trimestre","Ejecutado 3er trimestre","Ejecutado 4to trimestre","Indicador","Número acumulado de participantes procesos"]
[1,"Proyecto de Recuperación de Columbarios ubicados en el Globo B del Cementerio Central de Bogotá creando un espacio que integre dimensiones de patrimonio y memoria en la ciudad","Proceso de activación ciudadana en torno a los patrimonios, memorias y sentidos sociales de los Columbarios del Cementerio Central. ","Subdirección de Protección e Intervención","Subdirección de Protección e Intervención (Equipo de Obras,  Equipo de Arqueología).\nEquipo de participación ciudadana. Equipo de Investigaciones"," Subdirección de Gestión Territorial del Patrimonio, Equipo de Patrimonio Cultural Inmaterial, Subdirección de Divulgación y Apropiación del Patrimonio. \nAsesores de enfoques diferenciales. ","NA","Consejo Local de Arte, Cultura y Patrimonio de Los Mártires","Organizaciones y agrupaciones  de víctimas y/o con trabajo en memoria. Instancias de participación  y gestión local como la Casa de la Juventud, la Mesa Grafiti. Organizaciones locales y comunitarias de barrios aledaños. Asociaciones locales de oficios o actividades entorno al Cementerio, Centro   Memoria Paz y Reconciliación, Universidades, grupos de arqueólogos forenses.","Activación social de las memorias, sentidos y patrimonios integrados que orbitan alrededor de Los Columbarios del cementerio central Laboratorios.","Diálogos de memoria y saberes, reuniones de socialización, recorridos patrimoniales, laboratorio de tejido de memoria y patrimonio, laboratorio sonoro de memorias.",{"$f":"'[1]Cronograma_PIPC_IDPC 2022'!L$3","v":8},{"$f":"'[1]Cronograma_PIPC_IDPC 2022'!M$3","v":2},{"$f":"'[1]Cronograma_PIPC_IDPC 2022'!N$3","v":0},{"$f":"'[1]Cronograma_PIPC_IDPC 2022'!O$3","v":0},{"$f":"'[1]Cronograma_PIPC_IDPC 2022'!P$3","v":0},{"$f":"'[1]Cronograma_PIPC_IDPC 2022'!Q$3","v":"Indique  el número de participantes reportados en el trimestre que son constantes en el proceso."},{"$f":"'[1]Cronograma_PIPC_IDPC 2022'!R$3","v":0},{"$f":"'[1]Cronograma_PIPC_IDPC 2022'!S$3","v":0},{"$f":"'[1]Cronograma_PIPC_IDPC 2022'!T$3","v":0},{"$f":"'[1]Cronograma_PIPC_IDPC 2022'!U$3","v":2},{"$f":"'[1]Cronograma_PIPC_IDPC 2022'!V$3","v":0},{"$f":"'[1]Cronograma_PIPC_IDPC 2022'!W$3","v":0},{"$f":"'[1]Cronograma_PIPC_IDPC 2022'!X$3","v":0},{"$f":"'[1]Cronograma_PIPC_IDPC 2022'!Y$3","v":"Indique  el número de participantes reportados en el trimestre que son constantes en el proceso."},{"$f":"'[1]Cronograma_PIPC_IDPC 2022'!Z$3","v":0},{"$f":"'[1]Cronograma_PIPC_IDPC 2022'!AA$3","v":"15. Antonio Nariño"},{"$f":"'[1]Cronograma_PIPC_IDPC 2022'!AB$3","v":0},{"$f":"'[1]Cronograma_PIPC_IDPC 2022'!AC$3","v":2},{"$f":"'[1]Cronograma_PIPC_IDPC 2022'!AD$3","v":0},{"$f":"'[1]Cronograma_PIPC_IDPC 2022'!AE$3","v":0},{"$f":"'[1]Cronograma_PIPC_IDPC 2022'!AF$3","v":100},{"$f":"'[1]Cronograma_PIPC_IDPC 2022'!AG$3","v":"Indique  el número de participantes reportados en el trimestre que son constantes en el proceso."},{"$f":"'[1]Cronograma_PIPC_IDPC 2022'!AH$3","v":"Transgenero"},{"$f":"'[1]Cronograma_PIPC_IDPC 2022'!AI$3","v":"16. Puente Aranda"},{"$f":"'[1]Cronograma_PIPC_IDPC 2022'!AJ$3","v":0},{"$f":"'[1]Cronograma_PIPC_IDPC 2022'!AK$3","v":2},{"$f":"'[1]Cronograma_PIPC_IDPC 2022'!AL$3","v":0},{"$f":"'[1]Cronograma_PIPC_IDPC 2022'!AM$3","v":0},{"$f":"'[1]Cronograma_PIPC_IDPC 2022'!AN$3","v":0},{"$f":"'[1]Cronograma_PIPC_IDPC 2022'!AO$3","v":"Indique  el número de participantes reportados en el trimestre que son constantes en el proceso."},{"$f":"'[1]Cronograma_PIPC_IDPC 2022'!AP$3","v":"Transgenero"},{"$f":"'[1]Cronograma_PIPC_IDPC 2022'!AQ$3","v":0},{"$f":"'[1]Cronograma_PIPC_IDPC 2022'!AR$3","v":0},50,{"$f":"+N3","v":0},{"$f":"+V3","v":0},{"$f":"+AD3","v":0},{"$f":"+AL3","v":0},{"$f":"SUM(AT3:AW3)/AS3","v":0},{"$f":"+P3+X3+AF3+AN3","v":100},"Actas, Listas de Asistencia, pantallazos digitales, fotografías o productos gráficos.","3. Implementación"," 1.Informativo, 4. Cogestión/creación","1. Sensibilización,\n2. Creación de capacidades  \n3. movilización de actores","Mixta","Ciudadanía, organizaciones y agrupaciones de víctimas y/o con trabajo en memoria, instancias de participación  y gestión local, organizaciones locales y comunitarias, asociaciones locales de oficios o actividades, universidades.","Victimas del conflicto armado.","Urbano","Localidad de los Mártires, y áreas próximas al Cementerio Central de las localidades de Santafé y Teusaquillo.","Equipos humanos, y logística de recursos gráficos virtuales."]
[2,"Activación de entornos patrimoniales","Espacios de reconocimiento y activación social de entornos patrimoniales"," Subdirección de Gestión Territorial del Patrimonio","Equipo 7 entornos","Equipo de participación ciudadana del IDPC, Equipos de participación PEMPs, Equipo Área arqueológica protegida de Usme, Equipo inventarios patrimonio cultural,\nEquipo de comunicaciones, otros equipos del IDPC.","Equipo de participación ciudadana, Equipo PEMP CHB, Equipo Área arqueológica protegida de Usme, Equipo inventarios patrimonio cultural, Subdirección de intervenciones (valoración, fachadas y espacio público), equipo de comunicaciones.","Mesa de Consejeros Locales de Patrimonio Cultural y CLACP de localidades priorizadas","Idartes, Jardín Botánico, IDPAC, IDT, Alcaldías Locales, SCRD, Secretaría Distrital de Movilidad, Secretaría de la Mujer, Secretaría de Ambiente, residentes y JAC, organizaciones sociales, culturales, artísticas, educativas y ambientales, instancias de participación, residentes, comerciantes y asociaciones de comerciantes, instituciones educativas.","Reconocer y establecer relacionamiento con actores, intereses y procesos en territorio para la definición y desarrollo de acciones de activación de los patrimonios en los entornos priorizados.\nFortalecer los tejidos sociales y cotidianos asociados a los patrimonios en los entornos priorizados.","Desarrollo de procesos de participación que contemplan: encuentros de saberes y experiencias entre procesos y/o entornos, recorridos exploratorios de reconocimiento y relacionamiento con actores sociales e institucionales, encuestas, consultas ciudadanas, talleres, laboratorios de creación, ejercicios de expresión cultural y artística de grupos poblacionales, campañas informativas.                                                                                  *  Procesos asociados a los componentes de activación de entornos patrimoniales",{"$f":"'[2]Cronograma_PIPC_IDPC 2022'!L$4","v":16},{"$f":"'[2]Cronograma_PIPC_IDPC 2022'!M$4","v":3},{"$f":"'[2]Cronograma_PIPC_IDPC 2022'!N$4","v":0},{"$f":"'[2]Cronograma_PIPC_IDPC 2022'!O$4","v":0},{"$f":"'[2]Cronograma_PIPC_IDPC 2022'!P$4","v":0},{"$f":"'[2]Cronograma_PIPC_IDPC 2022'!Q$4","v":"Indique  el número de participantes reportados en el trimestre que son constantes en el proceso."},{"$f":"'[2]Cronograma_PIPC_IDPC 2022'!R$4","v":0},{"$f":"'[2]Cronograma_PIPC_IDPC 2022'!S$4","v":0},{"$f":"'[2]Cronograma_PIPC_IDPC 2022'!T$4","v":0},{"$f":"'[2]Cronograma_PIPC_IDPC 2022'!U$4","v":4},{"$f":"'[2]Cronograma_PIPC_IDPC 2022'!V$4","v":0},{"$f":"'[2]Cronograma_PIPC_IDPC 2022'!W$4","v":0},{"$f":"'[2]Cronograma_PIPC_IDPC 2022'!X$4","v":0},{"$f":"'[2]Cronograma_PIPC_IDPC 2022'!Y$4","v":"Indique  el número de participantes reportados en el trimestre que son constantes en el proceso."},{"$f":"'[2]Cronograma_PIPC_IDPC 2022'!Z$4","v":0},{"$f":"'[2]Cronograma_PIPC_IDPC 2022'!AA$4","v":"17. Candelaria"},{"$f":"'[2]Cronograma_PIPC_IDPC 2022'!AB$4","v":0},{"$f":"'[2]Cronograma_PIPC_IDPC 2022'!AC$4","v":6},{"$f":"'[2]Cronograma_PIPC_IDPC 2022'!AD$4","v":0},{"$f":"'[2]Cronograma_PIPC_IDPC 2022'!AE$4","v":0},{"$f":"'[2]Cronograma_PIPC_IDPC 2022'!AF$4","v":0},{"$f":"'[2]Cronograma_PIPC_IDPC 2022'!AG$4","v":"Indique  el número de participantes reportados en el trimestre que son constantes en el proceso."},{"$f":"'[2]Cronograma_PIPC_IDPC 2022'!AH$4","v":0},{"$f":"'[2]Cronograma_PIPC_IDPC 2022'!AI$4","v":0},{"$f":"'[2]Cronograma_PIPC_IDPC 2022'!AJ$4","v":0},{"$f":"'[2]Cronograma_PIPC_IDPC 2022'!AK$4","v":3},{"$f":"'[2]Cronograma_PIPC_IDPC 2022'!AL$4","v":0},{"$f":"'[2]Cronograma_PIPC_IDPC 2022'!AM$4","v":0},{"$f":"'[2]Cronograma_PIPC_IDPC 2022'!AN$4","v":0},{"$f":"'[2]Cronograma_PIPC_IDPC 2022'!AO$4","v":"Indique  el número de participantes reportados en el trimestre que son constantes en el proceso."},{"$f":"'[2]Cronograma_PIPC_IDPC 2022'!AP$4","v":0},{"$f":"'[2]Cronograma_PIPC_IDPC 2022'!AQ$4","v":0},{"$f":"'[2]Cronograma_PIPC_IDPC 2022'!AR$4","v":0},16,{"$f":"+N4","v":0},{"$f":"+V4","v":0},{"$f":"+AD4","v":0},{"$f":"+AL4","v":0},{"$f":"SUM(AT4:AW4)/AS4","v":0},{"$f":"+P4+X4+AF4+AN4","v":0},"Listados de asistencia y actas, registro fotográfico, audiovisual y piezas gráficas de las activaciones, capturas de pantalla espacios virtuales.","1. Diagnóstico, 2. Formulación, 3. Implementación, 4. Evaluación.","2. Consultivo, 4. Cogestión/creación","2. Creación de capacidades, 3. Movilización de actores","Presencial, virtual","Residentes y JAC, organizaciones sociales, culturales, artísticas, educativas y ambientales, instancias de participación, comerciantes y asociaciones de comerciantes,  instituciones educativas.","Transcurrir vital, otros posibles","Urbano","Núcleos fundacionales de Suba, Bosa, Usme y el Centro histórico. ","Equipos humanos, transporte, alimentación, papelería, producción gráfica y audiovisual."]
[3,"Plan Especial de Manejo y Protección (PEMP) de Teusaquillo","Espacios de socialización y participación ciudadana para la fase de formulación del PEMP de Teusaquillo"," Subdirección de Gestión Territorial del Patrimonio","Equipo de instrumentos de Gestión Territorial ( Equipo de participación y divulgación del PEMP de Teusaquillo)","Equipos de participación ciudadana IDPC, Equipo de Comunicaciones IDPC","Equipo de participación ciudadana,  Subdirección de Divulgación y Apropiación del Patrimonio (área de comunicaciones) y Subdirección de Protección e Intervención del Patrimonio","Consejo Local de Arte, Cultura y Patrimonio de Teusaquillo (CLACP). Mesa Sectorial Cultura. Consejo Distrital de Patrimonio Cultural.","Junta Administradora Local (JAL), Consejo de Planeación Local (CPL) , Juntas de Acción Comunal, gremios, universidades, comerciantes, instancias de participación,  corporaciones patrimoniales, organizaciones sociales, culturales y ambientales.","Generar espacios de participación  enfocados para definir las líneas de acción que serán implementadas en la fase de formulación del PEMP y la socialización  de  los resultados para esta fase ante la comunidad.                                                                            ","Desarrollo de procesos  y encuentros ciudadanos de participación que contemplan: mesas de trabajo, talleres, reuniones con comunidad, grupos focales, exposición de resultados.\nEstrategia de divulgación y comunicación: campaña informativa o consulta ciudadana a través de la página web del IDPC, Webinar y redes sociales.",4,1,{"$f":"'[3]Cronograma_PIPC_IDPC 2022'!N6","v":0},{"$f":"'[3]Cronograma_PIPC_IDPC 2022'!O6","v":0},{"$f":"'[3]Cronograma_PIPC_IDPC 2022'!P6","v":0},{"$f":"'[3]Cronograma_PIPC_IDPC 2022'!Q6","v":0},{"$f":"'[3]Cronograma_PIPC_IDPC 2022'!R6","v":0},{"$f":"'[3]Cronograma_PIPC_IDPC 2022'!S6","v":0},{"$f":"'[3]Cronograma_PIPC_IDPC 2022'!T6","v":0},{"$f":"'[3]Cronograma_PIPC_IDPC 2022'!U6","v":1},{"$f":"'[3]Cronograma_PIPC_IDPC 2022'!V6","v":0},{"$f":"'[3]Cronograma_PIPC_IDPC 2022'!W6","v":0},{"$f":"'[3]Cronograma_PIPC_IDPC 2022'!X6","v":0},{"$f":"'[3]Cronograma_PIPC_IDPC 2022'!Y6","v":0},{"$f":"'[3]Cronograma_PIPC_IDPC 2022'!Z6","v":0},{"$f":"'[3]Cronograma_PIPC_IDPC 2022'!AA6","v":0},{"$f":"'[3]Cronograma_PIPC_IDPC 2022'!AB6","v":0},2,{"$f":"'[3]Cronograma_PIPC_IDPC 2022'!AD6","v":0},{"$f":"'[3]Cronograma_PIPC_IDPC 2022'!AE6","v":0},{"$f":"'[3]Cronograma_PIPC_IDPC 2022'!AF6","v":0},{"$f":"'[3]Cronograma_PIPC_IDPC 2022'!AG6","v":0},{"$f":"'[3]Cronograma_PIPC_IDPC 2022'!AH6","v":0},{"$f":"'[3]Cronograma_PIPC_IDPC 2022'!AI6","v":0},{"$f":"'[3]Cronograma_PIPC_IDPC 2022'!AJ6","v":0},0,{"$f":"'[3]Cronograma_PIPC_IDPC 2022'!AL6","v":0},{"$f":"'[3]Cronograma_PIPC_IDPC 2022'!AM6","v":0},{"$f":"'[3]Cronograma_PIPC_IDPC 2022'!AN6","v":0},{"$f":"'[3]Cronograma_PIPC_IDPC 2022'!AO6","v":0},{"$f":"'[3]Cronograma_PIPC_IDPC 2022'!AP6","v":0},{"$f":"'[3]Cronograma_PIPC_IDPC 2022'!AQ6","v":0},{"$f":"'[3]Cronograma_PIPC_IDPC 2022'!AR6","v":0},{"$f":"L5","v":4},{"$f":"+N5","v":0},{"$f":"+V5","v":0},{"$f":"+AD5","v":0},{"$f":"+AL5","v":0},{"$f":"SUM(AT5:AW5)/AS5","v":0},{"$f":"+P5+X5+AF5+AN5","v":0},"Lista de asistencia\nRegistro fotográfico\nPiezas comunicativas\nActas o relatorías de los encuentros ciudadanos\n","2. Formulación\n","1.Informativo\nConsultivo\nDecisorio","1. Sensibilización 3.Movilización de actores 4. Control Social.","Mixta","Organizaciones de base, gestores culturales locales, propietarios de BIC, actores representativos del patrimonio material,  inmaterial y natural; comerciantes, universidades, sector cultural, empresarios y entidades públicas.","N/A","Urbano","Área de estudio PEMP Teusaquillo (Barrios Armenia, Teusaquillo, La Magdalena, Santa Teresita, Palermo, La Soledad, Alfonso López, Quesada, Las Américas, La Estrella y Sagrado Corazón).","Equipo humano: \napoyo técnico, gráfico de comunicaciones, mesa técnica (soporte tecnológico).\nCámara fotográfica \nPapelería. Hardware y Software.\n  \n"]
[4,"Plan Especial de Manejo y Protección (PEMP) del Parque Nacional Enrique Olaya Herrera","\nProceso de divulgación, socialización y posicionamiento de los contenidos y proyectos del PEMP del Parque Nacional Enrique Olaya Herrera.","Subdirección de Gestión Territorial del Patrimonio","Equipo de instrumentos de Gestión Territorial (Equipo de participación y divulgación del PEMP del Parque Nacional Enrique Olaya Herrera)","Equipos de participación ciudadana y Equipo de Comunicaciones del IDPC","Equipo de participación ciudadana y Subdirección de Divulgación y Apropiación del Patrimonio (área de comunicaciones)","Consejo Local de Arte, Cultura y Patrimonio (CLACP), Instituto Distrital de Recreación y Deporte (IDRD) y Consejo Nacional de Patrimonio Cultural.","Alcaldías locales (Chapinero y Santa Fe), Instituto Distrital de Recreación y Deporte (IDRD) y  Ministerio de Cultura.","Difundir el resultado de la formulación y  adopción del PEMP del Parque Nacional Enrique Olaya Herrera, posicionando el enfoque de patrimonios integrados a partir de la implementación de su componente programático, y garantizar la apropiación ciudadana a través de escenarios de diálogo. \n\n","Campaña de comunicación y escenarios de diálogo ciudadano ",{"$f":"'[3]Cronograma_PIPC_IDPC 2022'!L6","v":2},{"$f":"'[3]Cronograma_PIPC_IDPC 2022'!M6","v":0},{"$f":"'[3]Cronograma_PIPC_IDPC 2022'!N6","v":0},{"$f":"'[3]Cronograma_PIPC_IDPC 2022'!O6","v":0},{"$f":"'[3]Cronograma_PIPC_IDPC 2022'!P6","v":0},{"$f":"'[3]Cronograma_PIPC_IDPC 2022'!Q6","v":0},{"$f":"'[3]Cronograma_PIPC_IDPC 2022'!R6","v":0},{"$f":"'[3]Cronograma_PIPC_IDPC 2022'!S6","v":0},{"$f":"'[3]Cronograma_PIPC_IDPC 2022'!T6","v":0},{"$f":"'[3]Cronograma_PIPC_IDPC 2022'!U6","v":1},{"$f":"'[3]Cronograma_PIPC_IDPC 2022'!V6","v":0},{"$f":"'[3]Cronograma_PIPC_IDPC 2022'!W6","v":0},{"$f":"'[3]Cronograma_PIPC_IDPC 2022'!X6","v":0},{"$f":"'[3]Cronograma_PIPC_IDPC 2022'!Y6","v":0},{"$f":"'[3]Cronograma_PIPC_IDPC 2022'!Z6","v":0},{"$f":"'[3]Cronograma_PIPC_IDPC 2022'!AA6","v":0},{"$f":"'[3]Cronograma_PIPC_IDPC 2022'!AB6","v":0},{"$f":"'[3]Cronograma_PIPC_IDPC 2022'!AC6","v":0},{"$f":"'[3]Cronograma_PIPC_IDPC 2022'!AD6","v":0},{"$f":"'[3]Cronograma_PIPC_IDPC 2022'!AE6","v":0},{"$f":"'[3]Cronograma_PIPC_IDPC 2022'!AF6","v":0},{"$f":"'[3]Cronograma_PIPC_IDPC 2022'!AG6","v":0},{"$f":"'[3]Cronograma_PIPC_IDPC 2022'!AH6","v":0},{"$f":"'[3]Cronograma_PIPC_IDPC 2022'!AI6","v":0},{"$f":"'[3]Cronograma_PIPC_IDPC 2022'!AJ6","v":0},{"$f":"'[3]Cronograma_PIPC_IDPC 2022'!AK6","v":1},{"$f":"'[3]Cronograma_PIPC_IDPC 2022'!AL6","v":0},{"$f":"'[3]Cronograma_PIPC_IDPC 2022'!AM6","v":0},{"$f":"'[3]Cronograma_PIPC_IDPC 2022'!AN6","v":0},{"$f":"'[3]Cronograma_PIPC_IDPC 2022'!AO6","v":0},{"$f":"'[3]Cronograma_PIPC_IDPC 2022'!AP6","v":0},{"$f":"'[3]Cronograma_PIPC_IDPC 2022'!AQ6","v":0},{"$f":"'[3]Cronograma_PIPC_IDPC 2022'!AR6","v":0},null,0,0,0,0,{"$error":"#DIV/0!"},0,"Lista de asistencia\nRegistro fotográfico\nPiezas comunicativas\nActas o relatorías de los encuentros ciudadanos\nCapturas de pantalla\nSoportes campaña comunicativa\n","Formulación (elaboración, aprobación)","Informativo","Sensibilización y control social ","Mixta","Organizaciones de base, gestores culturales locales, propietarios de BIC, actores representativos del patrimonio material e inmaterial local, comerciantes, universidades, empresarios, entidades públicas de orden nacional y distrital, y ciudadanía en general","N/A","Urbano","Parque Nacional Enrique Olaya Herrera y su zona de influencia ","Equipo humano, apoyo técnico, producción gráfica y audiovisual, mesa técnica (soporte tecnológico), papelería, alimentación (refrigerios), Hardware y Software."]
[5,"Plan Especial de Manejo y Protección (PEMP) del Centro Histórico.","Iniciativas de divulgación, socialización y posicionamiento de los contenidos y proyectos del PEMP del Centro Histórico dirigidos a instancias de participación, grupos ciudadanos específicos o la ciudadanía en general.   "," Subdirección de Gestión Territorial del Patrimonio","Equipo de Gestión Territorial PEMP del Centro Histórico","Subdirección de Gestión Territorial, Equipo de Comunicaciones  ","Equipo de Comunicaciones, 7 Entornos, Equipo de Participación Ciudadana","Consejo Local de Arte, Cultura y Patrimonio de La Candelaria, Santa Fe y Los Mártires (CLACP)","Alcaldías Locales, Consejos de Planeación Local, Juntas de Acción Comunal, organizaciones sociales, gremios, universidades, instancias de participación, medios de comunicación, Secretaría Distrital de Planeación, Secretaría Distrital de Cultura, Recreación y Deporte, FUGA, Ministerio de Cultura","Divulgar el PEMP del Centro Histórico, posicionar su enfoque de patrimonios integrados a partir de la implementación de su componente programático, y garantizar la apropiación ciudadana por medio de diálogos ciudadanos","Desarrollo de procesos y encuentros ciudadanos de participación que contemplan: foros, talleres, diálogos territoriales y campañas comunicativas",{"$f":"'[3]Cronograma_PIPC_IDPC 2022'!L7","v":4},{"$f":"'[3]Cronograma_PIPC_IDPC 2022'!M7","v":1},{"$f":"'[3]Cronograma_PIPC_IDPC 2022'!N7","v":0},{"$f":"'[3]Cronograma_PIPC_IDPC 2022'!O7","v":0},{"$f":"'[3]Cronograma_PIPC_IDPC 2022'!P7","v":0},{"$f":"'[3]Cronograma_PIPC_IDPC 2022'!Q7","v":0},{"$f":"'[3]Cronograma_PIPC_IDPC 2022'!R7","v":0},{"$f":"'[3]Cronograma_PIPC_IDPC 2022'!S7","v":0},{"$f":"'[3]Cronograma_PIPC_IDPC 2022'!T7","v":0},{"$f":"'[3]Cronograma_PIPC_IDPC 2022'!U7","v":1},{"$f":"'[3]Cronograma_PIPC_IDPC 2022'!V7","v":0},{"$f":"'[3]Cronograma_PIPC_IDPC 2022'!W7","v":0},{"$f":"'[3]Cronograma_PIPC_IDPC 2022'!X7","v":0},{"$f":"'[3]Cronograma_PIPC_IDPC 2022'!Y7","v":0},{"$f":"'[3]Cronograma_PIPC_IDPC 2022'!Z7","v":0},{"$f":"'[3]Cronograma_PIPC_IDPC 2022'!AA7","v":0},{"$f":"'[3]Cronograma_PIPC_IDPC 2022'!AB7","v":0},{"$f":"'[3]Cronograma_PIPC_IDPC 2022'!AC7","v":1},{"$f":"'[3]Cronograma_PIPC_IDPC 2022'!AD7","v":0},{"$f":"'[3]Cronograma_PIPC_IDPC 2022'!AE7","v":0},{"$f":"'[3]Cronograma_PIPC_IDPC 2022'!AF7","v":0},{"$f":"'[3]Cronograma_PIPC_IDPC 2022'!AG7","v":0},{"$f":"'[3]Cronograma_PIPC_IDPC 2022'!AH7","v":0},{"$f":"'[3]Cronograma_PIPC_IDPC 2022'!AI7","v":0},{"$f":"'[3]Cronograma_PIPC_IDPC 2022'!AJ7","v":0},{"$f":"'[3]Cronograma_PIPC_IDPC 2022'!AK7","v":1},{"$f":"'[3]Cronograma_PIPC_IDPC 2022'!AL7","v":0},{"$f":"'[3]Cronograma_PIPC_IDPC 2022'!AM7","v":0},{"$f":"'[3]Cronograma_PIPC_IDPC 2022'!AN7","v":0},{"$f":"'[3]Cronograma_PIPC_IDPC 2022'!AO7","v":0},{"$f":"'[3]Cronograma_PIPC_IDPC 2022'!AP7","v":0},{"$f":"'[3]Cronograma_PIPC_IDPC 2022'!AQ7","v":0},{"$f":"'[3]Cronograma_PIPC_IDPC 2022'!AR7","v":0},4,0,0,0,0,0,0,"Lista de asistencia\nRegistro fotográfico\nPiezas comunicativas\nActas o relatorías de los encuentros ciudadanos, pantallazos\nSoportes campaña comunicativa","3. Implementación, 4. Seguimiento","1. Informativo \n4.Co-gestión/creación","1. Sensibilización, 2. Creación de capacidades, 3. Movilización de actores","Mixta","Residentes y JAC, organizaciones sociales, culturales, artísticas, educativas y ambientales, instancias de participación, comerciantes y asociaciones de comerciantes,  instituciones educativas, gremios, instituciones públicas locales, distritales y nacionales","Por definir","Urbano","La Candelaria, Santa Fe, Los Mártires","Equipos humanos, transporte, alimentación, papelería, producción gráfica y audiovisual"]
[6,"Plan Especial de Manejo y Protección (PEMP) del Centro Histórico.","Procesos de gestión colaborativa para la revitalización y el cuidado del territorio y sus patrimonios dentro de la implementación del PEMP del Centro Histórico "," Subdirección de Gestión Territorial del Patrimonio","Equipo de  Gestión Territorial PEMP del Centro Histórico","Subdirección de Gestión Territorial (Equipo Activación de 7 Entornos Patrimoniales); Subdirección de  Protección e Intervención del Patrimonio; Subdirección de Divulgación y Apropiación del Patrimonio, Equipo de Participación Ciudadana y Equipo de Comunicaciones ","7 Entornos, Equipo de Participación, Subdirección de Protección e Intervención del Patrimonio\nEquipo de Comunicaciones","Consejo Local de Arte, Cultura y Patrimonio de La Candelaria, Santa Fe y Los Mártires (CLACP)","Alcaldías Locales, Consejos de Planeación Local, Juntas de Acción Comunal, organizaciones sociales, gremios, universidades, instancias de participación, medios de comunicación, Secretaría Distrital de Hábitat, Secretaría Distrital de Movilidad, Secretaría Distrital de Ambiente, JBB,  IDU, IDT, IPES, Transmilenio, Empresa Metro, FUGA, IDARTES, CVP, ERU, UAESP, DADEP, Ministerio de Cultura, Casa Museo  Quinta de Bolívar,  ","Generar sinergias y procesos de  colaboración entre actores públicos, privados y sociales que activen y  potencien la implementación de los  proyectos del PEMP del Centro Histórico ","Procesos de gestión colaborativa del patrimonio incluyendo diálogos y consultas ciudadanas, mesas de  trabajo o grupos focales multiactor, retos y pactos ciudadanos, entre otros",{"$f":"'[3]Cronograma_PIPC_IDPC 2022'!L8","v":4},{"$f":"'[3]Cronograma_PIPC_IDPC 2022'!M8","v":1},{"$f":"'[3]Cronograma_PIPC_IDPC 2022'!N8","v":0},{"$f":"'[3]Cronograma_PIPC_IDPC 2022'!O8","v":0},{"$f":"'[3]Cronograma_PIPC_IDPC 2022'!P8","v":0},{"$f":"'[3]Cronograma_PIPC_IDPC 2022'!Q8","v":0},{"$f":"'[3]Cronograma_PIPC_IDPC 2022'!R8","v":0},{"$f":"'[3]Cronograma_PIPC_IDPC 2022'!S8","v":0},{"$f":"'[3]Cronograma_PIPC_IDPC 2022'!T8","v":0},{"$f":"'[3]Cronograma_PIPC_IDPC 2022'!U8","v":1},{"$f":"'[3]Cronograma_PIPC_IDPC 2022'!V8","v":0},{"$f":"'[3]Cronograma_PIPC_IDPC 2022'!W8","v":0},{"$f":"'[3]Cronograma_PIPC_IDPC 2022'!X8","v":0},{"$f":"'[3]Cronograma_PIPC_IDPC 2022'!Y8","v":0},{"$f":"'[3]Cronograma_PIPC_IDPC 2022'!Z8","v":0},{"$f":"'[3]Cronograma_PIPC_IDPC 2022'!AA8","v":0},{"$f":"'[3]Cronograma_PIPC_IDPC 2022'!AB8","v":0},{"$f":"'[3]Cronograma_PIPC_IDPC 2022'!AC8","v":1},{"$f":"'[3]Cronograma_PIPC_IDPC 2022'!AD8","v":0},{"$f":"'[3]Cronograma_PIPC_IDPC 2022'!AE8","v":0},{"$f":"'[3]Cronograma_PIPC_IDPC 2022'!AF8","v":0},{"$f":"'[3]Cronograma_PIPC_IDPC 2022'!AG8","v":0},{"$f":"'[3]Cronograma_PIPC_IDPC 2022'!AH8","v":0},{"$f":"'[3]Cronograma_PIPC_IDPC 2022'!AI8","v":0},{"$f":"'[3]Cronograma_PIPC_IDPC 2022'!AJ8","v":0},{"$f":"'[3]Cronograma_PIPC_IDPC 2022'!AK8","v":1},{"$f":"'[3]Cronograma_PIPC_IDPC 2022'!AL8","v":0},{"$f":"'[3]Cronograma_PIPC_IDPC 2022'!AM8","v":0},{"$f":"'[3]Cronograma_PIPC_IDPC 2022'!AN8","v":0},{"$f":"'[3]Cronograma_PIPC_IDPC 2022'!AO8","v":0},{"$f":"'[3]Cronograma_PIPC_IDPC 2022'!AP8","v":0},{"$f":"'[3]Cronograma_PIPC_IDPC 2022'!AQ8","v":0},{"$f":"'[3]Cronograma_PIPC_IDPC 2022'!AR8","v":0},4,0,0,0,0,0,0,"Lista de asistencia\nRegistro fotográfico\nPiezas comunicativas\nActas o relatorías de los encuentros ciudadanos, pantallazos","Implementación","2. Consultivo, 4. Cogestión/creación","2. Creación de capacidades, 3. Movilización de actores","Mixta","Residentes y JAC, organizaciones sociales, culturales, artísticas, educativas y ambientales, instancias de participación, comerciantes y asociaciones de comerciantes,  instituciones educativas, gremios, instituciones públicas locales, distritales y nacionales","Por definir","Urbano","La Candelaria, Santa Fe, Los Mártires","Equipos humanos, transporte, alimentación, papelería, producción gráfica y audiovisual"]
[7,"Plan Especial de Manejo y Protección (PEMP) del Centro Histórico.","Activación y reconocimiento de las unidades de paisaje y sus instancias de participación dentro del marco del Plan Especial de Manejo y Protección Centro Histórico","Subdirección de Gestión Territorial del Patrimonio","Equipo de Gestión Territorial PEMP del Centro Histórico","Equipo de Comunicaciones. Equipos de Participación  Ciudadana IDPC","NA","Consejo Local de Arte, Cultura y Patrimonio de La Candelaria, Santa Fe y Los Mártires (CLACP)","FUGA-IDPAC-Ministerio de Cultura","Realizar acciones para activar y posicionar las Unidades de Paisaje y las instancias de participación que conforman el PEMP del Centro Histórico y recibir la retroalimentación de la ciudadanía para generar un piloto de activación.","Mesas y Talles de trabajo; Ejercicios de activación",{"$f":"'[3]Cronograma_PIPC_IDPC 2022'!L9","v":5},{"$f":"'[3]Cronograma_PIPC_IDPC 2022'!M9","v":0},{"$f":"'[3]Cronograma_PIPC_IDPC 2022'!N9","v":0},{"$f":"'[3]Cronograma_PIPC_IDPC 2022'!O9","v":0},{"$f":"'[3]Cronograma_PIPC_IDPC 2022'!P9","v":0},{"$f":"'[3]Cronograma_PIPC_IDPC 2022'!Q9","v":0},{"$f":"'[3]Cronograma_PIPC_IDPC 2022'!R9","v":0},{"$f":"'[3]Cronograma_PIPC_IDPC 2022'!S9","v":0},{"$f":"'[3]Cronograma_PIPC_IDPC 2022'!T9","v":0},{"$f":"'[3]Cronograma_PIPC_IDPC 2022'!U9","v":2},{"$f":"'[3]Cronograma_PIPC_IDPC 2022'!V9","v":0},{"$f":"'[3]Cronograma_PIPC_IDPC 2022'!W9","v":0},{"$f":"'[3]Cronograma_PIPC_IDPC 2022'!X9","v":0},{"$f":"'[3]Cronograma_PIPC_IDPC 2022'!Y9","v":0},{"$f":"'[3]Cronograma_PIPC_IDPC 2022'!Z9","v":0},{"$f":"'[3]Cronograma_PIPC_IDPC 2022'!AA9","v":0},{"$f":"'[3]Cronograma_PIPC_IDPC 2022'!AB9","v":0},{"$f":"'[3]Cronograma_PIPC_IDPC 2022'!AC9","v":2},{"$f":"'[3]Cronograma_PIPC_IDPC 2022'!AD9","v":0},{"$f":"'[3]Cronograma_PIPC_IDPC 2022'!AE9","v":0},{"$f":"'[3]Cronograma_PIPC_IDPC 2022'!AF9","v":0},{"$f":"'[3]Cronograma_PIPC_IDPC 2022'!AG9","v":0},{"$f":"'[3]Cronograma_PIPC_IDPC 2022'!AH9","v":0},{"$f":"'[3]Cronograma_PIPC_IDPC 2022'!AI9","v":0},{"$f":"'[3]Cronograma_PIPC_IDPC 2022'!AJ9","v":0},{"$f":"'[3]Cronograma_PIPC_IDPC 2022'!AK9","v":1},{"$f":"'[3]Cronograma_PIPC_IDPC 2022'!AL9","v":0},{"$f":"'[3]Cronograma_PIPC_IDPC 2022'!AM9","v":0},{"$f":"'[3]Cronograma_PIPC_IDPC 2022'!AN9","v":0},{"$f":"'[3]Cronograma_PIPC_IDPC 2022'!AO9","v":0},{"$f":"'[3]Cronograma_PIPC_IDPC 2022'!AP9","v":0},{"$f":"'[3]Cronograma_PIPC_IDPC 2022'!AQ9","v":0},{"$f":"'[3]Cronograma_PIPC_IDPC 2022'!AR9","v":0},5,0,0,0,0,0,0,"Lista de asistencia\n Registro fotográfico\n Piezas comunicativas\n Actas o relatorías de los encuentros ciudadanos, pantallazos","Implementación","1.Informativo, 2 Consultivo","1. Sensibilización. 3.Movilización de actores","Mixta","Residentes y JAC, organizaciones sociales, culturales, artísticas, educativas y ambientales, instancias de participación, comerciantes y asociaciones de comerciantes, instituciones educativas, gremios, instituciones públicas locales, distritales y nacionales","Por definir","Urbano","La Candelaria, Santa Fe, Los Mártires","Equipos humanos, transporte, alimentación, papelería, producción gráfica y audiovisual"]
[8,"Proceso de identificación  y salvaguardia del patrimonio vivo de los campesinos y campesinas del Sumapaz.                           ","Espacios participativos de identificación, registro y valoración del patrimonio vivo del Sumapaz."," Subdirección de Gestión Territorial del Patrimonio. ","Coordinación Proyecto Sumapaz","Subdirección de Divulgación y Apropiación del Patrimonio. Otros equipos de la  Subdirección de Gestión Territorial del Patrimonio","Equipo de comunicaciones y Equipo del Parque Arqueológico Usme. Equipo de inventarios y declaratoria PCI.","Consejo Local de Arte Cultura y Patrimonio Sumapaz. \nMesa Sectorial de Cultura.","Instancias de participación locales como el CPL, CLIP Y CLACP , organizaciones sociales,  culturales, ambientales y   campesinas, Alcaldía Local de Sumapaz, Secretaría de Planeación Distrital, Secretaría Distrital de la Mujer, IDPAC, RAPE, PDET. ASOJUNTAS (Juntas de Acción Comunal del Sumapaz)","Profundizar en la identificación de las manifestaciones del Patrimonio Cultural Inmaterial-PCI del Sumapaz a través de metodologías participativas.","Desarrollo de procesos y encuentros ciudadanos de participación que contemplan: talleres y espacios participativos para la valoración, identificación, documentación y salvaguardia del  patrimonio vivo y campesino  del Sumapaz.",{"$f":"'[4]Cronograma_PIPC_IDPC 2022'!L$10","v":5},{"$f":"'[4]Cronograma_PIPC_IDPC 2022'!M$10","v":1},{"$f":"'[4]Cronograma_PIPC_IDPC 2022'!N$10","v":0},{"$f":"'[4]Cronograma_PIPC_IDPC 2022'!O$10","v":0},{"$f":"'[4]Cronograma_PIPC_IDPC 2022'!P$10","v":0},{"$f":"'[4]Cronograma_PIPC_IDPC 2022'!Q$10","v":0},{"$f":"'[4]Cronograma_PIPC_IDPC 2022'!R$10","v":0},{"$f":"'[4]Cronograma_PIPC_IDPC 2022'!S$10","v":0},{"$f":"'[4]Cronograma_PIPC_IDPC 2022'!T$10","v":0},{"$f":"'[4]Cronograma_PIPC_IDPC 2022'!U$10","v":1},{"$f":"'[4]Cronograma_PIPC_IDPC 2022'!V$10","v":0},{"$f":"'[4]Cronograma_PIPC_IDPC 2022'!W$10","v":0},{"$f":"'[4]Cronograma_PIPC_IDPC 2022'!X$10","v":0},{"$f":"'[4]Cronograma_PIPC_IDPC 2022'!Y$10","v":0},{"$f":"'[4]Cronograma_PIPC_IDPC 2022'!Z$10","v":0},{"$f":"'[4]Cronograma_PIPC_IDPC 2022'!AA$10","v":0},{"$f":"'[4]Cronograma_PIPC_IDPC 2022'!AB$10","v":0},{"$f":"'[4]Cronograma_PIPC_IDPC 2022'!AC$10","v":2},{"$f":"'[4]Cronograma_PIPC_IDPC 2022'!AD$10","v":0},{"$f":"'[4]Cronograma_PIPC_IDPC 2022'!AE$10","v":0},{"$f":"'[4]Cronograma_PIPC_IDPC 2022'!AF$10","v":0},{"$f":"'[4]Cronograma_PIPC_IDPC 2022'!AG$10","v":0},{"$f":"'[4]Cronograma_PIPC_IDPC 2022'!AH$10","v":0},{"$f":"'[4]Cronograma_PIPC_IDPC 2022'!AI$10","v":0},{"$f":"'[4]Cronograma_PIPC_IDPC 2022'!AJ$10","v":0},{"$f":"'[4]Cronograma_PIPC_IDPC 2022'!AK$10","v":1},{"$f":"'[4]Cronograma_PIPC_IDPC 2022'!AL$10","v":0},{"$f":"'[4]Cronograma_PIPC_IDPC 2022'!AM$10","v":0},{"$f":"'[4]Cronograma_PIPC_IDPC 2022'!AN$10","v":0},{"$f":"'[4]Cronograma_PIPC_IDPC 2022'!AO$10","v":0},{"$f":"'[4]Cronograma_PIPC_IDPC 2022'!AP$10","v":0},{"$f":"'[4]Cronograma_PIPC_IDPC 2022'!AQ$10","v":0},{"$f":"'[4]Cronograma_PIPC_IDPC 2022'!AR$10","v":0},{"$f":"L10","v":5},0,0,0,0,0,0," Listados de Asistencia,  Actas, Pantallazos y /o grabaciones de reuniones.   Fotografías.","1.Diágnostico; 2. Formulación ","1.Informativo;2.Consultivo; 3. Decisorio. 4. Cogestión/ creación.","1. Sensibilización, 2. Creación de capacidades; 3. Movilización de actores. ","Mixta","Organizaciones de base. Gestores culturales locales, Instancias de participación locales, actores representativos del patrimonio material e inmaterial local, universidades, entidades públicas locales, distritales y regionales. ","Campesinos, mujeres; Étnico/Ruralidad","Rural","Localidad de Sumapaz (Borde Sur de la ciudad)","Equipos humanos técnicos, logísticos de transporte, alimentación para los participantes  y recursos para encuentros virtuales y presenciales"]
[9,"Proyecto Parque Arqueológico y del Patrimonio Cultural de Usme.","Espacios de socialización, diálogos sociales  e interculturales para la activación del patrimonio cultural del área arqueológica protegida."," Subdirección de Gestión Territorial del Patrimonio. Subdirección de Divulgación y Apropiación del Patrimonio.","Coordinación Proyecto Parque Arqueológico y del Patrimonio Cultural de Usme","Subdirección de Divulgación y Apropiación del Patrimonio.    Subdirección de Gestión Territorial del Patrimonio","Recorridos de Apropiación del Patrimonio. Equipo 7 Entornos, Declaratorias PCI, Civinautas, Enfoque diferencial.","Consejo Local de Arte Cultura y Patrimonio Usme.\nMesa Sectorial de Cultura","Instancias de participación locales: como el CLOPS, CPL, CAL, CLIP, Mesa de Patrimonio Usmeka, organizaciones sociales,  culturales y ambientales  indígenas  y campesinas en el Borde Sur, Alcaldías Local  y JAL de Usme. Veeduría Ciudadanas del Parque. Pueblo Muisca.                              IDPAC,  IDT, ICANH,Universidades. Secretaría Distrital de Planeación, Secretaría de Desarrollo Económico,  Jardín Botánico, EAAB ","Generar diálogos sociales, interculturales  y territoriales que visibilicen y fomenten la apropiación de los patrimonios integrados del área arqueológica protegida,  mostrando la relevancia del proyecto del Parque Arqueológico en el territorio del borde urbano rural, la ciudad y la región.","Encuentros, diálogos sociales, talleres, festival del patrimonio, recorridos y visitas territoriales para la visibilización y apropiación social e institucional de la integralidad de los patrimonios, su salvaguardia y  gestión cultural.",{"$f":"'[5]Cronograma_PIPC_IDPC 2022'!L$11","v":15},{"$f":"'[5]Cronograma_PIPC_IDPC 2022'!M$11","v":3},{"$f":"'[5]Cronograma_PIPC_IDPC 2022'!N$11","v":0},{"$f":"'[5]Cronograma_PIPC_IDPC 2022'!O$11","v":0},{"$f":"'[5]Cronograma_PIPC_IDPC 2022'!P$11","v":0},{"$f":"'[5]Cronograma_PIPC_IDPC 2022'!Q$11","v":0},{"$f":"'[5]Cronograma_PIPC_IDPC 2022'!R$11","v":0},{"$f":"'[5]Cronograma_PIPC_IDPC 2022'!S$11","v":0},{"$f":"'[5]Cronograma_PIPC_IDPC 2022'!T$11","v":0},{"$f":"'[5]Cronograma_PIPC_IDPC 2022'!U$11","v":4},{"$f":"'[5]Cronograma_PIPC_IDPC 2022'!V$11","v":0},{"$f":"'[5]Cronograma_PIPC_IDPC 2022'!W$11","v":0},{"$f":"'[5]Cronograma_PIPC_IDPC 2022'!X$11","v":0},{"$f":"'[5]Cronograma_PIPC_IDPC 2022'!Y$11","v":0},{"$f":"'[5]Cronograma_PIPC_IDPC 2022'!Z$11","v":0},{"$f":"'[5]Cronograma_PIPC_IDPC 2022'!AA$11","v":0},{"$f":"'[5]Cronograma_PIPC_IDPC 2022'!AB$11","v":0},{"$f":"'[5]Cronograma_PIPC_IDPC 2022'!AC$11","v":4},{"$f":"'[5]Cronograma_PIPC_IDPC 2022'!AD$11","v":0},{"$f":"'[5]Cronograma_PIPC_IDPC 2022'!AE$11","v":0},{"$f":"'[5]Cronograma_PIPC_IDPC 2022'!AF$11","v":0},{"$f":"'[5]Cronograma_PIPC_IDPC 2022'!AG$11","v":0},{"$f":"'[5]Cronograma_PIPC_IDPC 2022'!AH$11","v":0},{"$f":"'[5]Cronograma_PIPC_IDPC 2022'!AI$11","v":0},{"$f":"'[5]Cronograma_PIPC_IDPC 2022'!AJ$11","v":0},{"$f":"'[5]Cronograma_PIPC_IDPC 2022'!AK$11","v":4},{"$f":"'[5]Cronograma_PIPC_IDPC 2022'!AL$11","v":0},{"$f":"'[5]Cronograma_PIPC_IDPC 2022'!AM$11","v":0},{"$f":"'[5]Cronograma_PIPC_IDPC 2022'!AN$11","v":0},{"$f":"'[5]Cronograma_PIPC_IDPC 2022'!AO$11","v":0},{"$f":"'[5]Cronograma_PIPC_IDPC 2022'!AP$11","v":0},{"$f":"'[5]Cronograma_PIPC_IDPC 2022'!AQ$11","v":0},{"$f":"'[5]Cronograma_PIPC_IDPC 2022'!AR$11","v":0},15,0,0,0,0,0,0," Listados de Asistencia, Actas, Memorias, documentos Metodológicos, Guiones, Pantallazos y /o grabaciones de reuniones. Memoria audiovisual, Boletines, Afiches y cartillas  de divulgación.",". Formulación y 3. Implementación","1. Informativo, 2.Consultivo; 3. Decisorio. 4. Cogestión/creación","1. Sensibilización, 2. Creación de capacidades; ; 3. Movilización de actores; 4. Control Social","Mixta ","Organizaciones de base, organizaciones sociales con enfoque diferencial étnico, campesinas  y de diversos sectores sociales gestores culturales locales, Instancias de participación locales, actores representativos del patrimonio material e inmaterial local, universidades, entidades públicas locales, distritales y regionales. Universidades","Campesinos, pobladores  populares urbanos, Étnico/(Borde urbano rural)","Urbano/Rural","Localidad de Usme (Borde Sur de la ciudad)","Equipos humanos técnicos, logísticos de transporte y recursos para encuentros virtuales"]
[10,"Recorridos  patrimoniales","Encuentros de sensibilización en patrimonios locales.","Subdirección de Divulgación y Apropiación del Patrimonio","Recorridos patrimoniales","Museo de Bogotá/Equipo de Formación","Subdirección de Divulgación y Apropiación del Patrimonio (Civinautas, Museo de Bogotá). Subdirección de Gestión Territorial, Oficina Asesora de Planeación (Equipo de participación ciudadana). Subdirección de Protección e Intervención del Patrimonio (equipo de gestión social)","Mesa de consejeros y Consejeras locales de Patrimonio Cultural ","Colectivos ciudadanos interesados. Alcaldía Local de Usme.","Reconocimiento y valoración del patrimonio cultural de colectivos ciudadanos","Ejercicios y  procesos de colaboración e innovación para la apropiación del patrimonio cultural",{"$f":"'[6]Cronograma_PIPC_IDPC 2022'!L$12","v":3},{"$f":"'[6]Cronograma_PIPC_IDPC 2022'!M$12","v":0},{"$f":"'[6]Cronograma_PIPC_IDPC 2022'!N$12","v":0},{"$f":"'[6]Cronograma_PIPC_IDPC 2022'!O$12","v":0},{"$f":"'[6]Cronograma_PIPC_IDPC 2022'!P$12","v":0},{"$f":"'[6]Cronograma_PIPC_IDPC 2022'!Q$12","v":0},{"$f":"'[6]Cronograma_PIPC_IDPC 2022'!R$12","v":0},{"$f":"'[6]Cronograma_PIPC_IDPC 2022'!S$12","v":0},{"$f":"'[6]Cronograma_PIPC_IDPC 2022'!T$12","v":0},{"$f":"'[6]Cronograma_PIPC_IDPC 2022'!U$12","v":1},{"$f":"'[6]Cronograma_PIPC_IDPC 2022'!V$12","v":0},{"$f":"'[6]Cronograma_PIPC_IDPC 2022'!W$12","v":0},{"$f":"'[6]Cronograma_PIPC_IDPC 2022'!X$12","v":0},{"$f":"'[6]Cronograma_PIPC_IDPC 2022'!Y$12","v":0},{"$f":"'[6]Cronograma_PIPC_IDPC 2022'!Z$12","v":0},{"$f":"'[6]Cronograma_PIPC_IDPC 2022'!AA$12","v":0},{"$f":"'[6]Cronograma_PIPC_IDPC 2022'!AB$12","v":0},{"$f":"'[6]Cronograma_PIPC_IDPC 2022'!AC$12","v":1},{"$f":"'[6]Cronograma_PIPC_IDPC 2022'!AD$12","v":0},{"$f":"'[6]Cronograma_PIPC_IDPC 2022'!AE$12","v":0},{"$f":"'[6]Cronograma_PIPC_IDPC 2022'!AF$12","v":0},{"$f":"'[6]Cronograma_PIPC_IDPC 2022'!AG$12","v":0},{"$f":"'[6]Cronograma_PIPC_IDPC 2022'!AH$12","v":0},{"$f":"'[6]Cronograma_PIPC_IDPC 2022'!AI$12","v":0},{"$f":"'[6]Cronograma_PIPC_IDPC 2022'!AJ$12","v":0},{"$f":"'[6]Cronograma_PIPC_IDPC 2022'!AK$12","v":1},{"$f":"'[6]Cronograma_PIPC_IDPC 2022'!AL$12","v":0},{"$f":"'[6]Cronograma_PIPC_IDPC 2022'!AM$12","v":0},{"$f":"'[6]Cronograma_PIPC_IDPC 2022'!AN$12","v":0},{"$f":"'[6]Cronograma_PIPC_IDPC 2022'!AO$12","v":0},{"$f":"'[6]Cronograma_PIPC_IDPC 2022'!AP$12","v":0},{"$f":"'[6]Cronograma_PIPC_IDPC 2022'!AQ$12","v":0},{"$f":"'[6]Cronograma_PIPC_IDPC 2022'!AR$12","v":0},3,0,0,0,0,0,0,"Video, listados de asistencia, presentación y pantallazos de los encuentros","3. Implementación","4. Cogestión/creación","1. Sensibilización, 2. Creación de capacidades, 3. Movilización de actores","Virtual","Organizaciones sociales y colectivos culturales","Sí (transcurrir vital, pertenencia étnica, víctimas del conflicto armado)","Urbano/Rural","Bogotá","Equipo humano, expertos, papelería"]
[11,"Procesos de declaratoria de patrimonio inmaterial \n","Proceso declaratoria del Festival Jizca Chia Zhue (Festival del Sol y la Luna) del pueblo Muisca de Bosa","Subdirección de Divulgación y Apropiación del Patrimonio","Equipo declaratorias de Patrimonio Cultural Inmaterial","N/A","Enfoque diferencial étnico","Consejo Distrital de Patrimonio Cultural","Sector cultura, sector gobierno (seguimiento acuerdos consulta previa y espacios de concertación)\n\nCabildo Muisca de Bosa, Secretaría de Cultura, Recreación y Deportes-SCRD, Alcaldía Local de Bosa","Continuar el proceso de acompañamiento técnico para la  inclusión en la Lista Representativa de Patrimonio Cultural Inmaterial-LRPCI del ámbito distrital del Jizca Chia Zhue (Festival del Sol y la Luna) del pueblo Muisca de Bosa, a partir del apoyo en la elaboración del  Plan Especial de Salvaguardia-PES","Proceso de concertación y reflexión, talleres, encuentros, retroalimentación de documentos y  mesas de trabajo conjunto con el Cabildo Muisca de Bosa.",{"$f":"'[7]Cronograma_PIPC_IDPC 2022'!L13","v":8},{"$f":"'[7]Cronograma_PIPC_IDPC 2022'!M13","v":1},{"$f":"'[7]Cronograma_PIPC_IDPC 2022'!N13","v":0},{"$f":"'[7]Cronograma_PIPC_IDPC 2022'!O13","v":0},{"$f":"'[7]Cronograma_PIPC_IDPC 2022'!P13","v":0},{"$f":"'[7]Cronograma_PIPC_IDPC 2022'!Q13","v":0},{"$f":"'[7]Cronograma_PIPC_IDPC 2022'!R13","v":0},{"$f":"'[7]Cronograma_PIPC_IDPC 2022'!S13","v":0},{"$f":"'[7]Cronograma_PIPC_IDPC 2022'!T13","v":0},{"$f":"'[7]Cronograma_PIPC_IDPC 2022'!U13","v":2},{"$f":"'[7]Cronograma_PIPC_IDPC 2022'!V13","v":0},{"$f":"'[7]Cronograma_PIPC_IDPC 2022'!W13","v":0},{"$f":"'[7]Cronograma_PIPC_IDPC 2022'!X13","v":0},{"$f":"'[7]Cronograma_PIPC_IDPC 2022'!Y13","v":0},{"$f":"'[7]Cronograma_PIPC_IDPC 2022'!Z13","v":0},{"$f":"'[7]Cronograma_PIPC_IDPC 2022'!AA13","v":0},{"$f":"'[7]Cronograma_PIPC_IDPC 2022'!AB13","v":0},{"$f":"'[7]Cronograma_PIPC_IDPC 2022'!AC13","v":4},{"$f":"'[7]Cronograma_PIPC_IDPC 2022'!AD13","v":0},{"$f":"'[7]Cronograma_PIPC_IDPC 2022'!AE13","v":0},{"$f":"'[7]Cronograma_PIPC_IDPC 2022'!AF13","v":0},{"$f":"'[7]Cronograma_PIPC_IDPC 2022'!AG13","v":0},{"$f":"'[7]Cronograma_PIPC_IDPC 2022'!AH13","v":0},{"$f":"'[7]Cronograma_PIPC_IDPC 2022'!AI13","v":0},{"$f":"'[7]Cronograma_PIPC_IDPC 2022'!AJ13","v":0},{"$f":"'[7]Cronograma_PIPC_IDPC 2022'!AK13","v":1},{"$f":"'[7]Cronograma_PIPC_IDPC 2022'!AL13","v":0},{"$f":"'[7]Cronograma_PIPC_IDPC 2022'!AM13","v":0},{"$f":"'[7]Cronograma_PIPC_IDPC 2022'!AN13","v":0},{"$f":"'[7]Cronograma_PIPC_IDPC 2022'!AO13","v":0},{"$f":"'[7]Cronograma_PIPC_IDPC 2022'!AP13","v":0},{"$f":"'[7]Cronograma_PIPC_IDPC 2022'!AQ13","v":0},{"$f":"'[7]Cronograma_PIPC_IDPC 2022'!AR13","v":0},{"$f":"L13","v":8},0,0,0,0,0,0,"Listas de asistencia, actas, pantallazos","1. Diagnóstico; 2. Formulación","1. Informativo, 3. Decisorio, 4. Cogestión/creación","1. Sensibilización, 2. Creación de capacidades, 3. Movilización de actores","Mixta","Comunidad Muisca de Bosa","Enfoque poblacional-diferencial étnico","Urbano","Bosa","Equipo humano declaratorias patrimonio inmaterial"]
[12,"Procesos de declaratoria de patrimonio inmaterial ","Proceso declaratoria de la Metodología de creación colectiva del Teatro La Candelaria","Subdirección de Divulgación y Apropiación del Patrimonio","Equipo declaratorias de Patrimonio Cultural Inmaterial","N/A","NA","Consejo Distrital de Patrimonio Cultural","IDARTES","Continuar el proceso de inclusión en la Lista Representativa de Patrimonio Cultural Inmaterial-LRPCI del ámbito distrital de la Metodología de creación colectiva del Teatro La Candelaria a partir del acompañamiento técnico para la elaboración del documento de postulación. ","Reuniones, mesas de trabajo, retroalimentación  de documentos, talleres, espacios de discusión y reflexión. ",{"$f":"'[7]Cronograma_PIPC_IDPC 2022'!L14","v":4},{"$f":"'[7]Cronograma_PIPC_IDPC 2022'!M14","v":1},{"$f":"'[7]Cronograma_PIPC_IDPC 2022'!N14","v":0},{"$f":"'[7]Cronograma_PIPC_IDPC 2022'!O14","v":0},{"$f":"'[7]Cronograma_PIPC_IDPC 2022'!P14","v":0},{"$f":"'[7]Cronograma_PIPC_IDPC 2022'!Q14","v":0},{"$f":"'[7]Cronograma_PIPC_IDPC 2022'!R14","v":0},{"$f":"'[7]Cronograma_PIPC_IDPC 2022'!S14","v":0},{"$f":"'[7]Cronograma_PIPC_IDPC 2022'!T14","v":0},{"$f":"'[7]Cronograma_PIPC_IDPC 2022'!U14","v":1},{"$f":"'[7]Cronograma_PIPC_IDPC 2022'!V14","v":0},{"$f":"'[7]Cronograma_PIPC_IDPC 2022'!W14","v":0},{"$f":"'[7]Cronograma_PIPC_IDPC 2022'!X14","v":0},{"$f":"'[7]Cronograma_PIPC_IDPC 2022'!Y14","v":0},{"$f":"'[7]Cronograma_PIPC_IDPC 2022'!Z14","v":0},{"$f":"'[7]Cronograma_PIPC_IDPC 2022'!AA14","v":0},{"$f":"'[7]Cronograma_PIPC_IDPC 2022'!AB14","v":0},{"$f":"'[7]Cronograma_PIPC_IDPC 2022'!AC14","v":1},{"$f":"'[7]Cronograma_PIPC_IDPC 2022'!AD14","v":0},{"$f":"'[7]Cronograma_PIPC_IDPC 2022'!AE14","v":0},{"$f":"'[7]Cronograma_PIPC_IDPC 2022'!AF14","v":0},{"$f":"'[7]Cronograma_PIPC_IDPC 2022'!AG14","v":0},{"$f":"'[7]Cronograma_PIPC_IDPC 2022'!AH14","v":0},{"$f":"'[7]Cronograma_PIPC_IDPC 2022'!AI14","v":0},{"$f":"'[7]Cronograma_PIPC_IDPC 2022'!AJ14","v":0},{"$f":"'[7]Cronograma_PIPC_IDPC 2022'!AK14","v":1},{"$f":"'[7]Cronograma_PIPC_IDPC 2022'!AL14","v":0},{"$f":"'[7]Cronograma_PIPC_IDPC 2022'!AM14","v":0},{"$f":"'[7]Cronograma_PIPC_IDPC 2022'!AN14","v":0},{"$f":"'[7]Cronograma_PIPC_IDPC 2022'!AO14","v":0},{"$f":"'[7]Cronograma_PIPC_IDPC 2022'!AP14","v":0},{"$f":"'[7]Cronograma_PIPC_IDPC 2022'!AQ14","v":0},{"$f":"'[7]Cronograma_PIPC_IDPC 2022'!AR14","v":0},{"$f":"L14","v":4},0,0,0,0,0,0,"Listas de asistencia, actas, pantallazos","1. Diagnóstico","1. Informativo, 3. Decisorio, 4. Cogestión/creación","1. Sensibilización, 3. Movilización de actores","Mixta","Grupo del Teatro La Candelaria","Por definir","Urbano","La Candelaria","Equipo humano declaratorias patrimonio inmaterial"]
[13,"Procesos de declaratoria de patrimonio inmaterial ","Proceso Inclusión de la cultura bogotana del uso y disfrute de la bicicleta en la Lista Representativa de Patrimonio Cultural Inmaterial-LRPCI del ámbito distrital ","Subdirección de Divulgación y Apropiación del Patrimonio","Equipo declaratorias de Patrimonio Cultural Inmaterial","Subdirección de Gestión Territorial y Subdirección de Divulgación, Museo de Bogotá.","7 Entornos","Instancias de participación del sector gobierno (consejos locales de la bicicleta y otros)","Secretaría de Movilidad, Secretaría de la Mujer, IDPAC, IDRD y ONU Mujeres.","Continuar el proceso de Inclusión en la  Lista Representativa de Patrimonio Cultural Inmaterial-LRPCI del ámbito distrital de la cultura bogotana del uso y disfrute de la bicicleta, a partir de la elaboración del documento de postulación","Reuniones, mesas de trabajo, talleres, recorridos,  espacios de discusión y reflexión. ",{"$f":"'[7]Cronograma_PIPC_IDPC 2022'!L15","v":11},{"$f":"'[7]Cronograma_PIPC_IDPC 2022'!M15","v":7},{"$f":"'[7]Cronograma_PIPC_IDPC 2022'!N15","v":0},{"$f":"'[7]Cronograma_PIPC_IDPC 2022'!O15","v":0},{"$f":"'[7]Cronograma_PIPC_IDPC 2022'!P15","v":0},{"$f":"'[7]Cronograma_PIPC_IDPC 2022'!Q15","v":0},{"$f":"'[7]Cronograma_PIPC_IDPC 2022'!R15","v":0},{"$f":"'[7]Cronograma_PIPC_IDPC 2022'!S15","v":0},{"$f":"'[7]Cronograma_PIPC_IDPC 2022'!T15","v":0},{"$f":"'[7]Cronograma_PIPC_IDPC 2022'!U15","v":2},{"$f":"'[7]Cronograma_PIPC_IDPC 2022'!V15","v":0},{"$f":"'[7]Cronograma_PIPC_IDPC 2022'!W15","v":0},{"$f":"'[7]Cronograma_PIPC_IDPC 2022'!X15","v":0},{"$f":"'[7]Cronograma_PIPC_IDPC 2022'!Y15","v":0},{"$f":"'[7]Cronograma_PIPC_IDPC 2022'!Z15","v":0},{"$f":"'[7]Cronograma_PIPC_IDPC 2022'!AA15","v":0},{"$f":"'[7]Cronograma_PIPC_IDPC 2022'!AB15","v":0},{"$f":"'[7]Cronograma_PIPC_IDPC 2022'!AC15","v":1},{"$f":"'[7]Cronograma_PIPC_IDPC 2022'!AD15","v":0},{"$f":"'[7]Cronograma_PIPC_IDPC 2022'!AE15","v":0},{"$f":"'[7]Cronograma_PIPC_IDPC 2022'!AF15","v":0},{"$f":"'[7]Cronograma_PIPC_IDPC 2022'!AG15","v":0},{"$f":"'[7]Cronograma_PIPC_IDPC 2022'!AH15","v":0},{"$f":"'[7]Cronograma_PIPC_IDPC 2022'!AI15","v":0},{"$f":"'[7]Cronograma_PIPC_IDPC 2022'!AJ15","v":0},{"$f":"'[7]Cronograma_PIPC_IDPC 2022'!AK15","v":1},{"$f":"'[7]Cronograma_PIPC_IDPC 2022'!AL15","v":0},{"$f":"'[7]Cronograma_PIPC_IDPC 2022'!AM15","v":0},{"$f":"'[7]Cronograma_PIPC_IDPC 2022'!AN15","v":0},{"$f":"'[7]Cronograma_PIPC_IDPC 2022'!AO15","v":0},{"$f":"'[7]Cronograma_PIPC_IDPC 2022'!AP15","v":0},{"$f":"'[7]Cronograma_PIPC_IDPC 2022'!AQ15","v":0},{"$f":"'[7]Cronograma_PIPC_IDPC 2022'!AR15","v":0},11,0,0,0,0,0,0,"Listas de asistencia, actas, pantallazos","1. Diagnóstico","1. Informativo, 3. Decisorio, 4. Cogestión/creación","1. Sensibilización, 3. Movilización de actores","Mixta","Consejos locales de la bicicleta, colectivos y colectivas de biciusuarias(os) y otros actores sociales por identificar. ","identidad de género, transcurrir vital (jóvenes)","Urbano/Rural","Por definir","Equipo humano declaratorias patrimonio inmaterial, convenio Secretaría de Movilidad"]
[14,"Inventario de Patrimonio Cultural","Inventario de patrimonio cultural inmaterial","Subdirección de Divulgación y Apropiación del Patrimonio.","Equipo de inventario de PCI","NA","Subdirección de Intervención (Equipo de valoración e inventario)/Subdirección de Gestión Territorial/7 Entornos)","Mesa de Consejeros Locales de Patrimonio Cultural ","SCRD","Implementar la etapa de creación de los pilotos de la metodología de inventario de PCI en Bosa, Suba y Usme a través de la generación de contenidos para la divulgación de los patrimonios locales registrados.","Talleres y espacios participativos para la generación de contenidos",{"$f":"'[7]Cronograma_PIPC_IDPC 2022'!L16","v":6},{"$f":"'[7]Cronograma_PIPC_IDPC 2022'!M16","v":3},{"$f":"'[7]Cronograma_PIPC_IDPC 2022'!N16","v":0},{"$f":"'[7]Cronograma_PIPC_IDPC 2022'!O16","v":0},{"$f":"'[7]Cronograma_PIPC_IDPC 2022'!P16","v":0},{"$f":"'[7]Cronograma_PIPC_IDPC 2022'!Q16","v":0},{"$f":"'[7]Cronograma_PIPC_IDPC 2022'!R16","v":0},{"$f":"'[7]Cronograma_PIPC_IDPC 2022'!S16","v":0},{"$f":"'[7]Cronograma_PIPC_IDPC 2022'!T16","v":0},{"$f":"'[7]Cronograma_PIPC_IDPC 2022'!U16","v":3},{"$f":"'[7]Cronograma_PIPC_IDPC 2022'!V16","v":0},{"$f":"'[7]Cronograma_PIPC_IDPC 2022'!W16","v":0},{"$f":"'[7]Cronograma_PIPC_IDPC 2022'!X16","v":0},{"$f":"'[7]Cronograma_PIPC_IDPC 2022'!Y16","v":0},{"$f":"'[7]Cronograma_PIPC_IDPC 2022'!Z16","v":0},{"$f":"'[7]Cronograma_PIPC_IDPC 2022'!AA16","v":0},{"$f":"'[7]Cronograma_PIPC_IDPC 2022'!AB16","v":0},{"$f":"'[7]Cronograma_PIPC_IDPC 2022'!AC16","v":0},{"$f":"'[7]Cronograma_PIPC_IDPC 2022'!AD16","v":0},{"$f":"'[7]Cronograma_PIPC_IDPC 2022'!AE16","v":0},{"$f":"'[7]Cronograma_PIPC_IDPC 2022'!AF16","v":0},{"$f":"'[7]Cronograma_PIPC_IDPC 2022'!AG16","v":0},{"$f":"'[7]Cronograma_PIPC_IDPC 2022'!AH16","v":0},{"$f":"'[7]Cronograma_PIPC_IDPC 2022'!AI16","v":0},{"$f":"'[7]Cronograma_PIPC_IDPC 2022'!AJ16","v":0},{"$f":"'[7]Cronograma_PIPC_IDPC 2022'!AK16","v":0},{"$f":"'[7]Cronograma_PIPC_IDPC 2022'!AL16","v":0},{"$f":"'[7]Cronograma_PIPC_IDPC 2022'!AM16","v":0},{"$f":"'[7]Cronograma_PIPC_IDPC 2022'!AN16","v":0},{"$f":"'[7]Cronograma_PIPC_IDPC 2022'!AO16","v":0},{"$f":"'[7]Cronograma_PIPC_IDPC 2022'!AP16","v":0},{"$f":"'[7]Cronograma_PIPC_IDPC 2022'!AQ16","v":0},{"$f":"'[7]Cronograma_PIPC_IDPC 2022'!AR16","v":0},6,0,0,0,0,0,0,"Listas de asistencia, actas, pantallazos","1. Diagnóstico, 3. ejecución","1. Informativo,  4. Cogestión/creación","1. Sensibilización, 2. Creación de capacidades, 3. Movilización de actores","Mixta","comunidades , organizaciones sociales, gestores locales de patrimonio cultural","Inter seccional","Urbano/Rural","Bosa, Suba y Usme","Equipo humano"]
[15,"Política Sectorial de Fomento / Programa Distrital de Apoyos Concertados y Programa Distrital de Estímulos","Fortalecimiento de las propuestas de activación, reconocimiento e investigación del patrimonio agenciadas por la ciudadanía, a través del Programa Distrital de Estímulos y Apoyos Concertados.","Subdirección de Divulgación y Apropiación del Patrimonio Cultural","Equipo de Fomento ","Equipo Patrimonio Cultural Inmaterial\nEquipo de Enfoque Diferencial\n\nEquipo de Participación Ciudadana\nEquipo de Investigación","Construcción de contenidos de las convocatorias: Equipo Patrimonio Cultural Inmaterial, \nEquipo de Participación Ciudadana\nEquipo de investigación,\nMuseo de Bogotá, Dirección General, Equipo de publicaciones.\n\nRecomendaciones para la formulación de contenidos:\nEquipo Civinautas, Equipo de Enfoque Diferencial, Equipo de Valoración, Equipo de Recorridos Patrimoniales.\n","Mesa de Consejeros de Patrimonio Cultural, Consejo Cultural de Grupos Étnicos Consejo Cultural de Sectores Sociales. ","Organizaciones sociales, culturales y ambientales a nivel local, barrial y vecinal.\n\nAlcaldías locales\n\nEntidades públicas nacionales y distritales asociadas a temas asociados a las convocatorias (seguridad alimentaria, ruralidad, oficios, productividad, género, sectores etarios, espacio púbico, entre otros)."," Fortalecer y visibilizar las iniciativas, proyectos y procesos desarrollados por la ciudadanía activa y los agentes artísticos, culturales y patrimoniales en Bogotá.","Convocatorias de fomento del IDPC en el marco del Programa Distrital de Estímulos y apoyos concertados; propuestas de la ciudadanía ganadoras de estímulos para su fortalecimiento.        ",{"$f":"'[8]Cronograma_PIPC_IDPC 2022'!L$17","v":31},{"$f":"'[8]Cronograma_PIPC_IDPC 2022'!M$17","v":0},{"$f":"'[8]Cronograma_PIPC_IDPC 2022'!N$17","v":0},{"$f":"'[8]Cronograma_PIPC_IDPC 2022'!O$17","v":0},{"$f":"'[8]Cronograma_PIPC_IDPC 2022'!P$17","v":0},{"$f":"'[8]Cronograma_PIPC_IDPC 2022'!Q$17","v":0},{"$f":"'[8]Cronograma_PIPC_IDPC 2022'!R$17","v":0},{"$f":"'[8]Cronograma_PIPC_IDPC 2022'!S$17","v":0},{"$f":"'[8]Cronograma_PIPC_IDPC 2022'!T$17","v":0},{"$f":"'[8]Cronograma_PIPC_IDPC 2022'!U$17","v":17},{"$f":"'[8]Cronograma_PIPC_IDPC 2022'!V$17","v":0},{"$f":"'[8]Cronograma_PIPC_IDPC 2022'!W$17","v":0},{"$f":"'[8]Cronograma_PIPC_IDPC 2022'!X$17","v":0},{"$f":"'[8]Cronograma_PIPC_IDPC 2022'!Y$17","v":0},{"$f":"'[8]Cronograma_PIPC_IDPC 2022'!Z$17","v":0},{"$f":"'[8]Cronograma_PIPC_IDPC 2022'!AA$17","v":0},{"$f":"'[8]Cronograma_PIPC_IDPC 2022'!AB$17","v":0},{"$f":"'[8]Cronograma_PIPC_IDPC 2022'!AC$17","v":7},{"$f":"'[8]Cronograma_PIPC_IDPC 2022'!AD$17","v":0},{"$f":"'[8]Cronograma_PIPC_IDPC 2022'!AE$17","v":0},{"$f":"'[8]Cronograma_PIPC_IDPC 2022'!AF$17","v":0},{"$f":"'[8]Cronograma_PIPC_IDPC 2022'!AG$17","v":0},{"$f":"'[8]Cronograma_PIPC_IDPC 2022'!AH$17","v":0},{"$f":"'[8]Cronograma_PIPC_IDPC 2022'!AI$17","v":0},{"$f":"'[8]Cronograma_PIPC_IDPC 2022'!AJ$17","v":0},{"$f":"'[8]Cronograma_PIPC_IDPC 2022'!AK$17","v":7},{"$f":"'[8]Cronograma_PIPC_IDPC 2022'!AL$17","v":0},{"$f":"'[8]Cronograma_PIPC_IDPC 2022'!AM$17","v":0},{"$f":"'[8]Cronograma_PIPC_IDPC 2022'!AN$17","v":0},{"$f":"'[8]Cronograma_PIPC_IDPC 2022'!AO$17","v":0},{"$f":"'[8]Cronograma_PIPC_IDPC 2022'!AP$17","v":0},{"$f":"'[8]Cronograma_PIPC_IDPC 2022'!AQ$17","v":0},{"$f":"'[8]Cronograma_PIPC_IDPC 2022'!AR$17","v":0},null,0,0,0,0,{"$error":"#DIV/0!"},0,null,null,"4. Cogestión/creación","2. Creación de capacidades, 3. Movilización de actores","Mixta","Entidades sin ánimo de lucro, organizaciones culturales, agrupaciones y ciudadanía en general.","Identidad de género, pertenencia étnica, sector social, principalmente.","Urbano/Rural","Bogotá","Equipos humanos técnicos, hardware, software"]
[16,"Política Sectorial de Fomento / Programa Distrital de Estímulos","Propuestas ganadoras y en ejecución en el marco de los Programas Distritales de Estímulos, para el fortalecimiento de la participación ciudadana.","Subdirección de Divulgación y Apropiación del Patrimonio Cultural","Museo de Bogotá","Equipo de participación ciudadana y Equipo de Fomento IDPC","Equipo de participación ciudadana y Fomento IDPC","Mesa de Consejeros de Patrimonio Cultural, Consejo Cultural de Grupos Étnicos Consejo Cultural de Sectores Sociales. ","Secretaría Distrital de Cultura, Recreación y Deporte, entidades del sector cultura, organizaciones, agrupaciones y agentes culturales","Fomentar la participación ciudadana en el desarrollo de los proyectos museológicos del Museo de Bogotá","Convocatorias de fomento del IDPC en el marco del programa distrital de estímulos; propuestas de la ciudadanía ganadoras de estímulos para su fortalecimiento en el marco de las becas del museo de Bogotá.        ",{"$f":"'[9]Cronograma_PIPC_IDPC 2022'!L18","v":4},{"$f":"'[9]Cronograma_PIPC_IDPC 2022'!M18","v":0},{"$f":"'[9]Cronograma_PIPC_IDPC 2022'!N18","v":0},{"$f":"'[9]Cronograma_PIPC_IDPC 2022'!O18","v":0},{"$f":"'[9]Cronograma_PIPC_IDPC 2022'!P18","v":0},{"$f":"'[9]Cronograma_PIPC_IDPC 2022'!Q18","v":0},{"$f":"'[9]Cronograma_PIPC_IDPC 2022'!R18","v":0},{"$f":"'[9]Cronograma_PIPC_IDPC 2022'!S18","v":0},{"$f":"'[9]Cronograma_PIPC_IDPC 2022'!T18","v":0},{"$f":"'[9]Cronograma_PIPC_IDPC 2022'!U18","v":0},{"$f":"'[9]Cronograma_PIPC_IDPC 2022'!V18","v":0},{"$f":"'[9]Cronograma_PIPC_IDPC 2022'!W18","v":0},{"$f":"'[9]Cronograma_PIPC_IDPC 2022'!X18","v":0},{"$f":"'[9]Cronograma_PIPC_IDPC 2022'!Y18","v":0},{"$f":"'[9]Cronograma_PIPC_IDPC 2022'!Z18","v":0},{"$f":"'[9]Cronograma_PIPC_IDPC 2022'!AA18","v":0},{"$f":"'[9]Cronograma_PIPC_IDPC 2022'!AB18","v":0},{"$f":"'[9]Cronograma_PIPC_IDPC 2022'!AC18","v":4},{"$f":"'[9]Cronograma_PIPC_IDPC 2022'!AD18","v":0},{"$f":"'[9]Cronograma_PIPC_IDPC 2022'!AE18","v":0},{"$f":"'[9]Cronograma_PIPC_IDPC 2022'!AF18","v":0},{"$f":"'[9]Cronograma_PIPC_IDPC 2022'!AG18","v":0},{"$f":"'[9]Cronograma_PIPC_IDPC 2022'!AH18","v":0},{"$f":"'[9]Cronograma_PIPC_IDPC 2022'!AI18","v":0},{"$f":"'[9]Cronograma_PIPC_IDPC 2022'!AJ18","v":0},{"$f":"'[9]Cronograma_PIPC_IDPC 2022'!AK18","v":0},{"$f":"'[9]Cronograma_PIPC_IDPC 2022'!AL18","v":0},{"$f":"'[9]Cronograma_PIPC_IDPC 2022'!AM18","v":0},{"$f":"'[9]Cronograma_PIPC_IDPC 2022'!AN18","v":0},{"$f":"'[9]Cronograma_PIPC_IDPC 2022'!AO18","v":0},{"$f":"'[9]Cronograma_PIPC_IDPC 2022'!AP18","v":0},{"$f":"'[9]Cronograma_PIPC_IDPC 2022'!AQ18","v":0},{"$f":"'[9]Cronograma_PIPC_IDPC 2022'!AR18","v":0},4,0,0,0,0,0,0,"Actas de ganadores de las becas, informes de avance, informe final ","3. Implementación","3. decisorio; 4. cogestión/creación","1. Sensibilización, 2. Creación de capacidades, 3. Movilización de actores","Mixta","Entidades sin ánimo de lucro, organizaciones culturales, agrupaciones y ciudadanía en general.","Depende de los proyectos presentados y seleccionados","Urbano/Rural","Bogotá","Equipos humanos técnicos, hardware, software"]
[17,"Participación ciudadana en la activación social del Museo de la Ciudad Autoconstruida y Museo de Bogotá","Aportes ciudadanos para la activación social del Museo de la Ciudad Autoconstruida y Museo de Bogotá.","Subdirección de Divulgación y Apropiación del Patrimonio","Museo de Bogotá","Equipo de participación ciudadana IDPC, equipo de Declaratoria e Inventarios y  formación (Subdirección de Divulgación y Apropiación)","Equipo de participación ciudadana IDPC","Consejo Local de Arte, Cultura y Patrimonio.","Mesas de otros sistemas de participación (Secretaría de Gobierno, Cultura, Recreación y Deportes-SCRD,  independientes) organizaciones sociales y comunitarias/ agentes culturales","Diálogos para la programación y la activación social del Museo de la Ciudad Autoconstruida y Museo de Bogotá.  ","Mesas de trabajo, talleres, ejercicios de colaboración e innovación, actividades de programación",{"$f":"'[9]Cronograma_PIPC_IDPC 2022'!L19","v":24},{"$f":"'[9]Cronograma_PIPC_IDPC 2022'!M19","v":4},{"$f":"'[9]Cronograma_PIPC_IDPC 2022'!N19","v":0},{"$f":"'[9]Cronograma_PIPC_IDPC 2022'!O19","v":0},{"$f":"'[9]Cronograma_PIPC_IDPC 2022'!P19","v":0},{"$f":"'[9]Cronograma_PIPC_IDPC 2022'!Q19","v":0},{"$f":"'[9]Cronograma_PIPC_IDPC 2022'!R19","v":0},{"$f":"'[9]Cronograma_PIPC_IDPC 2022'!S19","v":0},{"$f":"'[9]Cronograma_PIPC_IDPC 2022'!T19","v":0},{"$f":"'[9]Cronograma_PIPC_IDPC 2022'!U19","v":8},{"$f":"'[9]Cronograma_PIPC_IDPC 2022'!V19","v":0},{"$f":"'[9]Cronograma_PIPC_IDPC 2022'!W19","v":0},{"$f":"'[9]Cronograma_PIPC_IDPC 2022'!X19","v":0},{"$f":"'[9]Cronograma_PIPC_IDPC 2022'!Y19","v":0},{"$f":"'[9]Cronograma_PIPC_IDPC 2022'!Z19","v":0},{"$f":"'[9]Cronograma_PIPC_IDPC 2022'!AA19","v":0},{"$f":"'[9]Cronograma_PIPC_IDPC 2022'!AB19","v":0},{"$f":"'[9]Cronograma_PIPC_IDPC 2022'!AC19","v":8},{"$f":"'[9]Cronograma_PIPC_IDPC 2022'!AD19","v":0},{"$f":"'[9]Cronograma_PIPC_IDPC 2022'!AE19","v":0},{"$f":"'[9]Cronograma_PIPC_IDPC 2022'!AF19","v":0},{"$f":"'[9]Cronograma_PIPC_IDPC 2022'!AG19","v":0},{"$f":"'[9]Cronograma_PIPC_IDPC 2022'!AH19","v":0},{"$f":"'[9]Cronograma_PIPC_IDPC 2022'!AI19","v":0},{"$f":"'[9]Cronograma_PIPC_IDPC 2022'!AJ19","v":0},{"$f":"'[9]Cronograma_PIPC_IDPC 2022'!AK19","v":4},{"$f":"'[9]Cronograma_PIPC_IDPC 2022'!AL19","v":0},{"$f":"'[9]Cronograma_PIPC_IDPC 2022'!AM19","v":0},{"$f":"'[9]Cronograma_PIPC_IDPC 2022'!AN19","v":0},{"$f":"'[9]Cronograma_PIPC_IDPC 2022'!AO19","v":0},{"$f":"'[9]Cronograma_PIPC_IDPC 2022'!AP19","v":0},{"$f":"'[9]Cronograma_PIPC_IDPC 2022'!AQ19","v":0},{"$f":"'[9]Cronograma_PIPC_IDPC 2022'!AR19","v":0},24,0,0,0,0,0,0,"Actas, listados de asistencia, registro fotográfico, agendas de los talleres","2. Implementación","2. Consultivo, 4. Cogestión/creación","3. Movilización de actores","Mixta","Organizaciones  y gestores culturales de Ciudad Bolívar","Enfoque de género, ciclo vital, víctimas del conflicto armado","Urbano/Rural","Ciudad Bolívar","Equipo humano de las áreas de curaduría, museografía, educación y estrategia de territorialización del Museo de Bogotá"]
[18,"Sistema Distrital de Arte, Cultura y Patrimonio","Instancias de participación ciudadana del Sistema Distrital de Arte, Cultura y Patrimonio/Mesa Temática de Museos.","Dirección General, Subdirección de Divulgación y Apropiación del Patrimonio, Oficina Asesora de Planeación.","Dirección General, Subdirección de Divulgación y Apropiación del Patrimonio, Equipo de Participación Ciudadana,  Museo de Bogotá","NA","Equipo de Patrimonio Cultural Inmaterial, Equipo de Fomento, Equipo de Comunicaciones. Equipo de Recorridos de Apropiación del Patrimonio","NA","Secretaría de Cultura, Recreación y Deporte-SCRD.","Promover el trabajo colectivo para el fortalecimiento y posicionamiento del sector museal de la ciudad de Bogotá."," Sesiones y acciones de la Mesa Temática de Museos.",{"$f":"'[10]Cronograma_PIPC_IDPC 2022'!L20","v":14},{"$f":"'[10]Cronograma_PIPC_IDPC 2022'!M20","v":3},{"$f":"'[10]Cronograma_PIPC_IDPC 2022'!N20","v":0},{"$f":"'[10]Cronograma_PIPC_IDPC 2022'!O20","v":0},{"$f":"'[10]Cronograma_PIPC_IDPC 2022'!P20","v":0},{"$f":"'[10]Cronograma_PIPC_IDPC 2022'!Q20","v":0},{"$f":"'[10]Cronograma_PIPC_IDPC 2022'!R20","v":0},{"$f":"'[10]Cronograma_PIPC_IDPC 2022'!S20","v":0},{"$f":"'[10]Cronograma_PIPC_IDPC 2022'!T20","v":0},{"$f":"'[10]Cronograma_PIPC_IDPC 2022'!U20","v":3},{"$f":"'[10]Cronograma_PIPC_IDPC 2022'!V20","v":0},{"$f":"'[10]Cronograma_PIPC_IDPC 2022'!W20","v":0},{"$f":"'[10]Cronograma_PIPC_IDPC 2022'!X20","v":0},{"$f":"'[10]Cronograma_PIPC_IDPC 2022'!Y20","v":0},{"$f":"'[10]Cronograma_PIPC_IDPC 2022'!Z20","v":0},{"$f":"'[10]Cronograma_PIPC_IDPC 2022'!AA20","v":0},{"$f":"'[10]Cronograma_PIPC_IDPC 2022'!AB20","v":0},{"$f":"'[10]Cronograma_PIPC_IDPC 2022'!AC20","v":4},{"$f":"'[10]Cronograma_PIPC_IDPC 2022'!AD20","v":0},{"$f":"'[10]Cronograma_PIPC_IDPC 2022'!AE20","v":0},{"$f":"'[10]Cronograma_PIPC_IDPC 2022'!AF20","v":0},{"$f":"'[10]Cronograma_PIPC_IDPC 2022'!AG20","v":0},{"$f":"'[10]Cronograma_PIPC_IDPC 2022'!AH20","v":0},{"$f":"'[10]Cronograma_PIPC_IDPC 2022'!AI20","v":0},{"$f":"'[10]Cronograma_PIPC_IDPC 2022'!AJ20","v":0},{"$f":"'[10]Cronograma_PIPC_IDPC 2022'!AK20","v":4},{"$f":"'[10]Cronograma_PIPC_IDPC 2022'!AL20","v":0},{"$f":"'[10]Cronograma_PIPC_IDPC 2022'!AM20","v":0},{"$f":"'[10]Cronograma_PIPC_IDPC 2022'!AN20","v":0},{"$f":"'[10]Cronograma_PIPC_IDPC 2022'!AO20","v":0},{"$f":"'[10]Cronograma_PIPC_IDPC 2022'!AP20","v":0},{"$f":"'[10]Cronograma_PIPC_IDPC 2022'!AQ20","v":0},{"$f":"'[10]Cronograma_PIPC_IDPC 2022'!AR20","v":0},14,0,0,0,0,0,0,"Actas, protocolos, encuesta, reglamento, comunicados, plan de acción, listados de asistencia, pantallazos de correos de invitación de consejos","3. Implementación, 4. Evaluación","1.Informativo, 2. Consultivo, 3. Decisorio","2. Creación de capacidades, 3. Movilización de actores, 4. Control social","Presencial","Representantes de entidades públicas, gremios, organizaciones sociales y culturales que integran las instancias","Sexo, orientación sexual, identidad de género, transcurrir vital, pertenencia étnica, personas con discapacidad, víctimas del conflicto armado","Urbano/Rural","Bogotá","Equipos humanos técnicos"]
[19,"Sistema Distrital de Arte, Cultura y Patrimonio","Acompañamiento  técnico a las instancias de participación del Sistema Distrital de Arte, Cultura y Patrimonio/ Consejo Distrital y local de Arte Cultura y Patrimonio) ","Dirección General, Subdirección de Divulgación y Apropiación del Patrimonio."," Equipo de Participación Ciudadana.","N/A","Equipo de Patrimonio Cultural Inmaterial,  Equipo de Comunicaciones. Equipo de Recorridos de Apropiación del Patrimonio.","NA","Secretaría de Cultura, Recreación y Deporte-SCRD.","Asistencia y Acompañamiento  técnico a las instancias de participación del Sistema Distrital de Arte, Cultura y Patrimonio. \n"," Sesiones y acciones de los Consejos Locales de Arte, Cultura y Patrimonio de los territorios Priorizados a los que sea convocados el IDPC.  Sesiones y acciones derivados del acompañamiento técnico al  Consejo Distrital de Arte Cultura y Patrimonio.",{"$f":"'[11]Cronograma_PIPC_IDPC 2022'!L$21","v":"Por demanda"},{"$f":"'[11]Cronograma_PIPC_IDPC 2022'!M$21","v":0},{"$f":"'[11]Cronograma_PIPC_IDPC 2022'!N$21","v":0},{"$f":"'[11]Cronograma_PIPC_IDPC 2022'!O$21","v":0},{"$f":"'[11]Cronograma_PIPC_IDPC 2022'!P$21","v":0},{"$f":"'[11]Cronograma_PIPC_IDPC 2022'!Q$21","v":0},{"$f":"'[11]Cronograma_PIPC_IDPC 2022'!R$21","v":"Transgenero"},{"$f":"'[11]Cronograma_PIPC_IDPC 2022'!S$21","v":"16. Puente Aranda"},{"$f":"'[11]Cronograma_PIPC_IDPC 2022'!T$21","v":0},{"$f":"'[11]Cronograma_PIPC_IDPC 2022'!U$21","v":0},{"$f":"'[11]Cronograma_PIPC_IDPC 2022'!V$21","v":0},{"$f":"'[11]Cronograma_PIPC_IDPC 2022'!W$21","v":0},{"$f":"'[11]Cronograma_PIPC_IDPC 2022'!X$21","v":0},{"$f":"'[11]Cronograma_PIPC_IDPC 2022'!Y$21","v":0},{"$f":"'[11]Cronograma_PIPC_IDPC 2022'!Z$21","v":0},{"$f":"'[11]Cronograma_PIPC_IDPC 2022'!AA$21","v":0},{"$f":"'[11]Cronograma_PIPC_IDPC 2022'!AB$21","v":0},{"$f":"'[11]Cronograma_PIPC_IDPC 2022'!AC$21","v":0},{"$f":"'[11]Cronograma_PIPC_IDPC 2022'!AD$21","v":0},{"$f":"'[11]Cronograma_PIPC_IDPC 2022'!AE$21","v":0},{"$f":"'[11]Cronograma_PIPC_IDPC 2022'!AF$21","v":0},{"$f":"'[11]Cronograma_PIPC_IDPC 2022'!AG$21","v":0},{"$f":"'[11]Cronograma_PIPC_IDPC 2022'!AH$21","v":0},{"$f":"'[11]Cronograma_PIPC_IDPC 2022'!AI$21","v":0},{"$f":"'[11]Cronograma_PIPC_IDPC 2022'!AJ$21","v":0},{"$f":"'[11]Cronograma_PIPC_IDPC 2022'!AK$21","v":0},{"$f":"'[11]Cronograma_PIPC_IDPC 2022'!AL$21","v":0},{"$f":"'[11]Cronograma_PIPC_IDPC 2022'!AM$21","v":0},{"$f":"'[11]Cronograma_PIPC_IDPC 2022'!AN$21","v":0},{"$f":"'[11]Cronograma_PIPC_IDPC 2022'!AO$21","v":0},{"$f":"'[11]Cronograma_PIPC_IDPC 2022'!AP$21","v":0},{"$f":"'[11]Cronograma_PIPC_IDPC 2022'!AQ$21","v":0},{"$f":"'[11]Cronograma_PIPC_IDPC 2022'!AR$21","v":0},null,0,0,0,0,{"$error":"#DIV/0!"},0,"Actas, Agendas Programáticas, listados de asistencia, pantallazos de correos de convocatorias. Fotografías.","3. Implementación, 4. Evaluación","1.Informativo, 2. Consultivo, 3. Decisorio 4. Control Social","2. Creación de capacidades, 3. Movilización de actores, 4. Control social","Mixto","Representantes de entidades públicas, gremios, organizaciones sociales y culturales que integran las instancias","Sexo, orientación sexual, identidad de género, transcurrir vital, pertenencia étnica, personas con discapacidad, víctimas del conflicto armado","Urbano/Rural","Los Mártires, Suba, La Candelaria, Antonio Nariño, Bosa, Kennedy, Santa Fe, Ciudad Bolívar","Equipos humanos técnicos"]
[20,"Programa formación en patrimonio cultural ","Formación en patrimonio cultural a niños, niñas y adolescentes (Aulas Colegios SED)","Subdirección de Divulgación y Apropiación del Patrimonio","Formación en patrimonio cultural - Civinautas","Subdirección de Divulgación y Apropiación del Patrimonio (Enfoque diferencial, Fomento, investigación, PCI Equipo de Comunicaciones, Museo de Bogotá)\n. Oficina Asesora de Planeación (Equipo de Participación Ciudadana) ","Subdirección de Divulgación y Apropiación del Patrimonio (Recorridos de Apropiación Patrimonial, equipo de publicaciones,   Museo de Bogotá). Subdirección de Intervención y Protección del Patrimonio (Equipo de Enlucimiento de Fachadas). Subdirección de Gestión Territorial (Equipo de participación divulgación). Oficina Asesora de Planeación (Equipo de participación ciudadana) Relaciones internacionales.","Participación en el comité SIDFAC (Sistema Distrital de Formación en Arte Cultura y Patrimonio). Participación en la mesa de la Unidad Técnica de Apoyo UTA - Decreto 863 de 2019.  Participación en los espacios citados por el Consejo Consultivo Distrital de niños, niñas y adolescentes.\nParticipación en el Consejo de Cultura de Grupos Etarios.","Secretaría Distrital de Cultura, Recreación y Deporte (IDARTES, SIDFAC, OFB, IDRD, FUGA), Secretaría de Educación Distrital, colegios públicos y privados que apoyan el programa, IDPAC, organizaciones comunitarias que trabajan con niños, niñas y adolescentes, Consejos locales de niños y niñas, Consejos Consultivos de niños, niñas y adolescentes, Consejos locales de juventud, jardines infantiles,  Red Papas, Escuela Taller del Ministerio de Cultura.","Con este ámbito el programa de formación en patrimonio en este 2022 espera desarrollar procesos de formación en patrimonio cultural con niños, niñas y adolescentes en en el ciclo integral de educación para la vida en Bogotá basados en un enfoque participativo.","Procesos y espacios pedagógicos permanentes guiados por la caja de herramientas Civinautas y las que se encuentran en construcción (a través de encuentros informativos, visitas, entrevistas, ejercicios de colaboración e innovación) . Se cuentan los procesos de planeación participativa entre mediadores del programa de formación y docentes implementadores de la caja de herramientas. ",9,{"$f":"'[12]Cronograma_PIPC_IDPC 2022'!M23","v":0},{"$f":"'[12]Cronograma_PIPC_IDPC 2022'!N23","v":0},{"$f":"'[12]Cronograma_PIPC_IDPC 2022'!O23","v":0},{"$f":"'[12]Cronograma_PIPC_IDPC 2022'!P23","v":0},{"$f":"'[12]Cronograma_PIPC_IDPC 2022'!Q23","v":0},{"$f":"'[12]Cronograma_PIPC_IDPC 2022'!R23","v":0},{"$f":"'[12]Cronograma_PIPC_IDPC 2022'!S23","v":0},{"$f":"'[12]Cronograma_PIPC_IDPC 2022'!T23","v":0},{"$f":"'[12]Cronograma_PIPC_IDPC 2022'!U23","v":1},{"$f":"'[12]Cronograma_PIPC_IDPC 2022'!V23","v":0},{"$f":"'[12]Cronograma_PIPC_IDPC 2022'!W23","v":0},{"$f":"'[12]Cronograma_PIPC_IDPC 2022'!X23","v":0},{"$f":"'[12]Cronograma_PIPC_IDPC 2022'!Y23","v":0},{"$f":"'[12]Cronograma_PIPC_IDPC 2022'!Z23","v":0},{"$f":"'[12]Cronograma_PIPC_IDPC 2022'!AA23","v":0},{"$f":"'[12]Cronograma_PIPC_IDPC 2022'!AB23","v":0},{"$f":"'[12]Cronograma_PIPC_IDPC 2022'!AC23","v":1},{"$f":"'[12]Cronograma_PIPC_IDPC 2022'!AD23","v":0},{"$f":"'[12]Cronograma_PIPC_IDPC 2022'!AE23","v":0},{"$f":"'[12]Cronograma_PIPC_IDPC 2022'!AF23","v":0},{"$f":"'[12]Cronograma_PIPC_IDPC 2022'!AG23","v":0},{"$f":"'[12]Cronograma_PIPC_IDPC 2022'!AH23","v":0},{"$f":"'[12]Cronograma_PIPC_IDPC 2022'!AI23","v":0},{"$f":"'[12]Cronograma_PIPC_IDPC 2022'!AJ23","v":0},{"$f":"'[12]Cronograma_PIPC_IDPC 2022'!AK23","v":2},{"$f":"'[12]Cronograma_PIPC_IDPC 2022'!AL23","v":0},{"$f":"'[12]Cronograma_PIPC_IDPC 2022'!AM23","v":0},{"$f":"'[12]Cronograma_PIPC_IDPC 2022'!AN23","v":0},{"$f":"'[12]Cronograma_PIPC_IDPC 2022'!AO23","v":0},{"$f":"'[12]Cronograma_PIPC_IDPC 2022'!AP23","v":0},{"$f":"'[12]Cronograma_PIPC_IDPC 2022'!AQ23","v":0},{"$f":"'[12]Cronograma_PIPC_IDPC 2022'!AR23","v":0},4,0,0,0,0,0,0,"Actas de planeación, listas de asistencia, pantallazos o fotografías de reuniones virtuales o presenciales, herramientas metodológicas construidas, bases de datos de organizaciones que trabajan con niños, niñas y adolescentes y de espacios de educación no formal con esta población","2. Formulación 3. Implementación  4. Evaluación","1. Informativo, 4. Cogestión/creación","1. Sensibilización, 2. Creación de capacidades","Mixta","Madres comunitarias, lideres y lideresas, madres padres o cuidadores, niños, niñas y adolescentes vinculados a procesos de educación no formal o procesos organizativos/comunitarios","El programa se orienta a niños, niñas y adolescentes de la ciudad lo cual determina su enfoque.",null,"Bosa, Ciudad Bolívar, Sumapaz y Usme.","Equipo Profesionales Programa de formación en patrimonio cultural - Civinautas, conformado por 7 profesionales.  Uso de recursos personales para teletrabajo, herramientas de video conferencia, trabajo a través de Drive. Organización de recursos de papelería y material fungible, listos para remitir a la hora de iniciar operación presencial. Productos audiovisuales.  Recursos de operador logístico."]
[21,"Programa formación en patrimonio cultural ","Formación en patrimonio cultural a niños, niñas y adolescentes  (Espacios de educación no formal o escenarios comunitarios y organizativos)","Subdirección de Divulgación y Apropiación del Patrimonio","Formación en patrimonio cultural - Civinautas","Subdirección de Divulgación y Apropiación del Patrimonio (Enfoque diferencial, Fomento, investigación, PCI Equipo de Comunicaciones, Museo de Bogotá)\n. Oficina Asesora de Planeación (Equipo de Participación Ciudadana) ","Subdirección de Divulgación y Apropiación del Patrimonio (Recorridos de Apropiación Patrimonial, equipo de publicaciones,   Museo de Bogotá). Subdirección de Intervención y Protección del Patrimonio (Equipo de Enlucimiento de Fachadas). Subdirección de Gestión Territorial (Equipo de participación divulgación). Oficina Asesora de Planeación (Equipo de participación ciudadana) Relaciones internacionales.",". Participación en el comité SIDFAC (Sistema Distrital de Formación en Arte Cultura y Patrimonio). Participación en la mesa de la Unidad Técnica de Apoyo UTA - Decreto 863 de 2019.  Participación en los espacios citados por el Consejo Consultivo Distrital de niños, niñas y adolescentes.\nParticipación en el Consejo de Cultura de Grupos Etarios.","Secretaría Distrital de Cultura, Recreación y Deporte (IDARTES, SIDFAC, OFB, IDRD, FUGA), Secretaría de Educación Distrital, colegios públicos y privados que apoyan el programa, IDPAC, organizaciones comunitarias que trabajan con niños, niñas y adolescentes, Consejos locales de niños y niñas, Consejos Consultivos de niños, niñas y adolescentes, Consejos locales de juventud, jardines infantiles,  Red Papas, Escuela Taller del Ministerio de Cultura.","Propiciar procesos de formación en patrimonio cultural con niños, niñas y adolescentes que participan en espacios de educación no formal o escenarios comunitarios y organizativos, en articulación con procesos y proyectos que se gestionan desde el IDPC.","Espacios de formación con niños, niñas y adolescentes pertenecientes a procesos de educación no formal o de procesos organizativos o comunitarios, orientados a la activación e interpretación del patrimonio cultural, en articulación con procesos y proyectos que se gestionan desde el IDPC. ",7,0,null,null,null,null,null,null,null,1,null,null,null,null,null,null,null,3,null,null,null,null,null,null,null,3,null,null,null,null,null,null,null,7]
[22,"Programa formación en patrimonio cultural ","Formación a formadores (Diplomado de Formación en patrimonio cultural para la educación en modalidad virtual)","Subdirección de Divulgación y Apropiación del Patrimonio","Formación en patrimonio cultural - Civinautas","Subdirección de Divulgación y Apropiación del Patrimonio (Enfoque diferencial, Fomento, investigación, PCI Equipo de Comunicaciones, Museo de Bogotá)\n. Oficina Asesora de Planeación (Equipo de Participación Ciudadana)  \n\n","Subdirección de Divulgación y Apropiación del Patrimonio (Recorridos de Apropiación Patrimonial, equipo de publicaciones,   Museo de Bogotá). Subdirección de Intervención y Protección del Patrimonio (Equipo de Enlucimiento de Fachadas). Subdirección de Gestión Territorial (Equipo de participación divulgación). Oficina Asesora de Planeación (Equipo de participación ciudadana) Relaciones internacionales.",". Participación en el comité SIDFAC (Sistema Distrital de Formación en Arte Cultura y Patrimonio). Participación en la mesa de la Unidad Técnica de Apoyo UTA - Decreto 863 de 2019.  Participación en los espacios citados por el Consejo Consultivo Distrital de niños, niñas y adolescentes.\nParticipación en el Consejo de Cultura de Grupos Etarios.","Secretaría Distrital de Cultura, Recreación y Deporte (IDARTES, SIDFAC, OFB, IDRD, FUGA), Secretaría de Educación Distrital, colegios públicos y privados que apoyan el programa, IDPAC, organizaciones comunitarias que trabajan con niños, niñas y adolescentes, Consejos locales de niños y niñas, Consejos Consultivos de niños, niñas y adolescentes, Consejos locales de juventud, jardines infantiles,  Red Papas, Escuela Taller del Ministerio de Cultura.","Realizar el proceso de formación a formadores, en modalidad virtual, a través del diplomado en Patrimonio Cultural para la Educación por medio de la estrategia virtual FORMA de la Secretaría de Cultura, Recreación y Deporte. Proceso orientado a la ciudadanía interesada en el patrimonio cultural, cuyas trayectorias estén relacionadas con la formación, interpretación, mediación social y cultural; con el liderazgo comunitario, prácticas de cuidado, conocimiento y gestión de saberes y oficios tradicionales y demás profesiones del campo cultural y artístico, que realizan procesos de formación y activación asociados con el patrimonio cultural y su integralidad.","Módulos del diplomado diseñados, ofertados y cursados por docentes y otros actores.",3,0,null,null,0,null,0,null,null,0,null,null,null,null,null,null,null,3,null,null,null,3,null,null,null,0,null,null,null,null,null,null,null,3,null,null,null,null,null,null,"Actas de planeación, listas de asistencia, pantallazos o fotografías de reuniones virtuales o presenciales.","2. Formulación 3. Implementación  4. Evaluación ","1. Informativo, 4. Cogestión/creación","\n1. Sensibilización, 2. Creación de capacidades","Mixta","Docentes/Formadores, madres padres o cuidadores, jóvenes, lideres y comunidades étnicas.","El proceso de formación a formadores está dirigido a diferentes actores, entre ellos: comunidades étnicas.","Urbano/Rural","Bosa, Ciudad Bolívar, los Mártires, San Cristóbal, Sumapaz y Usme.","Equipo Profesionales Programa de formación en patrimonio cultural - Civinautas, conformado por 7 profesionales. Articulación con equipo de profesionales del equipo de fomento de la Dirección de Arte, Cultura y Patrimonio de la Secretaría de Cultura, Recreación y Deporte. Estrategia virtual FORMA (experiencias de formación en arte, cultura y patrimonio) de la Secretaría de Cultura, Cultura, Recreación y Deporte.\nUso de recursos personales para teletrabajo, herramientas de video conferencia, trabajo a través de Drive. Organización de recursos de papelería y material fungible, listos para remitir a la hora de iniciar operación presencial. Productos audiovisuales. "]
[23,"Rendición permanente de cuentas","Escenarios de rendición de cuentas\n*Articulado con actividades 3.1.3 y  3.2.5 del PAAC","Oficina Asesora de Planeación","Oficina Asesora de Planeación, Equipo de Participación Ciudadana","Subdirección de Gestión Corporativa (Equipo de Transparencia y Atención a la Ciudadanía), Subdirección de Divulgación y Apropiación del Patrimonio (Equipo de comunicaciones), Subdirecciones misionales. ","Subdirección de Gestión Corporativa (Equipo de Transparencia y Atención a la Ciudadanía), Subdirección de Divulgación y Apropiación del Patrimonio (Equipo de comunicaciones), Subdirecciones misionales. ","Mesa de Consejeros Locales de Patrimonio","Secretaría Distrital de Cultura, Recreación y Deporte. Veeduría Distrital,  Secretaría Distrital de Planeación. Secretaría Distrital de Gobierno. Secretaria General de la Alcaldía Mayor ","Rendir cuentas de manera permanente sobre la gestión del IDPC y recibir retroalimentación de la ciudadanía - Diálogos ciudadanos","Audiencia pública sectorial o de la entidad. Sensibilización a la ciudadanía sobre los procesos de rendición de cuentas. Consulta Ciudadana a través de encuestas ",{"$f":"'[13]Cronograma_PIPC_IDPC 2022'!L25","v":1},{"$f":"'[13]Cronograma_PIPC_IDPC 2022'!M26","v":0},{"$f":"'[13]Cronograma_PIPC_IDPC 2022'!N26","v":0},{"$f":"'[13]Cronograma_PIPC_IDPC 2022'!O26","v":0},{"$f":"'[13]Cronograma_PIPC_IDPC 2022'!P26","v":0},{"$f":"'[13]Cronograma_PIPC_IDPC 2022'!Q26","v":0},{"$f":"'[13]Cronograma_PIPC_IDPC 2022'!R26","v":0},{"$f":"'[13]Cronograma_PIPC_IDPC 2022'!S26","v":0},{"$f":"'[13]Cronograma_PIPC_IDPC 2022'!T26","v":0},{"$f":"'[13]Cronograma_PIPC_IDPC 2022'!U26","v":0},{"$f":"'[13]Cronograma_PIPC_IDPC 2022'!V26","v":0},{"$f":"'[13]Cronograma_PIPC_IDPC 2022'!W26","v":0},{"$f":"'[13]Cronograma_PIPC_IDPC 2022'!X26","v":0},{"$f":"'[13]Cronograma_PIPC_IDPC 2022'!Y26","v":0},{"$f":"'[13]Cronograma_PIPC_IDPC 2022'!Z26","v":0},{"$f":"'[13]Cronograma_PIPC_IDPC 2022'!AA26","v":0},{"$f":"'[13]Cronograma_PIPC_IDPC 2022'!AB26","v":0},{"$f":"'[13]Cronograma_PIPC_IDPC 2022'!AC26","v":0},{"$f":"'[13]Cronograma_PIPC_IDPC 2022'!AD26","v":0},{"$f":"'[13]Cronograma_PIPC_IDPC 2022'!AE26","v":0},{"$f":"'[13]Cronograma_PIPC_IDPC 2022'!AF26","v":0},{"$f":"'[13]Cronograma_PIPC_IDPC 2022'!AG26","v":0},{"$f":"'[13]Cronograma_PIPC_IDPC 2022'!AH26","v":0},{"$f":"'[13]Cronograma_PIPC_IDPC 2022'!AI26","v":0},{"$f":"'[13]Cronograma_PIPC_IDPC 2022'!AJ26","v":0},{"$f":"'[13]Cronograma_PIPC_IDPC 2022'!AK26","v":0},{"$f":"'[13]Cronograma_PIPC_IDPC 2022'!AL26","v":0},{"$f":"'[13]Cronograma_PIPC_IDPC 2022'!AM26","v":0},{"$f":"'[13]Cronograma_PIPC_IDPC 2022'!AN26","v":0},{"$f":"'[13]Cronograma_PIPC_IDPC 2022'!AO26","v":0},{"$f":"'[13]Cronograma_PIPC_IDPC 2022'!AP26","v":0},{"$f":"'[13]Cronograma_PIPC_IDPC 2022'!AQ26","v":0},{"$f":"'[13]Cronograma_PIPC_IDPC 2022'!AR26","v":0},{"$f":"L26","v":"Según convocatoria o a solicitud  del Sector Cultura, Recreación y Deporte y otros"},0,0,0,0,{"$error":"#VALUE!"},0,"Actas, listados de asistencia, pantallazos y matrices. ","3. Implementación, 4. Evaluación","1.Informativo, 2.Consultivo, 3. Decisorio","4. Control social","Presencial","Organizaciones sociales y culturales"," Sexo, orientación sexual, identidad de género, transcurrir vital, pertenencia étnica, personas con discapacidad, víctimas del conflicto armado (según convocatorias del sector)","Urbano/Rural","Bogotá","Equipos humanos técnicos"]
[24,"Planes de acción de Políticas Públicas Distritales relacionadas con participación ciudadana","Concertación, seguimiento y evaluación a los acuerdos para la orientación de la inversión y los resultados de la ejecución de las Políticas Públicas Distritales","Oficina Asesora de Planeación","Oficina Asesora de Planeación, Equipo de Participación Ciudadana, Asesores de enfoques diferenciales. ","Distintas subdirecciones y equipos del IDPC responsables del cumplimiento de las Políticas Públicas Distritales","Distintas subdirecciones y equipos del IDPC responsables del cumplimiento de las Políticas Públicas Distritales","Mesa de Consejeros de Patrimonio Cultural, Consejo Cultural de Grupos Étnicos Consejo Cultural de Sectores Sociales. ","Secretaría Distrital de Cultura, Recreación y Deporte, Secretaría de Gobierno (oficina de Planeación), y demás Secretarías responsables de otras Políticas Públicas Distritales","Aporte a la garantía de derechos de poblaciones y sectores sociales específicos a través del Cumplimiento de las Políticas Públicas Distritales concertadas con la ciudadanía","Instancias de Participación; Mesas de trabajo de Políticas Públicas Distritales (Mesa PIAA, LGBTI, artesanos, entre otras); reportes de avance y entrega de información.",{"$f":"'[13]Cronograma_PIPC_IDPC 2022'!L26","v":"Según convocatoria o a solicitud  del Sector Cultura, Recreación y Deporte y otros"},{"$f":"'[13]Cronograma_PIPC_IDPC 2022'!M27","v":0},{"$f":"'[13]Cronograma_PIPC_IDPC 2022'!N27","v":0},{"$f":"'[13]Cronograma_PIPC_IDPC 2022'!O27","v":0},{"$f":"'[13]Cronograma_PIPC_IDPC 2022'!P27","v":0},{"$f":"'[13]Cronograma_PIPC_IDPC 2022'!Q27","v":0},{"$f":"'[13]Cronograma_PIPC_IDPC 2022'!R27","v":0},{"$f":"'[13]Cronograma_PIPC_IDPC 2022'!S27","v":0},{"$f":"'[13]Cronograma_PIPC_IDPC 2022'!T27","v":0},{"$f":"'[13]Cronograma_PIPC_IDPC 2022'!U27","v":0},{"$f":"'[13]Cronograma_PIPC_IDPC 2022'!V27","v":0},{"$f":"'[13]Cronograma_PIPC_IDPC 2022'!W27","v":0},{"$f":"'[13]Cronograma_PIPC_IDPC 2022'!X27","v":0},{"$f":"'[13]Cronograma_PIPC_IDPC 2022'!Y27","v":0},{"$f":"'[13]Cronograma_PIPC_IDPC 2022'!Z27","v":0},{"$f":"'[13]Cronograma_PIPC_IDPC 2022'!AA27","v":0},{"$f":"'[13]Cronograma_PIPC_IDPC 2022'!AB27","v":0},{"$f":"'[13]Cronograma_PIPC_IDPC 2022'!AC27","v":0},{"$f":"'[13]Cronograma_PIPC_IDPC 2022'!AD27","v":0},{"$f":"'[13]Cronograma_PIPC_IDPC 2022'!AE27","v":0},{"$f":"'[13]Cronograma_PIPC_IDPC 2022'!AF27","v":0},{"$f":"'[13]Cronograma_PIPC_IDPC 2022'!AG27","v":0},{"$f":"'[13]Cronograma_PIPC_IDPC 2022'!AH27","v":0},{"$f":"'[13]Cronograma_PIPC_IDPC 2022'!AI27","v":0},{"$f":"'[13]Cronograma_PIPC_IDPC 2022'!AJ27","v":0},{"$f":"'[13]Cronograma_PIPC_IDPC 2022'!AK27","v":0},{"$f":"'[13]Cronograma_PIPC_IDPC 2022'!AL27","v":0},{"$f":"'[13]Cronograma_PIPC_IDPC 2022'!AM27","v":0},{"$f":"'[13]Cronograma_PIPC_IDPC 2022'!AN27","v":0},{"$f":"'[13]Cronograma_PIPC_IDPC 2022'!AO27","v":0},{"$f":"'[13]Cronograma_PIPC_IDPC 2022'!AP27","v":0},{"$f":"'[13]Cronograma_PIPC_IDPC 2022'!AQ27","v":0},{"$f":"'[13]Cronograma_PIPC_IDPC 2022'!AR27","v":0},"Según convocatorias de la Veeduría Distrital",0,0,0,0,{"$error":"#VALUE!"},0,"Actas, listados de asistencia, pantallazos.","4. Evaluación","3. Decisorio","4. Control social","Presencial","Organizaciones sociales y culturales","Depende de los compromisos ciudadanos","Urbano/Rural","Bogotá","Equipos humanos técnicos"]
[25,"Compromisos ciudadanos","Concertación y seguimiento a compromisos ciudadanos\n* Articulado con actividades 3.2.6 del PAAC","Oficina Asesora de Planeación","Oficina Asesora de Planeación, Equipo de Participación Ciudadana","Distintas subdirecciones y equipos del IDPC responsables del cumplimiento de los compromisos ciudadanos","Distintas subdirecciones y equipos del IDPC responsables del cumplimiento de los compromisos ciudadanos","NA","Veeduría Distrital","Recibir y atender iniciativas ciudadanas sobre la orientación de la inversión y evaluación de los resultados de la ejecución de Políticas Públicas Distritales","Mesas de trabajo",{"$f":"'[13]Cronograma_PIPC_IDPC 2022'!L27","v":"Según convocatorias de la Veeduría Distrital"},{"$f":"'[10]Cronograma_PIPC_IDPC 2022'!M28","v":1},{"$f":"'[10]Cronograma_PIPC_IDPC 2022'!N28","v":0},{"$f":"'[10]Cronograma_PIPC_IDPC 2022'!O28","v":0},{"$f":"'[10]Cronograma_PIPC_IDPC 2022'!P28","v":0},{"$f":"'[10]Cronograma_PIPC_IDPC 2022'!Q28","v":0},{"$f":"'[10]Cronograma_PIPC_IDPC 2022'!R28","v":0},{"$f":"'[10]Cronograma_PIPC_IDPC 2022'!S28","v":0},{"$f":"'[10]Cronograma_PIPC_IDPC 2022'!T28","v":0},{"$f":"'[10]Cronograma_PIPC_IDPC 2022'!U28","v":2},{"$f":"'[10]Cronograma_PIPC_IDPC 2022'!V28","v":0},{"$f":"'[10]Cronograma_PIPC_IDPC 2022'!W28","v":0},{"$f":"'[10]Cronograma_PIPC_IDPC 2022'!X28","v":0},{"$f":"'[10]Cronograma_PIPC_IDPC 2022'!Y28","v":0},{"$f":"'[10]Cronograma_PIPC_IDPC 2022'!Z28","v":0},{"$f":"'[10]Cronograma_PIPC_IDPC 2022'!AA28","v":0},{"$f":"'[10]Cronograma_PIPC_IDPC 2022'!AB28","v":0},{"$f":"'[10]Cronograma_PIPC_IDPC 2022'!AC28","v":2},{"$f":"'[10]Cronograma_PIPC_IDPC 2022'!AD28","v":0},{"$f":"'[10]Cronograma_PIPC_IDPC 2022'!AE28","v":0},{"$f":"'[10]Cronograma_PIPC_IDPC 2022'!AF28","v":0},{"$f":"'[10]Cronograma_PIPC_IDPC 2022'!AG28","v":0},{"$f":"'[10]Cronograma_PIPC_IDPC 2022'!AH28","v":0},{"$f":"'[10]Cronograma_PIPC_IDPC 2022'!AI28","v":0},{"$f":"'[10]Cronograma_PIPC_IDPC 2022'!AJ28","v":0},{"$f":"'[10]Cronograma_PIPC_IDPC 2022'!AK28","v":1},{"$f":"'[10]Cronograma_PIPC_IDPC 2022'!AL28","v":0},{"$f":"'[10]Cronograma_PIPC_IDPC 2022'!AM28","v":0},{"$f":"'[10]Cronograma_PIPC_IDPC 2022'!AN28","v":0},{"$f":"'[10]Cronograma_PIPC_IDPC 2022'!AO28","v":0},{"$f":"'[10]Cronograma_PIPC_IDPC 2022'!AP28","v":0},{"$f":"'[10]Cronograma_PIPC_IDPC 2022'!AQ28","v":0},{"$f":"'[10]Cronograma_PIPC_IDPC 2022'!AR28","v":0},{"$f":"#REF!","v":{"$error":"#REF!"}},0,0,0,0,{"$error":"#REF!"},0,"Acta, Listados de asistencia, pantallazos de correos","3. Implementación, 4. Evaluación","1.Informativo, 2. Consultivo, 3. Decisorio","2. Creación de capacidades, 3. Movilización de actores, 4. Control social","Presencial","Representantes de entidades públicas, gremios, organizaciones sociales y culturales que integran las instancias","No","Urbano/Rural","Bogotá","Equipos humanos técnicos"]
[26,"Sistema Distrital de Patrimonio Cultural ","Instancias de participación ciudadana del Sistema Distrital de Patrimonio Cultural-Consejo Distrital de Patrimonio Cultural","Dirección General, Subdirección de Divulgación y Apropiación del Patrimonio, Subdirección de Protección e Intervención del Patrimonio, Oficina Asesora de Planeación, Equipo de Valoración, Equipo de Participación Ciudadana","Dirección General, Subdirección de Divulgación y Apropiación del Patrimonio, Subdirección de Protección e Intervención del Patrimonio, Oficina Asesora de Planeación, Equipo de Valoración, Equipo de Participación Ciudadana","NA","Equipo de Patrimonio Cultural Inmaterial","Consejo Distrital de Patrimonio Cultural","Secretaría de Cultura, Recreación y Deporte","Deliberar y concertar la gestión del IDPC con los integrantes del Consejo Distrital de Patrimonio Cultural con miras a fortalecer el control social.","Instancias de participación ciudadana \n\nConsejo Distrital de Patrimonio Cultural - una sesión  cada 2 meses.",10,{"$f":"'[11]Cronograma_PIPC_IDPC 2022'!M$29","v":1},{"$f":"'[11]Cronograma_PIPC_IDPC 2022'!N$29","v":0},{"$f":"'[11]Cronograma_PIPC_IDPC 2022'!O$29","v":0},{"$f":"'[11]Cronograma_PIPC_IDPC 2022'!P$29","v":0},{"$f":"'[11]Cronograma_PIPC_IDPC 2022'!Q$29","v":0},{"$f":"'[11]Cronograma_PIPC_IDPC 2022'!R$29","v":0},{"$f":"'[11]Cronograma_PIPC_IDPC 2022'!S$29","v":0},{"$f":"'[11]Cronograma_PIPC_IDPC 2022'!T$29","v":0},{"$f":"'[11]Cronograma_PIPC_IDPC 2022'!U$29","v":2},{"$f":"'[11]Cronograma_PIPC_IDPC 2022'!V$29","v":0},{"$f":"'[11]Cronograma_PIPC_IDPC 2022'!W$29","v":0},{"$f":"'[11]Cronograma_PIPC_IDPC 2022'!X$29","v":0},{"$f":"'[11]Cronograma_PIPC_IDPC 2022'!Y$29","v":0},{"$f":"'[11]Cronograma_PIPC_IDPC 2022'!Z$29","v":0},{"$f":"'[11]Cronograma_PIPC_IDPC 2022'!AA$29","v":0},{"$f":"'[11]Cronograma_PIPC_IDPC 2022'!AB$29","v":0},{"$f":"'[11]Cronograma_PIPC_IDPC 2022'!AC$29","v":2},{"$f":"'[11]Cronograma_PIPC_IDPC 2022'!AD$29","v":0},{"$f":"'[11]Cronograma_PIPC_IDPC 2022'!AE$29","v":0},{"$f":"'[11]Cronograma_PIPC_IDPC 2022'!AF$29","v":0},{"$f":"'[11]Cronograma_PIPC_IDPC 2022'!AG$29","v":0},{"$f":"'[11]Cronograma_PIPC_IDPC 2022'!AH$29","v":0},{"$f":"'[11]Cronograma_PIPC_IDPC 2022'!AI$29","v":0},{"$f":"'[11]Cronograma_PIPC_IDPC 2022'!AJ$29","v":0},{"$f":"'[11]Cronograma_PIPC_IDPC 2022'!AK$29","v":1},{"$f":"'[11]Cronograma_PIPC_IDPC 2022'!AL$29","v":0},{"$f":"'[11]Cronograma_PIPC_IDPC 2022'!AM$29","v":0},{"$f":"'[11]Cronograma_PIPC_IDPC 2022'!AN$29","v":0},{"$f":"'[11]Cronograma_PIPC_IDPC 2022'!AO$29","v":0},{"$f":"'[11]Cronograma_PIPC_IDPC 2022'!AP$29","v":0},{"$f":"'[11]Cronograma_PIPC_IDPC 2022'!AQ$29","v":0},{"$f":"'[11]Cronograma_PIPC_IDPC 2022'!AR$29","v":0},6,0,0,0,0,0,0,"Acta, Listados de asistencia, pantallazos de correos","3. Implementación, 4. Evaluación","1.Informativo, 2. Consultivo, 3. Decisorio","2. Creación de capacidades, 3. Movilización de actores, 4. Control social","Mixta","Representantes de entidades públicas, gremios, organizaciones sociales y culturales que integran las instancias","No","Urbano/Rural","Bogotá","Equipos humanos técnicos"]
[27,"Sistema Distrital de Patrimonio Cultural ","Instancias de participación ciudadana del Sistema Distrital de Patrimonio Cultural/Mesa de Consejeros y Consejeras Locales de Patrimonio Cultural. ","Dirección General, Equipo de Participación Ciudadana"," Equipo de Participación Ciudadana","Subdirección de Divulgación y Apropiación del Patrimonio, Subdirección de Protección e Intervención del Patrimonio.","Equipo de inventarios. Oficina de Comunicaciones.","Consejo Distrital de Patrimonio Cultural.                                                                                                                                                                                                                                   Consejo Distrital de Arte, Cultura y Patrimonio.","Secretaría de Cultura, Recreación y Deporte e IPES.","Deliberar y concertar la gestión del IDPC con los integrantes  de la Mesa de Consejeros y Consejeras Locales de Patrimonio Cultural con miras a fortalecer el control social.","Instancias de participación ciudadana - una sesión cada 2 meses.",{"$f":"'[11]Cronograma_PIPC_IDPC 2022'!L$29","v":6},{"$f":"'[13]Cronograma_PIPC_IDPC 2022'!M30","v":0},{"$f":"'[13]Cronograma_PIPC_IDPC 2022'!N30","v":0},{"$f":"'[13]Cronograma_PIPC_IDPC 2022'!O30","v":0},{"$f":"'[13]Cronograma_PIPC_IDPC 2022'!P30","v":0},{"$f":"'[13]Cronograma_PIPC_IDPC 2022'!Q30","v":0},{"$f":"'[13]Cronograma_PIPC_IDPC 2022'!R30","v":0},{"$f":"'[13]Cronograma_PIPC_IDPC 2022'!S30","v":0},{"$f":"'[13]Cronograma_PIPC_IDPC 2022'!T30","v":0},{"$f":"'[13]Cronograma_PIPC_IDPC 2022'!U30","v":0},{"$f":"'[13]Cronograma_PIPC_IDPC 2022'!V30","v":0},{"$f":"'[13]Cronograma_PIPC_IDPC 2022'!W30","v":0},{"$f":"'[13]Cronograma_PIPC_IDPC 2022'!X30","v":0},{"$f":"'[13]Cronograma_PIPC_IDPC 2022'!Y30","v":0},{"$f":"'[13]Cronograma_PIPC_IDPC 2022'!Z30","v":0},{"$f":"'[13]Cronograma_PIPC_IDPC 2022'!AA30","v":0},{"$f":"'[13]Cronograma_PIPC_IDPC 2022'!AB30","v":0},{"$f":"'[13]Cronograma_PIPC_IDPC 2022'!AC30","v":0},{"$f":"'[13]Cronograma_PIPC_IDPC 2022'!AD30","v":0},{"$f":"'[13]Cronograma_PIPC_IDPC 2022'!AE30","v":0},{"$f":"'[13]Cronograma_PIPC_IDPC 2022'!AF30","v":0},{"$f":"'[13]Cronograma_PIPC_IDPC 2022'!AG30","v":0},{"$f":"'[13]Cronograma_PIPC_IDPC 2022'!AH30","v":0},{"$f":"'[13]Cronograma_PIPC_IDPC 2022'!AI30","v":0},{"$f":"'[13]Cronograma_PIPC_IDPC 2022'!AJ30","v":0},{"$f":"'[13]Cronograma_PIPC_IDPC 2022'!AK30","v":0},{"$f":"'[13]Cronograma_PIPC_IDPC 2022'!AL30","v":0},{"$f":"'[13]Cronograma_PIPC_IDPC 2022'!AM30","v":0},{"$f":"'[13]Cronograma_PIPC_IDPC 2022'!AN30","v":0},{"$f":"'[13]Cronograma_PIPC_IDPC 2022'!AO30","v":0},{"$f":"'[13]Cronograma_PIPC_IDPC 2022'!AP30","v":0},{"$f":"'[13]Cronograma_PIPC_IDPC 2022'!AQ30","v":0},{"$f":"'[13]Cronograma_PIPC_IDPC 2022'!AR30","v":0},null,0,0,0,0,{"$error":"#DIV/0!"},0,"Actas, listados de asistencia, pantallazos.","3. Implementación","3. Decisorio\n4. Cogestión","1. Sensibilización\n2. Creación de capacidades\n3. Movilización de actores\n4. Control social","Mixta","Ciudadanía, organizaciones sociales y culturales","Sujeto a la Causa Ciudadana asignada","Urbano/Rural","Bogotá","Equipos humanos técnicos; transporte, alimentación, papelería (Sujeto a la Causa Ciudadana asignada)"]
[28,"Causas Ciudadanas","Acompañamiento, implementación y seguimiento a Causas Ciudadanas viabilizadas de competencia del IDPC","Oficina Asesora de Planeación, Equipo de Participación Ciudadana, Subdirección de Divulgación y Apropiación del Patrimonio, Subdirección de Protección e Intervención del Patrimonio, Subdirección de Gestión Territorial del Patrimonio","Oficina Asesora de Planeación, Equipo de Participación Ciudadana","Equipo de Comunicaciones",null,"NA","Secretaría Distrital de Gobierno","Recibir y dar cumplimiento a las Causas Ciudadanas asignadas al IDPC que promuevan soluciones para problemáticas relacionadas con el patrimonio de la ciudad.","Número de Causas Ciudadanas implementadas / Número de Causas Ciudadanas delegadas al IDPC",{"$f":"'[13]Cronograma_PIPC_IDPC 2022'!L30","v":"Según demanda de la ciudadanía y posterior asignación al IDPC"},{"$f":"'[11]Cronograma_PIPC_IDPC 2022'!M$31","v":0},{"$f":"'[11]Cronograma_PIPC_IDPC 2022'!N$31","v":0},{"$f":"'[11]Cronograma_PIPC_IDPC 2022'!O$31","v":0},{"$f":"'[11]Cronograma_PIPC_IDPC 2022'!P$31","v":0},{"$f":"'[11]Cronograma_PIPC_IDPC 2022'!Q$31","v":0},{"$f":"'[11]Cronograma_PIPC_IDPC 2022'!R$31","v":0},{"$f":"'[11]Cronograma_PIPC_IDPC 2022'!S$31","v":0},{"$f":"'[11]Cronograma_PIPC_IDPC 2022'!T$31","v":0},{"$f":"'[11]Cronograma_PIPC_IDPC 2022'!U$31","v":2},{"$f":"'[11]Cronograma_PIPC_IDPC 2022'!V$31","v":0},{"$f":"'[11]Cronograma_PIPC_IDPC 2022'!W$31","v":0},{"$f":"'[11]Cronograma_PIPC_IDPC 2022'!X$31","v":0},{"$f":"'[11]Cronograma_PIPC_IDPC 2022'!Y$31","v":0},{"$f":"'[11]Cronograma_PIPC_IDPC 2022'!Z$31","v":0},{"$f":"'[11]Cronograma_PIPC_IDPC 2022'!AA$31","v":0},{"$f":"'[11]Cronograma_PIPC_IDPC 2022'!AB$31","v":0},{"$f":"'[11]Cronograma_PIPC_IDPC 2022'!AC$31","v":5},{"$f":"'[11]Cronograma_PIPC_IDPC 2022'!AD$31","v":0},{"$f":"'[11]Cronograma_PIPC_IDPC 2022'!AE$31","v":0},{"$f":"'[11]Cronograma_PIPC_IDPC 2022'!AF$31","v":0},{"$f":"'[11]Cronograma_PIPC_IDPC 2022'!AG$31","v":0},{"$f":"'[11]Cronograma_PIPC_IDPC 2022'!AH$31","v":0},{"$f":"'[11]Cronograma_PIPC_IDPC 2022'!AI$31","v":0},{"$f":"'[11]Cronograma_PIPC_IDPC 2022'!AJ$31","v":0},{"$f":"'[11]Cronograma_PIPC_IDPC 2022'!AK$31","v":3},{"$f":"'[11]Cronograma_PIPC_IDPC 2022'!AL$31","v":0},{"$f":"'[11]Cronograma_PIPC_IDPC 2022'!AM$31","v":0},{"$f":"'[11]Cronograma_PIPC_IDPC 2022'!AN$31","v":0},{"$f":"'[11]Cronograma_PIPC_IDPC 2022'!AO$31","v":0},{"$f":"'[11]Cronograma_PIPC_IDPC 2022'!AP$31","v":0},{"$f":"'[11]Cronograma_PIPC_IDPC 2022'!AQ$31","v":0},{"$f":"'[11]Cronograma_PIPC_IDPC 2022'!AR$31","v":0},10,0,0,0,0,0,0,"Actas, Listas de Asistencia, pantallazos digitales, fotografías o productos gráficos.","3. Implementación"," 1.Informativo, 4. Cogestión/creación","1. Sensibilización,\n2. Creación de capacidades  \n3. movilización de actores","Mixta","Ciudadanía, organizaciones y agrupaciones de víctimas y/o con trabajo en memoria, instancias de participación  y gestión local, organizaciones locales y comunitarias, asociaciones locales de oficios o actividades, universidades.","identidad de género, transcurrir vital, pertenencia étnica","Urbano","Localidad Antonio Nariño, Localidad de Santa Fe","Recurso humano, y logística de recursos gráficos virtuales"]
[29,"Complejo Hospitalario San Juan de Dios (CHSJD)","Proceso de activación social y salvaguardia del CHSJD","Subdirección de Divulgación","Subdirección de Divulgación - Equipo San Juan de Dios - Equipo Participación ","Subdirección de Protección e Intervención\nEquipo de participación ciudadana. Equipo de Investigaciones\nEquipo de Patrimonio Cultural Inmaterial,\nEquipo de Recorridos","NA","Consejo Local de Arte, Cultura y Patrimonio de Antonio Nariño","Consejeros Local de patrimonio, extrabajadores de CHSJD, academia, Instancias de participación  y gestión local como la Casa de la Juventud, la Mesa Graffiti. Organizaciones locales y comunitarias de barrios aledaños. Asociaciones locales de oficios o actividades entorno al CHAJD","Desarrollar un proceso de activación social y salvaguardia de los patrimonios integrados del CHSJD para alimentar los instrumentos de gestión del patrimonio y fortalecer los vínculos ciudadanos con el lugar, reconociendo los procesos participativos previos agenciados por la ciudadanía.","Diálogos de memoria y saberes \nRecorridos de reconocimiento y activación social \nEntrevistas y conversaciones grupales para estado del arte de experiencias de activación social\nTalleres para desarrollo de diagnóstico participativo para la salvaguardia \nDesarrollo de estrategia de comunicación digital y colaborativa\nLaboratorio de creación participativa de narrativas y contenidos en lenguajes artísticos",{"$f":"'[11]Cronograma_PIPC_IDPC 2022'!L$31","v":10},{"$f":"'[11]Cronograma_PIPC_IDPC 2022'!M$32","v":0},{"$f":"'[11]Cronograma_PIPC_IDPC 2022'!N$32","v":0},{"$f":"'[11]Cronograma_PIPC_IDPC 2022'!O$32","v":0},{"$f":"'[11]Cronograma_PIPC_IDPC 2022'!P$32","v":0},{"$f":"'[11]Cronograma_PIPC_IDPC 2022'!Q$32","v":0},{"$f":"'[11]Cronograma_PIPC_IDPC 2022'!R$32","v":0},{"$f":"'[11]Cronograma_PIPC_IDPC 2022'!S$32","v":0},{"$f":"'[11]Cronograma_PIPC_IDPC 2022'!T$32","v":0},{"$f":"'[11]Cronograma_PIPC_IDPC 2022'!U$32","v":2},{"$f":"'[11]Cronograma_PIPC_IDPC 2022'!V$32","v":0},{"$f":"'[11]Cronograma_PIPC_IDPC 2022'!W$32","v":0},{"$f":"'[11]Cronograma_PIPC_IDPC 2022'!X$32","v":0},{"$f":"'[11]Cronograma_PIPC_IDPC 2022'!Y$32","v":0},{"$f":"'[11]Cronograma_PIPC_IDPC 2022'!Z$32","v":0},{"$f":"'[11]Cronograma_PIPC_IDPC 2022'!AA$32","v":"19. Ciudad Bolívar"},{"$f":"'[11]Cronograma_PIPC_IDPC 2022'!AB$32","v":0},{"$f":"'[11]Cronograma_PIPC_IDPC 2022'!AC$32","v":2},{"$f":"'[11]Cronograma_PIPC_IDPC 2022'!AD$32","v":0},{"$f":"'[11]Cronograma_PIPC_IDPC 2022'!AE$32","v":0},{"$f":"'[11]Cronograma_PIPC_IDPC 2022'!AF$32","v":0},{"$f":"'[11]Cronograma_PIPC_IDPC 2022'!AG$32","v":0},{"$f":"'[11]Cronograma_PIPC_IDPC 2022'!AH$32","v":"otro"},{"$f":"'[11]Cronograma_PIPC_IDPC 2022'!AI$32","v":"14. Los Mártires"},{"$f":"'[11]Cronograma_PIPC_IDPC 2022'!AJ$32","v":0},{"$f":"'[11]Cronograma_PIPC_IDPC 2022'!AK$32","v":2},{"$f":"'[11]Cronograma_PIPC_IDPC 2022'!AL$32","v":0},{"$f":"'[11]Cronograma_PIPC_IDPC 2022'!AM$32","v":0},{"$f":"'[11]Cronograma_PIPC_IDPC 2022'!AN$32","v":0},{"$f":"'[11]Cronograma_PIPC_IDPC 2022'!AO$32","v":0},{"$f":"'[11]Cronograma_PIPC_IDPC 2022'!AP$32","v":"otro"},{"$f":"'[11]Cronograma_PIPC_IDPC 2022'!AQ$32","v":"15. Antonio Nariño"},{"$f":"'[11]Cronograma_PIPC_IDPC 2022'!AR$32","v":0},6,0,0,0,0,0,0,"Actas, Listas de Asistencia, pantallazos digitales, fotografías o productos gráficos.","3. Implementación"," 1.Informativo, 4. Cogestión/creación","1. Sensibilización,\n2. Creación de capacidades  \n3. movilización de actores","Mixta","Ciudadanía, organizaciones y agrupaciones de víctimas y/o con trabajo en memoria, instancias de participación  y gestión local, organizaciones locales y comunitarias, asociaciones locales de oficios o actividades, universidades.","Identidad de género, transcurrir vital","Urbano","Kennedy, Monumento Banderas, Centro Histórico ","Equipo humano, y logística de recursos gráficos virtuales"]
[30,"Activación de monumentos","Apropiación, Diálogo y Activación social de monumentos en espacio público","Subdirección de Protección e Intervención","Subdirección de Protección e Intervención\nEquipo de Participación","Museo de Bogotá","Dialogo Social: memoria, monumentos y patrimonios.\nRuta local de activación de monumentos.","Consejo Local de Arte, Cultura y Patrimonio de Kennedy y otras localidades involucradas","Organizaciones juveniles\nConsejeros Locales de Patrimonio\nAdoptantes de Monumentos","Creación de escenarios de encuentro con carácter democrático y deliberativo para intercambiar aproximaciones, debates, consensos y recomendaciones en torno a los significados, tensiones y gestión de los monumentos en la ciudad, así como desarrollar acciones de activación de los monumentos en espacio público.","Diálogos sociales\nActivaciones performativas",{"$f":"'[11]Cronograma_PIPC_IDPC 2022'!L$32","v":6},0,0,null,null,null,null,null,null,2,null,null,null,null,null,null,null,2,null,null,null,null,null,null,null,2,null,null,null,null,null,null,null,6]
[31,"Plan Especial de Manejo y Protección (PEMP) de Bosa","Espacios de socialización y participación ciudadana para la fase de diagnóstico del PEMP de Bosa"," Subdirección de Gestión Territorial del Patrimonio","Equipo de instrumentos de Gestión Territorial (Equipo de participación y divulgación del PEMP de Bosa)","Equipos de participación ciudadana IDPC, Equipo de Comunicaciones IDPC","Equipo de participación ciudadana,  Subdirección de Divulgación y Apropiación del Patrimonio (área de comunicaciones/Metodología inventario PCI) y Subdirección de Protección e Intervención del Patrimonio","Consejo Local de Arte, Cultura y Patrimonio de Bosa (CLACP) y Mesa Sectorial Cultura.","Junta Administradora Local (JAL), Consejo de Planeación Local (CPL); Juntas de Acción Comunal; instancias de participación; instituciones educativas; gremios (comerciantes) y  organizaciones sociales, etnicas, culturales y ambientales.","Realizar un diagnóstico participativo en el núcleo fundacional de Bosa (SIC) y su entorno inmediato, correspondiente a la cuenca del río Tunjuelo, para reconocer la relación de la comunidad con el territorio y sus patrimonios.\n","Talleres informativos, mesas de trabajo (cartográfica social), foro, entrevista, grupos focales, instancias de participación ciudadana y campañas de divulgación (redes sociales, página web, Webinar). ",11,1,0,null,0,0,null,null,null,7,0,null,0,null,null,null,null,1,null,null,null,null,null,null,null,2,null,null,null,null,null,null,null,11,null,null,null,null,null,null,"Lista de asistencia\nRegistro fotográfico\nPiezas comunicativas\nActas o relatorías de los encuentros ciudadanos","1. Diagnóstico","1. Informativo\n2. Consultivo","1. Sensibilización\n3. Movilización de actores","Mixta","Organizaciones de base, comunidades (indígenas, afro, campesinas), gestores culturales locales, propietarios de BIC, actores representativos del patrimonio material e inmaterial local, comerciantes, instituciones educativas, empresarios, entidades públicas o privadas.","Identidad de género\nPertenencia étnica\nPersonas con discapacidad\nVíctimas de conflicto armado","Urbano","Área de estudio PEMP Bosa (Núcleo fundacional y su entorno inmediato correspondiente a la cuenca del rio Tunjuelo.","Equipo humano: \napoyo técnico, gráfico de comunicaciones, mesa técnica (soporte tecnológico).\nCámara fotográfica \nPapelería. Hardware y Software."]
[32," Intervención en Bienes de Interés Cultural ","Proceso de acercamiento y participación en la activación social de patrimonios, memorias y sentidos locales  que acompañen la intervención física de los BICS,  desde una perspectiva de integralidad.","Subdirección de Protección e Intervención","Subdirección de Protección e Intervención (Equipos de Intervención de fachadas y Espacio Público, Bienes Muebles y Monumentos), Equipo de participación ciudadana del IDPC. ","Equipo de comunicaciones, Programa de Recorridos, equipo de Civinautas, equipo de Participación Ciudadana.","Articulación con el Equipo 7 entornos, Dadep y Secretaría de Gobierno (Día del espacio público). Articulación con el Equipo de Participación ciudadana proyecto \"Patrimonios Barriales\"\nArticulación con Equipo PEMP y 7 Entornos _ (Lavaderos de las Cruces_de esta articulación no estoy segura si fueron estos dos equipos los involucrados)","Consejo Local de Arte, Cultura y Patrimonio de las localidades priorizadas, Mesa distrital y mesas locales de Graffiti.","Propietarios de Bienes de Interés Cultural. Organizaciones publico y privadas y agrupaciones culturales  locales en especial que trabajen temas de patrimonio, arte, cultura y patrimonio o temas afines. Instancias locales y comunales de participación. Alcaldías locales y espacios de gestión local.  . ","Fortalecer procesos de acercamiento y participación ciudadana, activación y apropiación social de los patrimonios integrados  a escala barrial y vecinal y gestión interinstitucional..","Procesos de activación de patrimonios integrados a escala barrial y vecinal; acercamiento con la ciudadanía, acciones de activación, recorridos patrimoniales y talleres con la ciudadanía.\n Se proyectan 3 procesos  con un total de 8 actividades durante la vigencia. ",7,1,null,null,null,null,null,null,null,3,null,null,null,null,null,null,null,2,null,null,null,null,null,null,null,1,null,null,null,null,null,null,null,7,null,null,null,null,null,null,"Actas, Listas de Asistencia,  pantallazos digitales, piezas graficas  y fotografías","3. Implementación"," 1.Informativo","1. Sensibilización, 3. movilización de actores","Presencial","Ciudadanía, organizaciones y agrupaciones culturales, instancias de participación  y gestión local, organizaciones locales y comunitarias, asociaciones locales de oficios o actividades, universidades y entidades distritales.","los procesos de formación están dirigidos a diferentes actores.","Urbano","Fontibón, La Candelaría","Equipos humanos técnicos, hardware, software, papelería, logísticos de transporte"]
[]
[]
[]
[null,null,null,null,null,null,null,null,null,null,null,{"$f":"SUM(L3:L32)","v":220}]

{"sheet":"Hoja2","index":1,"n_rows":32,"n_cols":51,"rows_kept":32,"cut":false,"hidden":true,"merged":[]}
[1,2,3,18,5,6,19,8,9,26,11,12,27,14,15,34,17,18,35,20,21,42,42,24,43,43,27,28,29,30,31,32,33,34,35,36,37,38,39,40,41,42,43,44]
["Private Sub EnfoquePoblacional1_Change()",null,null,null,"TRIMESTRE 1",null,null,"TRIMESTRE 1",null,null,"TRIMESTRE 2",null,null,"TRIMESTRE 2",null,null,"TRIMESTRE 3",null,null,"TRIMESTRE 3",null,null,null,"TRIMESTRE 4",null,null,"TRIMESTRE 4",null,"TRIMESTRE 1",null,null,"TRIMESTRE 1",null,null,"TRIMESTRE 2",null,null,"TRIMESTRE 2",null,null,"TRIMESTRE 3",null,null,"TRIMESTRE 3",null,null,null,"TRIMESTRE 4",null,null,"TRIMESTRE 4"]
["If Range(\"r3\") = \"\" Then",null,3,{"$f":"CONCATENATE(\"EnfoquePoblacional\",C3)","v":"EnfoquePoblacional3"},{"$f":"CONCATENATE(\"Private Sub \",D3,\"_Change() \",CHAR(10),\" if cells(\",C3,\",\",D$1,\")=\"\"\"\" Then\", CHAR(10),\" cells(\",C3,\",\",D$1,\")=\",D3,\".Value \", CHAR(10), \"else\", CHAR(10),\" if  InStr(1,cells(\",C3,\",\",D$1,\"),\",D3,\".Value, vbTextCompare)=0 Then\", CHAR(10),\"cells(\",C3,\",\",D$1,\") =cells(\",C3,\",\",D$1,\")+vbNewLine+\",D3,\".Value\", CHAR(10),\"Else\", CHAR(10),\"      MsgBox\",\"\"\" EL PARAMETRO SELECCIONADO YA HACEPARTE DE LACELDA\",\"\"\"\", CHAR(10),\" End If\", CHAR(10),\"  End IF\", CHAR(10),\" End Sub\")","v":"Private Sub EnfoquePoblacional3_Change() \n if cells(3,18)=\"\" Then\n cells(3,18)=EnfoquePoblacional3.Value \nelse\n if  InStr(1,cells(3,18),EnfoquePoblacional3.Value, vbTextCompare)=0 Then\ncells(3,18) =cells(3,18)+vbNewLine+EnfoquePoblacional3.Value\nElse\n      MsgBox\" EL PARAMETRO SELECCIONADO YA HACEPARTE DE LACELDA\"\n End If\n  End IF\n End Sub"},3,{"$f":"CONCATENATE(\"Localidades\",F3,)","v":"Localidades3"},{"$f":"CONCATENATE(\"Private Sub \",G3,\"_Change() \",CHAR(10),\" if cells(\",F3,\",\",G$1,\")=\"\"\"\" Then\", CHAR(10),\" cells(\",F3,\",\",G$1,\")=\",G3,\".Value \", CHAR(10), \"else\", CHAR(10),\" if  InStr(1,cells(\",F3,\",\",G$1,\"),\",G3,\".Value, vbTextCompare)=0 Then\", CHAR(10),\"cells(\",F3,\",\",G$1,\") =cells(\",F3,\",\",G$1,\")+vbNewLine+\",G3,\".Value\", CHAR(10),\"Else\", CHAR(10),\"      MsgBox\",\"\"\" EL PARAMETRO SELECCIONADO YA HACEPARTE DE LACELDA\",\"\"\"\", CHAR(10),\" End If\", CHAR(10),\"  End IF\", CHAR(10),\" End Sub\")","v":"Private Sub Localidades3_Change() \n if cells(3,19)=\"\" Then\n cells(3,19)=Localidades3.Value \nelse\n if  InStr(1,cells(3,19),Localidades3.Value, vbTextCompare)=0 Then\ncells(3,19) =cells(3,19)+vbNewLine+Localidades3.Value\nElse\n      MsgBox\" EL PARAMETRO SELECCIONADO YA HACEPARTE DE LACELDA\"\n End If\n  End IF\n End Sub"},3,{"$f":"CONCATENATE(\"EnfoquePoblacional1_\",I3)","v":"EnfoquePoblacional1_3"},{"$f":"CONCATENATE(\"Private Sub \",J3,\"_Change() \",CHAR(10),\" if cells(\",I3,\",\",J$1,\")=\"\"\"\" Then\", CHAR(10),\" cells(\",I3,\",\",J$1,\")=\",J3,\".Value \", CHAR(10), \"else\", CHAR(10),\" if  InStr(1,cells(\",I3,\",\",J$1,\"),\",J3,\".Value, vbTextCompare)=0 Then\", CHAR(10),\"cells(\",I3,\",\",J$1,\") =cells(\",I3,\",\",J$1,\")+vbNewLine+\",J3,\".Value\", CHAR(10),\"Else\", CHAR(10),\"      MsgBox\",\"\"\" EL PARAMETRO SELECCIONADO YA HACEPARTE DE LACELDA\",\"\"\"\", CHAR(10),\" End If\", CHAR(10),\"  End IF\", CHAR(10),\" End Sub\")","v":"Private Sub EnfoquePoblacional1_3_Change() \n if cells(3,26)=\"\" Then\n cells(3,26)=EnfoquePoblacional1_3.Value \nelse\n if  InStr(1,cells(3,26),EnfoquePoblacional1_3.Value, vbTextCompare)=0 Then\ncells(3,26) =cells(3,26)+vbNewLine+EnfoquePoblacional1_3.Value\nElse\n      MsgBox\" EL PARAMETRO SELECCIONADO YA HACEPARTE DE LACELDA\"\n End If\n  End IF\n End Sub"},3,{"$f":"CONCATENATE(\"Localidades1_\",L3,)","v":"Localidades1_3"},{"$f":"CONCATENATE(\"Private Sub \",M3,\"_Change() \",CHAR(10),\" if cells(\",L3,\",\",M$1,\")=\"\"\"\" Then\", CHAR(10),\" cells(\",L3,\",\",M$1,\")=\",M3,\".Value \", CHAR(10), \"else\", CHAR(10),\" if  InStr(1,cells(\",L3,\",\",M$1,\"),\",M3,\".Value, vbTextCompare)=0 Then\", CHAR(10),\"cells(\",L3,\",\",M$1,\") =cells(\",L3,\",\",M$1,\")+vbNewLine+\",M3,\".Value\", CHAR(10),\"Else\", CHAR(10),\"      MsgBox\",\"\"\" EL PARAMETRO SELECCIONADO YA HACEPARTE DE LACELDA\",\"\"\"\", CHAR(10),\" End If\", CHAR(10),\"  End IF\", CHAR(10),\" End Sub\")","v":"Private Sub Localidades1_3_Change() \n if cells(3,27)=\"\" Then\n cells(3,27)=Localidades1_3.Value \nelse\n if  InStr(1,cells(3,27),Localidades1_3.Value, vbTextCompare)=0 Then\ncells(3,27) =cells(3,27)+vbNewLine+Localidades1_3.Value\nElse\n      MsgBox\" EL PARAMETRO SELECCIONADO YA HACEPARTE DE LACELDA\"\n End If\n  End IF\n End Sub"},3,{"$f":"CONCATENATE(\"EnfoquePoblacional2_\",O3)","v":"EnfoquePoblacional2_3"},{"$f":"CONCATENATE(\"Private Sub \",P3,\"_Change() \",CHAR(10),\" if cells(\",O3,\",\",P$1,\")=\"\"\"\" Then\", CHAR(10),\" cells(\",O3,\",\",P$1,\")=\",P3,\".Value \", CHAR(10), \"else\", CHAR(10),\" if  InStr(1,cells(\",O3,\",\",P$1,\"),\",P3,\".Value, vbTextCompare)=0 Then\", CHAR(10),\"cells(\",O3,\",\",P$1,\") =cells(\",O3,\",\",P$1,\")+vbNewLine+\",P3,\".Value\", CHAR(10),\"Else\", CHAR(10),\"      MsgBox\",\"\"\" EL PARAMETRO SELECCIONADO YA HACEPARTE DE LACELDA\",\"\"\"\", CHAR(10),\" End If\", CHAR(10),\"  End IF\", CHAR(10),\" End Sub\")","v":"Private Sub EnfoquePoblacional2_3_Change() \n if cells(3,34)=\"\" Then\n cells(3,34)=EnfoquePoblacional2_3.Value \nelse\n if  InStr(1,cells(3,34),EnfoquePoblacional2_3.Value, vbTextCompare)=0 Then\ncells(3,34) =cells(3,34)+vbNewLine+EnfoquePoblacional2_3.Value\nElse\n      MsgBox\" EL PARAMETRO SELECCIONADO YA HACEPARTE DE LACELDA\"\n End If\n  End IF\n End Sub"},3,{"$f":"CONCATENATE(\"Localidades2_\",R3,)","v":"Localidades2_3"},{"$f":"CONCATENATE(\"Private Sub \",S3,\"_Change() \",CHAR(10),\" if cells(\",R3,\",\",S$1,\")=\"\"\"\" Then\", CHAR(10),\" cells(\",R3,\",\",S$1,\")=\",S3,\".Value \", CHAR(10), \"else\", CHAR(10),\" if  InStr(1,cells(\",R3,\",\",S$1,\"),\",S3,\".Value, vbTextCompare)=0 Then\", CHAR(10),\"cells(\",R3,\",\",S$1,\") =cells(\",R3,\",\",S$1,\")+vbNewLine+\",S3,\".Value\", CHAR(10),\"Else\", CHAR(10),\"      MsgBox\",\"\"\" EL PARAMETRO SELECCIONADO YA HACEPARTE DE LACELDA\",\"\"\"\", CHAR(10),\" End If\", CHAR(10),\"  End IF\", CHAR(10),\" End Sub\")","v":"Private Sub Localidades2_3_Change() \n if cells(3,35)=\"\" Then\n cells(3,35)=Localidades2_3.Value \nelse\n if  InStr(1,cells(3,35),Localidades2_3.Value, vbTextCompare)=0 Then\ncells(3,35) =cells(3,35)+vbNewLine+Localidades2_3.Value\nElse\n      MsgBox\" EL PARAMETRO SELECCIONADO YA HACEPARTE DE LACELDA\"\n End If\n  End IF\n End Sub"},3,{"$f":"CONCATENATE(\"EnfoquePoblacional3_\",U3)","v":"EnfoquePoblacional3_3"},{"$f":"CONCATENATE(\"Private Sub \",V3,\"_Change() \",CHAR(10),\" if cells(\",U3,\",\",V$1,\")=\"\"\"\" Then\", CHAR(10),\" cells(\",U3,\",\",V$1,\")=\",V3,\".Value \", CHAR(10), \"else\", CHAR(10),\" if  InStr(1,cells(\",U3,\",\",V$1,\"),\",V3,\".Value, vbTextCompare)=0 Then\", CHAR(10),\"cells(\",U3,\",\",V$1,\") =cells(\",U3,\",\",V$1,\")+vbNewLine+\",V3,\".Value\", CHAR(10),\"Else\", CHAR(10),\"      MsgBox\",\"\"\" EL PARAMETRO SELECCIONADO YA HACEPARTE DE LACELDA\",\"\"\"\", CHAR(10),\" End If\", CHAR(10),\"  End IF\", CHAR(10),\" End Sub\")","v":"Private Sub EnfoquePoblacional3_3_Change() \n if cells(3,42)=\"\" Then\n cells(3,42)=EnfoquePoblacional3_3.Value \nelse\n if  InStr(1,cells(3,42),EnfoquePoblacional3_3.Value, vbTextCompare)=0 Then\ncells(3,42) =cells(3,42)+vbNewLine+EnfoquePoblacional3_3.Value\nElse\n      MsgBox\" EL PARAMETRO SELECCIONADO YA HACEPARTE DE LACELDA\"\n End If\n  End IF\n End Sub"},3,{"$f":"CONCATENATE(\"Localidades3_\",X3,)","v":"Localidades3_3"},{"$f":"CONCATENATE(\"Private Sub \",Y3,\"_Change() \",CHAR(10),\" if cells(\",X3,\",\",Y$1,\")=\"\"\"\" Then\", CHAR(10),\" cells(\",X3,\",\",Y$1,\")=\",Y3,\".Value \", CHAR(10), \"else\", CHAR(10),\" if  InStr(1,cells(\",X3,\",\",Y$1,\"),\",Y3,\".Value, vbTextCompare)=0 Then\", CHAR(10),\"cells(\",X3,\",\",Y$1,\") =cells(\",X3,\",\",Y$1,\")+vbNewLine+\",Y3,\".Value\", CHAR(10),\"Else\", CHAR(10),\"      MsgBox\",\"\"\" EL PARAMETRO SELECCIONADO YA HACEPARTE DE LACELDA\",\"\"\"\", CHAR(10),\" End If\", CHAR(10),\"  End IF\", CHAR(10),\" End Sub\")","v":"Private Sub Localidades3_3_Change() \n if cells(3,43)=\"\" Then\n cells(3,43)=Localidades3_3.Value \nelse\n if  InStr(1,cells(3,43),Localidades3_3.Value, vbTextCompare)=0 Then\ncells(3,43) =cells(3,43)+vbNewLine+Localidades3_3.Value\nElse\n      MsgBox\" EL PARAMETRO SELECCIONADO YA HACEPARTE DE LACELDA\"\n End If\n  End IF\n End Sub"},null,null,"Private Sub EnfoquePoblacional3_Change() \n if cells(3,18)=\"\" Then\n cells(3,18)=EnfoquePoblacional3.Value \nelse\n if  InStr(1,cells(3,18),EnfoquePoblacional3.Value, vbTextCompare)=0 Then\ncells(3,18) =cells(3,18)+vbNewLine+EnfoquePoblacional3.Value\nElse\n      MsgBox\" EL PARAMETRO SELECCIONADO YA HACEPARTE DE LACELDA\"\n End If\n  End IF\n End Sub",3,"Localidades3","Private Sub Localidades3_Change() \n if cells(3,19)=\"\" Then\n cells(3,19)=Localidades3.Value \nelse\n if  InStr(1,cells(3,19),Localidades3.Value, vbTextCompare)=0 Then\ncells(3,19) =cells(3,19)+vbNewLine+Localidades3.Value\nElse\n      MsgBox\" EL PARAMETRO SELECCIONADO YA HACEPARTE DE LACELDA\"\n End If\n  End IF\n End Sub",3,"EnfoquePoblacional1_3","Private Sub EnfoquePoblacional1_3_Change() \n if cells(3,26)=\"\" Then\n cells(3,26)=EnfoquePoblacional1_3.Value \nelse\n if  InStr(1,cells(3,26),EnfoquePoblacional1_3.Value, vbTextCompare)=0 Then\ncells(3,26) =cells(3,26)+vbNewLine+EnfoquePoblacional1_3.Value\nElse\n      MsgBox\" EL PARAMETRO SELECCIONADO YA HACEPARTE DE LACELDA\"\n End If\n  End IF\n End Sub",3,"Localidades1_3","Private Sub Localidades1_3_Change() \n if cells(3,27)=\"\" Then\n cells(3,27)=Localidades1_3.Value \nelse\n if  InStr(1,cells(3,27),Localidades1_3.Value, vbTextCompare)=0 Then\ncells(3,27) =cells(3,27)+vbNewLine+Localidades1_3.Value\nElse\n      MsgBox\" EL PARAMETRO SELECCIONADO YA HACEPARTE DE LACELDA\"\n End If\n  End IF\n End Sub",3,"EnfoquePoblacional2_3","Private Sub EnfoquePoblacional2_3_Change() \n if cells(3,34)=\"\" Then\n cells(3,34)=EnfoquePoblacional2_3.Value \nelse\n if  InStr(1,cells(3,34),EnfoquePoblacional2_3.Value, vbTextCompare)=0 Then\ncells(3,34) =cells(3,34)+vbNewLine+EnfoquePoblacional2_3.Value\nElse\n      MsgBox\" EL PARAMETRO SELECCIONADO YA HACEPARTE DE LACELDA\"\n End If\n  End IF\n End Sub",3,"Localidades2_3","Private Sub Localidades2_3_Change() \n if cells(3,35)=\"\" Then\n cells(3,35)=Localidades2_3.Value \nelse\n if  InStr(1,cells(3,35),Localidades2_3.Value, vbTextCompare)=0 Then\ncells(3,35) =cells(3,35)+vbNewLine+Localidades2_3.Value\nElse\n      MsgBox\" EL PARAMETRO SELECCIONADO YA HACEPARTE DE LACELDA\"\n End If\n  End IF\n End Sub",3,"EnfoquePoblacional3_3","Private Sub EnfoquePoblacional3_3_Change() \n if cells(3,42)=\"\" Then\n cells(3,42)=EnfoquePoblacional3_3.Value \nelse\n if  InStr(1,cells(3,42),EnfoquePoblacional3_3.Value, vbTextCompare)=0 Then\ncells(3,42) =cells(3,42)+vbNewLine+EnfoquePoblacional3_3.Value\nElse\n      MsgBox\" EL PARAMETRO SELECCIONADO YA HACEPARTE DE LACELDA\"\n End If\n  End IF\n End Sub",3,"Localidades3_3","Private Sub Localidades3_3_Change() \n if cells(3,43)=\"\" Then\n cells(3,43)=Localidades3_3.Value \nelse\n if  InStr(1,cells(3,43),Localidades3_3.Value, vbTextCompare)=0 Then\ncells(3,43) =cells(3,43)+vbNewLine+Localidades3_3.Value\nElse\n      MsgBox\" EL PARAMETRO SELECCIONADO YA HACEPARTE DE LACELDA\"\n End If\n  End IF\n End Sub"]
["    Range(\"r3\") = EnfoquePoblacional1.Value",null,4,{"$f":"CONCATENATE(\"EnfoquePoblacional\",C4)","v":"EnfoquePoblacional4"},{"$f":"CONCATENATE(\"Private Sub \",D4,\"_Change() \",CHAR(10),\" if cells(\",C4,\",\",D$1,\")=\"\"\"\" Then\", CHAR(10),\" cells(\",C4,\",\",D$1,\")=\",D4,\".Value \", CHAR(10), \"else\", CHAR(10),\" if  InStr(1,cells(\",C4,\",\",D$1,\"),\",D4,\".Value, vbTextCompare)=0 Then\", CHAR(10),\"cells(\",C4,\",\",D$1,\") =cells(\",C4,\",\",D$1,\")+vbNewLine+\",D4,\".Value\", CHAR(10),\"Else\", CHAR(10),\"      MsgBox\",\"\"\" EL PARAMETRO SELECCIONADO YA HACEPARTE DE LACELDA\",\"\"\"\", CHAR(10),\" End If\", CHAR(10),\"  End IF\", CHAR(10),\" End Sub\")","v":"Private Sub EnfoquePoblacional4_Change() \n if cells(4,18)=\"\" Then\n cells(4,18)=EnfoquePoblacional4.Value \nelse\n if  InStr(1,cells(4,18),EnfoquePoblacional4.Value, vbTextCompare)=0 Then\ncells(4,18) =cells(4,18)+vbNewLine+EnfoquePoblacional4.Value\nElse\n      MsgBox\" EL PARAMETRO SELECCIONADO YA HACEPARTE DE LACELDA\"\n End If\n  End IF\n End Sub"},4,{"$f":"CONCATENATE(\"Localidades\",F4,)","v":"Localidades4"},{"$f":"CONCATENATE(\"Private Sub \",G4,\"_Change() \",CHAR(10),\" if cells(\",F4,\",\",G$1,\")=\"\"\"\" Then\", CHAR(10),\" cells(\",F4,\",\",G$1,\")=\",G4,\".Value \", CHAR(10), \"else\", CHAR(10),\" if  InStr(1,cells(\",F4,\",\",G$1,\"),\",G4,\".Value, vbTextCompare)=0 Then\", CHAR(10),\"cells(\",F4,\",\",G$1,\") =cells(\",F4,\",\",G$1,\")+vbNewLine+\",G4,\".Value\", CHAR(10),\"Else\", CHAR(10),\"      MsgBox\",\"\"\" EL PARAMETRO SELECCIONADO YA HACEPARTE DE LACELDA\",\"\"\"\", CHAR(10),\" End If\", CHAR(10),\"  End IF\", CHAR(10),\" End Sub\")","v":"Private Sub Localidades4_Change() \n if cells(4,19)=\"\" Then\n cells(4,19)=Localidades4.Value \nelse\n if  InStr(1,cells(4,19),Localidades4.Value, vbTextCompare)=0 Then\ncells(4,19) =cells(4,19)+vbNewLine+Localidades4.Value\nElse\n      MsgBox\" EL PARAMETRO SELECCIONADO YA HACEPARTE DE LACELDA\"\n End If\n  End IF\n End Sub"},4,{"$f":"CONCATENATE(\"EnfoquePoblacional1_\",I4)","v":"EnfoquePoblacional1_4"},{"$f":"CONCATENATE(\"Private Sub \",J4,\"_Change() \",CHAR(10),\" if cells(\",I4,\",\",J$1,\")=\"\"\"\" Then\", CHAR(10),\" cells(\",I4,\",\",J$1,\")=\",J4,\".Value \", CHAR(10), \"else\", CHAR(10),\" if  InStr(1,cells(\",I4,\",\",J$1,\"),\",J4,\".Value, vbTextCompare)=0 Then\", CHAR(10),\"cells(\",I4,\",\",J$1,\") =cells(\",I4,\",\",J$1,\")+vbNewLine+\",J4,\".Value\", CHAR(10),\"Else\", CHAR(10),\"      MsgBox\",\"\"\" EL PARAMETRO SELECCIONADO YA HACEPARTE DE LACELDA\",\"\"\"\", CHAR(10),\" End If\", CHAR(10),\"  End IF\", CHAR(10),\" End Sub\")","v":"Private Sub EnfoquePoblacional1_4_Change() \n if cells(4,26)=\"\" Then\n cells(4,26)=EnfoquePoblacional1_4.Value \nelse\n if  InStr(1,cells(4,26),EnfoquePoblacional1_4.Value, vbTextCompare)=0 Then\ncells(4,26) =cells(4,26)+vbNewLine+EnfoquePoblacional1_4.Value\nElse\n      MsgBox\" EL PARAMETRO SELECCIONADO YA HACEPARTE DE LACELDA\"\n End If\n  End IF\n End Sub"},4,{"$f":"CONCATENATE(\"Localidades1_\",L4,)","v":"Localidades1_4"},{"$f":"CONCATENATE(\"Private Sub \",M4,\"_Change() \",CHAR(10),\" if cells(\",L4,\",\",M$1,\")=\"\"\"\" Then\", CHAR(10),\" cells(\",L4,\",\",M$1,\")=\",M4,\".Value \", CHAR(10), \"else\", CHAR(10),\" if  InStr(1,cells(\",L4,\",\",M$1,\"),\",M4,\".Value, vbTextCompare)=0 Then\", CHAR(10),\"cells(\",L4,\",\",M$1,\") =cells(\",L4,\",\",M$1,\")+vbNewLine+\",M4,\".Value\", CHAR(10),\"Else\", CHAR(10),\"      MsgBox\",\"\"\" EL PARAMETRO SELECCIONADO YA HACEPARTE DE LACELDA\",\"\"\"\", CHAR(10),\" End If\", CHAR(10),\"  End IF\", CHAR(10),\" End Sub\")","v":"Private Sub Localidades1_4_Change() \n if cells(4,27)=\"\" Then\n cells(4,27)=Localidades1_4.Value \nelse\n if  InStr(1,cells(4,27),Localidades1_4.Value, vbTextCompare)=0 Then\ncells(4,27) =cells(4,27)+vbNewLine+Localidades1_4.Value\nElse\n      MsgBox\" EL PARAMETRO SELECCIONADO YA HACEPARTE DE LACELDA\"\n End If\n  End IF\n End Sub"},4,{"$f":"CONCATENATE(\"EnfoquePoblacional2_\",O4)","v":"EnfoquePoblacional2_4"},{"$f":"CONCATENATE(\"Private Sub \",P4,\"_Change() \",CHAR(10),\" if cells(\",O4,\",\",P$1,\")=\"\"\"\" Then\", CHAR(10),\" cells(\",O4,\",\",P$1,\")=\",P4,\".Value \", CHAR(10), \"else\", CHAR(10),\" if  InStr(1,cells(\",O4,\",\",P$1,\"),\",P4,\".Value, vbTextCompare)=0 Then\", CHAR(10),\"cells(\",O4,\",\",P$1,\") =cells(\",O4,\",\",P$1,\")+vbNewLine+\",P4,\".Value\", CHAR(10),\"Else\", CHAR(10),\"      MsgBox\",\"\"\" EL PARAMETRO SELECCIONADO YA HACEPARTE DE LACELDA\",\"\"\"\", CHAR(10),\" End If\", CHAR(10),\"  End IF\", CHAR(10),\" End Sub\")","v":"Private Sub EnfoquePoblacional2_4_Change() \n if cells(4,34)=\"\" Then\n cells(4,34)=EnfoquePoblacional2_4.Value \nelse\n if  InStr(1,cells(4,34),EnfoquePoblacional2_4.Value, vbTextCompare)=0 Then\ncells(4,34) =cells(4,34)+vbNewLine+EnfoquePoblacional2_4.Value\nElse\n      MsgBox\" EL PARAMETRO SELECCIONADO YA HACEPARTE DE LACELDA\"\n End If\n  End IF\n End Sub"},4,{"$f":"CONCATENATE(\"Localidades2_\",R4,)","v":"Localidades2_4"},{"$f":"CONCATENATE(\"Private Sub \",S4,\"_Change() \",CHAR(10),\" if cells(\",R4,\",\",S$1,\")=\"\"\"\" Then\", CHAR(10),\" cells(\",R4,\",\",S$1,\")=\",S4,\".Value \", CHAR(10), \"else\", CHAR(10),\" if  InStr(1,cells(\",R4,\",\",S$1,\"),\",S4,\".Value, vbTextCompare)=0 Then\", CHAR(10),\"cells(\",R4,\",\",S$1,\") =cells(\",R4,\",\",S$1,\")+vbNewLine+\",S4,\".Value\", CHAR(10),\"Else\", CHAR(10),\"      MsgBox\",\"\"\" EL PARAMETRO SELECCIONADO YA HACEPARTE DE LACELDA\",\"\"\"\", CHAR(10),\" End If\", CHAR(10),\"  End IF\", CHAR(10),\" End Sub\")","v":"Private Sub Localidades2_4_Change() \n if cells(4,35)=\"\" Then\n cells(4,35)=Localidades2_4.Value \nelse\n if  InStr(1,cells(4,35),Localidades2_4.Value, vbTextCompare)=0 Then\ncells(4,35) =cells(4,35)+vbNewLine+Localidades2_4.Value\nElse\n      MsgBox\" EL PARAMETRO SELECCIONADO YA HACEPARTE DE LACELDA\"\n End If\n  End IF\n End Sub"},4,{"$f":"CONCATENATE(\"EnfoquePoblacional3_\",U4)","v":"EnfoquePoblacional3_4"},{"$f":"CONCATENATE(\"Private Sub \",V4,\"_Change() \",CHAR(10),\" if cells(\",U4,\",\",V$1,\")=\"\"\"\" Then\", CHAR(10),\" cells(\",U4,\",\",V$1,\")=\",V4,\".Value \", CHAR(10), \"else\", CHAR(10),\" if  InStr(1,cells(\",U4,\",\",V$1,\"),\",V4,\".Value, vbTextCompare)=0 Then\", CHAR(10),\"cells(\",U4,\",\",V$1,\") =cells(\",U4,\",\",V$1,\")+vbNewLine+\",V4,\".Value\", CHAR(10),\"Else\", CHAR(10),\"      MsgBox\",\"\"\" EL PARAMETRO SELECCIONADO YA HACEPARTE DE LACELDA\",\"\"\"\", CHAR(10),\" End If\", CHAR(10),\"  End IF\", CHAR(10),\" End Sub\")","v":"Private Sub EnfoquePoblacional3_4_Change() \n if cells(4,42)=\"\" Then\n cells(4,42)=EnfoquePoblacional3_4.Value \nelse\n if  InStr(1,cells(4,42),EnfoquePoblacional3_4.Value, vbTextCompare)=0 Then\ncells(4,42) =cells(4,42)+vbNewLine+EnfoquePoblacional3_4.Value\nElse\n      MsgBox\" EL PARAMETRO SELECCIONADO YA HACEPARTE DE LACELDA\"\n End If\n  End IF\n End Sub"},4,{"$f":"CONCATENATE(\"Localidades3_\",X4,)","v":"Localidades3_4"},{"$f":"CONCATENATE(\"Private Sub \",Y4,\"_Change() \",CHAR(10),\" if cells(\",X4,\",\",Y$1,\")=\"\"\"\" Then\", CHAR(10),\" cells(\",X4,\",\",Y$1,\")=\",Y4,\".Value \", CHAR(10), \"else\", CHAR(10),\" if  InStr(1,cells(\",X4,\",\",Y$1,\"),\",Y4,\".Value, vbTextCompare)=0 Then\", CHAR(10),\"cells(\",X4,\",\",Y$1,\") =cells(\",X4,\",\",Y$1,\")+vbNewLine+\",Y4,\".Value\", CHAR(10),\"Else\", CHAR(10),\"      MsgBox\",\"\"\" EL PARAMETRO SELECCIONADO YA HACEPARTE DE LACELDA\",\"\"\"\", CHAR(10),\" End If\", CHAR(10),\"  End IF\", CHAR(10),\" End Sub\")","v":"Private Sub Localidades3_4_Change() \n if cells(4,43)=\"\" Then\n cells(4,43)=Localidades3_4.Value \nelse\n if  InStr(1,cells(4,43),Localidades3_4.Value, vbTextCompare)=0 Then\ncells(4,43) =cells(4,43)+vbNewLine+Localidades3_4.Value\nElse\n      MsgBox\" EL PARAMETRO SELECCIONADO YA HACEPARTE DE LACELDA\"\n End If\n  End IF\n End Sub"},null,null,"Private Sub EnfoquePoblacional4_Change() \n if cells(4,18)=\"\" Then\n cells(4,18)=EnfoquePoblacional4.Value \nelse\n if  InStr(1,cells(4,18),EnfoquePoblacional4.Value, vbTextCompare)=0 Then\ncells(4,18) =cells(4,18)+vbNewLine+EnfoquePoblacional4.Value\nElse\n      MsgBox\" EL PARAMETRO SELECCIONADO YA HACEPARTE DE LACELDA\"\n End If\n  End IF\n End Sub",4,"Localidades4","Private Sub Localidades4_Change() \n if cells(4,19)=\"\" Then\n cells(4,19)=Localidades4.Value \nelse\n if  InStr(1,cells(4,19),Localidades4.Value, vbTextCompare)=0 Then\ncells(4,19) =cells(4,19)+vbNewLine+Localidades4.Value\nElse\n      MsgBox\" EL PARAMETRO SELECCIONADO YA HACEPARTE DE LACELDA\"\n End If\n  End IF\n End Sub",4,"EnfoquePoblacional1_4","Private Sub EnfoquePoblacional1_4_Change() \n if cells(4,26)=\"\" Then\n cells(4,26)=EnfoquePoblacional1_4.Value \nelse\n if  InStr(1,cells(4,26),EnfoquePoblacional1_4.Value, vbTextCompare)=0 Then\ncells(4,26) =cells(4,26)+vbNewLine+EnfoquePoblacional1_4.Value\nElse\n      MsgBox\" EL PARAMETRO SELECCIONADO YA HACEPARTE DE LACELDA\"\n End If\n  End IF\n End Sub",4,"Localidades1_4","Private Sub Localidades1_4_Change() \n if cells(4,27)=\"\" Then\n cells(4,27)=Localidades1_4.Value \nelse\n if  InStr(1,cells(4,27),Localidades1_4.Value, vbTextCompare)=0 Then\ncells(4,27) =cells(4,27)+vbNewLine+Localidades1_4.Value\nElse\n      MsgBox\" EL PARAMETRO SELECCIONADO YA HACEPARTE DE LACELDA\"\n End If\n  End IF\n End Sub",4,"EnfoquePoblacional2_4","Private Sub EnfoquePoblacional2_4_Change() \n if cells(4,34)=\"\" Then\n cells(4,34)=EnfoquePoblacional2_4.Value \nelse\n if  InStr(1,cells(4,34),EnfoquePoblacional2_4.Value, vbTextCompare)=0 Then\ncells(4,34) =cells(4,34)+vbNewLine+EnfoquePoblacional2_4.Value\nElse\n      MsgBox\" EL PARAMETRO SELECCIONADO YA HACEPARTE DE LACELDA\"\n End If\n  End IF\n End Sub",4,"Localidades2_4","Private Sub Localidades2_4_Change() \n if cells(4,35)=\"\" Then\n cells(4,35)=Localidades2_4.Value \nelse\n if  InStr(1,cells(4,35),Localidades2_4.Value, vbTextCompare)=0 Then\ncells(4,35) =cells(4,35)+vbNewLine+Localidades2_4.Value\nElse\n      MsgBox\" EL PARAMETRO SELECCIONADO YA HACEPARTE DE LACELDA\"\n End If\n  End IF\n End Sub",4,"EnfoquePoblacional3_4","Private Sub EnfoquePoblacional3_4_Change() \n if cells(4,42)=\"\" Then\n cells(4,42)=EnfoquePoblacional3_4.Value \nelse\n if  InStr(1,cells(4,42),EnfoquePoblacional3_4.Value, vbTextCompare)=0 Then\ncells(4,42) =cells(4,42)+vbNewLine+EnfoquePoblacional3_4.Value\nElse\n      MsgBox\" EL PARAMETRO SELECCIONADO YA HACEPARTE DE LACELDA\"\n End If\n  End IF\n End Sub",4,"Localidades3_4","Private Sub Localidades3_4_Change() \n if cells(4,43)=\"\" Then\n cells(4,43)=Localidades3_4.Value \nelse\n if  InStr(1,cells(4,43),Localidades3_4.Value, vbTextCompare)=0 Then\ncells(4,43) =cells(4,43)+vbNewLine+Localidades3_4.Value\nElse\n      MsgBox\" EL PARAMETRO SELECCIONADO YA HACEPARTE DE LACELDA\"\n End If\n  End IF\n End Sub"]
["Else",null,5,"EnfoquePoblacional5","Private Sub EnfoquePoblacional5_Change() \n if cells(5,18)=\"\" Then\n cells(5,18)=EnfoquePoblacional5.Value \nelse\n if  InStr(1,cells(5,18),EnfoquePoblacional5.Value, vbTextCompare)=0 Then\ncells(5,18) =cells(5,18)+vbNewLine+EnfoquePoblacional5.Value\nElse\n      MsgBox\" EL PARAMETRO SELECCIONADO YA HACEPARTE DE LACELDA\"\n End If\n  End IF\n End Sub",5,"Localidades5","Private Sub Localidades5_Change() \n if cells(5,19)=\"\" Then\n cells(5,19)=Localidades5.Value \nelse\n if  InStr(1,cells(5,19),Localidades5.Value, vbTextCompare)=0 Then\ncells(5,19) =cells(5,19)+vbNewLine+Localidades5.Value\nElse\n      MsgBox\" EL PARAMETRO SELECCIONADO YA HACEPARTE DE LACELDA\"\n End If\n  End IF\n End Sub",5,"EnfoquePoblacional1_5","Private Sub EnfoquePoblacional1_5_Change() \n if cells(5,26)=\"\" Then\n cells(5,26)=EnfoquePoblacional1_5.Value \nelse\n if  InStr(1,cells(5,26),EnfoquePoblacional1_5.Value, vbTextCompare)=0 Then\ncells(5,26) =cells(5,26)+vbNewLine+EnfoquePoblacional1_5.Value\nElse\n      MsgBox\" EL PARAMETRO SELECCIONADO YA HACEPARTE DE LACELDA\"\n End If\n  End IF\n End Sub",5,"Localidades1_5","Private Sub Localidades1_5_Change() \n if cells(5,27)=\"\" Then\n cells(5,27)=Localidades1_5.Value \nelse\n if  InStr(1,cells(5,27),Localidades1_5.Value, vbTextCompare)=0 Then\ncells(5,27) =cells(5,27)+vbNewLine+Localidades1_5.Value\nElse\n      MsgBox\" EL PARAMETRO SELECCIONADO YA HACEPARTE DE LACELDA\"\n End If\n  End IF\n End Sub",5,"EnfoquePoblacional2_5","Private Sub EnfoquePoblacional2_5_Change() \n if cells(5,34)=\"\" Then\n cells(5,34)=EnfoquePoblacional2_5.Value \nelse\n if  InStr(1,cells(5,34),EnfoquePoblacional2_5.Value, vbTextCompare)=0 Then\ncells(5,34) =cells(5,34)+vbNewLine+EnfoquePoblacional2_5.Value\nElse\n      MsgBox\" EL PARAMETRO SELECCIONADO YA HACEPARTE DE LACELDA\"\n End If\n  End IF\n End Sub",5,"Localidades2_5","Private Sub Localidades2_5_Change() \n if cells(5,35)=\"\" Then\n cells(5,35)=Localidades2_5.Value \nelse\n if  InStr(1,cells(5,35),Localidades2_5.Value, vbTextCompare)=0 Then\ncells(5,35) =cells(5,35)+vbNewLine+Localidades2_5.Value\nElse\n      MsgBox\" EL PARAMETRO SELECCIONADO YA HACEPARTE DE LACELDA\"\n End If\n  End IF\n End Sub",5,"EnfoquePoblacional3_5","Private Sub EnfoquePoblacional3_5_Change() \n if cells(5,42)=\"\" Then\n cells(5,42)=EnfoquePoblacional3_5.Value \nelse\n if  InStr(1,cells(5,42),EnfoquePoblacional3_5.Value, vbTextCompare)=0 Then\ncells(5,42) =cells(5,42)+vbNewLine+EnfoquePoblacional3_5.Value\nElse\n      MsgBox\" EL PARAMETRO SELECCIONADO YA HACEPARTE DE LACELDA\"\n End If\n  End IF\n End Sub",5,"Localidades3_5","Private Sub Localidades3_5_Change() \n if cells(5,43)=\"\" Then\n cells(5,43)=Localidades3_5.Value \nelse\n if  InStr(1,cells(5,43),Localidades3_5.Value, vbTextCompare)=0 Then\ncells(5,43) =cells(5,43)+vbNewLine+Localidades3_5.Value\nElse\n      MsgBox\" EL PARAMETRO SELECCIONADO YA HACEPARTE DE LACELDA\"\n End If\n  End IF\n End Sub",null,null,"Private Sub EnfoquePoblacional5_Change() \n if cells(5,18)=\"\" Then\n cells(5,18)=EnfoquePoblacional5.Value \nelse\n if  InStr(1,cells(5,18),EnfoquePoblacional5.Value, vbTextCompare)=0 Then\ncells(5,18) =cells(5,18)+vbNewLine+EnfoquePoblacional5.Value\nElse\n      MsgBox\" EL PARAMETRO SELECCIONADO YA HACEPARTE DE LACELDA\"\n End If\n  End IF\n End Sub",5,"Localidades5","Private Sub Localidades5_Change() \n if cells(5,19)=\"\" Then\n cells(5,19)=Localidades5.Value \nelse\n if  InStr(1,cells(5,19),Localidades5.Value, vbTextCompare)=0 Then\ncells(5,19) =cells(5,19)+vbNewLine+Localidades5.Value\nElse\n      MsgBox\" EL PARAMETRO SELECCIONADO YA HACEPARTE DE LACELDA\"\n End If\n  End IF\n End Sub",5,"EnfoquePoblacional1_5","Private Sub EnfoquePoblacional1_5_Change() \n if cells(5,26)=\"\" Then\n cells(5,26)=EnfoquePoblacional1_5.Value \nelse\n if  InStr(1,cells(5,26),EnfoquePoblacional1_5.Value, vbTextCompare)=0 Then\ncells(5,26) =cells(5,26)+vbNewLine+EnfoquePoblacional1_5.Value\nElse\n      MsgBox\" EL PARAMETRO SELECCIONADO YA HACEPARTE DE LACELDA\"\n End If\n  End IF\n End Sub",5,"Localidades1_5","Private Sub Localidades1_5_Change() \n if cells(5,27)=\"\" Then\n cells(5,27)=Localidades1_5.Value \nelse\n if  InStr(1,cells(5,27),Localidades1_5.Value, vbTextCompare)=0 Then\ncells(5,27) =cells(5,27)+vbNewLine+Localidades1_5.Value\nElse\n      MsgBox\" EL PARAMETRO SELECCIONADO YA HACEPARTE DE LACELDA\"\n End If\n  End IF\n End Sub",5,"EnfoquePoblacional2_5","Private Sub EnfoquePoblacional2_5_Change() \n if cells(5,34)=\"\" Then\n cells(5,34)=EnfoquePoblacional2_5.Value \nelse\n if  InStr(1,cells(5,34),EnfoquePoblacional2_5.Value, vbTextCompare)=0 Then\ncells(5,34) =cells(5,34)+vbNewLine+EnfoquePoblacional2_5.Value\nElse\n      MsgBox\" EL PARAMETRO SELECCIONADO YA HACEPARTE DE LACELDA\"\n End If\n  End IF\n End Sub",5,"Localidades2_5","Private Sub Localidades2_5_Change() \n if cells(5,35)=\"\" Then\n cells(5,35)=Localidades2_5.Value \nelse\n if  InStr(1,cells(5,35),Localidades2_5.Value, vbTextCompare)=0 Then\ncells(5,35) =cells(5,35)+vbNewLine+Localidades2_5.Value\nElse\n      MsgBox\" EL PARAMETRO SELECCIONADO YA HACEPARTE DE LACELDA\"\n End If\n  End IF\n End Sub",5,"EnfoquePoblacional3_5","Private Sub EnfoquePoblacional3_5_Change() \n if cells(5,42)=\"\" Then\n cells(5,42)=EnfoquePoblacional3_5.Value \nelse\n if  InStr(1,cells(5,42),EnfoquePoblacional3_5.Value, vbTextCompare)=0 Then\ncells(5,42) =cells(5,42)+vbNewLine+EnfoquePoblacional3_5.Value\nElse\n      MsgBox\" EL PARAMETRO SELECCIONADO YA HACEPARTE DE LACELDA\"\n End If\n  End IF\n End Sub",5,"Localidades3_5","Private Sub Localidades3_5_Change() \n if cells(5,43)=\"\" Then\n cells(5,43)=Localidades3_5.Value \nelse\n if  InStr(1,cells(5,43),Localidades3_5.Value, vbTextCompare)=0 Then\ncells(5,43) =cells(5,43)+vbNewLine+Localidades3_5.Value\nElse\n      MsgBox\" EL PARAMETRO SELECCIONADO YA HACEPARTE DE LACELDA\"\n End If\n  End IF\n End Sub"]
["    If InStr(1, Range(\"r3\"), EnfoquePoblacional1.Value, vbTextCompare) = 0 Then",null,6,"EnfoquePoblacional6","Private Sub EnfoquePoblacional6_Change() \n if cells(6,18)=\"\" Then\n cells(6,18)=EnfoquePoblacional6.Value \nelse\n if  InStr(1,cells(6,18),EnfoquePoblacional6.Value, vbTextCompare)=0 Then\ncells(6,18) =cells(6,18)+vbNewLine+EnfoquePoblacional6.Value\nElse\n      MsgBox\" EL PARAMETRO SELECCIONADO YA HACEPARTE DE LACELDA\"\n End If\n  End IF\n End Sub",6,"Localidades6","Private Sub Localidades6_Change() \n if cells(6,19)=\"\" Then\n cells(6,19)=Localidades6.Value \nelse\n if  InStr(1,cells(6,19),Localidades6.Value, vbTextCompare)=0 Then\ncells(6,19) =cells(6,19)+vbNewLine+Localidades6.Value\nElse\n      MsgBox\" EL PARAMETRO SELECCIONADO YA HACEPARTE DE LACELDA\"\n End If\n  End IF\n End Sub",6,"EnfoquePoblacional1_6","Private Sub EnfoquePoblacional1_6_Change() \n if cells(6,26)=\"\" Then\n cells(6,26)=EnfoquePoblacional1_6.Value \nelse\n if  InStr(1,cells(6,26),EnfoquePoblacional1_6.Value, vbTextCompare)=0 Then\ncells(6,26) =cells(6,26)+vbNewLine+EnfoquePoblacional1_6.Value\nElse\n      MsgBox\" EL PARAMETRO SELECCIONADO YA HACEPARTE DE LACELDA\"\n End If\n  End IF\n End Sub",6,"Localidades1_6","Private Sub Localidades1_6_Change() \n if cells(6,27)=\"\" Then\n cells(6,27)=Localidades1_6.Value \nelse\n if  InStr(1,cells(6,27),Localidades1_6.Value, vbTextCompare)=0 Then\ncells(6,27) =cells(6,27)+vbNewLine+Localidades1_6.Value\nElse\n      MsgBox\" EL PARAMETRO SELECCIONADO YA HACEPARTE DE LACELDA\"\n End If\n  End IF\n End Sub",6,"EnfoquePoblacional2_6","Private Sub EnfoquePoblacional2_6_Change() \n if cells(6,34)=\"\" Then\n cells(6,34)=EnfoquePoblacional2_6.Value \nelse\n if  InStr(1,cells(6,34),EnfoquePoblacional2_6.Value, vbTextCompare)=0 Then\ncells(6,34) =cells(6,34)+vbNewLine+EnfoquePoblacional2_6.Value\nElse\n      MsgBox\" EL PARAMETRO SELECCIONADO YA HACEPARTE DE LACELDA\"\n End If\n  End IF\n End Sub",6,"Localidades2_6","Private Sub Localidades2_6_Change() \n if cells(6,35)=\"\" Then\n cells(6,35)=Localidades2_6.Value \nelse\n if  InStr(1,cells(6,35),Localidades2_6.Value, vbTextCompare)=0 Then\ncells(6,35) =cells(6,35)+vbNewLine+Localidades2_6.Value\nElse\n      MsgBox\" EL PARAMETRO SELECCIONADO YA HACEPARTE DE LACELDA\"\n End If\n  End IF\n End Sub",6,"EnfoquePoblacional3_6","Private Sub EnfoquePoblacional3_6_Change() \n if cells(6,42)=\"\" Then\n cells(6,42)=EnfoquePoblacional3_6.Value \nelse\n if  InStr(1,cells(6,42),EnfoquePoblacional3_6.Value, vbTextCompare)=0 Then\ncells(6,42) =cells(6,42)+vbNewLine+EnfoquePoblacional3_6.Value\nElse\n      MsgBox\" EL PARAMETRO SELECCIONADO YA HACEPARTE DE LACELDA\"\n End If\n  End IF\n End Sub",6,"Localidades3_6","Private Sub Localidades3_6_Change() \n if cells(6,43)=\"\" Then\n cells(6,43)=Localidades3_6.Value \nelse\n if  InStr(1,cells(6,43),Localidades3_6.Value, vbTextCompare)=0 Then\ncells(6,43) =cells(6,43)+vbNewLine+Localidades3_6.Value\nElse\n      MsgBox\" EL PARAMETRO SELECCIONADO YA HACEPARTE DE LACELDA\"\n End If\n  End IF\n End Sub",null,null,"Private Sub EnfoquePoblacional6_Change() \n if cells(6,18)=\"\" Then\n cells(6,18)=EnfoquePoblacional6.Value \nelse\n if  InStr(1,cells(6,18),EnfoquePoblacional6.Value, vbTextCompare)=0 Then\ncells(6,18) =cells(6,18)+vbNewLine+EnfoquePoblacional6.Value\nElse\n      MsgBox\" EL PARAMETRO SELECCIONADO YA HACEPARTE DE LACELDA\"\n End If\n  End IF\n End Sub",6,"Localidades6","Private Sub Localidades6_Change() \n if cells(6,19)=\"\" Then\n cells(6,19)=Localidades6.Value \nelse\n if  InStr(1,cells(6,19),Localidades6.Value, vbTextCompare)=0 Then\ncells(6,19) =cells(6,19)+vbNewLine+Localidades6.Value\nElse\n      MsgBox\" EL PARAMETRO SELECCIONADO YA HACEPARTE DE LACELDA\"\n End If\n  End IF\n End Sub",6,"EnfoquePoblacional1_6","Private Sub EnfoquePoblacional1_6_Change() \n if cells(6,26)=\"\" Then\n cells(6,26)=EnfoquePoblacional1_6.Value \nelse\n if  InStr(1,cells(6,26),EnfoquePoblacional1_6.Value, vbTextCompare)=0 Then\ncells(6,26) =cells(6,26)+vbNewLine+EnfoquePoblacional1_6.Value\nElse\n      MsgBox\" EL PARAMETRO SELECCIONADO YA HACEPARTE DE LACELDA\"\n End If\n  End IF\n End Sub",6,"Localidades1_6","Private Sub Localidades1_6_Change() \n if cells(6,27)=\"\" Then\n cells(6,27)=Localidades1_6.Value \nelse\n if  InStr(1,cells(6,27),Localidades1_6.Value, vbTextCompare)=0 Then\ncells(6,27) =cells(6,27)+vbNewLine+Localidades1_6.Value\nElse\n      MsgBox\" EL PARAMETRO SELECCIONADO YA HACEPARTE DE LACELDA\"\n End If\n  End IF\n End Sub",6,"EnfoquePoblacional2_6","Private Sub EnfoquePoblacional2_6_Change() \n if cells(6,34)=\"\" Then\n cells(6,34)=EnfoquePoblacional2_6.Value \nelse\n if  InStr(1,cells(6,34),EnfoquePoblacional2_6.Value, vbTextCompare)=0 Then\ncells(6,34) =cells(6,34)+vbNewLine+EnfoquePoblacional2_6.Value\nElse\n      MsgBox\" EL PARAMETRO SELECCIONADO YA HACEPARTE DE LACELDA\"\n End If\n  End IF\n End Sub",6,"Localidades2_6","Private Sub Localidades2_6_Change() \n if cells(6,35)=\"\" Then\n cells(6,35)=Localidades2_6.Value \nelse\n if  InStr(1,cells(6,35),Localidades2_6.Value, vbTextCompare)=0 Then\ncells(6,35) =cells(6,35)+vbNewLine+Localidades2_6.Value\nElse\n      MsgBox\" EL PARAMETRO SELECCIONADO YA HACEPARTE DE LACELDA\"\n End If\n  End IF\n End Sub",6,"EnfoquePoblacional3_6","Private Sub EnfoquePoblacional3_6_Change() \n if cells(6,42)=\"\" Then\n cells(6,42)=EnfoquePoblacional3_6.Value \nelse\n if  InStr(1,cells(6,42),EnfoquePoblacional3_6.Value, vbTextCompare)=0 Then\ncells(6,42) =cells(6,42)+vbNewLine+EnfoquePoblacional3_6.Value\nElse\n      MsgBox\" EL PARAMETRO SELECCIONADO YA HACEPARTE DE LACELDA\"\n End If\n  End IF\n End Sub",6,"Localidades3_6","Private Sub Localidades3_6_Change() \n if cells(6,43)=\"\" Then\n cells(6,43)=Localidades3_6.Value \nelse\n if  InStr(1,cells(6,43),Localidades3_6.Value, vbTextCompare)=0 Then\ncells(6,43) =cells(6,43)+vbNewLine+Localidades3_6.Value\nElse\n      MsgBox\" EL PARAMETRO SELECCIONADO YA HACEPARTE DE LACELDA\"\n End If\n  End IF\n End Sub"]
["     Range(\"r3\") = Range(\"r3\") + vbNewLine + EnfoquePoblacional1.Value",null,7,"EnfoquePoblacional7","Private Sub EnfoquePoblacional7_Change() \n if cells(7,18)=\"\" Then\n cells(7,18)=EnfoquePoblacional7.Value \nelse\n if  InStr(1,cells(7,18),EnfoquePoblacional7.Value, vbTextCompare)=0 Then\ncells(7,18) =cells(7,18)+vbNewLine+EnfoquePoblacional7.Value\nElse\n      MsgBox\" EL PARAMETRO SELECCIONADO YA HACEPARTE DE LACELDA\"\n End If\n  End IF\n End Sub",7,"Localidades7","Private Sub Localidades7_Change() \n if cells(7,19)=\"\" Then\n cells(7,19)=Localidades7.Value \nelse\n if  InStr(1,cells(7,19),Localidades7.Value, vbTextCompare)=0 Then\ncells(7,19) =cells(7,19)+vbNewLine+Localidades7.Value\nElse\n      MsgBox\" EL PARAMETRO SELECCIONADO YA HACEPARTE DE LACELDA\"\n End If\n  End IF\n End Sub",7,"EnfoquePoblacional1_7","Private Sub EnfoquePoblacional1_7_Change() \n if cells(7,26)=\"\" Then\n cells(7,26)=EnfoquePoblacional1_7.Value \nelse\n if  InStr(1,cells(7,26),EnfoquePoblacional1_7.Value, vbTextCompare)=0 Then\ncells(7,26) =cells(7,26)+vbNewLine+EnfoquePoblacional1_7.Value\nElse\n      MsgBox\" EL PARAMETRO SELECCIONADO YA HACEPARTE DE LACELDA\"\n End If\n  End IF\n End Sub",7,"Localidades1_7","Private Sub Localidades1_7_Change() \n if cells(7,27)=\"\" Then\n cells(7,27)=Localidades1_7.Value \nelse\n if  InStr(1,cells(7,27),Localidades1_7.Value, vbTextCompare)=0 Then\ncells(7,27) =cells(7,27)+vbNewLine+Localidades1_7.Value\nElse\n      MsgBox\" EL PARAMETRO SELECCIONADO YA HACEPARTE DE LACELDA\"\n End If\n  End IF\n End Sub",7,"EnfoquePoblacional2_7","Private Sub EnfoquePoblacional2_7_Change() \n if cells(7,34)=\"\" Then\n cells(7,34)=EnfoquePoblacional2_7.Value \nelse\n if  InStr(1,cells(7,34),EnfoquePoblacional2_7.Value, vbTextCompare)=0 Then\ncells(7,34) =cells(7,34)+vbNewLine+EnfoquePoblacional2_7.Value\nElse\n      MsgBox\" EL PARAMETRO SELECCIONADO YA HACEPARTE DE LACELDA\"\n End If\n  End IF\n End Sub",7,"Localidades2_7","Private Sub Localidades2_7_Change() \n if cells(7,35)=\"\" Then\n cells(7,35)=Localidades2_7.Value \nelse\n if  InStr(1,cells(7,35),Localidades2_7.Value, vbTextCompare)=0 Then\ncells(7,35) =cells(7,35)+vbNewLine+Localidades2_7.Value\nElse\n      MsgBox\" EL PARAMETRO SELECCIONADO YA HACEPARTE DE LACELDA\"\n End If\n  End IF\n End Sub",7,"EnfoquePoblacional3_7","Private Sub EnfoquePoblacional3_7_Change() \n if cells(7,42)=\"\" Then\n cells(7,42)=EnfoquePoblacional3_7.Value \nelse\n if  InStr(1,cells(7,42),EnfoquePoblacional3_7.Value, vbTextCompare)=0 Then\ncells(7,42) =cells(7,42)+vbNewLine+EnfoquePoblacional3_7.Value\nElse\n      MsgBox\" EL PARAMETRO SELECCIONADO YA HACEPARTE DE LACELDA\"\n End If\n  End IF\n End Sub",7,"Localidades3_7","Private Sub Localidades3_7_Change() \n if cells(7,43)=\"\" Then\n cells(7,43)=Localidades3_7.Value \nelse\n if  InStr(1,cells(7,43),Localidades3_7.Value, vbTextCompare)=0 Then\ncells(7,43) =cells(7,43)+vbNewLine+Localidades3_7.Value\nElse\n      MsgBox\" EL PARAMETRO SELECCIONADO YA HACEPARTE DE LACELDA\"\n End If\n  End IF\n End Sub",null,null,"Private Sub EnfoquePoblacional7_Change() \n if cells(7,18)=\"\" Then\n cells(7,18)=EnfoquePoblacional7.Value \nelse\n if  InStr(1,cells(7,18),EnfoquePoblacional7.Value, vbTextCompare)=0 Then\ncells(7,18) =cells(7,18)+vbNewLine+EnfoquePoblacional7.Value\nElse\n      MsgBox\" EL PARAMETRO SELECCIONADO YA HACEPARTE DE LACELDA\"\n End If\n  End IF\n End Sub",7,"Localidades7","Private Sub Localidades7_Change() \n if cells(7,19)=\"\" Then\n cells(7,19)=Localidades7.Value \nelse\n if  InStr(1,cells(7,19),Localidades7.Value, vbTextCompare)=0 Then\ncells(7,19) =cells(7,19)+vbNewLine+Localidades7.Value\nElse\n      MsgBox\" EL PARAMETRO SELECCIONADO YA HACEPARTE DE LACELDA\"\n End If\n  End IF\n End Sub",7,"EnfoquePoblacional1_7","Private Sub EnfoquePoblacional1_7_Change() \n if cells(7,26)=\"\" Then\n cells(7,26)=EnfoquePoblacional1_7.Value \nelse\n if  InStr(1,cells(7,26),EnfoquePoblacional1_7.Value, vbTextCompare)=0 Then\ncells(7,26) =cells(7,26)+vbNewLine+EnfoquePoblacional1_7.Value\nElse\n      MsgBox\" EL PARAMETRO SELECCIONADO YA HACEPARTE DE LACELDA\"\n End If\n  End IF\n End Sub",7,"Localidades1_7","Private Sub Localidades1_7_Change() \n if cells(7,27)=\"\" Then\n cells(7,27)=Localidades1_7.Value \nelse\n if  InStr(1,cells(7,27),Localidades1_7.Value, vbTextCompare)=0 Then\ncells(7,27) =cells(7,27)+vbNewLine+Localidades1_7.Value\nElse\n      MsgBox\" EL PARAMETRO SELECCIONADO YA HACEPARTE DE LACELDA\"\n End If\n  End IF\n End Sub",7,"EnfoquePoblacional2_7","Private Sub EnfoquePoblacional2_7_Change() \n if cells(7,34)=\"\" Then\n cells(7,34)=EnfoquePoblacional2_7.Value \nelse\n if  InStr(1,cells(7,34),EnfoquePoblacional2_7.Value, vbTextCompare)=0 Then\ncells(7,34) =cells(7,34)+vbNewLine+EnfoquePoblacional2_7.Value\nElse\n      MsgBox\" EL PARAMETRO SELECCIONADO YA HACEPARTE DE LACELDA\"\n End If\n  End IF\n End Sub",7,"Localidades2_7","Private Sub Localidades2_7_Change() \n if cells(7,35)=\"\" Then\n cells(7,35)=Localidades2_7.Value \nelse\n if  InStr(1,cells(7,35),Localidades2_7.Value, vbTextCompare)=0 Then\ncells(7,35) =cells(7,35)+vbNewLine+Localidades2_7.Value\nElse\n      MsgBox\" EL PARAMETRO SELECCIONADO YA HACEPARTE DE LACELDA\"\n End If\n  End IF\n End Sub",7,"EnfoquePoblacional3_7","Private Sub EnfoquePoblacional3_7_Change() \n if cells(7,42)=\"\" Then\n cells(7,42)=EnfoquePoblacional3_7.Value \nelse\n if  InStr(1,cells(7,42),EnfoquePoblacional3_7.Value, vbTextCompare)=0 Then\ncells(7,42) =cells(7,42)+vbNewLine+EnfoquePoblacional3_7.Value\nElse\n      MsgBox\" EL PARAMETRO SELECCIONADO YA HACEPARTE DE LACELDA\"\n End If\n  End IF\n End Sub",7,"Localidades3_7","Private Sub Localidades3_7_Change() \n if cells(7,43)=\"\" Then\n cells(7,43)=Localidades3_7.Value \nelse\n if  InStr(1,cells(7,43),Localidades3_7.Value, vbTextCompare)=0 Then\ncells(7,43) =cells(7,43)+vbNewLine+Localidades3_7.Value\nElse\n      MsgBox\" EL PARAMETRO SELECCIONADO YA HACEPARTE DE LACELDA\"\n End If\n  End IF\n End Sub"]
["    Else",null,8,"EnfoquePoblacional8","Private Sub EnfoquePoblacional8_Change() \n if cells(8,18)=\"\" Then\n cells(8,18)=EnfoquePoblacional8.Value \nelse\n if  InStr(1,cells(8,18),EnfoquePoblacional8.Value, vbTextCompare)=0 Then\ncells(8,18) =cells(8,18)+vbNewLine+EnfoquePoblacional8.Value\nElse\n      MsgBox\" EL PARAMETRO SELECCIONADO YA HACEPARTE DE LACELDA\"\n End If\n  End IF\n End Sub",8,"Localidades8","Private Sub Localidades8_Change() \n if cells(8,19)=\"\" Then\n cells(8,19)=Localidades8.Value \nelse\n if  InStr(1,cells(8,19),Localidades8.Value, vbTextCompare)=0 Then\ncells(8,19) =cells(8,19)+vbNewLine+Localidades8.Value\nElse\n      MsgBox\" EL PARAMETRO SELECCIONADO YA HACEPARTE DE LACELDA\"\n End If\n  End IF\n End Sub",8,"EnfoquePoblacional1_8","Private Sub EnfoquePoblacional1_8_Change() \n if cells(8,26)=\"\" Then\n cells(8,26)=EnfoquePoblacional1_8.Value \nelse\n if  InStr(1,cells(8,26),EnfoquePoblacional1_8.Value, vbTextCompare)=0 Then\ncells(8,26) =cells(8,26)+vbNewLine+EnfoquePoblacional1_8.Value\nElse\n      MsgBox\" EL PARAMETRO SELECCIONADO YA HACEPARTE DE LACELDA\"\n End If\n  End IF\n End Sub",8,"Localidades1_8","Private Sub Localidades1_8_Change() \n if cells(8,27)=\"\" Then\n cells(8,27)=Localidades1_8.Value \nelse\n if  InStr(1,cells(8,27),Localidades1_8.Value, vbTextCompare)=0 Then\ncells(8,27) =cells(8,27)+vbNewLine+Localidades1_8.Value\nElse\n      MsgBox\" EL PARAMETRO SELECCIONADO YA HACEPARTE DE LACELDA\"\n End If\n  End IF\n End Sub",8,"EnfoquePoblacional2_8","Private Sub EnfoquePoblacional2_8_Change() \n if cells(8,34)=\"\" Then\n cells(8,34)=EnfoquePoblacional2_8.Value \nelse\n if  InStr(1,cells(8,34),EnfoquePoblacional2_8.Value, vbTextCompare)=0 Then\ncells(8,34) =cells(8,34)+vbNewLine+EnfoquePoblacional2_8.Value\nElse\n      MsgBox\" EL PARAMETRO SELECCIONADO YA HACEPARTE DE LACELDA\"\n End If\n  End IF\n End Sub",8,"Localidades2_8","Private Sub Localidades2_8_Change() \n if cells(8,35)=\"\" Then\n cells(8,35)=Localidades2_8.Value \nelse\n if  InStr(1,cells(8,35),Localidades2_8.Value, vbTextCompare)=0 Then\ncells(8,35) =cells(8,35)+vbNewLine+Localidades2_8.Value\nElse\n      MsgBox\" EL PARAMETRO SELECCIONADO YA HACEPARTE DE LACELDA\"\n End If\n  End IF\n End Sub",8,"EnfoquePoblacional3_8","Private Sub EnfoquePoblacional3_8_Change() \n if cells(8,42)=\"\" Then\n cells(8,42)=EnfoquePoblacional3_8.Value \nelse\n if  InStr(1,cells(8,42),EnfoquePoblacional3_8.Value, vbTextCompare)=0 Then\ncells(8,42) =cells(8,42)+vbNewLine+EnfoquePoblacional3_8.Value\nElse\n      MsgBox\" EL PARAMETRO SELECCIONADO YA HACEPARTE DE LACELDA\"\n End If\n  End IF\n End Sub",8,"Localidades3_8","Private Sub Localidades3_8_Change() \n if cells(8,43)=\"\" Then\n cells(8,43)=Localidades3_8.Value \nelse\n if  InStr(1,cells(8,43),Localidades3_8.Value, vbTextCompare)=0 Then\ncells(8,43) =cells(8,43)+vbNewLine+Localidades3_8.Value\nElse\n      MsgBox\" EL PARAMETRO SELECCIONADO YA HACEPARTE DE LACELDA\"\n End If\n  End IF\n End Sub",null,null,"Private Sub EnfoquePoblacional8_Change() \n if cells(8,18)=\"\" Then\n cells(8,18)=EnfoquePoblacional8.Value \nelse\n if  InStr(1,cells(8,18),EnfoquePoblacional8.Value, vbTextCompare)=0 Then\ncells(8,18) =cells(8,18)+vbNewLine+EnfoquePoblacional8.Value\nElse\n      MsgBox\" EL PARAMETRO SELECCIONADO YA HACEPARTE DE LACELDA\"\n End If\n  End IF\n End Sub",8,"Localidades8","Private Sub Localidades8_Change() \n if cells(8,19)=\"\" Then\n cells(8,19)=Localidades8.Value \nelse\n if  InStr(1,cells(8,19),Localidades8.Value, vbTextCompare)=0 Then\ncells(8,19) =cells(8,19)+vbNewLine+Localidades8.Value\nElse\n      MsgBox\" EL PARAMETRO SELECCIONADO YA HACEPARTE DE LACELDA\"\n End If\n  End IF\n End Sub",8,"EnfoquePoblacional1_8","Private Sub EnfoquePoblacional1_8_Change() \n if cells(8,26)=\"\" Then\n cells(8,26)=EnfoquePoblacional1_8.Value \nelse\n if  InStr(1,cells(8,26),EnfoquePoblacional1_8.Value, vbTextCompare)=0 Then\ncells(8,26) =cells(8,26)+vbNewLine+EnfoquePoblacional1_8.Value\nElse\n      MsgBox\" EL PARAMETRO SELECCIONADO YA HACEPARTE DE LACELDA\"\n End If\n  End IF\n End Sub",8,"Localidades1_8","Private Sub Localidades1_8_Change() \n if cells(8,27)=\"\" Then\n cells(8,27)=Localidades1_8.Value \nelse\n if  InStr(1,cells(8,27),Localidades1_8.Value, vbTextCompare)=0 Then\ncells(8,27) =cells(8,27)+vbNewLine+Localidades1_8.Value\nElse\n      MsgBox\" EL PARAMETRO SELECCIONADO YA HACEPARTE DE LACELDA\"\n End If\n  End IF\n End Sub",8,"EnfoquePoblacional2_8","Private Sub EnfoquePoblacional2_8_Change() \n if cells(8,34)=\"\" Then\n cells(8,34)=EnfoquePoblacional2_8.Value \nelse\n if  InStr(1,cells(8,34),EnfoquePoblacional2_8.Value, vbTextCompare)=0 Then\ncells(8,34) =cells(8,34)+vbNewLine+EnfoquePoblacional2_8.Value\nElse\n      MsgBox\" EL PARAMETRO SELECCIONADO YA HACEPARTE DE LACELDA\"\n End If\n  End IF\n End Sub",8,"Localidades2_8","Private Sub Localidades2_8_Change() \n if cells(8,35)=\"\" Then\n cells(8,35)=Localidades2_8.Value \nelse\n if  InStr(1,cells(8,35),Localidades2_8.Value, vbTextCompare)=0 Then\ncells(8,35) =cells(8,35)+vbNewLine+Localidades2_8.Value\nElse\n      MsgBox\" EL PARAMETRO SELECCIONADO YA HACEPARTE DE LACELDA\"\n End If\n  End IF\n End Sub",8,"EnfoquePoblacional3_8","Private Sub EnfoquePoblacional3_8_Change() \n if cells(8,42)=\"\" Then\n cells(8,42)=EnfoquePoblacional3_8.Value \nelse\n if  InStr(1,cells(8,42),EnfoquePoblacional3_8.Value, vbTextCompare)=0 Then\ncells(8,42) =cells(8,42)+vbNewLine+EnfoquePoblacional3_8.Value\nElse\n      MsgBox\" EL PARAMETRO SELECCIONADO YA HACEPARTE DE LACELDA\"\n End If\n  End IF\n End Sub",8,"Localidades3_8","Private Sub Localidades3_8_Change() \n if cells(8,43)=\"\" Then\n cells(8,43)=Localidades3_8.Value \nelse\n if  InStr(1,cells(8,43),Localidades3_8.Value, vbTextCompare)=0 Then\ncells(8,43) =cells(8,43)+vbNewLine+Localidades3_8.Value\nElse\n      MsgBox\" EL PARAMETRO SELECCIONADO YA HACEPARTE DE LACELDA\"\n End If\n  End IF\n End Sub"]
["     MsgBox \"EL PARAMETRO SELECCIONADO YA HACE PARTE DE LA CELDA\"",null,9,"EnfoquePoblacional9","Private Sub EnfoquePoblacional9_Change() \n if cells(9,18)=\"\" Then\n cells(9,18)=EnfoquePoblacional9.Value \nelse\n if  InStr(1,cells(9,18),EnfoquePoblacional9.Value, vbTextCompare)=0 Then\ncells(9,18) =cells(9,18)+vbNewLine+EnfoquePoblacional9.Value\nElse\n      MsgBox\" EL PARAMETRO SELECCIONADO YA HACEPARTE DE LACELDA\"\n End If\n  End IF\n End Sub",9,"Localidades9","Private Sub Localidades9_Change() \n if cells(9,19)=\"\" Then\n cells(9,19)=Localidades9.Value \nelse\n if  InStr(1,cells(9,19),Localidades9.Value, vbTextCompare)=0 Then\ncells(9,19) =cells(9,19)+vbNewLine+Localidades9.Value\nElse\n      MsgBox\" EL PARAMETRO SELECCIONADO YA HACEPARTE DE LACELDA\"\n End If\n  End IF\n End Sub",9,"EnfoquePoblacional1_9","Private Sub EnfoquePoblacional1_9_Change() \n if cells(9,26)=\"\" Then\n cells(9,26)=EnfoquePoblacional1_9.Value \nelse\n if  InStr(1,cells(9,26),EnfoquePoblacional1_9.Value, vbTextCompare)=0 Then\ncells(9,26) =cells(9,26)+vbNewLine+EnfoquePoblacional1_9.Value\nElse\n      MsgBox\" EL PARAMETRO SELECCIONADO YA HACEPARTE DE LACELDA\"\n End If\n  End IF\n End Sub",9,"Localidades1_9","Private Sub Localidades1_9_Change() \n if cells(9,27)=\"\" Then\n cells(9,27)=Localidades1_9.Value \nelse\n if  InStr(1,cells(9,27),Localidades1_9.Value, vbTextCompare)=0 Then\ncells(9,27) =cells(9,27)+vbNewLine+Localidades1_9.Value\nElse\n      MsgBox\" EL PARAMETRO SELECCIONADO YA HACEPARTE DE LACELDA\"\n End If\n  End IF\n End Sub",9,"EnfoquePoblacional2_9","Private Sub EnfoquePoblacional2_9_Change() \n if cells(9,34)=\"\" Then\n cells(9,34)=EnfoquePoblacional2_9.Value \nelse\n if  InStr(1,cells(9,34),EnfoquePoblacional2_9.Value, vbTextCompare)=0 Then\ncells(9,34) =cells(9,34)+vbNewLine+EnfoquePoblacional2_9.Value\nElse\n      MsgBox\" EL PARAMETRO SELECCIONADO YA HACEPARTE DE LACELDA\"\n End If\n  End IF\n End Sub",9,"Localidades2_9","Private Sub Localidades2_9_Change() \n if cells(9,35)=\"\" Then\n cells(9,35)=Localidades2_9.Value \nelse\n if  InStr(1,cells(9,35),Localidades2_9.Value, vbTextCompare)=0 Then\ncells(9,35) =cells(9,35)+vbNewLine+Localidades2_9.Value\nElse\n      MsgBox\" EL PARAMETRO SELECCIONADO YA HACEPARTE DE LACELDA\"\n End If\n  End IF\n End Sub",9,"EnfoquePoblacional3_9","Private Sub EnfoquePoblacional3_9_Change() \n if cells(9,42)=\"\" Then\n cells(9,42)=EnfoquePoblacional3_9.Value \nelse\n if  InStr(1,cells(9,42),EnfoquePoblacional3_9.Value, vbTextCompare)=0 Then\ncells(9,42) =cells(9,42)+vbNewLine+EnfoquePoblacional3_9.Value\nElse\n      MsgBox\" EL PARAMETRO SELECCIONADO YA HACEPARTE DE LACELDA\"\n End If\n  End IF\n End Sub",9,"Localidades3_9","Private Sub Localidades3_9_Change() \n if cells(9,43)=\"\" Then\n cells(9,43)=Localidades3_9.Value \nelse\n if  InStr(1,cells(9,43),Localidades3_9.Value, vbTextCompare)=0 Then\ncells(9,43) =cells(9,43)+vbNewLine+Localidades3_9.Value\nElse\n      MsgBox\" EL PARAMETRO SELECCIONADO YA HACEPARTE DE LACELDA\"\n End If\n  End IF\n End Sub",null,null,"Private Sub EnfoquePoblacional9_Change() \n if cells(9,18)=\"\" Then\n cells(9,18)=EnfoquePoblacional9.Value \nelse\n if  InStr(1,cells(9,18),EnfoquePoblacional9.Value, vbTextCompare)=0 Then\ncells(9,18) =cells(9,18)+vbNewLine+EnfoquePoblacional9.Value\nElse\n      MsgBox\" EL PARAMETRO SELECCIONADO YA HACEPARTE DE LACELDA\"\n End If\n  End IF\n End Sub",9,"Localidades9","Private Sub Localidades9_Change() \n if cells(9,19)=\"\" Then\n cells(9,19)=Localidades9.Value \nelse\n if  InStr(1,cells(9,19),Localidades9.Value, vbTextCompare)=0 Then\ncells(9,19) =cells(9,19)+vbNewLine+Localidades9.Value\nElse\n      MsgBox\" EL PARAMETRO SELECCIONADO YA HACEPARTE DE LACELDA\"\n End If\n  End IF\n End Sub",9,"EnfoquePoblacional1_9","Private Sub EnfoquePoblacional1_9_Change() \n if cells(9,26)=\"\" Then\n cells(9,26)=EnfoquePoblacional1_9.Value \nelse\n if  InStr(1,cells(9,26),EnfoquePoblacional1_9.Value, vbTextCompare)=0 Then\ncells(9,26) =cells(9,26)+vbNewLine+EnfoquePoblacional1_9.Value\nElse\n      MsgBox\" EL PARAMETRO SELECCIONADO YA HACEPARTE DE LACELDA\"\n End If\n  End IF\n End Sub",9,"Localidades1_9","Private Sub Localidades1_9_Change() \n if cells(9,27)=\"\" Then\n cells(9,27)=Localidades1_9.Value \nelse\n if  InStr(1,cells(9,27),Localidades1_9.Value, vbTextCompare)=0 Then\ncells(9,27) =cells(9,27)+vbNewLine+Localidades1_9.Value\nElse\n      MsgBox\" EL PARAMETRO SELECCIONADO YA HACEPARTE DE LACELDA\"\n End If\n  End IF\n End Sub",9,"EnfoquePoblacional2_9","Private Sub EnfoquePoblacional2_9_Change() \n if cells(9,34)=\"\" Then\n cells(9,34)=EnfoquePoblacional2_9.Value \nelse\n if  InStr(1,cells(9,34),EnfoquePoblacional2_9.Value, vbTextCompare)=0 Then\ncells(9,34) =cells(9,34)+vbNewLine+EnfoquePoblacional2_9.Value\nElse\n      MsgBox\" EL PARAMETRO SELECCIONADO YA HACEPARTE DE LACELDA\"\n End If\n  End IF\n End Sub",9,"Localidades2_9","Private Sub Localidades2_9_Change() \n if cells(9,35)=\"\" Then\n cells(9,35)=Localidades2_9.Value \nelse\n if  InStr(1,cells(9,35),Localidades2_9.Value, vbTextCompare)=0 Then\ncells(9,35) =cells(9,35)+vbNewLine+Localidades2_9.Value\nElse\n      MsgBox\" EL PARAMETRO SELECCIONADO YA HACEPARTE DE LACELDA\"\n End If\n  End IF\n End Sub",9,"EnfoquePoblacional3_9","Private Sub EnfoquePoblacional3_9_Change() \n if cells(9,42)=\"\" Then\n cells(9,42)=EnfoquePoblacional3_9.Value \nelse\n if  InStr(1,cells(9,42),EnfoquePoblacional3_9.Value, vbTextCompare)=0 Then\ncells(9,42) =cells(9,42)+vbNewLine+EnfoquePoblacional3_9.Value\nElse\n      MsgBox\" EL PARAMETRO SELECCIONADO YA HACEPARTE DE LACELDA\"\n End If\n  End IF\n End Sub",9,"Localidades3_9","Private Sub Localidades3_9_Change() \n if cells(9,43)=\"\" Then\n cells(9,43)=Localidades3_9.Value \nelse\n if  InStr(1,cells(9,43),Localidades3_9.Value, vbTextCompare)=0 Then\ncells(9,43) =cells(9,43)+vbNewLine+Localidades3_9.Value\nElse\n      MsgBox\" EL PARAMETRO SELECCIONADO YA HACEPARTE DE LACELDA\"\n End If\n  End IF\n End Sub"]
["    End If",null,10,"EnfoquePoblacional10","Private Sub EnfoquePoblacional10_Change() \n if cells(10,18)=\"\" Then\n cells(10,18)=EnfoquePoblacional10.Value \nelse\n if  InStr(1,cells(10,18),EnfoquePoblacional10.Value, vbTextCompare)=0 Then\ncells(10,18) =cells(10,18)+vbNewLine+EnfoquePoblacional10.Value\nElse\n      MsgBox\" EL PARAMETRO SELECCIONADO YA HACEPARTE DE LACELDA\"\n End If\n  End IF\n End Sub",10,"Localidades10","Private Sub Localidades10_Change() \n if cells(10,19)=\"\" Then\n cells(10,19)=Localidades10.Value \nelse\n if  InStr(1,cells(10,19),Localidades10.Value, vbTextCompare)=0 Then\ncells(10,19) =cells(10,19)+vbNewLine+Localidades10.Value\nElse\n      MsgBox\" EL PARAMETRO SELECCIONADO YA HACEPARTE DE LACELDA\"\n End If\n  End IF\n End Sub",10,"EnfoquePoblacional1_10","Private Sub EnfoquePoblacional1_10_Change() \n if cells(10,26)=\"\" Then\n cells(10,26)=EnfoquePoblacional1_10.Value \nelse\n if  InStr(1,cells(10,26),EnfoquePoblacional1_10.Value, vbTextCompare)=0 Then\ncells(10,26) =cells(10,26)+vbNewLine+EnfoquePoblacional1_10.Value\nElse\n      MsgBox\" EL PARAMETRO SELECCIONADO YA HACEPARTE DE LACELDA\"\n End If\n  End IF\n End Sub",10,"Localidades1_10","Private Sub Localidades1_10_Change() \n if cells(10,27)=\"\" Then\n cells(10,27)=Localidades1_10.Value \nelse\n if  InStr(1,cells(10,27),Localidades1_10.Value, vbTextCompare)=0 Then\ncells(10,27) =cells(10,27)+vbNewLine+Localidades1_10.Value\nElse\n      MsgBox\" EL PARAMETRO SELECCIONADO YA HACEPARTE DE LACELDA\"\n End If\n  End IF\n End Sub",10,"EnfoquePoblacional2_10","Private Sub EnfoquePoblacional2_10_Change() \n if cells(10,34)=\"\" Then\n cells(10,34)=EnfoquePoblacional2_10.Value \nelse\n if  InStr(1,cells(10,34),EnfoquePoblacional2_10.Value, vbTextCompare)=0 Then\ncells(10,34) =cells(10,34)+vbNewLine+EnfoquePoblacional2_10.Value\nElse\n      MsgBox\" EL PARAMETRO SELECCIONADO YA HACEPARTE DE LACELDA\"\n End If\n  End IF\n End Sub",10,"Localidades2_10","Private Sub Localidades2_10_Change() \n if cells(10,35)=\"\" Then\n cells(10,35)=Localidades2_10.Value \nelse\n if  InStr(1,cells(10,35),Localidades2_10.Value, vbTextCompare)=0 Then\ncells(10,35) =cells(10,35)+vbNewLine+Localidades2_10.Value\nElse\n      MsgBox\" EL PARAMETRO SELECCIONADO YA HACEPARTE DE LACELDA\"\n End If\n  End IF\n End Sub",10,"EnfoquePoblacional3_10","Private Sub EnfoquePoblacional3_10_Change() \n if cells(10,42)=\"\" Then\n cells(10,42)=EnfoquePoblacional3_10.Value \nelse\n if  InStr(1,cells(10,42),EnfoquePoblacional3_10.Value, vbTextCompare)=0 Then\ncells(10,42) =cells(10,42)+vbNewLine+EnfoquePoblacional3_10.Value\nElse\n      MsgBox\" EL PARAMETRO SELECCIONADO YA HACEPARTE DE LACELDA\"\n End If\n  End IF\n End Sub",10,"Localidades3_10","Private Sub Localidades3_10_Change() \n if cells(10,43)=\"\" Then\n cells(10,43)=Localidades3_10.Value \nelse\n if  InStr(1,cells(10,43),Localidades3_10.Value, vbTextCompare)=0 Then\ncells(10,43) =cells(10,43)+vbNewLine+Localidades3_10.Value\nElse\n      MsgBox\" EL PARAMETRO SELECCIONADO YA HACEPARTE DE LACELDA\"\n End If\n  End IF\n End Sub",null,null,"Private Sub EnfoquePoblacional10_Change() \n if cells(10,18)=\"\" Then\n cells(10,18)=EnfoquePoblacional10.Value \nelse\n if  InStr(1,cells(10,18),EnfoquePoblacional10.Value, vbTextCompare)=0 Then\ncells(10,18) =cells(10,18)+vbNewLine+EnfoquePoblacional10.Value\nElse\n      MsgBox\" EL PARAMETRO SELECCIONADO YA HACEPARTE DE LACELDA\"\n End If\n  End IF\n End Sub",10,"Localidades10","Private Sub Localidades10_Change() \n if cells(10,19)=\"\" Then\n cells(10,19)=Localidades10.Value \nelse\n if  InStr(1,cells(10,19),Localidades10.Value, vbTextCompare)=0 Then\ncells(10,19) =cells(10,19)+vbNewLine+Localidades10.Value\nElse\n      MsgBox\" EL PARAMETRO SELECCIONADO YA HACEPARTE DE LACELDA\"\n End If\n  End IF\n End Sub",10,"EnfoquePoblacional1_10","Private Sub EnfoquePoblacional1_10_Change() \n if cells(10,26)=\"\" Then\n cells(10,26)=EnfoquePoblacional1_10.Value \nelse\n if  InStr(1,cells(10,26),EnfoquePoblacional1_10.Value, vbTextCompare)=0 Then\ncells(10,26) =cells(10,26)+vbNewLine+EnfoquePoblacional1_10.Value\nElse\n      MsgBox\" EL PARAMETRO SELECCIONADO YA HACEPARTE DE LACELDA\"\n End If\n  End IF\n End Sub",10,"Localidades1_10","Private Sub Localidades1_10_Change() \n if cells(10,27)=\"\" Then\n cells(10,27)=Localidades1_10.Value \nelse\n if  InStr(1,cells(10,27),Localidades1_10.Value, vbTextCompare)=0 Then\ncells(10,27) =cells(10,27)+vbNewLine+Localidades1_10.Value\nElse\n      MsgBox\" EL PARAMETRO SELECCIONADO YA HACEPARTE DE LACELDA\"\n End If\n  End IF\n End Sub",10,"EnfoquePoblacional2_10","Private Sub EnfoquePoblacional2_10_Change() \n if cells(10,34)=\"\" Then\n cells(10,34)=EnfoquePoblacional2_10.Value \nelse\n if  InStr(1,cells(10,34),EnfoquePoblacional2_10.Value, vbTextCompare)=0 Then\ncells(10,34) =cells(10,34)+vbNewLine+EnfoquePoblacional2_10.Value\nElse\n      MsgBox\" EL PARAMETRO SELECCIONADO YA HACEPARTE DE LACELDA\"\n End If\n  End IF\n End Sub",10,"Localidades2_10","Private Sub Localidades2_10_Change() \n if cells(10,35)=\"\" Then\n cells(10,35)=Localidades2_10.Value \nelse\n if  InStr(1,cells(10,35),Localidades2_10.Value, vbTextCompare)=0 Then\ncells(10,35) =cells(10,35)+vbNewLine+Localidades2_10.Value\nElse\n      MsgBox\" EL PARAMETRO SELECCIONADO YA HACEPARTE DE LACELDA\"\n End If\n  End IF\n End Sub",10,"EnfoquePoblacional3_10","Private Sub EnfoquePoblacional3_10_Change() \n if cells(10,42)=\"\" Then\n cells(10,42)=EnfoquePoblacional3_10.Value \nelse\n if  InStr(1,cells(10,42),EnfoquePoblacional3_10.Value, vbTextCompare)=0 Then\ncells(10,42) =cells(10,42)+vbNewLine+EnfoquePoblacional3_10.Value\nElse\n      MsgBox\" EL PARAMETRO SELECCIONADO YA HACEPARTE DE LACELDA\"\n End If\n  End IF\n End Sub",10,"Localidades3_10","Private Sub Localidades3_10_Change() \n if cells(10,43)=\"\" Then\n cells(10,43)=Localidades3_10.Value \nelse\n if  InStr(1,cells(10,43),Localidades3_10.Value, vbTextCompare)=0 Then\ncells(10,43) =cells(10,43)+vbNewLine+Localidades3_10.Value\nElse\n      MsgBox\" EL PARAMETRO SELECCIONADO YA HACEPARTE DE LACELDA\"\n End If\n  End IF\n End Sub"]
["End If",null,11,"EnfoquePoblacional11","Private Sub EnfoquePoblacional11_Change() \n if cells(11,18)=\"\" Then\n cells(11,18)=EnfoquePoblacional11.Value \nelse\n if  InStr(1,cells(11,18),EnfoquePoblacional11.Value, vbTextCompare)=0 Then\ncells(11,18) =cells(11,18)+vbNewLine+EnfoquePoblacional11.Value\nElse\n      MsgBox\" EL PARAMETRO SELECCIONADO YA HACEPARTE DE LACELDA\"\n End If\n  End IF\n End Sub",11,"Localidades11","Private Sub Localidades11_Change() \n if cells(11,19)=\"\" Then\n cells(11,19)=Localidades11.Value \nelse\n if  InStr(1,cells(11,19),Localidades11.Value, vbTextCompare)=0 Then\ncells(11,19) =cells(11,19)+vbNewLine+Localidades11.Value\nElse\n      MsgBox\" EL PARAMETRO SELECCIONADO YA HACEPARTE DE LACELDA\"\n End If\n  End IF\n End Sub",11,"EnfoquePoblacional1_11","Private Sub EnfoquePoblacional1_11_Change() \n if cells(11,26)=\"\" Then\n cells(11,26)=EnfoquePoblacional1_11.Value \nelse\n if  InStr(1,cells(11,26),EnfoquePoblacional1_11.Value, vbTextCompare)=0 Then\ncells(11,26) =cells(11,26)+vbNewLine+EnfoquePoblacional1_11.Value\nElse\n      MsgBox\" EL PARAMETRO SELECCIONADO YA HACEPARTE DE LACELDA\"\n End If\n  End IF\n End Sub",11,"Localidades1_11","Private Sub Localidades1_11_Change() \n if cells(11,27)=\"\" Then\n cells(11,27)=Localidades1_11.Value \nelse\n if  InStr(1,cells(11,27),Localidades1_11.Value, vbTextCompare)=0 Then\ncells(11,27) =cells(11,27)+vbNewLine+Localidades1_11.Value\nElse\n      MsgBox\" EL PARAMETRO SELECCIONADO YA HACEPARTE DE LACELDA\"\n End If\n  End IF\n End Sub",11,"EnfoquePoblacional2_11","Private Sub EnfoquePoblacional2_11_Change() \n if cells(11,34)=\"\" Then\n cells(11,34)=EnfoquePoblacional2_11.Value \nelse\n if  InStr(1,cells(11,34),EnfoquePoblacional2_11.Value, vbTextCompare)=0 Then\ncells(11,34) =cells(11,34)+vbNewLine+EnfoquePoblacional2_11.Value\nElse\n      MsgBox\" EL PARAMETRO SELECCIONADO YA HACEPARTE DE LACELDA\"\n End If\n  End IF\n End Sub",11,"Localidades2_11","Private Sub Localidades2_11_Change() \n if cells(11,35)=\"\" Then\n cells(11,35)=Localidades2_11.Value \nelse\n if  InStr(1,cells(11,35),Localidades2_11.Value, vbTextCompare)=0 Then\ncells(11,35) =cells(11,35)+vbNewLine+Localidades2_11.Value\nElse\n      MsgBox\" EL PARAMETRO SELECCIONADO YA HACEPARTE DE LACELDA\"\n End If\n  End IF\n End Sub",11,"EnfoquePoblacional3_11","Private Sub EnfoquePoblacional3_11_Change() \n if cells(11,42)=\"\" Then\n cells(11,42)=EnfoquePoblacional3_11.Value \nelse\n if  InStr(1,cells(11,42),EnfoquePoblacional3_11.Value, vbTextCompare)=0 Then\ncells(11,42) =cells(11,42)+vbNewLine+EnfoquePoblacional3_11.Value\nElse\n      MsgBox\" EL PARAMETRO SELECCIONADO YA HACEPARTE DE LACELDA\"\n End If\n  End IF\n End Sub",11,"Localidades3_11","Private Sub Localidades3_11_Change() \n if cells(11,43)=\"\" Then\n cells(11,43)=Localidades3_11.Value \nelse\n if  InStr(1,cells(11,43),Localidades3_11.Value, vbTextCompare)=0 Then\ncells(11,43) =cells(11,43)+vbNewLine+Localidades3_11.Value\nElse\n      MsgBox\" EL PARAMETRO SELECCIONADO YA HACEPARTE DE LACELDA\"\n End If\n  End IF\n End Sub",null,null,"Private Sub EnfoquePoblacional11_Change() \n if cells(11,18)=\"\" Then\n cells(11,18)=EnfoquePoblacional11.Value \nelse\n if  InStr(1,cells(11,18),EnfoquePoblacional11.Value, vbTextCompare)=0 Then\ncells(11,18) =cells(11,18)+vbNewLine+EnfoquePoblacional11.Value\nElse\n      MsgBox\" EL PARAMETRO SELECCIONADO YA HACEPARTE DE LACELDA\"\n End If\n  End IF\n End Sub",11,"Localidades11","Private Sub Localidades11_Change() \n if cells(11,19)=\"\" Then\n cells(11,19)=Localidades11.Value \nelse\n if  InStr(1,cells(11,19),Localidades11.Value, vbTextCompare)=0 Then\ncells(11,19) =cells(11,19)+vbNewLine+Localidades11.Value\nElse\n      MsgBox\" EL PARAMETRO SELECCIONADO YA HACEPARTE DE LACELDA\"\n End If\n  End IF\n End Sub",11,"EnfoquePoblacional1_11","Private Sub EnfoquePoblacional1_11_Change() \n if cells(11,26)=\"\" Then\n cells(11,26)=EnfoquePoblacional1_11.Value \nelse\n if  InStr(1,cells(11,26),EnfoquePoblacional1_11.Value, vbTextCompare)=0 Then\ncells(11,26) =cells(11,26)+vbNewLine+EnfoquePoblacional1_11.Value\nElse\n      MsgBox\" EL PARAMETRO SELECCIONADO YA HACEPARTE DE LACELDA\"\n End If\n  End IF\n End Sub",11,"Localidades1_11","Private Sub Localidades1_11_Change() \n if cells(11,27)=\"\" Then\n cells(11,27)=Localidades1_11.Value \nelse\n if  InStr(1,cells(11,27),Localidades1_11.Value, vbTextCompare)=0 Then\ncells(11,27) =cells(11,27)+vbNewLine+Localidades1_11.Value\nElse\n      MsgBox\" EL PARAMETRO SELECCIONADO YA HACEPARTE DE LACELDA\"\n End If\n  End IF\n End Sub",11,"EnfoquePoblacional2_11","Private Sub EnfoquePoblacional2_11_Change() \n if cells(11,34)=\"\" Then\n cells(11,34)=EnfoquePoblacional2_11.Value \nelse\n if  InStr(1,cells(11,34),EnfoquePoblacional2_11.Value, vbTextCompare)=0 Then\ncells(11,34) =cells(11,34)+vbNewLine+EnfoquePoblacional2_11.Value\nElse\n      MsgBox\" EL PARAMETRO SELECCIONADO YA HACEPARTE DE LACELDA\"\n End If\n  End IF\n End Sub",11,"Localidades2_11","Private Sub Localidades2_11_Change() \n if cells(11,35)=\"\" Then\n cells(11,35)=Localidades2_11.Value \nelse\n if  InStr(1,cells(11,35),Localidades2_11.Value, vbTextCompare)=0 Then\ncells(11,35) =cells(11,35)+vbNewLine+Localidades2_11.Value\nElse\n      MsgBox\" EL PARAMETRO SELECCIONADO YA HACEPARTE DE LACELDA\"\n End If\n  End IF\n End Sub",11,"EnfoquePoblacional3_11","Private Sub EnfoquePoblacional3_11_Change() \n if cells(11,42)=\"\" Then\n cells(11,42)=EnfoquePoblacional3_11.Value \nelse\n if  InStr(1,cells(11,42),EnfoquePoblacional3_11.Value, vbTextCompare)=0 Then\ncells(11,42) =cells(11,42)+vbNewLine+EnfoquePoblacional3_11.Value\nElse\n      MsgBox\" EL PARAMETRO SELECCIONADO YA HACEPARTE DE LACELDA\"\n End If\n  End IF\n End Sub",11,"Localidades3_11","Private Sub Localidades3_11_Change() \n if cells(11,43)=\"\" Then\n cells(11,43)=Localidades3_11.Value \nelse\n if  InStr(1,cells(11,43),Localidades3_11.Value, vbTextCompare)=0 Then\ncells(11,43) =cells(11,43)+vbNewLine+Localidades3_11.Value\nElse\n      MsgBox\" EL PARAMETRO SELECCIONADO YA HACEPARTE DE LACELDA\"\n End If\n  End IF\n End Sub"]
["End Sub",null,12,"EnfoquePoblacional12","Private Sub EnfoquePoblacional12_Change() \n if cells(12,18)=\"\" Then\n cells(12,18)=EnfoquePoblacional12.Value \nelse\n if  InStr(1,cells(12,18),EnfoquePoblacional12.Value, vbTextCompare)=0 Then\ncells(12,18) =cells(12,18)+vbNewLine+EnfoquePoblacional12.Value\nElse\n      MsgBox\" EL PARAMETRO SELECCIONADO YA HACEPARTE DE LACELDA\"\n End If\n  End IF\n End Sub",12,"Localidades12","Private Sub Localidades12_Change() \n if cells(12,19)=\"\" Then\n cells(12,19)=Localidades12.Value \nelse\n if  InStr(1,cells(12,19),Localidades12.Value, vbTextCompare)=0 Then\ncells(12,19) =cells(12,19)+vbNewLine+Localidades12.Value\nElse\n      MsgBox\" EL PARAMETRO SELECCIONADO YA HACEPARTE DE LACELDA\"\n End If\n  End IF\n End Sub",12,"EnfoquePoblacional1_12","Private Sub EnfoquePoblacional1_12_Change() \n if cells(12,26)=\"\" Then\n cells(12,26)=EnfoquePoblacional1_12.Value \nelse\n if  InStr(1,cells(12,26),EnfoquePoblacional1_12.Value, vbTextCompare)=0 Then\ncells(12,26) =cells(12,26)+vbNewLine+EnfoquePoblacional1_12.Value\nElse\n      MsgBox\" EL PARAMETRO SELECCIONADO YA HACEPARTE DE LACELDA\"\n End If\n  End IF\n End Sub",12,"Localidades1_12","Private Sub Localidades1_12_Change() \n if cells(12,27)=\"\" Then\n cells(12,27)=Localidades1_12.Value \nelse\n if  InStr(1,cells(12,27),Localidades1_12.Value, vbTextCompare)=0 Then\ncells(12,27) =cells(12,27)+vbNewLine+Localidades1_12.Value\nElse\n      MsgBox\" EL PARAMETRO SELECCIONADO YA HACEPARTE DE LACELDA\"\n End If\n  End IF\n End Sub",12,"EnfoquePoblacional2_12","Private Sub EnfoquePoblacional2_12_Change() \n if cells(12,34)=\"\" Then\n cells(12,34)=EnfoquePoblacional2_12.Value \nelse\n if  InStr(1,cells(12,34),EnfoquePoblacional2_12.Value, vbTextCompare)=0 Then\ncells(12,34) =cells(12,34)+vbNewLine+EnfoquePoblacional2_12.Value\nElse\n      MsgBox\" EL PARAMETRO SELECCIONADO YA HACEPARTE DE LACELDA\"\n End If\n  End IF\n End Sub",12,"Localidades2_12","Private Sub Localidades2_12_Change() \n if cells(12,35)=\"\" Then\n cells(12,35)=Localidades2_12.Value \nelse\n if  InStr(1,cells(12,35),Localidades2_12.Value, vbTextCompare)=0 Then\ncells(12,35) =cells(12,35)+vbNewLine+Localidades2_12.Value\nElse\n      MsgBox\" EL PARAMETRO SELECCIONADO YA HACEPARTE DE LACELDA\"\n End If\n  End IF\n End Sub",12,"EnfoquePoblacional3_12","Private Sub EnfoquePoblacional3_12_Change() \n if cells(12,42)=\"\" Then\n cells(12,42)=EnfoquePoblacional3_12.Value \nelse\n if  InStr(1,cells(12,42),EnfoquePoblacional3_12.Value, vbTextCompare)=0 Then\ncells(12,42) =cells(12,42)+vbNewLine+EnfoquePoblacional3_12.Value\nElse\n      MsgBox\" EL PARAMETRO SELECCIONADO YA HACEPARTE DE LACELDA\"\n End If\n  End IF\n End Sub",12,"Localidades3_12","Private Sub Localidades3_12_Change() \n if cells(12,43)=\"\" Then\n cells(12,43)=Localidades3_12.Value \nelse\n if  InStr(1,cells(12,43),Localidades3_12.Value, vbTextCompare)=0 Then\ncells(12,43) =cells(12,43)+vbNewLine+Localidades3_12.Value\nElse\n      MsgBox\" EL PARAMETRO SELECCIONADO YA HACEPARTE DE LACELDA\"\n End If\n  End IF\n End Sub",null,null,"Private Sub EnfoquePoblacional12_Change() \n if cells(12,18)=\"\" Then\n cells(12,18)=EnfoquePoblacional12.Value \nelse\n if  InStr(1,cells(12,18),EnfoquePoblacional12.Value, vbTextCompare)=0 Then\ncells(12,18) =cells(12,18)+vbNewLine+EnfoquePoblacional12.Value\nElse\n      MsgBox\" EL PARAMETRO SELECCIONADO YA HACEPARTE DE LACELDA\"\n End If\n  End IF\n End Sub",12,"Localidades12","Private Sub Localidades12_Change() \n if cells(12,19)=\"\" Then\n cells(12,19)=Localidades12.Value \nelse\n if  InStr(1,cells(12,19),Localidades12.Value, vbTextCompare)=0 Then\ncells(12,19) =cells(12,19)+vbNewLine+Localidades12.Value\nElse\n      MsgBox\" EL PARAMETRO SELECCIONADO YA HACEPARTE DE LACELDA\"\n End If\n  End IF\n End Sub",12,"EnfoquePoblacional1_12","Private Sub EnfoquePoblacional1_12_Change() \n if cells(12,26)=\"\" Then\n cells(12,26)=EnfoquePoblacional1_12.Value \nelse\n if  InStr(1,cells(12,26),EnfoquePoblacional1_12.Value, vbTextCompare)=0 Then\ncells(12,26) =cells(12,26)+vbNewLine+EnfoquePoblacional1_12.Value\nElse\n      MsgBox\" EL PARAMETRO SELECCIONADO YA HACEPARTE DE LACELDA\"\n End If\n  End IF\n End Sub",12,"Localidades1_12","Private Sub Localidades1_12_Change() \n if cells(12,27)=\"\" Then\n cells(12,27)=Localidades1_12.Value \nelse\n if  InStr(1,cells(12,27),Localidades1_12.Value, vbTextCompare)=0 Then\ncells(12,27) =cells(12,27)+vbNewLine+Localidades1_12.Value\nElse\n      MsgBox\" EL PARAMETRO SELECCIONADO YA HACEPARTE DE LACELDA\"\n End If\n  End IF\n End Sub",12,"EnfoquePoblacional2_12","Private Sub EnfoquePoblacional2_12_Change() \n if cells(12,34)=\"\" Then\n cells(12,34)=EnfoquePoblacional2_12.Value \nelse\n if  InStr(1,cells(12,34),EnfoquePoblacional2_12.Value, vbTextCompare)=0 Then\ncells(12,34) =cells(12,34)+vbNewLine+EnfoquePoblacional2_12.Value\nElse\n      MsgBox\" EL PARAMETRO SELECCIONADO YA HACEPARTE DE LACELDA\"\n End If\n  End IF\n End Sub",12,"Localidades2_12","Private Sub Localidades2_12_Change() \n if cells(12,35)=\"\" Then\n cells(12,35)=Localidades2_12.Value \nelse\n if  InStr(1,cells(12,35),Localidades2_12.Value, vbTextCompare)=0 Then\ncells(12,35) =cells(12,35)+vbNewLine+Localidades2_12.Value\nElse\n      MsgBox\" EL PARAMETRO SELECCIONADO YA HACEPARTE DE LACELDA\"\n End If\n  End IF\n End Sub",12,"EnfoquePoblacional3_12","Private Sub EnfoquePoblacional3_12_Change() \n if cells(12,42)=\"\" Then\n cells(12,42)=EnfoquePoblacional3_12.Value \nelse\n if  InStr(1,cells(12,42),EnfoquePoblacional3_12.Value, vbTextCompare)=0 Then\ncells(12,42) =cells(12,42)+vbNewLine+EnfoquePoblacional3_12.Value\nElse\n      MsgBox\" EL PARAMETRO SELECCIONADO YA HACEPARTE DE LACELDA\"\n End If\n  End IF\n End Sub",12,"Localidades3_12","Private Sub Localidades3_12_Change() \n if cells(12,43)=\"\" Then\n cells(12,43)=Localidades3_12.Value \nelse\n if  InStr(1,cells(12,43),Localidades3_12.Value, vbTextCompare)=0 Then\ncells(12,43) =cells(12,43)+vbNewLine+Localidades3_12.Value\nElse\n      MsgBox\" EL PARAMETRO SELECCIONADO YA HACEPARTE DE LACELDA\"\n End If\n  End IF\n End Sub"]
[null,null,13,"EnfoquePoblacional13","Private Sub EnfoquePoblacional13_Change() \n if cells(13,18)=\"\" Then\n cells(13,18)=EnfoquePoblacional13.Value \nelse\n if  InStr(1,cells(13,18),EnfoquePoblacional13.Value, vbTextCompare)=0 Then\ncells(13,18) =cells(13,18)+vbNewLine+EnfoquePoblacional13.Value\nElse\n      MsgBox\" EL PARAMETRO SELECCIONADO YA HACEPARTE DE LACELDA\"\n End If\n  End IF\n End Sub",13,"Localidades13","Private Sub Localidades13_Change() \n if cells(13,19)=\"\" Then\n cells(13,19)=Localidades13.Value \nelse\n if  InStr(1,cells(13,19),Localidades13.Value, vbTextCompare)=0 Then\ncells(13,19) =cells(13,19)+vbNewLine+Localidades13.Value\nElse\n      MsgBox\" EL PARAMETRO SELECCIONADO YA HACEPARTE DE LACELDA\"\n End If\n  End IF\n End Sub",13,"EnfoquePoblacional1_13","Private Sub EnfoquePoblacional1_13_Change() \n if cells(13,26)=\"\" Then\n cells(13,26)=EnfoquePoblacional1_13.Value \nelse\n if  InStr(1,cells(13,26),EnfoquePoblacional1_13.Value, vbTextCompare)=0 Then\ncells(13,26) =cells(13,26)+vbNewLine+EnfoquePoblacional1_13.Value\nElse\n      MsgBox\" EL PARAMETRO SELECCIONADO YA HACEPARTE DE LACELDA\"\n End If\n  End IF\n End Sub",13,"Localidades1_13","Private Sub Localidades1_13_Change() \n if cells(13,27)=\"\" Then\n cells(13,27)=Localidades1_13.Value \nelse\n if  InStr(1,cells(13,27),Localidades1_13.Value, vbTextCompare)=0 Then\ncells(13,27) =cells(13,27)+vbNewLine+Localidades1_13.Value\nElse\n      MsgBox\" EL PARAMETRO SELECCIONADO YA HACEPARTE DE LACELDA\"\n End If\n  End IF\n End Sub",13,"EnfoquePoblacional2_13","Private Sub EnfoquePoblacional2_13_Change() \n if cells(13,34)=\"\" Then\n cells(13,34)=EnfoquePoblacional2_13.Value \nelse\n if  InStr(1,cells(13,34),EnfoquePoblacional2_13.Value, vbTextCompare)=0 Then\ncells(13,34) =cells(13,34)+vbNewLine+EnfoquePoblacional2_13.Value\nElse\n      MsgBox\" EL PARAMETRO SELECCIONADO YA HACEPARTE DE LACELDA\"\n End If\n  End IF\n End Sub",13,"Localidades2_13","Private Sub Localidades2_13_Change() \n if cells(13,35)=\"\" Then\n cells(13,35)=Localidades2_13.Value \nelse\n if  InStr(1,cells(13,35),Localidades2_13.Value, vbTextCompare)=0 Then\ncells(13,35) =cells(13,35)+vbNewLine+Localidades2_13.Value\nElse\n      MsgBox\" EL PARAMETRO SELECCIONADO YA HACEPARTE DE LACELDA\"\n End If\n  End IF\n End Sub",13,"EnfoquePoblacional3_13","Private Sub EnfoquePoblacional3_13_Change() \n if cells(13,42)=\"\" Then\n cells(13,42)=EnfoquePoblacional3_13.Value \nelse\n if  InStr(1,cells(13,42),EnfoquePoblacional3_13.Value, vbTextCompare)=0 Then\ncells(13,42) =cells(13,42)+vbNewLine+EnfoquePoblacional3_13.Value\nElse\n      MsgBox\" EL PARAMETRO SELECCIONADO YA HACEPARTE DE LACELDA\"\n End If\n  End IF\n End Sub",13,"Localidades3_13","Private Sub Localidades3_13_Change() \n if cells(13,43)=\"\" Then\n cells(13,43)=Localidades3_13.Value \nelse\n if  InStr(1,cells(13,43),Localidades3_13.Value, vbTextCompare)=0 Then\ncells(13,43) =cells(13,43)+vbNewLine+Localidades3_13.Value\nElse\n      MsgBox\" EL PARAMETRO SELECCIONADO YA HACEPARTE DE LACELDA\"\n End If\n  End IF\n End Sub",null,null,"Private Sub EnfoquePoblacional13_Change() \n if cells(13,18)=\"\" Then\n cells(13,18)=EnfoquePoblacional13.Value \nelse\n if  InStr(1,cells(13,18),EnfoquePoblacional13.Value, vbTextCompare)=0 Then\ncells(13,18) =cells(13,18)+vbNewLine+EnfoquePoblacional13.Value\nElse\n      MsgBox\" EL PARAMETRO SELECCIONADO YA HACEPARTE DE LACELDA\"\n End If\n  End IF\n End Sub",13,"Localidades13","Private Sub Localidades13_Change() \n if cells(13,19)=\"\" Then\n cells(13,19)=Localidades13.Value \nelse\n if  InStr(1,cells(13,19),Localidades13.Value, vbTextCompare)=0 Then\ncells(13,19) =cells(13,19)+vbNewLine+Localidades13.Value\nElse\n      MsgBox\" EL PARAMETRO SELECCIONADO YA HACEPARTE DE LACELDA\"\n End If\n  End IF\n End Sub",13,"EnfoquePoblacional1_13","Private Sub EnfoquePoblacional1_13_Change() \n if cells(13,26)=\"\" Then\n cells(13,26)=EnfoquePoblacional1_13.Value \nelse\n if  InStr(1,cells(13,26),EnfoquePoblacional1_13.Value, vbTextCompare)=0 Then\ncells(13,26) =cells(13,26)+vbNewLine+EnfoquePoblacional1_13.Value\nElse\n      MsgBox\" EL PARAMETRO SELECCIONADO YA HACEPARTE DE LACELDA\"\n End If\n  End IF\n End Sub",13,"Localidades1_13","Private Sub Localidades1_13_Change() \n if cells(13,27)=\"\" Then\n cells(13,27)=Localidades1_13.Value \nelse\n if  InStr(1,cells(13,27),Localidades1_13.Value, vbTextCompare)=0 Then\ncells(13,27) =cells(13,27)+vbNewLine+Localidades1_13.Value\nElse\n      MsgBox\" EL PARAMETRO SELECCIONADO YA HACEPARTE DE LACELDA\"\n End If\n  End IF\n End Sub",13,"EnfoquePoblacional2_13","Private Sub EnfoquePoblacional2_13_Change() \n if cells(13,34)=\"\" Then\n cells(13,34)=EnfoquePoblacional2_13.Value \nelse\n if  InStr(1,cells(13,34),EnfoquePoblacional2_13.Value, vbTextCompare)=0 Then\ncells(13,34) =cells(13,34)+vbNewLine+EnfoquePoblacional2_13.Value\nElse\n      MsgBox\" EL PARAMETRO SELECCIONADO YA HACEPARTE DE LACELDA\"\n End If\n  End IF\n End Sub",13,"Localidades2_13","Private Sub Localidades2_13_Change() \n if cells(13,35)=\"\" Then\n cells(13,35)=Localidades2_13.Value \nelse\n if  InStr(1,cells(13,35),Localidades2_13.Value, vbTextCompare)=0 Then\ncells(13,35) =cells(13,35)+vbNewLine+Localidades2_13.Value\nElse\n      MsgBox\" EL PARAMETRO SELECCIONADO YA HACEPARTE DE LACELDA\"\n End If\n  End IF\n End Sub",13,"EnfoquePoblacional3_13","Private Sub EnfoquePoblacional3_13_Change() \n if cells(13,42)=\"\" Then\n cells(13,42)=EnfoquePoblacional3_13.Value \nelse\n if  InStr(1,cells(13,42),EnfoquePoblacional3_13.Value, vbTextCompare)=0 Then\ncells(13,42) =cells(13,42)+vbNewLine+EnfoquePoblacional3_13.Value\nElse\n      MsgBox\" EL PARAMETRO SELECCIONADO YA HACEPARTE DE LACELDA\"\n End If\n  End IF\n End Sub",13,"Localidades3_13","Private Sub Localidades3_13_Change() \n if cells(13,43)=\"\" Then\n cells(13,43)=Localidades3_13.Value \nelse\n if  InStr(1,cells(13,43),Localidades3_13.Value, vbTextCompare)=0 Then\ncells(13,43) =cells(13,43)+vbNewLine+Localidades3_13.Value\nElse\n      MsgBox\" EL PARAMETRO SELECCIONADO YA HACEPARTE DE LACELDA\"\n End If\n  End IF\n End Sub"]
["Private Sub Localidades1_Change()",null,14,"EnfoquePoblacional14","Private Sub EnfoquePoblacional14_Change() \n if cells(14,18)=\"\" Then\n cells(14,18)=EnfoquePoblacional14.Value \nelse\n if  InStr(1,cells(14,18),EnfoquePoblacional14.Value, vbTextCompare)=0 Then\ncells(14,18) =cells(14,18)+vbNewLine+EnfoquePoblacional14.Value\nElse\n      MsgBox\" EL PARAMETRO SELECCIONADO YA HACEPARTE DE LACELDA\"\n End If\n  End IF\n End Sub",14,"Localidades14","Private Sub Localidades14_Change() \n if cells(14,19)=\"\" Then\n cells(14,19)=Localidades14.Value \nelse\n if  InStr(1,cells(14,19),Localidades14.Value, vbTextCompare)=0 Then\ncells(14,19) =cells(14,19)+vbNewLine+Localidades14.Value\nElse\n      MsgBox\" EL PARAMETRO SELECCIONADO YA HACEPARTE DE LACELDA\"\n End If\n  End IF\n End Sub",14,"EnfoquePoblacional1_14","Private Sub EnfoquePoblacional1_14_Change() \n if cells(14,26)=\"\" Then\n cells(14,26)=EnfoquePoblacional1_14.Value \nelse\n if  InStr(1,cells(14,26),EnfoquePoblacional1_14.Value, vbTextCompare)=0 Then\ncells(14,26) =cells(14,26)+vbNewLine+EnfoquePoblacional1_14.Value\nElse\n      MsgBox\" EL PARAMETRO SELECCIONADO YA HACEPARTE DE LACELDA\"\n End If\n  End IF\n End Sub",14,"Localidades1_14","Private Sub Localidades1_14_Change() \n if cells(14,27)=\"\" Then\n cells(14,27)=Localidades1_14.Value \nelse\n if  InStr(1,cells(14,27),Localidades1_14.Value, vbTextCompare)=0 Then\ncells(14,27) =cells(14,27)+vbNewLine+Localidades1_14.Value\nElse\n      MsgBox\" EL PARAMETRO SELECCIONADO YA HACEPARTE DE LACELDA\"\n End If\n  End IF\n End Sub",14,"EnfoquePoblacional2_14","Private Sub EnfoquePoblacional2_14_Change() \n if cells(14,34)=\"\" Then\n cells(14,34)=EnfoquePoblacional2_14.Value \nelse\n if  InStr(1,cells(14,34),EnfoquePoblacional2_14.Value, vbTextCompare)=0 Then\ncells(14,34) =cells(14,34)+vbNewLine+EnfoquePoblacional2_14.Value\nElse\n      MsgBox\" EL PARAMETRO SELECCIONADO YA HACEPARTE DE LACELDA\"\n End If\n  End IF\n End Sub",14,"Localidades2_14","Private Sub Localidades2_14_Change() \n if cells(14,35)=\"\" Then\n cells(14,35)=Localidades2_14.Value \nelse\n if  InStr(1,cells(14,35),Localidades2_14.Value, vbTextCompare)=0 Then\ncells(14,35) =cells(14,35)+vbNewLine+Localidades2_14.Value\nElse\n      MsgBox\" EL PARAMETRO SELECCIONADO YA HACEPARTE DE LACELDA\"\n End If\n  End IF\n End Sub",14,"EnfoquePoblacional3_14","Private Sub EnfoquePoblacional3_14_Change() \n if cells(14,42)=\"\" Then\n cells(14,42)=EnfoquePoblacional3_14.Value \nelse\n if  InStr(1,cells(14,42),EnfoquePoblacional3_14.Value, vbTextCompare)=0 Then\ncells(14,42) =cells(14,42)+vbNewLine+EnfoquePoblacional3_14.Value\nElse\n      MsgBox\" EL PARAMETRO SELECCIONADO YA HACEPARTE DE LACELDA\"\n End If\n  End IF\n End Sub",14,"Localidades3_14","Private Sub Localidades3_14_Change() \n if cells(14,43)=\"\" Then\n cells(14,43)=Localidades3_14.Value \nelse\n if  InStr(1,cells(14,43),Localidades3_14.Value, vbTextCompare)=0 Then\ncells(14,43) =cells(14,43)+vbNewLine+Localidades3_14.Value\nElse\n      MsgBox\" EL PARAMETRO SELECCIONADO YA HACEPARTE DE LACELDA\"\n End If\n  End IF\n End Sub",null,null,"Private Sub EnfoquePoblacional14_Change() \n if cells(14,18)=\"\" Then\n cells(14,18)=EnfoquePoblacional14.Value \nelse\n if  InStr(1,cells(14,18),EnfoquePoblacional14.Value, vbTextCompare)=0 Then\ncells(14,18) =cells(14,18)+vbNewLine+EnfoquePoblacional14.Value\nElse\n      MsgBox\" EL PARAMETRO SELECCIONADO YA HACEPARTE DE LACELDA\"\n End If\n  End IF\n End Sub",14,"Localidades14","Private Sub Localidades14_Change() \n if cells(14,19)=\"\" Then\n cells(14,19)=Localidades14.Value \nelse\n if  InStr(1,cells(14,19),Localidades14.Value, vbTextCompare)=0 Then\ncells(14,19) =cells(14,19)+vbNewLine+Localidades14.Value\nElse\n      MsgBox\" EL PARAMETRO SELECCIONADO YA HACEPARTE DE LACELDA\"\n End If\n  End IF\n End Sub",14,"EnfoquePoblacional1_14","Private Sub EnfoquePoblacional1_14_Change() \n if cells(14,26)=\"\" Then\n cells(14,26)=EnfoquePoblacional1_14.Value \nelse\n if  InStr(1,cells(14,26),EnfoquePoblacional1_14.Value, vbTextCompare)=0 Then\ncells(14,26) =cells(14,26)+vbNewLine+EnfoquePoblacional1_14.Value\nElse\n      MsgBox\" EL PARAMETRO SELECCIONADO YA HACEPARTE DE LACELDA\"\n End If\n  End IF\n End Sub",14,"Localidades1_14","Private Sub Localidades1_14_Change() \n if cells(14,27)=\"\" Then\n cells(14,27)=Localidades1_14.Value \nelse\n if  InStr(1,cells(14,27),Localidades1_14.Value, vbTextCompare)=0 Then\ncells(14,27) =cells(14,27)+vbNewLine+Localidades1_14.Value\nElse\n      MsgBox\" EL PARAMETRO SELECCIONADO YA HACEPARTE DE LACELDA\"\n End If\n  End IF\n End Sub",14,"EnfoquePoblacional2_14","Private Sub EnfoquePoblacional2_14_Change() \n if cells(14,34)=\"\" Then\n cells(14,34)=EnfoquePoblacional2_14.Value \nelse\n if  InStr(1,cells(14,34),EnfoquePoblacional2_14.Value, vbTextCompare)=0 Then\ncells(14,34) =cells(14,34)+vbNewLine+EnfoquePoblacional2_14.Value\nElse\n      MsgBox\" EL PARAMETRO SELECCIONADO YA HACEPARTE DE LACELDA\"\n End If\n  End IF\n End Sub",14,"Localidades2_14","Private Sub Localidades2_14_Change() \n if cells(14,35)=\"\" Then\n cells(14,35)=Localidades2_14.Value \nelse\n if  InStr(1,cells(14,35),Localidades2_14.Value, vbTextCompare)=0 Then\ncells(14,35) =cells(14,35)+vbNewLine+Localidades2_14.Value\nElse\n      MsgBox\" EL PARAMETRO SELECCIONADO YA HACEPARTE DE LACELDA\"\n End If\n  End IF\n End Sub",14,"EnfoquePoblacional3_14","Private Sub EnfoquePoblacional3_14_Change() \n if cells(14,42)=\"\" Then\n cells(14,42)=EnfoquePoblacional3_14.Value \nelse\n if  InStr(1,cells(14,42),EnfoquePoblacional3_14.Value, vbTextCompare)=0 Then\ncells(14,42) =cells(14,42)+vbNewLine+EnfoquePoblacional3_14.Value\nElse\n      MsgBox\" EL PARAMETRO SELECCIONADO YA HACEPARTE DE LACELDA\"\n End If\n  End IF\n End Sub",14,"Localidades3_14","Private Sub Localidades3_14_Change() \n if cells(14,43)=\"\" Then\n cells(14,43)=Localidades3_14.Value \nelse\n if  InStr(1,cells(14,43),Localidades3_14.Value, vbTextCompare)=0 Then\ncells(14,43) =cells(14,43)+vbNewLine+Localidades3_14.Value\nElse\n      MsgBox\" EL PARAMETRO SELECCIONADO YA HACEPARTE DE LACELDA\"\n End If\n  End IF\n End Sub"]
["If Range(\"s3\") = \"\" Then",null,15,"EnfoquePoblacional15","Private Sub EnfoquePoblacional15_Change() \n if cells(15,18)=\"\" Then\n cells(15,18)=EnfoquePoblacional15.Value \nelse\n if  InStr(1,cells(15,18),EnfoquePoblacional15.Value, vbTextCompare)=0 Then\ncells(15,18) =cells(15,18)+vbNewLine+EnfoquePoblacional15.Value\nElse\n      MsgBox\" EL PARAMETRO SELECCIONADO YA HACEPARTE DE LACELDA\"\n End If\n  End IF\n End Sub",15,"Localidades15","Private Sub Localidades15_Change() \n if cells(15,19)=\"\" Then\n cells(15,19)=Localidades15.Value \nelse\n if  InStr(1,cells(15,19),Localidades15.Value, vbTextCompare)=0 Then\ncells(15,19) =cells(15,19)+vbNewLine+Localidades15.Value\nElse\n      MsgBox\" EL PARAMETRO SELECCIONADO YA HACEPARTE DE LACELDA\"\n End If\n  End IF\n End Sub",15,"EnfoquePoblacional1_15","Private Sub EnfoquePoblacional1_15_Change() \n if cells(15,26)=\"\" Then\n cells(15,26)=EnfoquePoblacional1_15.Value \nelse\n if  InStr(1,cells(15,26),EnfoquePoblacional1_15.Value, vbTextCompare)=0 Then\ncells(15,26) =cells(15,26)+vbNewLine+EnfoquePoblacional1_15.Value\nElse\n      MsgBox\" EL PARAMETRO SELECCIONADO YA HACEPARTE DE LACELDA\"\n End If\n  End IF\n End Sub",15,"Localidades1_15","Private Sub Localidades1_15_Change() \n if cells(15,27)=\"\" Then\n cells(15,27)=Localidades1_15.Value \nelse\n if  InStr(1,cells(15,27),Localidades1_15.Value, vbTextCompare)=0 Then\ncells(15,27) =cells(15,27)+vbNewLine+Localidades1_15.Value\nElse\n      MsgBox\" EL PARAMETRO SELECCIONADO YA HACEPARTE DE LACELDA\"\n End If\n  End IF\n End Sub",15,"EnfoquePoblacional2_15","Private Sub EnfoquePoblacional2_15_Change() \n if cells(15,34)=\"\" Then\n cells(15,34)=EnfoquePoblacional2_15.Value \nelse\n if  InStr(1,cells(15,34),EnfoquePoblacional2_15.Value, vbTextCompare)=0 Then\ncells(15,34) =cells(15,34)+vbNewLine+EnfoquePoblacional2_15.Value\nElse\n      MsgBox\" EL PARAMETRO SELECCIONADO YA HACEPARTE DE LACELDA\"\n End If\n  End IF\n End Sub",15,"Localidades2_15","Private Sub Localidades2_15_Change() \n if cells(15,35)=\"\" Then\n cells(15,35)=Localidades2_15.Value \nelse\n if  InStr(1,cells(15,35),Localidades2_15.Value, vbTextCompare)=0 Then\ncells(15,35) =cells(15,35)+vbNewLine+Localidades2_15.Value\nElse\n      MsgBox\" EL PARAMETRO SELECCIONADO YA HACEPARTE DE LACELDA\"\n End If\n  End IF\n End Sub",15,"EnfoquePoblacional3_15","Private Sub EnfoquePoblacional3_15_Change() \n if cells(15,42)=\"\" Then\n cells(15,42)=EnfoquePoblacional3_15.Value \nelse\n if  InStr(1,cells(15,42),EnfoquePoblacional3_15.Value, vbTextCompare)=0 Then\ncells(15,42) =cells(15,42)+vbNewLine+EnfoquePoblacional3_15.Value\nElse\n      MsgBox\" EL PARAMETRO SELECCIONADO YA HACEPARTE DE LACELDA\"\n End If\n  End IF\n End Sub",15,"Localidades3_15","Private Sub Localidades3_15_Change() \n if cells(15,43)=\"\" Then\n cells(15,43)=Localidades3_15.Value \nelse\n if  InStr(1,cells(15,43),Localidades3_15.Value, vbTextCompare)=0 Then\ncells(15,43) =cells(15,43)+vbNewLine+Localidades3_15.Value\nElse\n      MsgBox\" EL PARAMETRO SELECCIONADO YA HACEPARTE DE LACELDA\"\n End If\n  End IF\n End Sub",null,null,"Private Sub EnfoquePoblacional15_Change() \n if cells(15,18)=\"\" Then\n cells(15,18)=EnfoquePoblacional15.Value \nelse\n if  InStr(1,cells(15,18),EnfoquePoblacional15.Value, vbTextCompare)=0 Then\ncells(15,18) =cells(15,18)+vbNewLine+EnfoquePoblacional15.Value\nElse\n      MsgBox\" EL PARAMETRO SELECCIONADO YA HACEPARTE DE LACELDA\"\n End If\n  End IF\n End Sub",15,"Localidades15","Private Sub Localidades15_Change() \n if cells(15,19)=\"\" Then\n cells(15,19)=Localidades15.Value \nelse\n if  InStr(1,cells(15,19),Localidades15.Value, vbTextCompare)=0 Then\ncells(15,19) =cells(15,19)+vbNewLine+Localidades15.Value\nElse\n      MsgBox\" EL PARAMETRO SELECCIONADO YA HACEPARTE DE LACELDA\"\n End If\n  End IF\n End Sub",15,"EnfoquePoblacional1_15","Private Sub EnfoquePoblacional1_15_Change() \n if cells(15,26)=\"\" Then\n cells(15,26)=EnfoquePoblacional1_15.Value \nelse\n if  InStr(1,cells(15,26),EnfoquePoblacional1_15.Value, vbTextCompare)=0 Then\ncells(15,26) =cells(15,26)+vbNewLine+EnfoquePoblacional1_15.Value\nElse\n      MsgBox\" EL PARAMETRO SELECCIONADO YA HACEPARTE DE LACELDA\"\n End If\n  End IF\n End Sub",15,"Localidades1_15","Private Sub Localidades1_15_Change() \n if cells(15,27)=\"\" Then\n cells(15,27)=Localidades1_15.Value \nelse\n if  InStr(1,cells(15,27),Localidades1_15.Value, vbTextCompare)=0 Then\ncells(15,27) =cells(15,27)+vbNewLine+Localidades1_15.Value\nElse\n      MsgBox\" EL PARAMETRO SELECCIONADO YA HACEPARTE DE LACELDA\"\n End If\n  End IF\n End Sub",15,"EnfoquePoblacional2_15","Private Sub EnfoquePoblacional2_15_Change() \n if cells(15,34)=\"\" Then\n cells(15,34)=EnfoquePoblacional2_15.Value \nelse\n if  InStr(1,cells(15,34),EnfoquePoblacional2_15.Value, vbTextCompare)=0 Then\ncells(15,34) =cells(15,34)+vbNewLine+EnfoquePoblacional2_15.Value\nElse\n      MsgBox\" EL PARAMETRO SELECCIONADO YA HACEPARTE DE LACELDA\"\n End If\n  End IF\n End Sub",15,"Localidades2_15","Private Sub Localidades2_15_Change() \n if cells(15,35)=\"\" Then\n cells(15,35)=Localidades2_15.Value \nelse\n if  InStr(1,cells(15,35),Localidades2_15.Value, vbTextCompare)=0 Then\ncells(15,35) =cells(15,35)+vbNewLine+Localidades2_15.Value\nElse\n      MsgBox\" EL PARAMETRO SELECCIONADO YA HACEPARTE DE LACELDA\"\n End If\n  End IF\n End Sub",15,"EnfoquePoblacional3_15","Private Sub EnfoquePoblacional3_15_Change() \n if cells(15,42)=\"\" Then\n cells(15,42)=EnfoquePoblacional3_15.Value \nelse\n if  InStr(1,cells(15,42),EnfoquePoblacional3_15.Value, vbTextCompare)=0 Then\ncells(15,42) =cells(15,42)+vbNewLine+EnfoquePoblacional3_15.Value\nElse\n      MsgBox\" EL PARAMETRO SELECCIONADO YA HACEPARTE DE LACELDA\"\n End If\n  End IF\n End Sub",15,"Localidades3_15","Private Sub Localidades3_15_Change() \n if cells(15,43)=\"\" Then\n cells(15,43)=Localidades3_15.Value \nelse\n if  InStr(1,cells(15,43),Localidades3_15.Value, vbTextCompare)=0 Then\ncells(15,43) =cells(15,43)+vbNewLine+Localidades3_15.Value\nElse\n      MsgBox\" EL PARAMETRO SELECCIONADO YA HACEPARTE DE LACELDA\"\n End If\n  End IF\n End Sub"]
["    Range(\"s3\") = Localidades1.Value",null,16,"EnfoquePoblacional16","Private Sub EnfoquePoblacional16_Change() \n if cells(16,18)=\"\" Then\n cells(16,18)=EnfoquePoblacional16.Value \nelse\n if  InStr(1,cells(16,18),EnfoquePoblacional16.Value, vbTextCompare)=0 Then\ncells(16,18) =cells(16,18)+vbNewLine+EnfoquePoblacional16.Value\nElse\n      MsgBox\" EL PARAMETRO SELECCIONADO YA HACEPARTE DE LACELDA\"\n End If\n  End IF\n End Sub",16,"Localidades16","Private Sub Localidades16_Change() \n if cells(16,19)=\"\" Then\n cells(16,19)=Localidades16.Value \nelse\n if  InStr(1,cells(16,19),Localidades16.Value, vbTextCompare)=0 Then\ncells(16,19) =cells(16,19)+vbNewLine+Localidades16.Value\nElse\n      MsgBox\" EL PARAMETRO SELECCIONADO YA HACEPARTE DE LACELDA\"\n End If\n  End IF\n End Sub",16,"EnfoquePoblacional1_16","Private Sub EnfoquePoblacional1_16_Change() \n if cells(16,26)=\"\" Then\n cells(16,26)=EnfoquePoblacional1_16.Value \nelse\n if  InStr(1,cells(16,26),EnfoquePoblacional1_16.Value, vbTextCompare)=0 Then\ncells(16,26) =cells(16,26)+vbNewLine+EnfoquePoblacional1_16.Value\nElse\n      MsgBox\" EL PARAMETRO SELECCIONADO YA HACEPARTE DE LACELDA\"\n End If\n  End IF\n End Sub",16,"Localidades1_16","Private Sub Localidades1_16_Change() \n if cells(16,27)=\"\" Then\n cells(16,27)=Localidades1_16.Value \nelse\n if  InStr(1,cells(16,27),Localidades1_16.Value, vbTextCompare)=0 Then\ncells(16,27) =cells(16,27)+vbNewLine+Localidades1_16.Value\nElse\n      MsgBox\" EL PARAMETRO SELECCIONADO YA HACEPARTE DE LACELDA\"\n End If\n  End IF\n End Sub",16,"EnfoquePoblacional2_16","Private Sub EnfoquePoblacional2_16_Change() \n if cells(16,34)=\"\" Then\n cells(16,34)=EnfoquePoblacional2_16.Value \nelse\n if  InStr(1,cells(16,34),EnfoquePoblacional2_16.Value, vbTextCompare)=0 Then\ncells(16,34) =cells(16,34)+vbNewLine+EnfoquePoblacional2_16.Value\nElse\n      MsgBox\" EL PARAMETRO SELECCIONADO YA HACEPARTE DE LACELDA\"\n End If\n  End IF\n End Sub",16,"Localidades2_16","Private Sub Localidades2_16_Change() \n if cells(16,35)=\"\" Then\n cells(16,35)=Localidades2_16.Value \nelse\n if  InStr(1,cells(16,35),Localidades2_16.Value, vbTextCompare)=0 Then\ncells(16,35) =cells(16,35)+vbNewLine+Localidades2_16.Value\nElse\n      MsgBox\" EL PARAMETRO SELECCIONADO YA HACEPARTE DE LACELDA\"\n End If\n  End IF\n End Sub",16,"EnfoquePoblacional3_16","Private Sub EnfoquePoblacional3_16_Change() \n if cells(16,42)=\"\" Then\n cells(16,42)=EnfoquePoblacional3_16.Value \nelse\n if  InStr(1,cells(16,42),EnfoquePoblacional3_16.Value, vbTextCompare)=0 Then\ncells(16,42) =cells(16,42)+vbNewLine+EnfoquePoblacional3_16.Value\nElse\n      MsgBox\" EL PARAMETRO SELECCIONADO YA HACEPARTE DE LACELDA\"\n End If\n  End IF\n End Sub",16,"Localidades3_16","Private Sub Localidades3_16_Change() \n if cells(16,43)=\"\" Then\n cells(16,43)=Localidades3_16.Value \nelse\n if  InStr(1,cells(16,43),Localidades3_16.Value, vbTextCompare)=0 Then\ncells(16,43) =cells(16,43)+vbNewLine+Localidades3_16.Value\nElse\n      MsgBox\" EL PARAMETRO SELECCIONADO YA HACEPARTE DE LACELDA\"\n End If\n  End IF\n End Sub",null,null,"Private Sub EnfoquePoblacional16_Change() \n if cells(16,18)=\"\" Then\n cells(16,18)=EnfoquePoblacional16.Value \nelse\n if  InStr(1,cells(16,18),EnfoquePoblacional16.Value, vbTextCompare)=0 Then\ncells(16,18) =cells(16,18)+vbNewLine+EnfoquePoblacional16.Value\nElse\n      MsgBox\" EL PARAMETRO SELECCIONADO YA HACEPARTE DE LACELDA\"\n End If\n  End IF\n End Sub",16,"Localidades16","Private Sub Localidades16_Change() \n if cells(16,19)=\"\" Then\n cells(16,19)=Localidades16.Value \nelse\n if  InStr(1,cells(16,19),Localidades16.Value, vbTextCompare)=0 Then\ncells(16,19) =cells(16,19)+vbNewLine+Localidades16.Value\nElse\n      MsgBox\" EL PARAMETRO SELECCIONADO YA HACEPARTE DE LACELDA\"\n End If\n  End IF\n End Sub",16,"EnfoquePoblacional1_16","Private Sub EnfoquePoblacional1_16_Change() \n if cells(16,26)=\"\" Then\n cells(16,26)=EnfoquePoblacional1_16.Value \nelse\n if  InStr(1,cells(16,26),EnfoquePoblacional1_16.Value, vbTextCompare)=0 Then\ncells(16,26) =cells(16,26)+vbNewLine+EnfoquePoblacional1_16.Value\nElse\n      MsgBox\" EL PARAMETRO SELECCIONADO YA HACEPARTE DE LACELDA\"\n End If\n  End IF\n End Sub",16,"Localidades1_16","Private Sub Localidades1_16_Change() \n if cells(16,27)=\"\" Then\n cells(16,27)=Localidades1_16.Value \nelse\n if  InStr(1,cells(16,27),Localidades1_16.Value, vbTextCompare)=0 Then\ncells(16,27) =cells(16,27)+vbNewLine+Localidades1_16.Value\nElse\n      MsgBox\" EL PARAMETRO SELECCIONADO YA HACEPARTE DE LACELDA\"\n End If\n  End IF\n End Sub",16,"EnfoquePoblacional2_16","Private Sub EnfoquePoblacional2_16_Change() \n if cells(16,34)=\"\" Then\n cells(16,34)=EnfoquePoblacional2_16.Value \nelse\n if  InStr(1,cells(16,34),EnfoquePoblacional2_16.Value, vbTextCompare)=0 Then\ncells(16,34) =cells(16,34)+vbNewLine+EnfoquePoblacional2_16.Value\nElse\n      MsgBox\" EL PARAMETRO SELECCIONADO YA HACEPARTE DE LACELDA\"\n End If\n  End IF\n End Sub",16,"Localidades2_16","Private Sub Localidades2_16_Change() \n if cells(16,35)=\"\" Then\n cells(16,35)=Localidades2_16.Value \nelse\n if  InStr(1,cells(16,35),Localidades2_16.Value, vbTextCompare)=0 Then\ncells(16,35) =cells(16,35)+vbNewLine+Localidades2_16.Value\nElse\n      MsgBox\" EL PARAMETRO SELECCIONADO YA HACEPARTE DE LACELDA\"\n End If\n  End IF\n End Sub",16,"EnfoquePoblacional3_16","Private Sub EnfoquePoblacional3_16_Change() \n if cells(16,42)=\"\" Then\n cells(16,42)=EnfoquePoblacional3_16.Value \nelse\n if  InStr(1,cells(16,42),EnfoquePoblacional3_16.Value, vbTextCompare)=0 Then\ncells(16,42) =cells(16,42)+vbNewLine+EnfoquePoblacional3_16.Value\nElse\n      MsgBox\" EL PARAMETRO SELECCIONADO YA HACEPARTE DE LACELDA\"\n End If\n  End IF\n End Sub",16,"Localidades3_16","Private Sub Localidades3_16_Change() \n if cells(16,43)=\"\" Then\n cells(16,43)=Localidades3_16.Value \nelse\n if  InStr(1,cells(16,43),Localidades3_16.Value, vbTextCompare)=0 Then\ncells(16,43) =cells(16,43)+vbNewLine+Localidades3_16.Value\nElse\n      MsgBox\" EL PARAMETRO SELECCIONADO YA HACEPARTE DE LACELDA\"\n End If\n  End IF\n End Sub"]
["Else",null,17,"EnfoquePoblacional17","Private Sub EnfoquePoblacional17_Change() \n if cells(17,18)=\"\" Then\n cells(17,18)=EnfoquePoblacional17.Value \nelse\n if  InStr(1,cells(17,18),EnfoquePoblacional17.Value, vbTextCompare)=0 Then\ncells(17,18) =cells(17,18)+vbNewLine+EnfoquePoblacional17.Value\nElse\n      MsgBox\" EL PARAMETRO SELECCIONADO YA HACEPARTE DE LACELDA\"\n End If\n  End IF\n End Sub",17,"Localidades17","Private Sub Localidades17_Change() \n if cells(17,19)=\"\" Then\n cells(17,19)=Localidades17.Value \nelse\n if  InStr(1,cells(17,19),Localidades17.Value, vbTextCompare)=0 Then\ncells(17,19) =cells(17,19)+vbNewLine+Localidades17.Value\nElse\n      MsgBox\" EL PARAMETRO SELECCIONADO YA HACEPARTE DE LACELDA\"\n End If\n  End IF\n End Sub",17,"EnfoquePoblacional1_17","Private Sub EnfoquePoblacional1_17_Change() \n if cells(17,26)=\"\" Then\n cells(17,26)=EnfoquePoblacional1_17.Value \nelse\n if  InStr(1,cells(17,26),EnfoquePoblacional1_17.Value, vbTextCompare)=0 Then\ncells(17,26) =cells(17,26)+vbNewLine+EnfoquePoblacional1_17.Value\nElse\n      MsgBox\" EL PARAMETRO SELECCIONADO YA HACEPARTE DE LACELDA\"\n End If\n  End IF\n End Sub",17,"Localidades1_17","Private Sub Localidades1_17_Change() \n if cells(17,27)=\"\" Then\n cells(17,27)=Localidades1_17.Value \nelse\n if  InStr(1,cells(17,27),Localidades1_17.Value, vbTextCompare)=0 Then\ncells(17,27) =cells(17,27)+vbNewLine+Localidades1_17.Value\nElse\n      MsgBox\" EL PARAMETRO SELECCIONADO YA HACEPARTE DE LACELDA\"\n End If\n  End IF\n End Sub",17,"EnfoquePoblacional2_17","Private Sub EnfoquePoblacional2_17_Change() \n if cells(17,34)=\"\" Then\n cells(17,34)=EnfoquePoblacional2_17.Value \nelse\n if  InStr(1,cells(17,34),EnfoquePoblacional2_17.Value, vbTextCompare)=0 Then\ncells(17,34) =cells(17,34)+vbNewLine+EnfoquePoblacional2_17.Value\nElse\n      MsgBox\" EL PARAMETRO SELECCIONADO YA HACEPARTE DE LACELDA\"\n End If\n  End IF\n End Sub",17,"Localidades2_17","Private Sub Localidades2_17_Change() \n if cells(17,35)=\"\" Then\n cells(17,35)=Localidades2_17.Value \nelse\n if  InStr(1,cells(17,35),Localidades2_17.Value, vbTextCompare)=0 Then\ncells(17,35) =cells(17,35)+vbNewLine+Localidades2_17.Value\nElse\n      MsgBox\" EL PARAMETRO SELECCIONADO YA HACEPARTE DE LACELDA\"\n End If\n  End IF\n End Sub",17,"EnfoquePoblacional3_17","Private Sub EnfoquePoblacional3_17_Change() \n if cells(17,42)=\"\" Then\n cells(17,42)=EnfoquePoblacional3_17.Value \nelse\n if  InStr(1,cells(17,42),EnfoquePoblacional3_17.Value, vbTextCompare)=0 Then\ncells(17,42) =cells(17,42)+vbNewLine+EnfoquePoblacional3_17.Value\nElse\n      MsgBox\" EL PARAMETRO SELECCIONADO YA HACEPARTE DE LACELDA\"\n End If\n  End IF\n End Sub",17,"Localidades3_17","Private Sub Localidades3_17_Change() \n if cells(17,43)=\"\" Then\n cells(17,43)=Localidades3_17.Value \nelse\n if  InStr(1,cells(17,43),Localidades3_17.Value, vbTextCompare)=0 Then\ncells(17,43) =cells(17,43)+vbNewLine+Localidades3_17.Value\nElse\n      MsgBox\" EL PARAMETRO SELECCIONADO YA HACEPARTE DE LACELDA\"\n End If\n  End IF\n End Sub",null,null,"Private Sub EnfoquePoblacional17_Change() \n if cells(17,18)=\"\" Then\n cells(17,18)=EnfoquePoblacional17.Value \nelse\n if  InStr(1,cells(17,18),EnfoquePoblacional17.Value, vbTextCompare)=0 Then\ncells(17,18) =cells(17,18)+vbNewLine+EnfoquePoblacional17.Value\nElse\n      MsgBox\" EL PARAMETRO SELECCIONADO YA HACEPARTE DE LACELDA\"\n End If\n  End IF\n End Sub",17,"Localidades17","Private Sub Localidades17_Change() \n if cells(17,19)=\"\" Then\n cells(17,19)=Localidades17.Value \nelse\n if  InStr(1,cells(17,19),Localidades17.Value, vbTextCompare)=0 Then\ncells(17,19) =cells(17,19)+vbNewLine+Localidades17.Value\nElse\n      MsgBox\" EL PARAMETRO SELECCIONADO YA HACEPARTE DE LACELDA\"\n End If\n  End IF\n End Sub",17,"EnfoquePoblacional1_17","Private Sub EnfoquePoblacional1_17_Change() \n if cells(17,26)=\"\" Then\n cells(17,26)=EnfoquePoblacional1_17.Value \nelse\n if  InStr(1,cells(17,26),EnfoquePoblacional1_17.Value, vbTextCompare)=0 Then\ncells(17,26) =cells(17,26)+vbNewLine+EnfoquePoblacional1_17.Value\nElse\n      MsgBox\" EL PARAMETRO SELECCIONADO YA HACEPARTE DE LACELDA\"\n End If\n  End IF\n End Sub",17,"Localidades1_17","Private Sub Localidades1_17_Change() \n if cells(17,27)=\"\" Then\n cells(17,27)=Localidades1_17.Value \nelse\n if  InStr(1,cells(17,27),Localidades1_17.Value, vbTextCompare)=0 Then\ncells(17,27) =cells(17,27)+vbNewLine+Localidades1_17.Value\nElse\n      MsgBox\" EL PARAMETRO SELECCIONADO YA HACEPARTE DE LACELDA\"\n End If\n  End IF\n End Sub",17,"EnfoquePoblacional2_17","Private Sub EnfoquePoblacional2_17_Change() \n if cells(17,34)=\"\" Then\n cells(17,34)=EnfoquePoblacional2_17.Value \nelse\n if  InStr(1,cells(17,34),EnfoquePoblacional2_17.Value, vbTextCompare)=0 Then\ncells(17,34) =cells(17,34)+vbNewLine+EnfoquePoblacional2_17.Value\nElse\n      MsgBox\" EL PARAMETRO SELECCIONADO YA HACEPARTE DE LACELDA\"\n End If\n  End IF\n End Sub",17,"Localidades2_17","Private Sub Localidades2_17_Change() \n if cells(17,35)=\"\" Then\n cells(17,35)=Localidades2_17.Value \nelse\n if  InStr(1,cells(17,35),Localidades2_17.Value, vbTextCompare)=0 Then\ncells(17,35) =cells(17,35)+vbNewLine+Localidades2_17.Value\nElse\n      MsgBox\" EL PARAMETRO SELECCIONADO YA HACEPARTE DE LACELDA\"\n End If\n  End IF\n End Sub",17,"EnfoquePoblacional3_17","Private Sub EnfoquePoblacional3_17_Change() \n if cells(17,42)=\"\" Then\n cells(17,42)=EnfoquePoblacional3_17.Value \nelse\n if  InStr(1,cells(17,42),EnfoquePoblacional3_17.Value, vbTextCompare)=0 Then\ncells(17,42) =cells(17,42)+vbNewLine+EnfoquePoblacional3_17.Value\nElse\n      MsgBox\" EL PARAMETRO SELECCIONADO YA HACEPARTE DE LACELDA\"\n End If\n  End IF\n End Sub",17,"Localidades3_17","Private Sub Localidades3_17_Change() \n if cells(17,43)=\"\" Then\n cells(17,43)=Localidades3_17.Value \nelse\n if  InStr(1,cells(17,43),Localidades3_17.Value, vbTextCompare)=0 Then\ncells(17,43) =cells(17,43)+vbNewLine+Localidades3_17.Value\nElse\n      MsgBox\" EL PARAMETRO SELECCIONADO YA HACEPARTE DE LACELDA\"\n End If\n  End IF\n End Sub"]
["    If InStr(1, Range(\"s3\"), Localidades1.Value, vbTextCompare) = 0 Then",null,18,"EnfoquePoblacional18","Private Sub EnfoquePoblacional18_Change() \n if cells(18,18)=\"\" Then\n cells(18,18)=EnfoquePoblacional18.Value \nelse\n if  InStr(1,cells(18,18),EnfoquePoblacional18.Value, vbTextCompare)=0 Then\ncells(18,18) =cells(18,18)+vbNewLine+EnfoquePoblacional18.Value\nElse\n      MsgBox\" EL PARAMETRO SELECCIONADO YA HACEPARTE DE LACELDA\"\n End If\n  End IF\n End Sub",18,"Localidades18","Private Sub Localidades18_Change() \n if cells(18,19)=\"\" Then\n cells(18,19)=Localidades18.Value \nelse\n if  InStr(1,cells(18,19),Localidades18.Value, vbTextCompare)=0 Then\ncells(18,19) =cells(18,19)+vbNewLine+Localidades18.Value\nElse\n      MsgBox\" EL PARAMETRO SELECCIONADO YA HACEPARTE DE LACELDA\"\n End If\n  End IF\n End Sub",18,"EnfoquePoblacional1_18","Private Sub EnfoquePoblacional1_18_Change() \n if cells(18,26)=\"\" Then\n cells(18,26)=EnfoquePoblacional1_18.Value \nelse\n if  InStr(1,cells(18,26),EnfoquePoblacional1_18.Value, vbTextCompare)=0 Then\ncells(18,26) =cells(18,26)+vbNewLine+EnfoquePoblacional1_18.Value\nElse\n      MsgBox\" EL PARAMETRO SELECCIONADO YA HACEPARTE DE LACELDA\"\n End If\n  End IF\n End Sub",18,"Localidades1_18","Private Sub Localidades1_18_Change() \n if cells(18,27)=\"\" Then\n cells(18,27)=Localidades1_18.Value \nelse\n if  InStr(1,cells(18,27),Localidades1_18.Value, vbTextCompare)=0 Then\ncells(18,27) =cells(18,27)+vbNewLine+Localidades1_18.Value\nElse\n      MsgBox\" EL PARAMETRO SELECCIONADO YA HACEPARTE DE LACELDA\"\n End If\n  End IF\n End Sub",18,"EnfoquePoblacional2_18","Private Sub EnfoquePoblacional2_18_Change() \n if cells(18,34)=\"\" Then\n cells(18,34)=EnfoquePoblacional2_18.Value \nelse\n if  InStr(1,cells(18,34),EnfoquePoblacional2_18.Value, vbTextCompare)=0 Then\ncells(18,34) =cells(18,34)+vbNewLine+EnfoquePoblacional2_18.Value\nElse\n      MsgBox\" EL PARAMETRO SELECCIONADO YA HACEPARTE DE LACELDA\"\n End If\n  End IF\n End Sub",18,"Localidades2_18","Private Sub Localidades2_18_Change() \n if cells(18,35)=\"\" Then\n cells(18,35)=Localidades2_18.Value \nelse\n if  InStr(1,cells(18,35),Localidades2_18.Value, vbTextCompare)=0 Then\ncells(18,35) =cells(18,35)+vbNewLine+Localidades2_18.Value\nElse\n      MsgBox\" EL PARAMETRO SELECCIONADO YA HACEPARTE DE LACELDA\"\n End If\n  End IF\n End Sub",18,"EnfoquePoblacional3_18","Private Sub EnfoquePoblacional3_18_Change() \n if cells(18,42)=\"\" Then\n cells(18,42)=EnfoquePoblacional3_18.Value \nelse\n if  InStr(1,cells(18,42),EnfoquePoblacional3_18.Value, vbTextCompare)=0 Then\ncells(18,42) =cells(18,42)+vbNewLine+EnfoquePoblacional3_18.Value\nElse\n      MsgBox\" EL PARAMETRO SELECCIONADO YA HACEPARTE DE LACELDA\"\n End If\n  End IF\n End Sub",18,"Localidades3_18","Private Sub Localidades3_18_Change() \n if cells(18,43)=\"\" Then\n cells(18,43)=Localidades3_18.Value \nelse\n if  InStr(1,cells(18,43),Localidades3_18.Value, vbTextCompare)=0 Then\ncells(18,43) =cells(18,43)+vbNewLine+Localidades3_18.Value\nElse\n      MsgBox\" EL PARAMETRO SELECCIONADO YA HACEPARTE DE LACELDA\"\n End If\n  End IF\n End Sub",null,null,"Private Sub EnfoquePoblacional18_Change() \n if cells(18,18)=\"\" Then\n cells(18,18)=EnfoquePoblacional18.Value \nelse\n if  InStr(1,cells(18,18),EnfoquePoblacional18.Value, vbTextCompare)=0 Then\ncells(18,18) =cells(18,18)+vbNewLine+EnfoquePoblacional18.Value\nElse\n      MsgBox\" EL PARAMETRO SELECCIONADO YA HACEPARTE DE LACELDA\"\n End If\n  End IF\n End Sub",18,"Localidades18","Private Sub Localidades18_Change() \n if cells(18,19)=\"\" Then\n cells(18,19)=Localidades18.Value \nelse\n if  InStr(1,cells(18,19),Localidades18.Value, vbTextCompare)=0 Then\ncells(18,19) =cells(18,19)+vbNewLine+Localidades18.Value\nElse\n      MsgBox\" EL PARAMETRO SELECCIONADO YA HACEPARTE DE LACELDA\"\n End If\n  End IF\n End Sub",18,"EnfoquePoblacional1_18","Private Sub EnfoquePoblacional1_18_Change() \n if cells(18,26)=\"\" Then\n cells(18,26)=EnfoquePoblacional1_18.Value \nelse\n if  InStr(1,cells(18,26),EnfoquePoblacional1_18.Value, vbTextCompare)=0 Then\ncells(18,26) =cells(18,26)+vbNewLine+EnfoquePoblacional1_18.Value\nElse\n      MsgBox\" EL PARAMETRO SELECCIONADO YA HACEPARTE DE LACELDA\"\n End If\n  End IF\n End Sub",18,"Localidades1_18","Private Sub Localidades1_18_Change() \n if cells(18,27)=\"\" Then\n cells(18,27)=Localidades1_18.Value \nelse\n if  InStr(1,cells(18,27),Localidades1_18.Value, vbTextCompare)=0 Then\ncells(18,27) =cells(18,27)+vbNewLine+Localidades1_18.Value\nElse\n      MsgBox\" EL PARAMETRO SELECCIONADO YA HACEPARTE DE LACELDA\"\n End If\n  End IF\n End Sub",18,"EnfoquePoblacional2_18","Private Sub EnfoquePoblacional2_18_Change() \n if cells(18,34)=\"\" Then\n cells(18,34)=EnfoquePoblacional2_18.Value \nelse\n if  InStr(1,cells(18,34),EnfoquePoblacional2_18.Value, vbTextCompare)=0 Then\ncells(18,34) =cells(18,34)+vbNewLine+EnfoquePoblacional2_18.Value\nElse\n      MsgBox\" EL PARAMETRO SELECCIONADO YA HACEPARTE DE LACELDA\"\n End If\n  End IF\n End Sub",18,"Localidades2_18","Private Sub Localidades2_18_Change() \n if cells(18,35)=\"\" Then\n cells(18,35)=Localidades2_18.Value \nelse\n if  InStr(1,cells(18,35),Localidades2_18.Value, vbTextCompare)=0 Then\ncells(18,35) =cells(18,35)+vbNewLine+Localidades2_18.Value\nElse\n      MsgBox\" EL PARAMETRO SELECCIONADO YA HACEPARTE DE LACELDA\"\n End If\n  End IF\n End Sub",18,"EnfoquePoblacional3_18","Private Sub EnfoquePoblacional3_18_Change() \n if cells(18,42)=\"\" Then\n cells(18,42)=EnfoquePoblacional3_18.Value \nelse\n if  InStr(1,cells(18,42),EnfoquePoblacional3_18.Value, vbTextCompare)=0 Then\ncells(18,42) =cells(18,42)+vbNewLine+EnfoquePoblacional3_18.Value\nElse\n      MsgBox\" EL PARAMETRO SELECCIONADO YA HACEPARTE DE LACELDA\"\n End If\n  End IF\n End Sub",18,"Localidades3_18","Private Sub Localidades3_18_Change() \n if cells(18,43)=\"\" Then\n cells(18,43)=Localidades3_18.Value \nelse\n if  InStr(1,cells(18,43),Localidades3_18.Value, vbTextCompare)=0 Then\ncells(18,43) =cells(18,43)+vbNewLine+Localidades3_18.Value\nElse\n      MsgBox\" EL PARAMETRO SELECCIONADO YA HACEPARTE DE LACELDA\"\n End If\n  End IF\n End Sub"]
["     Range(\"s3\") = Range(\"s3\") + vbNewLine + Localidades1.Value",null,19,"EnfoquePoblacional19","Private Sub EnfoquePoblacional19_Change() \n if cells(19,18)=\"\" Then\n cells(19,18)=EnfoquePoblacional19.Value \nelse\n if  InStr(1,cells(19,18),EnfoquePoblacional19.Value, vbTextCompare)=0 Then\ncells(19,18) =cells(19,18)+vbNewLine+EnfoquePoblacional19.Value\nElse\n      MsgBox\" EL PARAMETRO SELECCIONADO YA HACEPARTE DE LACELDA\"\n End If\n  End IF\n End Sub",19,"Localidades19","Private Sub Localidades19_Change() \n if cells(19,19)=\"\" Then\n cells(19,19)=Localidades19.Value \nelse\n if  InStr(1,cells(19,19),Localidades19.Value, vbTextCompare)=0 Then\ncells(19,19) =cells(19,19)+vbNewLine+Localidades19.Value\nElse\n      MsgBox\" EL PARAMETRO SELECCIONADO YA HACEPARTE DE LACELDA\"\n End If\n  End IF\n End Sub",19,"EnfoquePoblacional1_19","Private Sub EnfoquePoblacional1_19_Change() \n if cells(19,26)=\"\" Then\n cells(19,26)=EnfoquePoblacional1_19.Value \nelse\n if  InStr(1,cells(19,26),EnfoquePoblacional1_19.Value, vbTextCompare)=0 Then\ncells(19,26) =cells(19,26)+vbNewLine+EnfoquePoblacional1_19.Value\nElse\n      MsgBox\" EL PARAMETRO SELECCIONADO YA HACEPARTE DE LACELDA\"\n End If\n  End IF\n End Sub",19,"Localidades1_19","Private Sub Localidades1_19_Change() \n if cells(19,27)=\"\" Then\n cells(19,27)=Localidades1_19.Value \nelse\n if  InStr(1,cells(19,27),Localidades1_19.Value, vbTextCompare)=0 Then\ncells(19,27) =cells(19,27)+vbNewLine+Localidades1_19.Value\nElse\n      MsgBox\" EL PARAMETRO SELECCIONADO YA HACEPARTE DE LACELDA\"\n End If\n  End IF\n End Sub",19,"EnfoquePoblacional2_19","Private Sub EnfoquePoblacional2_19_Change() \n if cells(19,34)=\"\" Then\n cells(19,34)=EnfoquePoblacional2_19.Value \nelse\n if  InStr(1,cells(19,34),EnfoquePoblacional2_19.Value, vbTextCompare)=0 Then\ncells(19,34) =cells(19,34)+vbNewLine+EnfoquePoblacional2_19.Value\nElse\n      MsgBox\" EL PARAMETRO SELECCIONADO YA HACEPARTE DE LACELDA\"\n End If\n  End IF\n End Sub",19,"Localidades2_19","Private Sub Localidades2_19_Change() \n if cells(19,35)=\"\" Then\n cells(19,35)=Localidades2_19.Value \nelse\n if  InStr(1,cells(19,35),Localidades2_19.Value, vbTextCompare)=0 Then\ncells(19,35) =cells(19,35)+vbNewLine+Localidades2_19.Value\nElse\n      MsgBox\" EL PARAMETRO SELECCIONADO YA HACEPARTE DE LACELDA\"\n End If\n  End IF\n End Sub",19,"EnfoquePoblacional3_19","Private Sub EnfoquePoblacional3_19_Change() \n if cells(19,42)=\"\" Then\n cells(19,42)=EnfoquePoblacional3_19.Value \nelse\n if  InStr(1,cells(19,42),EnfoquePoblacional3_19.Value, vbTextCompare)=0 Then\ncells(19,42) =cells(19,42)+vbNewLine+EnfoquePoblacional3_19.Value\nElse\n      MsgBox\" EL PARAMETRO SELECCIONADO YA HACEPARTE DE LACELDA\"\n End If\n  End IF\n End Sub",19,"Localidades3_19","Private Sub Localidades3_19_Change() \n if cells(19,43)=\"\" Then\n cells(19,43)=Localidades3_19.Value \nelse\n if  InStr(1,cells(19,43),Localidades3_19.Value, vbTextCompare)=0 Then\ncells(19,43) =cells(19,43)+vbNewLine+Localidades3_19.Value\nElse\n      MsgBox\" EL PARAMETRO SELECCIONADO YA HACEPARTE DE LACELDA\"\n End If\n  End IF\n End Sub",null,null,"Private Sub EnfoquePoblacional19_Change() \n if cells(19,18)=\"\" Then\n cells(19,18)=EnfoquePoblacional19.Value \nelse\n if  InStr(1,cells(19,18),EnfoquePoblacional19.Value, vbTextCompare)=0 Then\ncells(19,18) =cells(19,18)+vbNewLine+EnfoquePoblacional19.Value\nElse\n      MsgBox\" EL PARAMETRO SELECCIONADO YA HACEPARTE DE LACELDA\"\n End If\n  End IF\n End Sub",19,"Localidades19","Private Sub Localidades19_Change() \n if cells(19,19)=\"\" Then\n cells(19,19)=Localidades19.Value \nelse\n if  InStr(1,cells(19,19),Localidades19.Value, vbTextCompare)=0 Then\ncells(19,19) =cells(19,19)+vbNewLine+Localidades19.Value\nElse\n      MsgBox\" EL PARAMETRO SELECCIONADO YA HACEPARTE DE LACELDA\"\n End If\n  End IF\n End Sub",19,"EnfoquePoblacional1_19","Private Sub EnfoquePoblacional1_19_Change() \n if cells(19,26)=\"\" Then\n cells(19,26)=EnfoquePoblacional1_19.Value \nelse\n if  InStr(1,cells(19,26),EnfoquePoblacional1_19.Value, vbTextCompare)=0 Then\ncells(19,26) =cells(19,26)+vbNewLine+EnfoquePoblacional1_19.Value\nElse\n      MsgBox\" EL PARAMETRO SELECCIONADO YA HACEPARTE DE LACELDA\"\n End If\n  End IF\n End Sub",19,"Localidades1_19","Private Sub Localidades1_19_Change() \n if cells(19,27)=\"\" Then\n cells(19,27)=Localidades1_19.Value \nelse\n if  InStr(1,cells(19,27),Localidades1_19.Value, vbTextCompare)=0 Then\ncells(19,27) =cells(19,27)+vbNewLine+Localidades1_19.Value\nElse\n      MsgBox\" EL PARAMETRO SELECCIONADO YA HACEPARTE DE LACELDA\"\n End If\n  End IF\n End Sub",19,"EnfoquePoblacional2_19","Private Sub EnfoquePoblacional2_19_Change() \n if cells(19,34)=\"\" Then\n cells(19,34)=EnfoquePoblacional2_19.Value \nelse\n if  InStr(1,cells(19,34),EnfoquePoblacional2_19.Value, vbTextCompare)=0 Then\ncells(19,34) =cells(19,34)+vbNewLine+EnfoquePoblacional2_19.Value\nElse\n      MsgBox\" EL PARAMETRO SELECCIONADO YA HACEPARTE DE LACELDA\"\n End If\n  End IF\n End Sub",19,"Localidades2_19","Private Sub Localidades2_19_Change() \n if cells(19,35)=\"\" Then\n cells(19,35)=Localidades2_19.Value \nelse\n if  InStr(1,cells(19,35),Localidades2_19.Value, vbTextCompare)=0 Then\ncells(19,35) =cells(19,35)+vbNewLine+Localidades2_19.Value\nElse\n      MsgBox\" EL PARAMETRO SELECCIONADO YA HACEPARTE DE LACELDA\"\n End If\n  End IF\n End Sub",19,"EnfoquePoblacional3_19","Private Sub EnfoquePoblacional3_19_Change() \n if cells(19,42)=\"\" Then\n cells(19,42)=EnfoquePoblacional3_19.Value \nelse\n if  InStr(1,cells(19,42),EnfoquePoblacional3_19.Value, vbTextCompare)=0 Then\ncells(19,42) =cells(19,42)+vbNewLine+EnfoquePoblacional3_19.Value\nElse\n      MsgBox\" EL PARAMETRO SELECCIONADO YA HACEPARTE DE LACELDA\"\n End If\n  End IF\n End Sub",19,"Localidades3_19","Private Sub Localidades3_19_Change() \n if cells(19,43)=\"\" Then\n cells(19,43)=Localidades3_19.Value \nelse\n if  InStr(1,cells(19,43),Localidades3_19.Value, vbTextCompare)=0 Then\ncells(19,43) =cells(19,43)+vbNewLine+Localidades3_19.Value\nElse\n      MsgBox\" EL PARAMETRO SELECCIONADO YA HACEPARTE DE LACELDA\"\n End If\n  End IF\n End Sub"]
["    Else",null,20,"EnfoquePoblacional20","Private Sub EnfoquePoblacional20_Change() \n if cells(20,18)=\"\" Then\n cells(20,18)=EnfoquePoblacional20.Value \nelse\n if  InStr(1,cells(20,18),EnfoquePoblacional20.Value, vbTextCompare)=0 Then\ncells(20,18) =cells(20,18)+vbNewLine+EnfoquePoblacional20.Value\nElse\n      MsgBox\" EL PARAMETRO SELECCIONADO YA HACEPARTE DE LACELDA\"\n End If\n  End IF\n End Sub",20,"Localidades20","Private Sub Localidades20_Change() \n if cells(20,19)=\"\" Then\n cells(20,19)=Localidades20.Value \nelse\n if  InStr(1,cells(20,19),Localidades20.Value, vbTextCompare)=0 Then\ncells(20,19) =cells(20,19)+vbNewLine+Localidades20.Value\nElse\n      MsgBox\" EL PARAMETRO SELECCIONADO YA HACEPARTE DE LACELDA\"\n End If\n  End IF\n End Sub",20,"EnfoquePoblacional1_20","Private Sub EnfoquePoblacional1_20_Change() \n if cells(20,26)=\"\" Then\n cells(20,26)=EnfoquePoblacional1_20.Value \nelse\n if  InStr(1,cells(20,26),EnfoquePoblacional1_20.Value, vbTextCompare)=0 Then\ncells(20,26) =cells(20,26)+vbNewLine+EnfoquePoblacional1_20.Value\nElse\n      MsgBox\" EL PARAMETRO SELECCIONADO YA HACEPARTE DE LACELDA\"\n End If\n  End IF\n End Sub",20,"Localidades1_20","Private Sub Localidades1_20_Change() \n if cells(20,27)=\"\" Then\n cells(20,27)=Localidades1_20.Value \nelse\n if  InStr(1,cells(20,27),Localidades1_20.Value, vbTextCompare)=0 Then\ncells(20,27) =cells(20,27)+vbNewLine+Localidades1_20.Value\nElse\n      MsgBox\" EL PARAMETRO SELECCIONADO YA HACEPARTE DE LACELDA\"\n End If\n  End IF\n End Sub",20,"EnfoquePoblacional2_20","Private Sub EnfoquePoblacional2_20_Change() \n if cells(20,34)=\"\" Then\n cells(20,34)=EnfoquePoblacional2_20.Value \nelse\n if  InStr(1,cells(20,34),EnfoquePoblacional2_20.Value, vbTextCompare)=0 Then\ncells(20,34) =cells(20,34)+vbNewLine+EnfoquePoblacional2_20.Value\nElse\n      MsgBox\" EL PARAMETRO SELECCIONADO YA HACEPARTE DE LACELDA\"\n End If\n  End IF\n End Sub",20,"Localidades2_20","Private Sub Localidades2_20_Change() \n if cells(20,35)=\"\" Then\n cells(20,35)=Localidades2_20.Value \nelse\n if  InStr(1,cells(20,35),Localidades2_20.Value, vbTextCompare)=0 Then\ncells(20,35) =cells(20,35)+vbNewLine+Localidades2_20.Value\nElse\n      MsgBox\" EL PARAMETRO SELECCIONADO YA HACEPARTE DE LACELDA\"\n End If\n  End IF\n End Sub",20,"EnfoquePoblacional3_20","Private Sub EnfoquePoblacional3_20_Change() \n if cells(20,42)=\"\" Then\n cells(20,42)=EnfoquePoblacional3_20.Value \nelse\n if  InStr(1,cells(20,42),EnfoquePoblacional3_20.Value, vbTextCompare)=0 Then\ncells(20,42) =cells(20,42)+vbNewLine+EnfoquePoblacional3_20.Value\nElse\n      MsgBox\" EL PARAMETRO SELECCIONADO YA HACEPARTE DE LACELDA\"\n End If\n  End IF\n End Sub",20,"Localidades3_20","Private Sub Localidades3_20_Change() \n if cells(20,43)=\"\" Then\n cells(20,43)=Localidades3_20.Value \nelse\n if  InStr(1,cells(20,43),Localidades3_20.Value, vbTextCompare)=0 Then\ncells(20,43) =cells(20,43)+vbNewLine+Localidades3_20.Value\nElse\n      MsgBox\" EL PARAMETRO SELECCIONADO YA HACEPARTE DE LACELDA\"\n End If\n  End IF\n End Sub",null,null,"Private Sub EnfoquePoblacional20_Change() \n if cells(20,18)=\"\" Then\n cells(20,18)=EnfoquePoblacional20.Value \nelse\n if  InStr(1,cells(20,18),EnfoquePoblacional20.Value, vbTextCompare)=0 Then\ncells(20,18) =cells(20,18)+vbNewLine+EnfoquePoblacional20.Value\nElse\n      MsgBox\" EL PARAMETRO SELECCIONADO YA HACEPARTE DE LACELDA\"\n End If\n  End IF\n End Sub",20,"Localidades20","Private Sub Localidades20_Change() \n if cells(20,19)=\"\" Then\n cells(20,19)=Localidades20.Value \nelse\n if  InStr(1,cells(20,19),Localidades20.Value, vbTextCompare)=0 Then\ncells(20,19) =cells(20,19)+vbNewLine+Localidades20.Value\nElse\n      MsgBox\" EL PARAMETRO SELECCIONADO YA HACEPARTE DE LACELDA\"\n End If\n  End IF\n End Sub",20,"EnfoquePoblacional1_20","Private Sub EnfoquePoblacional1_20_Change() \n if cells(20,26)=\"\" Then\n cells(20,26)=EnfoquePoblacional1_20.Value \nelse\n if  InStr(1,cells(20,26),EnfoquePoblacional1_20.Value, vbTextCompare)=0 Then\ncells(20,26) =cells(20,26)+vbNewLine+EnfoquePoblacional1_20.Value\nElse\n      MsgBox\" EL PARAMETRO SELECCIONADO YA HACEPARTE DE LACELDA\"\n End If\n  End IF\n End Sub",20,"Localidades1_20","Private Sub Localidades1_20_Change() \n if cells(20,27)=\"\" Then\n cells(20,27)=Localidades1_20.Value \nelse\n if  InStr(1,cells(20,27),Localidades1_20.Value, vbTextCompare)=0 Then\ncells(20,27) =cells(20,27)+vbNewLine+Localidades1_20.Value\nElse\n      MsgBox\" EL PARAMETRO SELECCIONADO YA HACEPARTE DE LACELDA\"\n End If\n  End IF\n End Sub",20,"EnfoquePoblacional2_20","Private Sub EnfoquePoblacional2_20_Change() \n if cells(20,34)=\"\" Then\n cells(20,34)=EnfoquePoblacional2_20.Value \nelse\n if  InStr(1,cells(20,34),EnfoquePoblacional2_20.Value, vbTextCompare)=0 Then\ncells(20,34) =cells(20,34)+vbNewLine+EnfoquePoblacional2_20.Value\nElse\n      MsgBox\" EL PARAMETRO SELECCIONADO YA HACEPARTE DE LACELDA\"\n End If\n  End IF\n End Sub",20,"Localidades2_20","Private Sub Localidades2_20_Change() \n if cells(20,35)=\"\" Then\n cells(20,35)=Localidades2_20.Value \nelse\n if  InStr(1,cells(20,35),Localidades2_20.Value, vbTextCompare)=0 Then\ncells(20,35) =cells(20,35)+vbNewLine+Localidades2_20.Value\nElse\n      MsgBox\" EL PARAMETRO SELECCIONADO YA HACEPARTE DE LACELDA\"\n End If\n  End IF\n End Sub",20,"EnfoquePoblacional3_20","Private Sub EnfoquePoblacional3_20_Change() \n if cells(20,42)=\"\" Then\n cells(20,42)=EnfoquePoblacional3_20.Value \nelse\n if  InStr(1,cells(20,42),EnfoquePoblacional3_20.Value, vbTextCompare)=0 Then\ncells(20,42) =cells(20,42)+vbNewLine+EnfoquePoblacional3_20.Value\nElse\n      MsgBox\" EL PARAMETRO SELECCIONADO YA HACEPARTE DE LACELDA\"\n End If\n  End IF\n End Sub",20,"Localidades3_20","Private Sub Localidades3_20_Change() \n if cells(20,43)=\"\" Then\n cells(20,43)=Localidades3_20.Value \nelse\n if  InStr(1,cells(20,43),Localidades3_20.Value, vbTextCompare)=0 Then\ncells(20,43) =cells(20,43)+vbNewLine+Localidades3_20.Value\nElse\n      MsgBox\" EL PARAMETRO SELECCIONADO YA HACEPARTE DE LACELDA\"\n End If\n  End IF\n End Sub"]
["     MsgBox \"EL PARAMETRO SELECCIONADO YA HACE PARTE DE LA CELDA\"",null,21,"EnfoquePoblacional21","Private Sub EnfoquePoblacional21_Change() \n if cells(21,18)=\"\" Then\n cells(21,18)=EnfoquePoblacional21.Value \nelse\n if  InStr(1,cells(21,18),EnfoquePoblacional21.Value, vbTextCompare)=0 Then\ncells(21,18) =cells(21,18)+vbNewLine+EnfoquePoblacional21.Value\nElse\n      MsgBox\" EL PARAMETRO SELECCIONADO YA HACEPARTE DE LACELDA\"\n End If\n  End IF\n End Sub",21,"Localidades21","Private Sub Localidades21_Change() \n if cells(21,19)=\"\" Then\n cells(21,19)=Localidades21.Value \nelse\n if  InStr(1,cells(21,19),Localidades21.Value, vbTextCompare)=0 Then\ncells(21,19) =cells(21,19)+vbNewLine+Localidades21.Value\nElse\n      MsgBox\" EL PARAMETRO SELECCIONADO YA HACEPARTE DE LACELDA\"\n End If\n  End IF\n End Sub",21,"EnfoquePoblacional1_21","Private Sub EnfoquePoblacional1_21_Change() \n if cells(21,26)=\"\" Then\n cells(21,26)=EnfoquePoblacional1_21.Value \nelse\n if  InStr(1,cells(21,26),EnfoquePoblacional1_21.Value, vbTextCompare)=0 Then\ncells(21,26) =cells(21,26)+vbNewLine+EnfoquePoblacional1_21.Value\nElse\n      MsgBox\" EL PARAMETRO SELECCIONADO YA HACEPARTE DE LACELDA\"\n End If\n  End IF\n End Sub",21,"Localidades1_21","Private Sub Localidades1_21_Change() \n if cells(21,27)=\"\" Then\n cells(21,27)=Localidades1_21.Value \nelse\n if  InStr(1,cells(21,27),Localidades1_21.Value, vbTextCompare)=0 Then\ncells(21,27) =cells(21,27)+vbNewLine+Localidades1_21.Value\nElse\n      MsgBox\" EL PARAMETRO SELECCIONADO YA HACEPARTE DE LACELDA\"\n End If\n  End IF\n End Sub",21,"EnfoquePoblacional2_21","Private Sub EnfoquePoblacional2_21_Change() \n if cells(21,34)=\"\" Then\n cells(21,34)=EnfoquePoblacional2_21.Value \nelse\n if  InStr(1,cells(21,34),EnfoquePoblacional2_21.Value, vbTextCompare)=0 Then\ncells(21,34) =cells(21,34)+vbNewLine+EnfoquePoblacional2_21.Value\nElse\n      MsgBox\" EL PARAMETRO SELECCIONADO YA HACEPARTE DE LACELDA\"\n End If\n  End IF\n End Sub",21,"Localidades2_21","Private Sub Localidades2_21_Change() \n if cells(21,35)=\"\" Then\n cells(21,35)=Localidades2_21.Value \nelse\n if  InStr(1,cells(21,35),Localidades2_21.Value, vbTextCompare)=0 Then\ncells(21,35) =cells(21,35)+vbNewLine+Localidades2_21.Value\nElse\n      MsgBox\" EL PARAMETRO SELECCIONADO YA HACEPARTE DE LACELDA\"\n End If\n  End IF\n End Sub",21,"EnfoquePoblacional3_21","Private Sub EnfoquePoblacional3_21_Change() \n if cells(21,42)=\"\" Then\n cells(21,42)=EnfoquePoblacional3_21.Value \nelse\n if  InStr(1,cells(21,42),EnfoquePoblacional3_21.Value, vbTextCompare)=0 Then\ncells(21,42) =cells(21,42)+vbNewLine+EnfoquePoblacional3_21.Value\nElse\n      MsgBox\" EL PARAMETRO SELECCIONADO YA HACEPARTE DE LACELDA\"\n End If\n  End IF\n End Sub",21,"Localidades3_21","Private Sub Localidades3_21_Change() \n if cells(21,43)=\"\" Then\n cells(21,43)=Localidades3_21.Value \nelse\n if  InStr(1,cells(21,43),Localidades3_21.Value, vbTextCompare)=0 Then\ncells(21,43) =cells(21,43)+vbNewLine+Localidades3_21.Value\nElse\n      MsgBox\" EL PARAMETRO SELECCIONADO YA HACEPARTE DE LACELDA\"\n End If\n  End IF\n End Sub",null,null,"Private Sub EnfoquePoblacional21_Change() \n if cells(21,18)=\"\" Then\n cells(21,18)=EnfoquePoblacional21.Value \nelse\n if  InStr(1,cells(21,18),EnfoquePoblacional21.Value, vbTextCompare)=0 Then\ncells(21,18) =cells(21,18)+vbNewLine+EnfoquePoblacional21.Value\nElse\n      MsgBox\" EL PARAMETRO SELECCIONADO YA HACEPARTE DE LACELDA\"\n End If\n  End IF\n End Sub",21,"Localidades21","Private Sub Localidades21_Change() \n if cells(21,19)=\"\" Then\n cells(21,19)=Localidades21.Value \nelse\n if  InStr(1,cells(21,19),Localidades21.Value, vbTextCompare)=0 Then\ncells(21,19) =cells(21,19)+vbNewLine+Localidades21.Value\nElse\n      MsgBox\" EL PARAMETRO SELECCIONADO YA HACEPARTE DE LACELDA\"\n End If\n  End IF\n End Sub",21,"EnfoquePoblacional1_21","Private Sub EnfoquePoblacional1_21_Change() \n if cells(21,26)=\"\" Then\n cells(21,26)=EnfoquePoblacional1_21.Value \nelse\n if  InStr(1,cells(21,26),EnfoquePoblacional1_21.Value, vbTextCompare)=0 Then\ncells(21,26) =cells(21,26)+vbNewLine+EnfoquePoblacional1_21.Value\nElse\n      MsgBox\" EL PARAMETRO SELECCIONADO YA HACEPARTE DE LACELDA\"\n End If\n  End IF\n End Sub",21,"Localidades1_21","Private Sub Localidades1_21_Change() \n if cells(21,27)=\"\" Then\n cells(21,27)=Localidades1_21.Value \nelse\n if  InStr(1,cells(21,27),Localidades1_21.Value, vbTextCompare)=0 Then\ncells(21,27) =cells(21,27)+vbNewLine+Localidades1_21.Value\nElse\n      MsgBox\" EL PARAMETRO SELECCIONADO YA HACEPARTE DE LACELDA\"\n End If\n  End IF\n End Sub",21,"EnfoquePoblacional2_21","Private Sub EnfoquePoblacional2_21_Change() \n if cells(21,34)=\"\" Then\n cells(21,34)=EnfoquePoblacional2_21.Value \nelse\n if  InStr(1,cells(21,34),EnfoquePoblacional2_21.Value, vbTextCompare)=0 Then\ncells(21,34) =cells(21,34)+vbNewLine+EnfoquePoblacional2_21.Value\nElse\n      MsgBox\" EL PARAMETRO SELECCIONADO YA HACEPARTE DE LACELDA\"\n End If\n  End IF\n End Sub",21,"Localidades2_21","Private Sub Localidades2_21_Change() \n if cells(21,35)=\"\" Then\n cells(21,35)=Localidades2_21.Value \nelse\n if  InStr(1,cells(21,35),Localidades2_21.Value, vbTextCompare)=0 Then\ncells(21,35) =cells(21,35)+vbNewLine+Localidades2_21.Value\nElse\n      MsgBox\" EL PARAMETRO SELECCIONADO YA HACEPARTE DE LACELDA\"\n End If\n  End IF\n End Sub",21,"EnfoquePoblacional3_21","Private Sub EnfoquePoblacional3_21_Change() \n if cells(21,42)=\"\" Then\n cells(21,42)=EnfoquePoblacional3_21.Value \nelse\n if  InStr(1,cells(21,42),EnfoquePoblacional3_21.Value, vbTextCompare)=0 Then\ncells(21,42) =cells(21,42)+vbNewLine+EnfoquePoblacional3_21.Value\nElse\n      MsgBox\" EL PARAMETRO SELECCIONADO YA HACEPARTE DE LACELDA\"\n End If\n  End IF\n End Sub",21,"Localidades3_21","Private Sub Localidades3_21_Change() \n if cells(21,43)=\"\" Then\n cells(21,43)=Localidades3_21.Value \nelse\n if  InStr(1,cells(21,43),Localidades3_21.Value, vbTextCompare)=0 Then\ncells(21,43) =cells(21,43)+vbNewLine+Localidades3_21.Value\nElse\n      MsgBox\" EL PARAMETRO SELECCIONADO YA HACEPARTE DE LACELDA\"\n End If\n  End IF\n End Sub"]
["    End If",null,22,"EnfoquePoblacional22","Private Sub EnfoquePoblacional22_Change() \n if cells(22,18)=\"\" Then\n cells(22,18)=EnfoquePoblacional22.Value \nelse\n if  InStr(1,cells(22,18),EnfoquePoblacional22.Value, vbTextCompare)=0 Then\ncells(22,18) =cells(22,18)+vbNewLine+EnfoquePoblacional22.Value\nElse\n      MsgBox\" EL PARAMETRO SELECCIONADO YA HACEPARTE DE LACELDA\"\n End If\n  End IF\n End Sub",22,"Localidades22","Private Sub Localidades22_Change() \n if cells(22,19)=\"\" Then\n cells(22,19)=Localidades22.Value \nelse\n if  InStr(1,cells(22,19),Localidades22.Value, vbTextCompare)=0 Then\ncells(22,19) =cells(22,19)+vbNewLine+Localidades22.Value\nElse\n      MsgBox\" EL PARAMETRO SELECCIONADO YA HACEPARTE DE LACELDA\"\n End If\n  End IF\n End Sub",22,"EnfoquePoblacional1_22","Private Sub EnfoquePoblacional1_22_Change() \n if cells(22,26)=\"\" Then\n cells(22,26)=EnfoquePoblacional1_22.Value \nelse\n if  InStr(1,cells(22,26),EnfoquePoblacional1_22.Value, vbTextCompare)=0 Then\ncells(22,26) =cells(22,26)+vbNewLine+EnfoquePoblacional1_22.Value\nElse\n      MsgBox\" EL PARAMETRO SELECCIONADO YA HACEPARTE DE LACELDA\"\n End If\n  End IF\n End Sub",22,"Localidades1_22","Private Sub Localidades1_22_Change() \n if cells(22,27)=\"\" Then\n cells(22,27)=Localidades1_22.Value \nelse\n if  InStr(1,cells(22,27),Localidades1_22.Value, vbTextCompare)=0 Then\ncells(22,27) =cells(22,27)+vbNewLine+Localidades1_22.Value\nElse\n      MsgBox\" EL PARAMETRO SELECCIONADO YA HACEPARTE DE LACELDA\"\n End If\n  End IF\n End Sub",22,"EnfoquePoblacional2_22","Private Sub EnfoquePoblacional2_22_Change() \n if cells(22,34)=\"\" Then\n cells(22,34)=EnfoquePoblacional2_22.Value \nelse\n if  InStr(1,cells(22,34),EnfoquePoblacional2_22.Value, vbTextCompare)=0 Then\ncells(22,34) =cells(22,34)+vbNewLine+EnfoquePoblacional2_22.Value\nElse\n      MsgBox\" EL PARAMETRO SELECCIONADO YA HACEPARTE DE LACELDA\"\n End If\n  End IF\n End Sub",22,"Localidades2_22","Private Sub Localidades2_22_Change() \n if cells(22,35)=\"\" Then\n cells(22,35)=Localidades2_22.Value \nelse\n if  InStr(1,cells(22,35),Localidades2_22.Value, vbTextCompare)=0 Then\ncells(22,35) =cells(22,35)+vbNewLine+Localidades2_22.Value\nElse\n      MsgBox\" EL PARAMETRO SELECCIONADO YA HACEPARTE DE LACELDA\"\n End If\n  End IF\n End Sub",22,"EnfoquePoblacional3_22","Private Sub EnfoquePoblacional3_22_Change() \n if cells(22,42)=\"\" Then\n cells(22,42)=EnfoquePoblacional3_22.Value \nelse\n if  InStr(1,cells(22,42),EnfoquePoblacional3_22.Value, vbTextCompare)=0 Then\ncells(22,42) =cells(22,42)+vbNewLine+EnfoquePoblacional3_22.Value\nElse\n      MsgBox\" EL PARAMETRO SELECCIONADO YA HACEPARTE DE LACELDA\"\n End If\n  End IF\n End Sub",22,"Localidades3_22","Private Sub Localidades3_22_Change() \n if cells(22,43)=\"\" Then\n cells(22,43)=Localidades3_22.Value \nelse\n if  InStr(1,cells(22,43),Localidades3_22.Value, vbTextCompare)=0 Then\ncells(22,43) =cells(22,43)+vbNewLine+Localidades3_22.Value\nElse\n      MsgBox\" EL PARAMETRO SELECCIONADO YA HACEPARTE DE LACELDA\"\n End If\n  End IF\n End Sub",null,null,"Private Sub EnfoquePoblacional22_Change() \n if cells(22,18)=\"\" Then\n cells(22,18)=EnfoquePoblacional22.Value \nelse\n if  InStr(1,cells(22,18),EnfoquePoblacional22.Value, vbTextCompare)=0 Then\ncells(22,18) =cells(22,18)+vbNewLine+EnfoquePoblacional22.Value\nElse\n      MsgBox\" EL PARAMETRO SELECCIONADO YA HACEPARTE DE LACELDA\"\n End If\n  End IF\n End Sub",22,"Localidades22","Private Sub Localidades22_Change() \n if cells(22,19)=\"\" Then\n cells(22,19)=Localidades22.Value \nelse\n if  InStr(1,cells(22,19),Localidades22.Value, vbTextCompare)=0 Then\ncells(22,19) =cells(22,19)+vbNewLine+Localidades22.Value\nElse\n      MsgBox\" EL PARAMETRO SELECCIONADO YA HACEPARTE DE LACELDA\"\n End If\n  End IF\n End Sub",22,"EnfoquePoblacional1_22","Private Sub EnfoquePoblacional1_22_Change() \n if cells(22,26)=\"\" Then\n cells(22,26)=EnfoquePoblacional1_22.Value \nelse\n if  InStr(1,cells(22,26),EnfoquePoblacional1_22.Value, vbTextCompare)=0 Then\ncells(22,26) =cells(22,26)+vbNewLine+EnfoquePoblacional1_22.Value\nElse\n      MsgBox\" EL PARAMETRO SELECCIONADO YA HACEPARTE DE LACELDA\"\n End If\n  End IF\n End Sub",22,"Localidades1_22","Private Sub Localidades1_22_Change() \n if cells(22,27)=\"\" Then\n cells(22,27)=Localidades1_22.Value \nelse\n if  InStr(1,cells(22,27),Localidades1_22.Value, vbTextCompare)=0 Then\ncells(22,27) =cells(22,27)+vbNewLine+Localidades1_22.Value\nElse\n      MsgBox\" EL PARAMETRO SELECCIONADO YA HACEPARTE DE LACELDA\"\n End If\n  End IF\n End Sub",22,"EnfoquePoblacional2_22","Private Sub EnfoquePoblacional2_22_Change() \n if cells(22,34)=\"\" Then\n cells(22,34)=EnfoquePoblacional2_22.Value \nelse\n if  InStr(1,cells(22,34),EnfoquePoblacional2_22.Value, vbTextCompare)=0 Then\ncells(22,34) =cells(22,34)+vbNewLine+EnfoquePoblacional2_22.Value\nElse\n      MsgBox\" EL PARAMETRO SELECCIONADO YA HACEPARTE DE LACELDA\"\n End If\n  End IF\n End Sub",22,"Localidades2_22","Private Sub Localidades2_22_Change() \n if cells(22,35)=\"\" Then\n cells(22,35)=Localidades2_22.Value \nelse\n if  InStr(1,cells(22,35),Localidades2_22.Value, vbTextCompare)=0 Then\ncells(22,35) =cells(22,35)+vbNewLine+Localidades2_22.Value\nElse\n      MsgBox\" EL PARAMETRO SELECCIONADO YA HACEPARTE DE LACELDA\"\n End If\n  End IF\n End Sub",22,"EnfoquePoblacional3_22","Private Sub EnfoquePoblacional3_22_Change() \n if cells(22,42)=\"\" Then\n cells(22,42)=EnfoquePoblacional3_22.Value \nelse\n if  InStr(1,cells(22,42),EnfoquePoblacional3_22.Value, vbTextCompare)=0 Then\ncells(22,42) =cells(22,42)+vbNewLine+EnfoquePoblacional3_22.Value\nElse\n      MsgBox\" EL PARAMETRO SELECCIONADO YA HACEPARTE DE LACELDA\"\n End If\n  End IF\n End Sub",22,"Localidades3_22","Private Sub Localidades3_22_Change() \n if cells(22,43)=\"\" Then\n cells(22,43)=Localidades3_22.Value \nelse\n if  InStr(1,cells(22,43),Localidades3_22.Value, vbTextCompare)=0 Then\ncells(22,43) =cells(22,43)+vbNewLine+Localidades3_22.Value\nElse\n      MsgBox\" EL PARAMETRO SELECCIONADO YA HACEPARTE DE LACELDA\"\n End If\n  End IF\n End Sub"]
["End If",null,23,"EnfoquePoblacional23","Private Sub EnfoquePoblacional23_Change() \n if cells(23,18)=\"\" Then\n cells(23,18)=EnfoquePoblacional23.Value \nelse\n if  InStr(1,cells(23,18),EnfoquePoblacional23.Value, vbTextCompare)=0 Then\ncells(23,18) =cells(23,18)+vbNewLine+EnfoquePoblacional23.Value\nElse\n      MsgBox\" EL PARAMETRO SELECCIONADO YA HACEPARTE DE LACELDA\"\n End If\n  End IF\n End Sub",23,"Localidades23","Private Sub Localidades23_Change() \n if cells(23,19)=\"\" Then\n cells(23,19)=Localidades23.Value \nelse\n if  InStr(1,cells(23,19),Localidades23.Value, vbTextCompare)=0 Then\ncells(23,19) =cells(23,19)+vbNewLine+Localidades23.Value\nElse\n      MsgBox\" EL PARAMETRO SELECCIONADO YA HACEPARTE DE LACELDA\"\n End If\n  End IF\n End Sub",23,"EnfoquePoblacional1_23","Private Sub EnfoquePoblacional1_23_Change() \n if cells(23,26)=\"\" Then\n cells(23,26)=EnfoquePoblacional1_23.Value \nelse\n if  InStr(1,cells(23,26),EnfoquePoblacional1_23.Value, vbTextCompare)=0 Then\ncells(23,26) =cells(23,26)+vbNewLine+EnfoquePoblacional1_23.Value\nElse\n      MsgBox\" EL PARAMETRO SELECCIONADO YA HACEPARTE DE LACELDA\"\n End If\n  End IF\n End Sub",23,"Localidades1_23","Private Sub Localidades1_23_Change() \n if cells(23,27)=\"\" Then\n cells(23,27)=Localidades1_23.Value \nelse\n if  InStr(1,cells(23,27),Localidades1_23.Value, vbTextCompare)=0 Then\ncells(23,27) =cells(23,27)+vbNewLine+Localidades1_23.Value\nElse\n      MsgBox\" EL PARAMETRO SELECCIONADO YA HACEPARTE DE LACELDA\"\n End If\n  End IF\n End Sub",23,"EnfoquePoblacional2_23","Private Sub EnfoquePoblacional2_23_Change() \n if cells(23,34)=\"\" Then\n cells(23,34)=EnfoquePoblacional2_23.Value \nelse\n if  InStr(1,cells(23,34),EnfoquePoblacional2_23.Value, vbTextCompare)=0 Then\ncells(23,34) =cells(23,34)+vbNewLine+EnfoquePoblacional2_23.Value\nElse\n      MsgBox\" EL PARAMETRO SELECCIONADO YA HACEPARTE DE LACELDA\"\n End If\n  End IF\n End Sub",23,"Localidades2_23","Private Sub Localidades2_23_Change() \n if cells(23,35)=\"\" Then\n cells(23,35)=Localidades2_23.Value \nelse\n if  InStr(1,cells(23,35),Localidades2_23.Value, vbTextCompare)=0 Then\ncells(23,35) =cells(23,35)+vbNewLine+Localidades2_23.Value\nElse\n      MsgBox\" EL PARAMETRO SELECCIONADO YA HACEPARTE DE LACELDA\"\n End If\n  End IF\n End Sub",23,"EnfoquePoblacional3_23","Private Sub EnfoquePoblacional3_23_Change() \n if cells(23,42)=\"\" Then\n cells(23,42)=EnfoquePoblacional3_23.Value \nelse\n if  InStr(1,cells(23,42),EnfoquePoblacional3_23.Value, vbTextCompare)=0 Then\ncells(23,42) =cells(23,42)+vbNewLine+EnfoquePoblacional3_23.Value\nElse\n      MsgBox\" EL PARAMETRO SELECCIONADO YA HACEPARTE DE LACELDA\"\n End If\n  End IF\n End Sub",23,"Localidades3_23","Private Sub Localidades3_23_Change() \n if cells(23,43)=\"\" Then\n cells(23,43)=Localidades3_23.Value \nelse\n if  InStr(1,cells(23,43),Localidades3_23.Value, vbTextCompare)=0 Then\ncells(23,43) =cells(23,43)+vbNewLine+Localidades3_23.Value\nElse\n      MsgBox\" EL PARAMETRO SELECCIONADO YA HACEPARTE DE LACELDA\"\n End If\n  End IF\n End Sub",null,null,"Private Sub EnfoquePoblacional23_Change() \n if cells(23,18)=\"\" Then\n cells(23,18)=EnfoquePoblacional23.Value \nelse\n if  InStr(1,cells(23,18),EnfoquePoblacional23.Value, vbTextCompare)=0 Then\ncells(23,18) =cells(23,18)+vbNewLine+EnfoquePoblacional23.Value\nElse\n      MsgBox\" EL PARAMETRO SELECCIONADO YA HACEPARTE DE LACELDA\"\n End If\n  End IF\n End Sub",23,"Localidades23","Private Sub Localidades23_Change() \n if cells(23,19)=\"\" Then\n cells(23,19)=Localidades23.Value \nelse\n if  InStr(1,cells(23,19),Localidades23.Value, vbTextCompare)=0 Then\ncells(23,19) =cells(23,19)+vbNewLine+Localidades23.Value\nElse\n      MsgBox\" EL PARAMETRO SELECCIONADO YA HACEPARTE DE LACELDA\"\n End If\n  End IF\n End Sub",23,"EnfoquePoblacional1_23","Private Sub EnfoquePoblacional1_23_Change() \n if cells(23,26)=\"\" Then\n cells(23,26)=EnfoquePoblacional1_23.Value \nelse\n if  InStr(1,cells(23,26),EnfoquePoblacional1_23.Value, vbTextCompare)=0 Then\ncells(23,26) =cells(23,26)+vbNewLine+EnfoquePoblacional1_23.Value\nElse\n      MsgBox\" EL PARAMETRO SELECCIONADO YA HACEPARTE DE LACELDA\"\n End If\n  End IF\n End Sub",23,"Localidades1_23","Private Sub Localidades1_23_Change() \n if cells(23,27)=\"\" Then\n cells(23,27)=Localidades1_23.Value \nelse\n if  InStr(1,cells(23,27),Localidades1_23.Value, vbTextCompare)=0 Then\ncells(23,27) =cells(23,27)+vbNewLine+Localidades1_23.Value\nElse\n      MsgBox\" EL PARAMETRO SELECCIONADO YA HACEPARTE DE LACELDA\"\n End If\n  End IF\n End Sub",23,"EnfoquePoblacional2_23","Private Sub EnfoquePoblacional2_23_Change() \n if cells(23,34)=\"\" Then\n cells(23,34)=EnfoquePoblacional2_23.Value \nelse\n if  InStr(1,cells(23,34),EnfoquePoblacional2_23.Value, vbTextCompare)=0 Then\ncells(23,34) =cells(23,34)+vbNewLine+EnfoquePoblacional2_23.Value\nElse\n      MsgBox\" EL PARAMETRO SELECCIONADO YA HACEPARTE DE LACELDA\"\n End If\n  End IF\n End Sub",23,"Localidades2_23","Private Sub Localidades2_23_Change() \n if cells(23,35)=\"\" Then\n cells(23,35)=Localidades2_23.Value \nelse\n if  InStr(1,cells(23,35),Localidades2_23.Value, vbTextCompare)=0 Then\ncells(23,35) =cells(23,35)+vbNewLine+Localidades2_23.Value\nElse\n      MsgBox\" EL PARAMETRO SELECCIONADO YA HACEPARTE DE LACELDA\"\n End If\n  End IF\n End Sub",23,"EnfoquePoblacional3_23","Private Sub EnfoquePoblacional3_23_Change() \n if cells(23,42)=\"\" Then\n cells(23,42)=EnfoquePoblacional3_23.Value \nelse\n if  InStr(1,cells(23,42),EnfoquePoblacional3_23.Value, vbTextCompare)=0 Then\ncells(23,42) =cells(23,42)+vbNewLine+EnfoquePoblacional3_23.Value\nElse\n      MsgBox\" EL PARAMETRO SELECCIONADO YA HACEPARTE DE LACELDA\"\n End If\n  End IF\n End Sub",23,"Localidades3_23","Private Sub Localidades3_23_Change() \n if cells(23,43)=\"\" Then\n cells(23,43)=Localidades3_23.Value \nelse\n if  InStr(1,cells(23,43),Localidades3_23.Value, vbTextCompare)=0 Then\ncells(23,43) =cells(23,43)+vbNewLine+Localidades3_23.Value\nElse\n      MsgBox\" EL PARAMETRO SELECCIONADO YA HACEPARTE DE LACELDA\"\n End If\n  End IF\n End Sub"]
["End Sub",null,24,"EnfoquePoblacional24","Private Sub EnfoquePoblacional24_Change() \n if cells(24,18)=\"\" Then\n cells(24,18)=EnfoquePoblacional24.Value \nelse\n if  InStr(1,cells(24,18),EnfoquePoblacional24.Value, vbTextCompare)=0 Then\ncells(24,18) =cells(24,18)+vbNewLine+EnfoquePoblacional24.Value\nElse\n      MsgBox\" EL PARAMETRO SELECCIONADO YA HACEPARTE DE LACELDA\"\n End If\n  End IF\n End Sub",24,"Localidades24","Private Sub Localidades24_Change() \n if cells(24,19)=\"\" Then\n cells(24,19)=Localidades24.Value \nelse\n if  InStr(1,cells(24,19),Localidades24.Value, vbTextCompare)=0 Then\ncells(24,19) =cells(24,19)+vbNewLine+Localidades24.Value\nElse\n      MsgBox\" EL PARAMETRO SELECCIONADO YA HACEPARTE DE LACELDA\"\n End If\n  End IF\n End Sub",24,"EnfoquePoblacional1_24","Private Sub EnfoquePoblacional1_24_Change() \n if cells(24,26)=\"\" Then\n cells(24,26)=EnfoquePoblacional1_24.Value \nelse\n if  InStr(1,cells(24,26),EnfoquePoblacional1_24.Value, vbTextCompare)=0 Then\ncells(24,26) =cells(24,26)+vbNewLine+EnfoquePoblacional1_24.Value\nElse\n      MsgBox\" EL PARAMETRO SELECCIONADO YA HACEPARTE DE LACELDA\"\n End If\n  End IF\n End Sub",24,"Localidades1_24","Private Sub Localidades1_24_Change() \n if cells(24,27)=\"\" Then\n cells(24,27)=Localidades1_24.Value \nelse\n if  InStr(1,cells(24,27),Localidades1_24.Value, vbTextCompare)=0 Then\ncells(24,27) =cells(24,27)+vbNewLine+Localidades1_24.Value\nElse\n      MsgBox\" EL PARAMETRO SELECCIONADO YA HACEPARTE DE LACELDA\"\n End If\n  End IF\n End Sub",24,"EnfoquePoblacional2_24","Private Sub EnfoquePoblacional2_24_Change() \n if cells(24,34)=\"\" Then\n cells(24,34)=EnfoquePoblacional2_24.Value \nelse\n if  InStr(1,cells(24,34),EnfoquePoblacional2_24.Value, vbTextCompare)=0 Then\ncells(24,34) =cells(24,34)+vbNewLine+EnfoquePoblacional2_24.Value\nElse\n      MsgBox\" EL PARAMETRO SELECCIONADO YA HACEPARTE DE LACELDA\"\n End If\n  End IF\n End Sub",24,"Localidades2_24","Private Sub Localidades2_24_Change() \n if cells(24,35)=\"\" Then\n cells(24,35)=Localidades2_24.Value \nelse\n if  InStr(1,cells(24,35),Localidades2_24.Value, vbTextCompare)=0 Then\ncells(24,35) =cells(24,35)+vbNewLine+Localidades2_24.Value\nElse\n      MsgBox\" EL PARAMETRO SELECCIONADO YA HACEPARTE DE LACELDA\"\n End If\n  End IF\n End Sub",24,"EnfoquePoblacional3_24","Private Sub EnfoquePoblacional3_24_Change() \n if cells(24,42)=\"\" Then\n cells(24,42)=EnfoquePoblacional3_24.Value \nelse\n if  InStr(1,cells(24,42),EnfoquePoblacional3_24.Value, vbTextCompare)=0 Then\ncells(24,42) =cells(24,42)+vbNewLine+EnfoquePoblacional3_24.Value\nElse\n      MsgBox\" EL PARAMETRO SELECCIONADO YA HACEPARTE DE LACELDA\"\n End If\n  End IF\n End Sub",24,"Localidades3_24","Private Sub Localidades3_24_Change() \n if cells(24,43)=\"\" Then\n cells(24,43)=Localidades3_24.Value \nelse\n if  InStr(1,cells(24,43),Localidades3_24.Value, vbTextCompare)=0 Then\ncells(24,43) =cells(24,43)+vbNewLine+Localidades3_24.Value\nElse\n      MsgBox\" EL PARAMETRO SELECCIONADO YA HACEPARTE DE LACELDA\"\n End If\n  End IF\n End Sub",null,null,"Private Sub EnfoquePoblacional24_Change() \n if cells(24,18)=\"\" Then\n cells(24,18)=EnfoquePoblacional24.Value \nelse\n if  InStr(1,cells(24,18),EnfoquePoblacional24.Value, vbTextCompare)=0 Then\ncells(24,18) =cells(24,18)+vbNewLine+EnfoquePoblacional24.Value\nElse\n      MsgBox\" EL PARAMETRO SELECCIONADO YA HACEPARTE DE LACELDA\"\n End If\n  End IF\n End Sub",24,"Localidades24","Private Sub Localidades24_Change() \n if cells(24,19)=\"\" Then\n cells(24,19)=Localidades24.Value \nelse\n if  InStr(1,cells(24,19),Localidades24.Value, vbTextCompare)=0 Then\ncells(24,19) =cells(24,19)+vbNewLine+Localidades24.Value\nElse\n      MsgBox\" EL PARAMETRO SELECCIONADO YA HACEPARTE DE LACELDA\"\n End If\n  End IF\n End Sub",24,"EnfoquePoblacional1_24","Private Sub EnfoquePoblacional1_24_Change() \n if cells(24,26)=\"\" Then\n cells(24,26)=EnfoquePoblacional1_24.Value \nelse\n if  InStr(1,cells(24,26),EnfoquePoblacional1_24.Value, vbTextCompare)=0 Then\ncells(24,26) =cells(24,26)+vbNewLine+EnfoquePoblacional1_24.Value\nElse\n      MsgBox\" EL PARAMETRO SELECCIONADO YA HACEPARTE DE LACELDA\"\n End If\n  End IF\n End Sub",24,"Localidades1_24","Private Sub Localidades1_24_Change() \n if cells(24,27)=\"\" Then\n cells(24,27)=Localidades1_24.Value \nelse\n if  InStr(1,cells(24,27),Localidades1_24.Value, vbTextCompare)=0 Then\ncells(24,27) =cells(24,27)+vbNewLine+Localidades1_24.Value\nElse\n      MsgBox\" EL PARAMETRO SELECCIONADO YA HACEPARTE DE LACELDA\"\n End If\n  End IF\n End Sub",24,"EnfoquePoblacional2_24","Private Sub EnfoquePoblacional2_24_Change() \n if cells(24,34)=\"\" Then\n cells(24,34)=EnfoquePoblacional2_24.Value \nelse\n if  InStr(1,cells(24,34),EnfoquePoblacional2_24.Value, vbTextCompare)=0 Then\ncells(24,34) =cells(24,34)+vbNewLine+EnfoquePoblacional2_24.Value\nElse\n      MsgBox\" EL PARAMETRO SELECCIONADO YA HACEPARTE DE LACELDA\"\n End If\n  End IF\n End Sub",24,"Localidades2_24","Private Sub Localidades2_24_Change() \n if cells(24,35)=\"\" Then\n cells(24,35)=Localidades2_24.Value \nelse\n if  InStr(1,cells(24,35),Localidades2_24.Value, vbTextCompare)=0 Then\ncells(24,35) =cells(24,35)+vbNewLine+Localidades2_24.Value\nElse\n      MsgBox\" EL PARAMETRO SELECCIONADO YA HACEPARTE DE LACELDA\"\n End If\n  End IF\n End Sub",24,"EnfoquePoblacional3_24","Private Sub EnfoquePoblacional3_24_Change() \n if cells(24,42)=\"\" Then\n cells(24,42)=EnfoquePoblacional3_24.Value \nelse\n if  InStr(1,cells(24,42),EnfoquePoblacional3_24.Value, vbTextCompare)=0 Then\ncells(24,42) =cells(24,42)+vbNewLine+EnfoquePoblacional3_24.Value\nElse\n      MsgBox\" EL PARAMETRO SELECCIONADO YA HACEPARTE DE LACELDA\"\n End If\n  End IF\n End Sub",24,"Localidades3_24","Private Sub Localidades3_24_Change() \n if cells(24,43)=\"\" Then\n cells(24,43)=Localidades3_24.Value \nelse\n if  InStr(1,cells(24,43),Localidades3_24.Value, vbTextCompare)=0 Then\ncells(24,43) =cells(24,43)+vbNewLine+Localidades3_24.Value\nElse\n      MsgBox\" EL PARAMETRO SELECCIONADO YA HACEPARTE DE LACELDA\"\n End If\n  End IF\n End Sub"]
[null,null,25,"EnfoquePoblacional25","Private Sub EnfoquePoblacional25_Change() \n if cells(25,18)=\"\" Then\n cells(25,18)=EnfoquePoblacional25.Value \nelse\n if  InStr(1,cells(25,18),EnfoquePoblacional25.Value, vbTextCompare)=0 Then\ncells(25,18) =cells(25,18)+vbNewLine+EnfoquePoblacional25.Value\nElse\n      MsgBox\" EL PARAMETRO SELECCIONADO YA HACEPARTE DE LACELDA\"\n End If\n  End IF\n End Sub",25,"Localidades25","Private Sub Localidades25_Change() \n if cells(25,19)=\"\" Then\n cells(25,19)=Localidades25.Value \nelse\n if  InStr(1,cells(25,19),Localidades25.Value, vbTextCompare)=0 Then\ncells(25,19) =cells(25,19)+vbNewLine+Localidades25.Value\nElse\n      MsgBox\" EL PARAMETRO SELECCIONADO YA HACEPARTE DE LACELDA\"\n End If\n  End IF\n End Sub",25,"EnfoquePoblacional1_25","Private Sub EnfoquePoblacional1_25_Change() \n if cells(25,26)=\"\" Then\n cells(25,26)=EnfoquePoblacional1_25.Value \nelse\n if  InStr(1,cells(25,26),EnfoquePoblacional1_25.Value, vbTextCompare)=0 Then\ncells(25,26) =cells(25,26)+vbNewLine+EnfoquePoblacional1_25.Value\nElse\n      MsgBox\" EL PARAMETRO SELECCIONADO YA HACEPARTE DE LACELDA\"\n End If\n  End IF\n End Sub",25,"Localidades1_25","Private Sub Localidades1_25_Change() \n if cells(25,27)=\"\" Then\n cells(25,27)=Localidades1_25.Value \nelse\n if  InStr(1,cells(25,27),Localidades1_25.Value, vbTextCompare)=0 Then\ncells(25,27) =cells(25,27)+vbNewLine+Localidades1_25.Value\nElse\n      MsgBox\" EL PARAMETRO SELECCIONADO YA HACEPARTE DE LACELDA\"\n End If\n  End IF\n End Sub",25,"EnfoquePoblacional2_25","Private Sub EnfoquePoblacional2_25_Change() \n if cells(25,34)=\"\" Then\n cells(25,34)=EnfoquePoblacional2_25.Value \nelse\n if  InStr(1,cells(25,34),EnfoquePoblacional2_25.Value, vbTextCompare)=0 Then\ncells(25,34) =cells(25,34)+vbNewLine+EnfoquePoblacional2_25.Value\nElse\n      MsgBox\" EL PARAMETRO SELECCIONADO YA HACEPARTE DE LACELDA\"\n End If\n  End IF\n End Sub",25,"Localidades2_25","Private Sub Localidades2_25_Change() \n if cells(25,35)=\"\" Then\n cells(25,35)=Localidades2_25.Value \nelse\n if  InStr(1,cells(25,35),Localidades2_25.Value, vbTextCompare)=0 Then\ncells(25,35) =cells(25,35)+vbNewLine+Localidades2_25.Value\nElse\n      MsgBox\" EL PARAMETRO SELECCIONADO YA HACEPARTE DE LACELDA\"\n End If\n  End IF\n End Sub",25,"EnfoquePoblacional3_25","Private Sub EnfoquePoblacional3_25_Change() \n if cells(25,42)=\"\" Then\n cells(25,42)=EnfoquePoblacional3_25.Value \nelse\n if  InStr(1,cells(25,42),EnfoquePoblacional3_25.Value, vbTextCompare)=0 Then\ncells(25,42) =cells(25,42)+vbNewLine+EnfoquePoblacional3_25.Value\nElse\n      MsgBox\" EL PARAMETRO SELECCIONADO YA HACEPARTE DE LACELDA\"\n End If\n  End IF\n End Sub",25,"Localidades3_25","Private Sub Localidades3_25_Change() \n if cells(25,43)=\"\" Then\n cells(25,43)=Localidades3_25.Value \nelse\n if  InStr(1,cells(25,43),Localidades3_25.Value, vbTextCompare)=0 Then\ncells(25,43) =cells(25,43)+vbNewLine+Localidades3_25.Value\nElse\n      MsgBox\" EL PARAMETRO SELECCIONADO YA HACEPARTE DE LACELDA\"\n End If\n  End IF\n End Sub",null,null,"Private Sub EnfoquePoblacional25_Change() \n if cells(25,18)=\"\" Then\n cells(25,18)=EnfoquePoblacional25.Value \nelse\n if  InStr(1,cells(25,18),EnfoquePoblacional25.Value, vbTextCompare)=0 Then\ncells(25,18) =cells(25,18)+vbNewLine+EnfoquePoblacional25.Value\nElse\n      MsgBox\" EL PARAMETRO SELECCIONADO YA HACEPARTE DE LACELDA\"\n End If\n  End IF\n End Sub",25,"Localidades25","Private Sub Localidades25_Change() \n if cells(25,19)=\"\" Then\n cells(25,19)=Localidades25.Value \nelse\n if  InStr(1,cells(25,19),Localidades25.Value, vbTextCompare)=0 Then\ncells(25,19) =cells(25,19)+vbNewLine+Localidades25.Value\nElse\n      MsgBox\" EL PARAMETRO SELECCIONADO YA HACEPARTE DE LACELDA\"\n End If\n  End IF\n End Sub",25,"EnfoquePoblacional1_25","Private Sub EnfoquePoblacional1_25_Change() \n if cells(25,26)=\"\" Then\n cells(25,26)=EnfoquePoblacional1_25.Value \nelse\n if  InStr(1,cells(25,26),EnfoquePoblacional1_25.Value, vbTextCompare)=0 Then\ncells(25,26) =cells(25,26)+vbNewLine+EnfoquePoblacional1_25.Value\nElse\n      MsgBox\" EL PARAMETRO SELECCIONADO YA HACEPARTE DE LACELDA\"\n End If\n  End IF\n End Sub",25,"Localidades1_25","Private Sub Localidades1_25_Change() \n if cells(25,27)=\"\" Then\n cells(25,27)=Localidades1_25.Value \nelse\n if  InStr(1,cells(25,27),Localidades1_25.Value, vbTextCompare)=0 Then\ncells(25,27) =cells(25,27)+vbNewLine+Localidades1_25.Value\nElse\n      MsgBox\" EL PARAMETRO SELECCIONADO YA HACEPARTE DE LACELDA\"\n End If\n  End IF\n End Sub",25,"EnfoquePoblacional2_25","Private Sub EnfoquePoblacional2_25_Change() \n if cells(25,34)=\"\" Then\n cells(25,34)=EnfoquePoblacional2_25.Value \nelse\n if  InStr(1,cells(25,34),EnfoquePoblacional2_25.Value, vbTextCompare)=0 Then\ncells(25,34) =cells(25,34)+vbNewLine+EnfoquePoblacional2_25.Value\nElse\n      MsgBox\" EL PARAMETRO SELECCIONADO YA HACEPARTE DE LACELDA\"\n End If\n  End IF\n End Sub",25,"Localidades2_25","Private Sub Localidades2_25_Change() \n if cells(25,35)=\"\" Then\n cells(25,35)=Localidades2_25.Value \nelse\n if  InStr(1,cells(25,35),Localidades2_25.Value, vbTextCompare)=0 Then\ncells(25,35) =cells(25,35)+vbNewLine+Localidades2_25.Value\nElse\n      MsgBox\" EL PARAMETRO SELECCIONADO YA HACEPARTE DE LACELDA\"\n End If\n  End IF\n End Sub",25,"EnfoquePoblacional3_25","Private Sub EnfoquePoblacional3_25_Change() \n if cells(25,42)=\"\" Then\n cells(25,42)=EnfoquePoblacional3_25.Value \nelse\n if  InStr(1,cells(25,42),EnfoquePoblacional3_25.Value, vbTextCompare)=0 Then\ncells(25,42) =cells(25,42)+vbNewLine+EnfoquePoblacional3_25.Value\nElse\n      MsgBox\" EL PARAMETRO SELECCIONADO YA HACEPARTE DE LACELDA\"\n End If\n  End IF\n End Sub",25,"Localidades3_25","Private Sub Localidades3_25_Change() \n if cells(25,43)=\"\" Then\n cells(25,43)=Localidades3_25.Value \nelse\n if  InStr(1,cells(25,43),Localidades3_25.Value, vbTextCompare)=0 Then\ncells(25,43) =cells(25,43)+vbNewLine+Localidades3_25.Value\nElse\n      MsgBox\" EL PARAMETRO SELECCIONADO YA HACEPARTE DE LACELDA\"\n End If\n  End IF\n End Sub"]
[null,null,26,"EnfoquePoblacional26","Private Sub EnfoquePoblacional26_Change() \n if cells(26,18)=\"\" Then\n cells(26,18)=EnfoquePoblacional26.Value \nelse\n if  InStr(1,cells(26,18),EnfoquePoblacional26.Value, vbTextCompare)=0 Then\ncells(26,18) =cells(26,18)+vbNewLine+EnfoquePoblacional26.Value\nElse\n      MsgBox\" EL PARAMETRO SELECCIONADO YA HACEPARTE DE LACELDA\"\n End If\n  End IF\n End Sub",26,"Localidades26","Private Sub Localidades26_Change() \n if cells(26,19)=\"\" Then\n cells(26,19)=Localidades26.Value \nelse\n if  InStr(1,cells(26,19),Localidades26.Value, vbTextCompare)=0 Then\ncells(26,19) =cells(26,19)+vbNewLine+Localidades26.Value\nElse\n      MsgBox\" EL PARAMETRO SELECCIONADO YA HACEPARTE DE LACELDA\"\n End If\n  End IF\n End Sub",26,"EnfoquePoblacional1_26","Private Sub EnfoquePoblacional1_26_Change() \n if cells(26,26)=\"\" Then\n cells(26,26)=EnfoquePoblacional1_26.Value \nelse\n if  InStr(1,cells(26,26),EnfoquePoblacional1_26.Value, vbTextCompare)=0 Then\ncells(26,26) =cells(26,26)+vbNewLine+EnfoquePoblacional1_26.Value\nElse\n      MsgBox\" EL PARAMETRO SELECCIONADO YA HACEPARTE DE LACELDA\"\n End If\n  End IF\n End Sub",26,"Localidades1_26","Private Sub Localidades1_26_Change() \n if cells(26,27)=\"\" Then\n cells(26,27)=Localidades1_26.Value \nelse\n if  InStr(1,cells(26,27),Localidades1_26.Value, vbTextCompare)=0 Then\ncells(26,27) =cells(26,27)+vbNewLine+Localidades1_26.Value\nElse\n      MsgBox\" EL PARAMETRO SELECCIONADO YA HACEPARTE DE LACELDA\"\n End If\n  End IF\n End Sub",26,"EnfoquePoblacional2_26","Private Sub EnfoquePoblacional2_26_Change() \n if cells(26,34)=\"\" Then\n cells(26,34)=EnfoquePoblacional2_26.Value \nelse\n if  InStr(1,cells(26,34),EnfoquePoblacional2_26.Value, vbTextCompare)=0 Then\ncells(26,34) =cells(26,34)+vbNewLine+EnfoquePoblacional2_26.Value\nElse\n      MsgBox\" EL PARAMETRO SELECCIONADO YA HACEPARTE DE LACELDA\"\n End If\n  End IF\n End Sub",26,"Localidades2_26","Private Sub Localidades2_26_Change() \n if cells(26,35)=\"\" Then\n cells(26,35)=Localidades2_26.Value \nelse\n if  InStr(1,cells(26,35),Localidades2_26.Value, vbTextCompare)=0 Then\ncells(26,35) =cells(26,35)+vbNewLine+Localidades2_26.Value\nElse\n      MsgBox\" EL PARAMETRO SELECCIONADO YA HACEPARTE DE LACELDA\"\n End If\n  End IF\n End Sub",26,"EnfoquePoblacional3_26","Private Sub EnfoquePoblacional3_26_Change() \n if cells(26,42)=\"\" Then\n cells(26,42)=EnfoquePoblacional3_26.Value \nelse\n if  InStr(1,cells(26,42),EnfoquePoblacional3_26.Value, vbTextCompare)=0 Then\ncells(26,42) =cells(26,42)+vbNewLine+EnfoquePoblacional3_26.Value\nElse\n      MsgBox\" EL PARAMETRO SELECCIONADO YA HACEPARTE DE LACELDA\"\n End If\n  End IF\n End Sub",26,"Localidades3_26","Private Sub Localidades3_26_Change() \n if cells(26,43)=\"\" Then\n cells(26,43)=Localidades3_26.Value \nelse\n if  InStr(1,cells(26,43),Localidades3_26.Value, vbTextCompare)=0 Then\ncells(26,43) =cells(26,43)+vbNewLine+Localidades3_26.Value\nElse\n      MsgBox\" EL PARAMETRO SELECCIONADO YA HACEPARTE DE LACELDA\"\n End If\n  End IF\n End Sub",null,null,"Private Sub EnfoquePoblacional26_Change() \n if cells(26,18)=\"\" Then\n cells(26,18)=EnfoquePoblacional26.Value \nelse\n if  InStr(1,cells(26,18),EnfoquePoblacional26.Value, vbTextCompare)=0 Then\ncells(26,18) =cells(26,18)+vbNewLine+EnfoquePoblacional26.Value\nElse\n      MsgBox\" EL PARAMETRO SELECCIONADO YA HACEPARTE DE LACELDA\"\n End If\n  End IF\n End Sub",26,"Localidades26","Private Sub Localidades26_Change() \n if cells(26,19)=\"\" Then\n cells(26,19)=Localidades26.Value \nelse\n if  InStr(1,cells(26,19),Localidades26.Value, vbTextCompare)=0 Then\ncells(26,19) =cells(26,19)+vbNewLine+Localidades26.Value\nElse\n      MsgBox\" EL PARAMETRO SELECCIONADO YA HACEPARTE DE LACELDA\"\n End If\n  End IF\n End Sub",26,"EnfoquePoblacional1_26","Private Sub EnfoquePoblacional1_26_Change() \n if cells(26,26)=\"\" Then\n cells(26,26)=EnfoquePoblacional1_26.Value \nelse\n if  InStr(1,cells(26,26),EnfoquePoblacional1_26.Value, vbTextCompare)=0 Then\ncells(26,26) =cells(26,26)+vbNewLine+EnfoquePoblacional1_26.Value\nElse\n      MsgBox\" EL PARAMETRO SELECCIONADO YA HACEPARTE DE LACELDA\"\n End If\n  End IF\n End Sub",26,"Localidades1_26","Private Sub Localidades1_26_Change() \n if cells(26,27)=\"\" Then\n cells(26,27)=Localidades1_26.Value \nelse\n if  InStr(1,cells(26,27),Localidades1_26.Value, vbTextCompare)=0 Then\ncells(26,27) =cells(26,27)+vbNewLine+Localidades1_26.Value\nElse\n      MsgBox\" EL PARAMETRO SELECCIONADO YA HACEPARTE DE LACELDA\"\n End If\n  End IF\n End Sub",26,"EnfoquePoblacional2_26","Private Sub EnfoquePoblacional2_26_Change() \n if cells(26,34)=\"\" Then\n cells(26,34)=EnfoquePoblacional2_26.Value \nelse\n if  InStr(1,cells(26,34),EnfoquePoblacional2_26.Value, vbTextCompare)=0 Then\ncells(26,34) =cells(26,34)+vbNewLine+EnfoquePoblacional2_26.Value\nElse\n      MsgBox\" EL PARAMETRO SELECCIONADO YA HACEPARTE DE LACELDA\"\n End If\n  End IF\n End Sub",26,"Localidades2_26","Private Sub Localidades2_26_Change() \n if cells(26,35)=\"\" Then\n cells(26,35)=Localidades2_26.Value \nelse\n if  InStr(1,cells(26,35),Localidades2_26.Value, vbTextCompare)=0 Then\ncells(26,35) =cells(26,35)+vbNewLine+Localidades2_26.Value\nElse\n      MsgBox\" EL PARAMETRO SELECCIONADO YA HACEPARTE DE LACELDA\"\n End If\n  End IF\n End Sub",26,"EnfoquePoblacional3_26","Private Sub EnfoquePoblacional3_26_Change() \n if cells(26,42)=\"\" Then\n cells(26,42)=EnfoquePoblacional3_26.Value \nelse\n if  InStr(1,cells(26,42),EnfoquePoblacional3_26.Value, vbTextCompare)=0 Then\ncells(26,42) =cells(26,42)+vbNewLine+EnfoquePoblacional3_26.Value\nElse\n      MsgBox\" EL PARAMETRO SELECCIONADO YA HACEPARTE DE LACELDA\"\n End If\n  End IF\n End Sub",26,"Localidades3_26","Private Sub Localidades3_26_Change() \n if cells(26,43)=\"\" Then\n cells(26,43)=Localidades3_26.Value \nelse\n if  InStr(1,cells(26,43),Localidades3_26.Value, vbTextCompare)=0 Then\ncells(26,43) =cells(26,43)+vbNewLine+Localidades3_26.Value\nElse\n      MsgBox\" EL PARAMETRO SELECCIONADO YA HACEPARTE DE LACELDA\"\n End If\n  End IF\n End Sub"]
[null,null,27,"EnfoquePoblacional27","Private Sub EnfoquePoblacional27_Change() \n if cells(27,18)=\"\" Then\n cells(27,18)=EnfoquePoblacional27.Value \nelse\n if  InStr(1,cells(27,18),EnfoquePoblacional27.Value, vbTextCompare)=0 Then\ncells(27,18) =cells(27,18)+vbNewLine+EnfoquePoblacional27.Value\nElse\n      MsgBox\" EL PARAMETRO SELECCIONADO YA HACEPARTE DE LACELDA\"\n End If\n  End IF\n End Sub",27,"Localidades27","Private Sub Localidades27_Change() \n if cells(27,19)=\"\" Then\n cells(27,19)=Localidades27.Value \nelse\n if  InStr(1,cells(27,19),Localidades27.Value, vbTextCompare)=0 Then\ncells(27,19) =cells(27,19)+vbNewLine+Localidades27.Value\nElse\n      MsgBox\" EL PARAMETRO SELECCIONADO YA HACEPARTE DE LACELDA\"\n End If\n  End IF\n End Sub",27,"EnfoquePoblacional1_27","Private Sub EnfoquePoblacional1_27_Change() \n if cells(27,26)=\"\" Then\n cells(27,26)=EnfoquePoblacional1_27.Value \nelse\n if  InStr(1,cells(27,26),EnfoquePoblacional1_27.Value, vbTextCompare)=0 Then\ncells(27,26) =cells(27,26)+vbNewLine+EnfoquePoblacional1_27.Value\nElse\n      MsgBox\" EL PARAMETRO SELECCIONADO YA HACEPARTE DE LACELDA\"\n End If\n  End IF\n End Sub",27,"Localidades1_27","Private Sub Localidades1_27_Change() \n if cells(27,27)=\"\" Then\n cells(27,27)=Localidades1_27.Value \nelse\n if  InStr(1,cells(27,27),Localidades1_27.Value, vbTextCompare)=0 Then\ncells(27,27) =cells(27,27)+vbNewLine+Localidades1_27.Value\nElse\n      MsgBox\" EL PARAMETRO SELECCIONADO YA HACEPARTE DE LACELDA\"\n End If\n  End IF\n End Sub",27,"EnfoquePoblacional2_27","Private Sub EnfoquePoblacional2_27_Change() \n if cells(27,34)=\"\" Then\n cells(27,34)=EnfoquePoblacional2_27.Value \nelse\n if  InStr(1,cells(27,34),EnfoquePoblacional2_27.Value, vbTextCompare)=0 Then\ncells(27,34) =cells(27,34)+vbNewLine+EnfoquePoblacional2_27.Value\nElse\n      MsgBox\" EL PARAMETRO SELECCIONADO YA HACEPARTE DE LACELDA\"\n End If\n  End IF\n End Sub",27,"Localidades2_27","Private Sub Localidades2_27_Change() \n if cells(27,35)=\"\" Then\n cells(27,35)=Localidades2_27.Value \nelse\n if  InStr(1,cells(27,35),Localidades2_27.Value, vbTextCompare)=0 Then\ncells(27,35) =cells(27,35)+vbNewLine+Localidades2_27.Value\nElse\n      MsgBox\" EL PARAMETRO SELECCIONADO YA HACEPARTE DE LACELDA\"\n End If\n  End IF\n End Sub",27,"EnfoquePoblacional3_27","Private Sub EnfoquePoblacional3_27_Change() \n if cells(27,42)=\"\" Then\n cells(27,42)=EnfoquePoblacional3_27.Value \nelse\n if  InStr(1,cells(27,42),EnfoquePoblacional3_27.Value, vbTextCompare)=0 Then\ncells(27,42) =cells(27,42)+vbNewLine+EnfoquePoblacional3_27.Value\nElse\n      MsgBox\" EL PARAMETRO SELECCIONADO YA HACEPARTE DE LACELDA\"\n End If\n  End IF\n End Sub",27,"Localidades3_27","Private Sub Localidades3_27_Change() \n if cells(27,43)=\"\" Then\n cells(27,43)=Localidades3_27.Value \nelse\n if  InStr(1,cells(27,43),Localidades3_27.Value, vbTextCompare)=0 Then\ncells(27,43) =cells(27,43)+vbNewLine+Localidades3_27.Value\nElse\n      MsgBox\" EL PARAMETRO SELECCIONADO YA HACEPARTE DE LACELDA\"\n End If\n  End IF\n End Sub",null,null,"Private Sub EnfoquePoblacional27_Change() \n if cells(27,18)=\"\" Then\n cells(27,18)=EnfoquePoblacional27.Value \nelse\n if  InStr(1,cells(27,18),EnfoquePoblacional27.Value, vbTextCompare)=0 Then\ncells(27,18) =cells(27,18)+vbNewLine+EnfoquePoblacional27.Value\nElse\n      MsgBox\" EL PARAMETRO SELECCIONADO YA HACEPARTE DE LACELDA\"\n End If\n  End IF\n End Sub",27,"Localidades27","Private Sub Localidades27_Change() \n if cells(27,19)=\"\" Then\n cells(27,19)=Localidades27.Value \nelse\n if  InStr(1,cells(27,19),Localidades27.Value, vbTextCompare)=0 Then\ncells(27,19) =cells(27,19)+vbNewLine+Localidades27.Value\nElse\n      MsgBox\" EL PARAMETRO SELECCIONADO YA HACEPARTE DE LACELDA\"\n End If\n  End IF\n End Sub",27,"EnfoquePoblacional1_27","Private Sub EnfoquePoblacional1_27_Change() \n if cells(27,26)=\"\" Then\n cells(27,26)=EnfoquePoblacional1_27.Value \nelse\n if  InStr(1,cells(27,26),EnfoquePoblacional1_27.Value, vbTextCompare)=0 Then\ncells(27,26) =cells(27,26)+vbNewLine+EnfoquePoblacional1_27.Value\nElse\n      MsgBox\" EL PARAMETRO SELECCIONADO YA HACEPARTE DE LACELDA\"\n End If\n  End IF\n End Sub",27,"Localidades1_27","Private Sub Localidades1_27_Change() \n if cells(27,27)=\"\" Then\n cells(27,27)=Localidades1_27.Value \nelse\n if  InStr(1,cells(27,27),Localidades1_27.Value, vbTextCompare)=0 Then\ncells(27,27) =cells(27,27)+vbNewLine+Localidades1_27.Value\nElse\n      MsgBox\" EL PARAMETRO SELECCIONADO YA HACEPARTE DE LACELDA\"\n End If\n  End IF\n End Sub",27,"EnfoquePoblacional2_27","Private Sub EnfoquePoblacional2_27_Change() \n if cells(27,34)=\"\" Then\n cells(27,34)=EnfoquePoblacional2_27.Value \nelse\n if  InStr(1,cells(27,34),EnfoquePoblacional2_27.Value, vbTextCompare)=0 Then\ncells(27,34) =cells(27,34)+vbNewLine+EnfoquePoblacional2_27.Value\nElse\n      MsgBox\" EL PARAMETRO SELECCIONADO YA HACEPARTE DE LACELDA\"\n End If\n  End IF\n End Sub",27,"Localidades2_27","Private Sub Localidades2_27_Change() \n if cells(27,35)=\"\" Then\n cells(27,35)=Localidades2_27.Value \nelse\n if  InStr(1,cells(27,35),Localidades2_27.Value, vbTextCompare)=0 Then\ncells(27,35) =cells(27,35)+vbNewLine+Localidades2_27.Value\nElse\n      MsgBox\" EL PARAMETRO SELECCIONADO YA HACEPARTE DE LACELDA\"\n End If\n  End IF\n End Sub",27,"EnfoquePoblacional3_27","Private Sub EnfoquePoblacional3_27_Change() \n if cells(27,42)=\"\" Then\n cells(27,42)=EnfoquePoblacional3_27.Value \nelse\n if  InStr(1,cells(27,42),EnfoquePoblacional3_27.Value, vbTextCompare)=0 Then\ncells(27,42) =cells(27,42)+vbNewLine+EnfoquePoblacional3_27.Value\nElse\n      MsgBox\" EL PARAMETRO SELECCIONADO YA HACEPARTE DE LACELDA\"\n End If\n  End IF\n End Sub",27,"Localidades3_27","Private Sub Localidades3_27_Change() \n if cells(27,43)=\"\" Then\n cells(27,43)=Localidades3_27.Value \nelse\n if  InStr(1,cells(27,43),Localidades3_27.Value, vbTextCompare)=0 Then\ncells(27,43) =cells(27,43)+vbNewLine+Localidades3_27.Value\nElse\n      MsgBox\" EL PARAMETRO SELECCIONADO YA HACEPARTE DE LACELDA\"\n End If\n  End IF\n End Sub"]
[null,null,28,"EnfoquePoblacional28","Private Sub EnfoquePoblacional28_Change() \n if cells(28,18)=\"\" Then\n cells(28,18)=EnfoquePoblacional28.Value \nelse\n if  InStr(1,cells(28,18),EnfoquePoblacional28.Value, vbTextCompare)=0 Then\ncells(28,18) =cells(28,18)+vbNewLine+EnfoquePoblacional28.Value\nElse\n      MsgBox\" EL PARAMETRO SELECCIONADO YA HACEPARTE DE LACELDA\"\n End If\n  End IF\n End Sub",28,"Localidades28","Private Sub Localidades28_Change() \n if cells(28,19)=\"\" Then\n cells(28,19)=Localidades28.Value \nelse\n if  InStr(1,cells(28,19),Localidades28.Value, vbTextCompare)=0 Then\ncells(28,19) =cells(28,19)+vbNewLine+Localidades28.Value\nElse\n      MsgBox\" EL PARAMETRO SELECCIONADO YA HACEPARTE DE LACELDA\"\n End If\n  End IF\n End Sub",28,"EnfoquePoblacional1_28","Private Sub EnfoquePoblacional1_28_Change() \n if cells(28,26)=\"\" Then\n cells(28,26)=EnfoquePoblacional1_28.Value \nelse\n if  InStr(1,cells(28,26),EnfoquePoblacional1_28.Value, vbTextCompare)=0 Then\ncells(28,26) =cells(28,26)+vbNewLine+EnfoquePoblacional1_28.Value\nElse\n      MsgBox\" EL PARAMETRO SELECCIONADO YA HACEPARTE DE LACELDA\"\n End If\n  End IF\n End Sub",28,"Localidades1_28","Private Sub Localidades1_28_Change() \n if cells(28,27)=\"\" Then\n cells(28,27)=Localidades1_28.Value \nelse\n if  InStr(1,cells(28,27),Localidades1_28.Value, vbTextCompare)=0 Then\ncells(28,27) =cells(28,27)+vbNewLine+Localidades1_28.Value\nElse\n      MsgBox\" EL PARAMETRO SELECCIONADO YA HACEPARTE DE LACELDA\"\n End If\n  End IF\n End Sub",28,"EnfoquePoblacional2_28","Private Sub EnfoquePoblacional2_28_Change() \n if cells(28,34)=\"\" Then\n cells(28,34)=EnfoquePoblacional2_28.Value \nelse\n if  InStr(1,cells(28,34),EnfoquePoblacional2_28.Value, vbTextCompare)=0 Then\ncells(28,34) =cells(28,34)+vbNewLine+EnfoquePoblacional2_28.Value\nElse\n      MsgBox\" EL PARAMETRO SELECCIONADO YA HACEPARTE DE LACELDA\"\n End If\n  End IF\n End Sub",28,"Localidades2_28","Private Sub Localidades2_28_Change() \n if cells(28,35)=\"\" Then\n cells(28,35)=Localidades2_28.Value \nelse\n if  InStr(1,cells(28,35),Localidades2_28.Value, vbTextCompare)=0 Then\ncells(28,35) =cells(28,35)+vbNewLine+Localidades2_28.Value\nElse\n      MsgBox\" EL PARAMETRO SELECCIONADO YA HACEPARTE DE LACELDA\"\n End If\n  End IF\n End Sub",28,"EnfoquePoblacional3_28","Private Sub EnfoquePoblacional3_28_Change() \n if cells(28,42)=\"\" Then\n cells(28,42)=EnfoquePoblacional3_28.Value \nelse\n if  InStr(1,cells(28,42),EnfoquePoblacional3_28.Value, vbTextCompare)=0 Then\ncells(28,42) =cells(28,42)+vbNewLine+EnfoquePoblacional3_28.Value\nElse\n      MsgBox\" EL PARAMETRO SELECCIONADO YA HACEPARTE DE LACELDA\"\n End If\n  End IF\n End Sub",28,"Localidades3_28","Private Sub Localidades3_28_Change() \n if cells(28,43)=\"\" Then\n cells(28,43)=Localidades3_28.Value \nelse\n if  InStr(1,cells(28,43),Localidades3_28.Value, vbTextCompare)=0 Then\ncells(28,43) =cells(28,43)+vbNewLine+Localidades3_28.Value\nElse\n      MsgBox\" EL PARAMETRO SELECCIONADO YA HACEPARTE DE LACELDA\"\n End If\n  End IF\n End Sub",null,null,"Private Sub EnfoquePoblacional28_Change() \n if cells(28,18)=\"\" Then\n cells(28,18)=EnfoquePoblacional28.Value \nelse\n if  InStr(1,cells(28,18),EnfoquePoblacional28.Value, vbTextCompare)=0 Then\ncells(28,18) =cells(28,18)+vbNewLine+EnfoquePoblacional28.Value\nElse\n      MsgBox\" EL PARAMETRO SELECCIONADO YA HACEPARTE DE LACELDA\"\n End If\n  End IF\n End Sub",28,"Localidades28","Private Sub Localidades28_Change() \n if cells(28,19)=\"\" Then\n cells(28,19)=Localidades28.Value \nelse\n if  InStr(1,cells(28,19),Localidades28.Value, vbTextCompare)=0 Then\ncells(28,19) =cells(28,19)+vbNewLine+Localidades28.Value\nElse\n      MsgBox\" EL PARAMETRO SELECCIONADO YA HACEPARTE DE LACELDA\"\n End If\n  End IF\n End Sub",28,"EnfoquePoblacional1_28","Private Sub EnfoquePoblacional1_28_Change() \n if cells(28,26)=\"\" Then\n cells(28,26)=EnfoquePoblacional1_28.Value \nelse\n if  InStr(1,cells(28,26),EnfoquePoblacional1_28.Value, vbTextCompare)=0 Then\ncells(28,26) =cells(28,26)+vbNewLine+EnfoquePoblacional1_28.Value\nElse\n      MsgBox\" EL PARAMETRO SELECCIONADO YA HACEPARTE DE LACELDA\"\n End If\n  End IF\n End Sub",28,"Localidades1_28","Private Sub Localidades1_28_Change() \n if cells(28,27)=\"\" Then\n cells(28,27)=Localidades1_28.Value \nelse\n if  InStr(1,cells(28,27),Localidades1_28.Value, vbTextCompare)=0 Then\ncells(28,27) =cells(28,27)+vbNewLine+Localidades1_28.Value\nElse\n      MsgBox\" EL PARAMETRO SELECCIONADO YA HACEPARTE DE LACELDA\"\n End If\n  End IF\n End Sub",28,"EnfoquePoblacional2_28","Private Sub EnfoquePoblacional2_28_Change() \n if cells(28,34)=\"\" Then\n cells(28,34)=EnfoquePoblacional2_28.Value \nelse\n if  InStr(1,cells(28,34),EnfoquePoblacional2_28.Value, vbTextCompare)=0 Then\ncells(28,34) =cells(28,34)+vbNewLine+EnfoquePoblacional2_28.Value\nElse\n      MsgBox\" EL PARAMETRO SELECCIONADO YA HACEPARTE DE LACELDA\"\n End If\n  End IF\n End Sub",28,"Localidades2_28","Private Sub Localidades2_28_Change() \n if cells(28,35)=\"\" Then\n cells(28,35)=Localidades2_28.Value \nelse\n if  InStr(1,cells(28,35),Localidades2_28.Value, vbTextCompare)=0 Then\ncells(28,35) =cells(28,35)+vbNewLine+Localidades2_28.Value\nElse\n      MsgBox\" EL PARAMETRO SELECCIONADO YA HACEPARTE DE LACELDA\"\n End If\n  End IF\n End Sub",28,"EnfoquePoblacional3_28","Private Sub EnfoquePoblacional3_28_Change() \n if cells(28,42)=\"\" Then\n cells(28,42)=EnfoquePoblacional3_28.Value \nelse\n if  InStr(1,cells(28,42),EnfoquePoblacional3_28.Value, vbTextCompare)=0 Then\ncells(28,42) =cells(28,42)+vbNewLine+EnfoquePoblacional3_28.Value\nElse\n      MsgBox\" EL PARAMETRO SELECCIONADO YA HACEPARTE DE LACELDA\"\n End If\n  End IF\n End Sub",28,"Localidades3_28","Private Sub Localidades3_28_Change() \n if cells(28,43)=\"\" Then\n cells(28,43)=Localidades3_28.Value \nelse\n if  InStr(1,cells(28,43),Localidades3_28.Value, vbTextCompare)=0 Then\ncells(28,43) =cells(28,43)+vbNewLine+Localidades3_28.Value\nElse\n      MsgBox\" EL PARAMETRO SELECCIONADO YA HACEPARTE DE LACELDA\"\n End If\n  End IF\n End Sub"]
[null,null,29,"EnfoquePoblacional29","Private Sub EnfoquePoblacional29_Change() \n if cells(29,18)=\"\" Then\n cells(29,18)=EnfoquePoblacional29.Value \nelse\n if  InStr(1,cells(29,18),EnfoquePoblacional29.Value, vbTextCompare)=0 Then\ncells(29,18) =cells(29,18)+vbNewLine+EnfoquePoblacional29.Value\nElse\n      MsgBox\" EL PARAMETRO SELECCIONADO YA HACEPARTE DE LACELDA\"\n End If\n  End IF\n End Sub",29,"Localidades29","Private Sub Localidades29_Change() \n if cells(29,19)=\"\" Then\n cells(29,19)=Localidades29.Value \nelse\n if  InStr(1,cells(29,19),Localidades29.Value, vbTextCompare)=0 Then\ncells(29,19) =cells(29,19)+vbNewLine+Localidades29.Value\nElse\n      MsgBox\" EL PARAMETRO SELECCIONADO YA HACEPARTE DE LACELDA\"\n End If\n  End IF\n End Sub",29,"EnfoquePoblacional1_29","Private Sub EnfoquePoblacional1_29_Change() \n if cells(29,26)=\"\" Then\n cells(29,26)=EnfoquePoblacional1_29.Value \nelse\n if  InStr(1,cells(29,26),EnfoquePoblacional1_29.Value, vbTextCompare)=0 Then\ncells(29,26) =cells(29,26)+vbNewLine+EnfoquePoblacional1_29.Value\nElse\n      MsgBox\" EL PARAMETRO SELECCIONADO YA HACEPARTE DE LACELDA\"\n End If\n  End IF\n End Sub",29,"Localidades1_29","Private Sub Localidades1_29_Change() \n if cells(29,27)=\"\" Then\n cells(29,27)=Localidades1_29.Value \nelse\n if  InStr(1,cells(29,27),Localidades1_29.Value, vbTextCompare)=0 Then\ncells(29,27) =cells(29,27)+vbNewLine+Localidades1_29.Value\nElse\n      MsgBox\" EL PARAMETRO SELECCIONADO YA HACEPARTE DE LACELDA\"\n End If\n  End IF\n End Sub",29,"EnfoquePoblacional2_29","Private Sub EnfoquePoblacional2_29_Change() \n if cells(29,34)=\"\" Then\n cells(29,34)=EnfoquePoblacional2_29.Value \nelse\n if  InStr(1,cells(29,34),EnfoquePoblacional2_29.Value, vbTextCompare)=0 Then\ncells(29,34) =cells(29,34)+vbNewLine+EnfoquePoblacional2_29.Value\nElse\n      MsgBox\" EL PARAMETRO SELECCIONADO YA HACEPARTE DE LACELDA\"\n End If\n  End IF\n End Sub",29,"Localidades2_29","Private Sub Localidades2_29_Change() \n if cells(29,35)=\"\" Then\n cells(29,35)=Localidades2_29.Value \nelse\n if  InStr(1,cells(29,35),Localidades2_29.Value, vbTextCompare)=0 Then\ncells(29,35) =cells(29,35)+vbNewLine+Localidades2_29.Value\nElse\n      MsgBox\" EL PARAMETRO SELECCIONADO YA HACEPARTE DE LACELDA\"\n End If\n  End IF\n End Sub",29,"EnfoquePoblacional3_29","Private Sub EnfoquePoblacional3_29_Change() \n if cells(29,42)=\"\" Then\n cells(29,42)=EnfoquePoblacional3_29.Value \nelse\n if  InStr(1,cells(29,42),EnfoquePoblacional3_29.Value, vbTextCompare)=0 Then\ncells(29,42) =cells(29,42)+vbNewLine+EnfoquePoblacional3_29.Value\nElse\n      MsgBox\" EL PARAMETRO SELECCIONADO YA HACEPARTE DE LACELDA\"\n End If\n  End IF\n End Sub",29,"Localidades3_29","Private Sub Localidades3_29_Change() \n if cells(29,43)=\"\" Then\n cells(29,43)=Localidades3_29.Value \nelse\n if  InStr(1,cells(29,43),Localidades3_29.Value, vbTextCompare)=0 Then\ncells(29,43) =cells(29,43)+vbNewLine+Localidades3_29.Value\nElse\n      MsgBox\" EL PARAMETRO SELECCIONADO YA HACEPARTE DE LACELDA\"\n End If\n  End IF\n End Sub",null,null,"Private Sub EnfoquePoblacional29_Change() \n if cells(29,18)=\"\" Then\n cells(29,18)=EnfoquePoblacional29.Value \nelse\n if  InStr(1,cells(29,18),EnfoquePoblacional29.Value, vbTextCompare)=0 Then\ncells(29,18) =cells(29,18)+vbNewLine+EnfoquePoblacional29.Value\nElse\n      MsgBox\" EL PARAMETRO SELECCIONADO YA HACEPARTE DE LACELDA\"\n End If\n  End IF\n End Sub",29,"Localidades29","Private Sub Localidades29_Change() \n if cells(29,19)=\"\" Then\n cells(29,19)=Localidades29.Value \nelse\n if  InStr(1,cells(29,19),Localidades29.Value, vbTextCompare)=0 Then\ncells(29,19) =cells(29,19)+vbNewLine+Localidades29.Value\nElse\n      MsgBox\" EL PARAMETRO SELECCIONADO YA HACEPARTE DE LACELDA\"\n End If\n  End IF\n End Sub",29,"EnfoquePoblacional1_29","Private Sub EnfoquePoblacional1_29_Change() \n if cells(29,26)=\"\" Then\n cells(29,26)=EnfoquePoblacional1_29.Value \nelse\n if  InStr(1,cells(29,26),EnfoquePoblacional1_29.Value, vbTextCompare)=0 Then\ncells(29,26) =cells(29,26)+vbNewLine+EnfoquePoblacional1_29.Value\nElse\n      MsgBox\" EL PARAMETRO SELECCIONADO YA HACEPARTE DE LACELDA\"\n End If\n  End IF\n End Sub",29,"Localidades1_29","Private Sub Localidades1_29_Change() \n if cells(29,27)=\"\" Then\n cells(29,27)=Localidades1_29.Value \nelse\n if  InStr(1,cells(29,27),Localidades1_29.Value, vbTextCompare)=0 Then\ncells(29,27) =cells(29,27)+vbNewLine+Localidades1_29.Value\nElse\n      MsgBox\" EL PARAMETRO SELECCIONADO YA HACEPARTE DE LACELDA\"\n End If\n  End IF\n End Sub",29,"EnfoquePoblacional2_29","Private Sub EnfoquePoblacional2_29_Change() \n if cells(29,34)=\"\" Then\n cells(29,34)=EnfoquePoblacional2_29.Value \nelse\n if  InStr(1,cells(29,34),EnfoquePoblacional2_29.Value, vbTextCompare)=0 Then\ncells(29,34) =cells(29,34)+vbNewLine+EnfoquePoblacional2_29.Value\nElse\n      MsgBox\" EL PARAMETRO SELECCIONADO YA HACEPARTE DE LACELDA\"\n End If\n  End IF\n End Sub",29,"Localidades2_29","Private Sub Localidades2_29_Change() \n if cells(29,35)=\"\" Then\n cells(29,35)=Localidades2_29.Value \nelse\n if  InStr(1,cells(29,35),Localidades2_29.Value, vbTextCompare)=0 Then\ncells(29,35) =cells(29,35)+vbNewLine+Localidades2_29.Value\nElse\n      MsgBox\" EL PARAMETRO SELECCIONADO YA HACEPARTE DE LACELDA\"\n End If\n  End IF\n End Sub",29,"EnfoquePoblacional3_29","Private Sub EnfoquePoblacional3_29_Change() \n if cells(29,42)=\"\" Then\n cells(29,42)=EnfoquePoblacional3_29.Value \nelse\n if  InStr(1,cells(29,42),EnfoquePoblacional3_29.Value, vbTextCompare)=0 Then\ncells(29,42) =cells(29,42)+vbNewLine+EnfoquePoblacional3_29.Value\nElse\n      MsgBox\" EL PARAMETRO SELECCIONADO YA HACEPARTE DE LACELDA\"\n End If\n  End IF\n End Sub",29,"Localidades3_29","Private Sub Localidades3_29_Change() \n if cells(29,43)=\"\" Then\n cells(29,43)=Localidades3_29.Value \nelse\n if  InStr(1,cells(29,43),Localidades3_29.Value, vbTextCompare)=0 Then\ncells(29,43) =cells(29,43)+vbNewLine+Localidades3_29.Value\nElse\n      MsgBox\" EL PARAMETRO SELECCIONADO YA HACEPARTE DE LACELDA\"\n End If\n  End IF\n End Sub"]
[null,null,30,"EnfoquePoblacional30","Private Sub EnfoquePoblacional30_Change() \n if cells(30,18)=\"\" Then\n cells(30,18)=EnfoquePoblacional30.Value \nelse\n if  InStr(1,cells(30,18),EnfoquePoblacional30.Value, vbTextCompare)=0 Then\ncells(30,18) =cells(30,18)+vbNewLine+EnfoquePoblacional30.Value\nElse\n      MsgBox\" EL PARAMETRO SELECCIONADO YA HACEPARTE DE LACELDA\"\n End If\n  End IF\n End Sub",30,"Localidades30","Private Sub Localidades30_Change() \n if cells(30,19)=\"\" Then\n cells(30,19)=Localidades30.Value \nelse\n if  InStr(1,cells(30,19),Localidades30.Value, vbTextCompare)=0 Then\ncells(30,19) =cells(30,19)+vbNewLine+Localidades30.Value\nElse\n      MsgBox\" EL PARAMETRO SELECCIONADO YA HACEPARTE DE LACELDA\"\n End If\n  End IF\n End Sub",30,"EnfoquePoblacional1_30","Private Sub EnfoquePoblacional1_30_Change() \n if cells(30,26)=\"\" Then\n cells(30,26)=EnfoquePoblacional1_30.Value \nelse\n if  InStr(1,cells(30,26),EnfoquePoblacional1_30.Value, vbTextCompare)=0 Then\ncells(30,26) =cells(30,26)+vbNewLine+EnfoquePoblacional1_30.Value\nElse\n      MsgBox\" EL PARAMETRO SELECCIONADO YA HACEPARTE DE LACELDA\"\n End If\n  End IF\n End Sub",30,"Localidades1_30","Private Sub Localidades1_30_Change() \n if cells(30,27)=\"\" Then\n cells(30,27)=Localidades1_30.Value \nelse\n if  InStr(1,cells(30,27),Localidades1_30.Value, vbTextCompare)=0 Then\ncells(30,27) =cells(30,27)+vbNewLine+Localidades1_30.Value\nElse\n      MsgBox\" EL PARAMETRO SELECCIONADO YA HACEPARTE DE LACELDA\"\n End If\n  End IF\n End Sub",30,"EnfoquePoblacional2_30","Private Sub EnfoquePoblacional2_30_Change() \n if cells(30,34)=\"\" Then\n cells(30,34)=EnfoquePoblacional2_30.Value \nelse\n if  InStr(1,cells(30,34),EnfoquePoblacional2_30.Value, vbTextCompare)=0 Then\ncells(30,34) =cells(30,34)+vbNewLine+EnfoquePoblacional2_30.Value\nElse\n      MsgBox\" EL PARAMETRO SELECCIONADO YA HACEPARTE DE LACELDA\"\n End If\n  End IF\n End Sub",30,"Localidades2_30","Private Sub Localidades2_30_Change() \n if cells(30,35)=\"\" Then\n cells(30,35)=Localidades2_30.Value \nelse\n if  InStr(1,cells(30,35),Localidades2_30.Value, vbTextCompare)=0 Then\ncells(30,35) =cells(30,35)+vbNewLine+Localidades2_30.Value\nElse\n      MsgBox\" EL PARAMETRO SELECCIONADO YA HACEPARTE DE LACELDA\"\n End If\n  End IF\n End Sub",30,"EnfoquePoblacional3_30","Private Sub EnfoquePoblacional3_30_Change() \n if cells(30,42)=\"\" Then\n cells(30,42)=EnfoquePoblacional3_30.Value \nelse\n if  InStr(1,cells(30,42),EnfoquePoblacional3_30.Value, vbTextCompare)=0 Then\ncells(30,42) =cells(30,42)+vbNewLine+EnfoquePoblacional3_30.Value\nElse\n      MsgBox\" EL PARAMETRO SELECCIONADO YA HACEPARTE DE LACELDA\"\n End If\n  End IF\n End Sub",30,"Localidades3_30","Private Sub Localidades3_30_Change() \n if cells(30,43)=\"\" Then\n cells(30,43)=Localidades3_30.Value \nelse\n if  InStr(1,cells(30,43),Localidades3_30.Value, vbTextCompare)=0 Then\ncells(30,43) =cells(30,43)+vbNewLine+Localidades3_30.Value\nElse\n      MsgBox\" EL PARAMETRO SELECCIONADO YA HACEPARTE DE LACELDA\"\n End If\n  End IF\n End Sub",null,null,"Private Sub EnfoquePoblacional30_Change() \n if cells(30,18)=\"\" Then\n cells(30,18)=EnfoquePoblacional30.Value \nelse\n if  InStr(1,cells(30,18),EnfoquePoblacional30.Value, vbTextCompare)=0 Then\ncells(30,18) =cells(30,18)+vbNewLine+EnfoquePoblacional30.Value\nElse\n      MsgBox\" EL PARAMETRO SELECCIONADO YA HACEPARTE DE LACELDA\"\n End If\n  End IF\n End Sub",30,"Localidades30","Private Sub Localidades30_Change() \n if cells(30,19)=\"\" Then\n cells(30,19)=Localidades30.Value \nelse\n if  InStr(1,cells(30,19),Localidades30.Value, vbTextCompare)=0 Then\ncells(30,19) =cells(30,19)+vbNewLine+Localidades30.Value\nElse\n      MsgBox\" EL PARAMETRO SELECCIONADO YA HACEPARTE DE LACELDA\"\n End If\n  End IF\n End Sub",30,"EnfoquePoblacional1_30","Private Sub EnfoquePoblacional1_30_Change() \n if cells(30,26)=\"\" Then\n cells(30,26)=EnfoquePoblacional1_30.Value \nelse\n if  InStr(1,cells(30,26),EnfoquePoblacional1_30.Value, vbTextCompare)=0 Then\ncells(30,26) =cells(30,26)+vbNewLine+EnfoquePoblacional1_30.Value\nElse\n      MsgBox\" EL PARAMETRO SELECCIONADO YA HACEPARTE DE LACELDA\"\n End If\n  End IF\n End Sub",30,"Localidades1_30","Private Sub Localidades1_30_Change() \n if cells(30,27)=\"\" Then\n cells(30,27)=Localidades1_30.Value \nelse\n if  InStr(1,cells(30,27),Localidades1_30.Value, vbTextCompare)=0 Then\ncells(30,27) =cells(30,27)+vbNewLine+Localidades1_30.Value\nElse\n      MsgBox\" EL PARAMETRO SELECCIONADO YA HACEPARTE DE LACELDA\"\n End If\n  End IF\n End Sub",30,"EnfoquePoblacional2_30","Private Sub EnfoquePoblacional2_30_Change() \n if cells(30,34)=\"\" Then\n cells(30,34)=EnfoquePoblacional2_30.Value \nelse\n if  InStr(1,cells(30,34),EnfoquePoblacional2_30.Value, vbTextCompare)=0 Then\ncells(30,34) =cells(30,34)+vbNewLine+EnfoquePoblacional2_30.Value\nElse\n      MsgBox\" EL PARAMETRO SELECCIONADO YA HACEPARTE DE LACELDA\"\n End If\n  End IF\n End Sub",30,"Localidades2_30","Private Sub Localidades2_30_Change() \n if cells(30,35)=\"\" Then\n cells(30,35)=Localidades2_30.Value \nelse\n if  InStr(1,cells(30,35),Localidades2_30.Value, vbTextCompare)=0 Then\ncells(30,35) =cells(30,35)+vbNewLine+Localidades2_30.Value\nElse\n      MsgBox\" EL PARAMETRO SELECCIONADO YA HACEPARTE DE LACELDA\"\n End If\n  End IF\n End Sub",30,"EnfoquePoblacional3_30","Private Sub EnfoquePoblacional3_30_Change() \n if cells(30,42)=\"\" Then\n cells(30,42)=EnfoquePoblacional3_30.Value \nelse\n if  InStr(1,cells(30,42),EnfoquePoblacional3_30.Value, vbTextCompare)=0 Then\ncells(30,42) =cells(30,42)+vbNewLine+EnfoquePoblacional3_30.Value\nElse\n      MsgBox\" EL PARAMETRO SELECCIONADO YA HACEPARTE DE LACELDA\"\n End If\n  End IF\n End Sub",30,"Localidades3_30","Private Sub Localidades3_30_Change() \n if cells(30,43)=\"\" Then\n cells(30,43)=Localidades3_30.Value \nelse\n if  InStr(1,cells(30,43),Localidades3_30.Value, vbTextCompare)=0 Then\ncells(30,43) =cells(30,43)+vbNewLine+Localidades3_30.Value\nElse\n      MsgBox\" EL PARAMETRO SELECCIONADO YA HACEPARTE DE LACELDA\"\n End If\n  End IF\n End Sub"]
[null,null,31,"EnfoquePoblacional31","Private Sub EnfoquePoblacional31_Change() \n if cells(31,18)=\"\" Then\n cells(31,18)=EnfoquePoblacional31.Value \nelse\n if  InStr(1,cells(31,18),EnfoquePoblacional31.Value, vbTextCompare)=0 Then\ncells(31,18) =cells(31,18)+vbNewLine+EnfoquePoblacional31.Value\nElse\n      MsgBox\" EL PARAMETRO SELECCIONADO YA HACEPARTE DE LACELDA\"\n End If\n  End IF\n End Sub",31,"Localidades31","Private Sub Localidades31_Change() \n if cells(31,19)=\"\" Then\n cells(31,19)=Localidades31.Value \nelse\n if  InStr(1,cells(31,19),Localidades31.Value, vbTextCompare)=0 Then\ncells(31,19) =cells(31,19)+vbNewLine+Localidades31.Value\nElse\n      MsgBox\" EL PARAMETRO SELECCIONADO YA HACEPARTE DE LACELDA\"\n End If\n  End IF\n End Sub",31,"EnfoquePoblacional1_31","Private Sub EnfoquePoblacional1_31_Change() \n if cells(31,26)=\"\" Then\n cells(31,26)=EnfoquePoblacional1_31.Value \nelse\n if  InStr(1,cells(31,26),EnfoquePoblacional1_31.Value, vbTextCompare)=0 Then\ncells(31,26) =cells(31,26)+vbNewLine+EnfoquePoblacional1_31.Value\nElse\n      MsgBox\" EL PARAMETRO SELECCIONADO YA HACEPARTE DE LACELDA\"\n End If\n  End IF\n End Sub",31,"Localidades1_31","Private Sub Localidades1_31_Change() \n if cells(31,27)=\"\" Then\n cells(31,27)=Localidades1_31.Value \nelse\n if  InStr(1,cells(31,27),Localidades1_31.Value, vbTextCompare)=0 Then\ncells(31,27) =cells(31,27)+vbNewLine+Localidades1_31.Value\nElse\n      MsgBox\" EL PARAMETRO SELECCIONADO YA HACEPARTE DE LACELDA\"\n End If\n  End IF\n End Sub",31,"EnfoquePoblacional2_31","Private Sub EnfoquePoblacional2_31_Change() \n if cells(31,34)=\"\" Then\n cells(31,34)=EnfoquePoblacional2_31.Value \nelse\n if  InStr(1,cells(31,34),EnfoquePoblacional2_31.Value, vbTextCompare)=0 Then\ncells(31,34) =cells(31,34)+vbNewLine+EnfoquePoblacional2_31.Value\nElse\n      MsgBox\" EL PARAMETRO SELECCIONADO YA HACEPARTE DE LACELDA\"\n End If\n  End IF\n End Sub",31,"Localidades2_31","Private Sub Localidades2_31_Change() \n if cells(31,35)=\"\" Then\n cells(31,35)=Localidades2_31.Value \nelse\n if  InStr(1,cells(31,35),Localidades2_31.Value, vbTextCompare)=0 Then\ncells(31,35) =cells(31,35)+vbNewLine+Localidades2_31.Value\nElse\n      MsgBox\" EL PARAMETRO SELECCIONADO YA HACEPARTE DE LACELDA\"\n End If\n  End IF\n End Sub",31,"EnfoquePoblacional3_31","Private Sub EnfoquePoblacional3_31_Change() \n if cells(31,42)=\"\" Then\n cells(31,42)=EnfoquePoblacional3_31.Value \nelse\n if  InStr(1,cells(31,42),EnfoquePoblacional3_31.Value, vbTextCompare)=0 Then\ncells(31,42) =cells(31,42)+vbNewLine+EnfoquePoblacional3_31.Value\nElse\n      MsgBox\" EL PARAMETRO SELECCIONADO YA HACEPARTE DE LACELDA\"\n End If\n  End IF\n End Sub",31,"Localidades3_31","Private Sub Localidades3_31_Change() \n if cells(31,43)=\"\" Then\n cells(31,43)=Localidades3_31.Value \nelse\n if  InStr(1,cells(31,43),Localidades3_31.Value, vbTextCompare)=0 Then\ncells(31,43) =cells(31,43)+vbNewLine+Localidades3_31.Value\nElse\n      MsgBox\" EL PARAMETRO SELECCIONADO YA HACEPARTE DE LACELDA\"\n End If\n  End IF\n End Sub",null,null,"Private Sub EnfoquePoblacional31_Change() \n if cells(31,18)=\"\" Then\n cells(31,18)=EnfoquePoblacional31.Value \nelse\n if  InStr(1,cells(31,18),EnfoquePoblacional31.Value, vbTextCompare)=0 Then\ncells(31,18) =cells(31,18)+vbNewLine+EnfoquePoblacional31.Value\nElse\n      MsgBox\" EL PARAMETRO SELECCIONADO YA HACEPARTE DE LACELDA\"\n End If\n  End IF\n End Sub",31,"Localidades31","Private Sub Localidades31_Change() \n if cells(31,19)=\"\" Then\n cells(31,19)=Localidades31.Value \nelse\n if  InStr(1,cells(31,19),Localidades31.Value, vbTextCompare)=0 Then\ncells(31,19) =cells(31,19)+vbNewLine+Localidades31.Value\nElse\n      MsgBox\" EL PARAMETRO SELECCIONADO YA HACEPARTE DE LACELDA\"\n End If\n  End IF\n End Sub",31,"EnfoquePoblacional1_31","Private Sub EnfoquePoblacional1_31_Change() \n if cells(31,26)=\"\" Then\n cells(31,26)=EnfoquePoblacional1_31.Value \nelse\n if  InStr(1,cells(31,26),EnfoquePoblacional1_31.Value, vbTextCompare)=0 Then\ncells(31,26) =cells(31,26)+vbNewLine+EnfoquePoblacional1_31.Value\nElse\n      MsgBox\" EL PARAMETRO SELECCIONADO YA HACEPARTE DE LACELDA\"\n End If\n  End IF\n End Sub",31,"Localidades1_31","Private Sub Localidades1_31_Change() \n if cells(31,27)=\"\" Then\n cells(31,27)=Localidades1_31.Value \nelse\n if  InStr(1,cells(31,27),Localidades1_31.Value, vbTextCompare)=0 Then\ncells(31,27) =cells(31,27)+vbNewLine+Localidades1_31.Value\nElse\n      MsgBox\" EL PARAMETRO SELECCIONADO YA HACEPARTE DE LACELDA\"\n End If\n  End IF\n End Sub",31,"EnfoquePoblacional2_31","Private Sub EnfoquePoblacional2_31_Change() \n if cells(31,34)=\"\" Then\n cells(31,34)=EnfoquePoblacional2_31.Value \nelse\n if  InStr(1,cells(31,34),EnfoquePoblacional2_31.Value, vbTextCompare)=0 Then\ncells(31,34) =cells(31,34)+vbNewLine+EnfoquePoblacional2_31.Value\nElse\n      MsgBox\" EL PARAMETRO SELECCIONADO YA HACEPARTE DE LACELDA\"\n End If\n  End IF\n End Sub",31,"Localidades2_31","Private Sub Localidades2_31_Change() \n if cells(31,35)=\"\" Then\n cells(31,35)=Localidades2_31.Value \nelse\n if  InStr(1,cells(31,35),Localidades2_31.Value, vbTextCompare)=0 Then\ncells(31,35) =cells(31,35)+vbNewLine+Localidades2_31.Value\nElse\n      MsgBox\" EL PARAMETRO SELECCIONADO YA HACEPARTE DE LACELDA\"\n End If\n  End IF\n End Sub",31,"EnfoquePoblacional3_31","Private Sub EnfoquePoblacional3_31_Change() \n if cells(31,42)=\"\" Then\n cells(31,42)=EnfoquePoblacional3_31.Value \nelse\n if  InStr(1,cells(31,42),EnfoquePoblacional3_31.Value, vbTextCompare)=0 Then\ncells(31,42) =cells(31,42)+vbNewLine+EnfoquePoblacional3_31.Value\nElse\n      MsgBox\" EL PARAMETRO SELECCIONADO YA HACEPARTE DE LACELDA\"\n End If\n  End IF\n End Sub",31,"Localidades3_31","Private Sub Localidades3_31_Change() \n if cells(31,43)=\"\" Then\n cells(31,43)=Localidades3_31.Value \nelse\n if  InStr(1,cells(31,43),Localidades3_31.Value, vbTextCompare)=0 Then\ncells(31,43) =cells(31,43)+vbNewLine+Localidades3_31.Value\nElse\n      MsgBox\" EL PARAMETRO SELECCIONADO YA HACEPARTE DE LACELDA\"\n End If\n  End IF\n End Sub"]
[null,null,32,"EnfoquePoblacional32","Private Sub EnfoquePoblacional32_Change() \n if cells(32,18)=\"\" Then\n cells(32,18)=EnfoquePoblacional32.Value \nelse\n if  InStr(1,cells(32,18),EnfoquePoblacional32.Value, vbTextCompare)=0 Then\ncells(32,18) =cells(32,18)+vbNewLine+EnfoquePoblacional32.Value\nElse\n      MsgBox\" EL PARAMETRO SELECCIONADO YA HACEPARTE DE LACELDA\"\n End If\n  End IF\n End Sub",32,"Localidades32","Private Sub Localidades32_Change() \n if cells(32,19)=\"\" Then\n cells(32,19)=Localidades32.Value \nelse\n if  InStr(1,cells(32,19),Localidades32.Value, vbTextCompare)=0 Then\ncells(32,19) =cells(32,19)+vbNewLine+Localidades32.Value\nElse\n      MsgBox\" EL PARAMETRO SELECCIONADO YA HACEPARTE DE LACELDA\"\n End If\n  End IF\n End Sub",32,"EnfoquePoblacional1_32","Private Sub EnfoquePoblacional1_32_Change() \n if cells(32,26)=\"\" Then\n cells(32,26)=EnfoquePoblacional1_32.Value \nelse\n if  InStr(1,cells(32,26),EnfoquePoblacional1_32.Value, vbTextCompare)=0 Then\ncells(32,26) =cells(32,26)+vbNewLine+EnfoquePoblacional1_32.Value\nElse\n      MsgBox\" EL PARAMETRO SELECCIONADO YA HACEPARTE DE LACELDA\"\n End If\n  End IF\n End Sub",32,"Localidades1_32","Private Sub Localidades1_32_Change() \n if cells(32,27)=\"\" Then\n cells(32,27)=Localidades1_32.Value \nelse\n if  InStr(1,cells(32,27),Localidades1_32.Value, vbTextCompare)=0 Then\ncells(32,27) =cells(32,27)+vbNewLine+Localidades1_32.Value\nElse\n      MsgBox\" EL PARAMETRO SELECCIONADO YA HACEPARTE DE LACELDA\"\n End If\n  End IF\n End Sub",32,"EnfoquePoblacional2_32","Private Sub EnfoquePoblacional2_32_Change() \n if cells(32,34)=\"\" Then\n cells(32,34)=EnfoquePoblacional2_32.Value \nelse\n if  InStr(1,cells(32,34),EnfoquePoblacional2_32.Value, vbTextCompare)=0 Then\ncells(32,34) =cells(32,34)+vbNewLine+EnfoquePoblacional2_32.Value\nElse\n      MsgBox\" EL PARAMETRO SELECCIONADO YA HACEPARTE DE LACELDA\"\n End If\n  End IF\n End Sub",32,"Localidades2_32","Private Sub Localidades2_32_Change() \n if cells(32,35)=\"\" Then\n cells(32,35)=Localidades2_32.Value \nelse\n if  InStr(1,cells(32,35),Localidades2_32.Value, vbTextCompare)=0 Then\ncells(32,35) =cells(32,35)+vbNewLine+Localidades2_32.Value\nElse\n      MsgBox\" EL PARAMETRO SELECCIONADO YA HACEPARTE DE LACELDA\"\n End If\n  End IF\n End Sub",32,"EnfoquePoblacional3_32","Private Sub EnfoquePoblacional3_32_Change() \n if cells(32,42)=\"\" Then\n cells(32,42)=EnfoquePoblacional3_32.Value \nelse\n if  InStr(1,cells(32,42),EnfoquePoblacional3_32.Value, vbTextCompare)=0 Then\ncells(32,42) =cells(32,42)+vbNewLine+EnfoquePoblacional3_32.Value\nElse\n      MsgBox\" EL PARAMETRO SELECCIONADO YA HACEPARTE DE LACELDA\"\n End If\n  End IF\n End Sub",32,"Localidades3_32","Private Sub Localidades3_32_Change() \n if cells(32,43)=\"\" Then\n cells(32,43)=Localidades3_32.Value \nelse\n if  InStr(1,cells(32,43),Localidades3_32.Value, vbTextCompare)=0 Then\ncells(32,43) =cells(32,43)+vbNewLine+Localidades3_32.Value\nElse\n      MsgBox\" EL PARAMETRO SELECCIONADO YA HACEPARTE DE LACELDA\"\n End If\n  End IF\n End Sub",null,null,"Private Sub EnfoquePoblacional32_Change() \n if cells(32,18)=\"\" Then\n cells(32,18)=EnfoquePoblacional32.Value \nelse\n if  InStr(1,cells(32,18),EnfoquePoblacional32.Value, vbTextCompare)=0 Then\ncells(32,18) =cells(32,18)+vbNewLine+EnfoquePoblacional32.Value\nElse\n      MsgBox\" EL PARAMETRO SELECCIONADO YA HACEPARTE DE LACELDA\"\n End If\n  End IF\n End Sub",32,"Localidades32","Private Sub Localidades32_Change() \n if cells(32,19)=\"\" Then\n cells(32,19)=Localidades32.Value \nelse\n if  InStr(1,cells(32,19),Localidades32.Value, vbTextCompare)=0 Then\ncells(32,19) =cells(32,19)+vbNewLine+Localidades32.Value\nElse\n      MsgBox\" EL PARAMETRO SELECCIONADO YA HACEPARTE DE LACELDA\"\n End If\n  End IF\n End Sub",32,"EnfoquePoblacional1_32","Private Sub EnfoquePoblacional1_32_Change() \n if cells(32,26)=\"\" Then\n cells(32,26)=EnfoquePoblacional1_32.Value \nelse\n if  InStr(1,cells(32,26),EnfoquePoblacional1_32.Value, vbTextCompare)=0 Then\ncells(32,26) =cells(32,26)+vbNewLine+EnfoquePoblacional1_32.Value\nElse\n      MsgBox\" EL PARAMETRO SELECCIONADO YA HACEPARTE DE LACELDA\"\n End If\n  End IF\n End Sub",32,"Localidades1_32","Private Sub Localidades1_32_Change() \n if cells(32,27)=\"\" Then\n cells(32,27)=Localidades1_32.Value \nelse\n if  InStr(1,cells(32,27),Localidades1_32.Value, vbTextCompare)=0 Then\ncells(32,27) =cells(32,27)+vbNewLine+Localidades1_32.Value\nElse\n      MsgBox\" EL PARAMETRO SELECCIONADO YA HACEPARTE DE LACELDA\"\n End If\n  End IF\n End Sub",32,"EnfoquePoblacional2_32","Private Sub EnfoquePoblacional2_32_Change() \n if cells(32,34)=\"\" Then\n cells(32,34)=EnfoquePoblacional2_32.Value \nelse\n if  InStr(1,cells(32,34),EnfoquePoblacional2_32.Value, vbTextCompare)=0 Then\ncells(32,34) =cells(32,34)+vbNewLine+EnfoquePoblacional2_32.Value\nElse\n      MsgBox\" EL PARAMETRO SELECCIONADO YA HACEPARTE DE LACELDA\"\n End If\n  End IF\n End Sub",32,"Localidades2_32","Private Sub Localidades2_32_Change() \n if cells(32,35)=\"\" Then\n cells(32,35)=Localidades2_32.Value \nelse\n if  InStr(1,cells(32,35),Localidades2_32.Value, vbTextCompare)=0 Then\ncells(32,35) =cells(32,35)+vbNewLine+Localidades2_32.Value\nElse\n      MsgBox\" EL PARAMETRO SELECCIONADO YA HACEPARTE DE LACELDA\"\n End If\n  End IF\n End Sub",32,"EnfoquePoblacional3_32","Private Sub EnfoquePoblacional3_32_Change() \n if cells(32,42)=\"\" Then\n cells(32,42)=EnfoquePoblacional3_32.Value \nelse\n if  InStr(1,cells(32,42),EnfoquePoblacional3_32.Value, vbTextCompare)=0 Then\ncells(32,42) =cells(32,42)+vbNewLine+EnfoquePoblacional3_32.Value\nElse\n      MsgBox\" EL PARAMETRO SELECCIONADO YA HACEPARTE DE LACELDA\"\n End If\n  End IF\n End Sub",32,"Localidades3_32","Private Sub Localidades3_32_Change() \n if cells(32,43)=\"\" Then\n cells(32,43)=Localidades3_32.Value \nelse\n if  InStr(1,cells(32,43),Localidades3_32.Value, vbTextCompare)=0 Then\ncells(32,43) =cells(32,43)+vbNewLine+Localidades3_32.Value\nElse\n      MsgBox\" EL PARAMETRO SELECCIONADO YA HACEPARTE DE LACELDA\"\n End If\n  End IF\n End Sub"]

{"sheet":"Hoja1","index":2,"n_rows":44,"n_cols":5,"rows_kept":44,"cut":false,"hidden":false,"merged":[[43,0,46,0]]}
["Seleccione"]
["1. Usaquén"]
["2. Chapinero"]
["3. Santa Fe"]
["4. San Cristóbal"]
["5. Usme"]
["6. Tunjuelito"]
["7. Bosa"]
["8. Kennedy"]
["9. Fontibón"]
["10. Engativá"]
["11. Suba"]
["12. Barrios Unidos"]
["13. Teusaquillo"]
["14. Los Mártires"]
["15. Antonio Nariño"]
["16. Puente Aranda"]
["17. Candelaria"]
["18. Rafael Uribe Uribe"]
["19. Ciudad Bolívar"]
["20. Sumapaz"]
[]
["Seleccione"]
["Femenino"]
["Masculino"]
["Transgenero"]
["otro"]
["0 -6 (Primera Infancia)",null,null,null,"Primera infancia  (0 a 6 años)"]
["7-12 (Infancia)",null,null,null,"Infancia (7 a 12 años)"]
["13-18 adolescencia",null,null,null,"Adolescencia 13 a 18 años)"]
["19 - 28 (Juventud)",null,null,null,"Juventud (13 a 28 años)"]
["29 - 59 (Adultos)",null,null,null,"Adultez (29 a 59 años)"]
["60 + Adelante ( Personas Mayores)",null,null,null,"Persona Mayor (60 años y mas años)"]
["Negro-Afro-Palanquero"]
["Raizal"]
["Gitano-Rrom"]
["Indigena"]
["Victima del conflicto"]
["Comunidades rurales y campesinos"]
["Discapacidad"]
["Mujeres"]
["Lgtbi"]
[]
["Indique  el numero de participantes reportados en el trimestre que son constantes en el proceso."]

{"sheet":"RevisCronograma_PIPC_ IDPC 2021","index":3,"n_rows":30,"n_cols":24,"rows_kept":30,"cut":false,"hidden":true,"merged":[[0,20,0,21],[0,22,0,23],[0,0,1,0],[0,1,1,1],[0,2,1,2],[0,3,1,3],[0,4,1,4],[0,5,1,5],[0,6,1,6],[0,7,1,7],[0,8,1,8],[0,10,0,11],[0,12,0,15],[0,17,0,19]]}
["No. Ámbito"," Producto/servicio del IDPC","Ámbito de participación ciudadana","Subdirección IDPC"," Equipo responsable IDPC","Equipos corresponsables IDPC","Sinergias trabajadas dentro de la gestión integral del patrimonio cultural en el  IDPC (versiones o vigencias anteriores)","Articulación con instancias de los Sistemas Distritales de Participación del Sector Cultura, Recreación y Deporte ","Posibles sinergias con actores públicos, privados y sociales ","Meta cualitativa","Meta cuantitativa",null,"Primer trimestre 2021 (enero-marzo)",null,null,null,"Evidencias",null,null,null,"Tercer trimestre 2021 (julio-septiembre)",null,"Cumplimiento acumulado 2021"]
[null,null,null,null,null,null,null,null,null,"Resultados/impactos esperados de la participación ciudadana","Mecanismo de participación ciudadana (audiencia pública, debate, comité, asamblea, mesa de trabajo, taller, ejercicios de colaboración e innovación, foro, evento y feria, instancias de participación ciudadana, consulta ciudadana, campaña informativa, entrega de material informativo, encuesta, entrevista, visita, buzones, redes sociales, página web)","Proyección 2021","Programado","Ejecutado","Avance cualitativo (describir actividades realizadas con número de participantes y principales resultados)","Lecciones aprendidas trimestre (enero-marzo)",null,"Avance cualitativo (describir actividades realizadas con número de participantes y principales resultados)","Número de participantes","Lecciones aprendidas trimestre (abril-junio)","Programado","Ejecutado","Programado","Ejecutado 1er trimestre"]
[1,"Proyecto de Recuperación de Columbarios ubicados en el Globo B del Cementerio Central de Bogotá creando un espacio que integre dimensiones de patrimonio y memoria en la ciudad","Laboratorio de activación ciudadana entorno a los patrimonios, memorias y sentidos sociales de los Columbarios del Cementerio Central. ","Subdirección de Protección e Intervención","Subdirección de Protección e Intervención (Equipo de Obras,  Equipo de Arqueología).\nEquipo de participación ciudadana. Equipo de Investigaciones"," Subdirección de Gestión Territorial del Patrimonio, Equipo de Patrimonio Cultural Inmaterial, Subdirección de Divulgación y Apropiación del Patrimonio. \nAsesores de enfoques diferenciales. ","NA","Consejo Local de Arte, Cultura y Patrimonio de Los Mártires","Organizaciones y agrupaciones  de víctimas y/o con trabajo en memoria. Instancias de participación  y gestión local como la Casa de la Juventud, la Mesa Grafiti. Organizaciones locales y comunitarias de barrios aledaños. Asociaciones locales de oficios o actividades entorno al Cementerio, Centro   Memoria Paz y Reconciliación, Universidades, grupos de arqueólogos forenses.","Activación social de las memorias, sentidos y patrimonios integrados que orbitan alrededor de Los Columbarios del cementerio central Laboratorios.","Laboratorios de activación a través de cuatro módulos:\n- Modulo de diálogos (enero-marzo)\n- Modulo de memoria y archivo (abril-junio)\n- Modulo de arqueología histórica (julio-septiembre)\n- Modulo de creación y activación participativa (octubre-diciembre).",4,1,1,"Para la vigencia de este primer trimestre se realizaron las siguientes acciones:                                                                                                                                                               1. 11 de marzo se realizó un diálogo de contextualización con representantes de las Juntas de Acción Comunal -JAC de los barrios Samper Mendoza, Santa Fe y Panamericano, con el objetivo de explorar las memorias y sentidos que suscita el espacio de los Columbarios del Cementerio Central y su entorno. El 28 de marzo se realizó un diálogo de contextualización con miembros de la JAC Santa Fe.\nSe adelantó un diálogo interno para reformular la ruta de acción del proceso Columbarios entre los equipos de investigación y participación ciudadana.","Complejidades en la convocatoria y participación a través de las juntas de acción comunal. Se requieren estrategias que permitan que las convocatorias lleguen directamente a la comunidad. ",null,"Durante el segundo trimestre de 2021 (5 de junio de 2021) se adelantó el premio Dibujatón 2021 del Programa  Distrital de Estímulos en los Columbarios del Cementerio Central. Este proceso de activación contó con un ejercicio inicial de sensibilización y un recorrido introductorio por el lugar, donde los participantes comprendieron cómo, abriendo los sentidos, el espacio ofrece pistas y evidencias de su uso originario. El Recorrido buscó que  los participantes de la Dibujatón 2021 fueran conscientes que la idea que tienen del espacio puede enriquecerse a partir de la exploración atenta.\n\nSe presentan como evidencias las listas de asistencia, piezas comunicativas, fotografías y notas en periódicos y sitios web que se hicieron del evento.\nTambién se comparten a continuación las notas de la página web del IDPC: https://idpc.gov.co/noticias/premio-dibujaton-2021-ilustra-el-patrimonio-de-bogota/\nhttps://idpc.gov.co/asi-vivimos-la-dibujaton-2021-desde-columbarios/\n\nAdicionalmente, durante el segundo trimestre de 2021 se avanzó en la metodología de los laboratorios de activación en los Columbarios del Cementerio Central, a ser desarrollados a partir del mes de julio de 2021. ",30,"La preparación de los laboratorios de activación requirió realizar múltiples indagaciones sobre las posibilidades de vinculación de residentes y comunidad del sector en estos espacios, teniendo en cuenta las restricciones logísticas del Instituto. Esto demostró la necesidad de preparación de este tipo de espacios con, por lo menos, dos meses de anticipación, para ajustar las proyecciones y planes a las posibilidades de la entidad.",1,null,{"$f":"L3","v":4},{"$f":"(N3)","v":1}]
[2," Intervención en Bienes de Interés Cultural - Programa Patrimonios Barriales ","\n\nProceso participativo de activación social de patrimonios, memorias y sentidos locales  que acompañen la intervención física de los BICS,  desde una perspectiva de integralidad.","Subdirección de Protección e Intervención","Subdirección de Protección e Intervención (Equipos de Espacio Público, Fachadas, Bienes Muebles e Inmuebles).Equipo de participación ciudadana del IDPC. ","Equipo de comunicaciones, Programa de Recorridos, Equipo de investigación, Asesores de enfoques diferenciales. Subdirección de Gestión Territorial del Patrimonio","NA","Consejo Local de Arte, Cultura y Patrimonio de las localidades priorizadas","Propietarios de Bienes de Interés Cultural. Organizaciones y agrupaciones culturales  locales en especial que trabajen temas de patrimonio, arte, cultura y patrimonio o temas afines. Instancias locales y comunales de participación. Alcaldías locales y espacios de gestión local.  Medios de comunicación comunitarios. ","Fortalecer procesos de debate,  reconocimiento, activación y apropiación social de los patrimonios integrados  a escala barrial y vecinal.","Procesos de activación de memoria y patrimonios integrados a escala barrial y vecinal; incluye: laboratorios de creación, acciones de activación, programas radiales participativos, recorridos patrimoniales.\n Se proyectan 3 procesos (Bosa, Usme, Belén- Cruces) con un total de 9 actividades durante la vigencia. ",9,0,0,"Para la vigencia de este primer trimestre se realizaron las siguientes acciones:                                                                                                                                                                        1. El 13 de marzo se realizó la entrega física de los ejemplares del Fanzine: ¿Los vecinos y las vecinas hablan y las paredes cuentan?, realizados en el marco del Laboratorio de creación del Proyecto Patrimonios Barriales, a los participantes de la Cuadrilla Manos a la Obra y a la memoria de la Localidad de Suba, la Alcaldía Local, la Casa de la cultura, la Biblioteca pública Francisco José de Caldas y Clacp, con la asistencia de (13) participantes.                                                                                                                                        2. En el marco del proyecto Patrimonios Barriales de la localidad de Bosa (segunda fase), se realizó el Laboratorio de creación con la Cuadrilla Manos a la Obra y a la memoria los días 15, 16, 17, 18, 19 y 23 de marzo con 12 participantes,  Casa de la Participación de Bosa) bajo dos ejes temáticos  Migración y Festival del Sol y la luna, explorando las relaciones personales y la memoria colectiva de los cuadrilleros con estos temas. A su vez se realizaron las sesiones técnicas para el trabajo de intervención y embellecimiento del Centro fundacional.\n3. El 25 de marzo se realizó el lanzamiento virtual: Recorrer y narrar los patrimonios, las plazas fundacionales de Suba y Bosa, con el fin de dar a conocer a la ciudadanía los procesos de memoria y activación realizados en el proyecto Patrimonios Barriales en los núcleos fundacionales de las localidades de Suba y Bosa. En el lanzamiento se hizo la entrega digital de los fanzines: ¿Los vecinos y las vecinas hablan y las paredes cuentan? y Bosa Patrimonio vivo, memorias a pie, resultado del laboratorio de creación con las Cuadrillas Manos a la obra y a la memoria de ambas localidades, realizado en los meses de noviembre y diciembre de 2020. En el evento virtual participaron (4) ciudadanos que conformaron estas cuadrillas y el Facebook live tuvo 848 reproducciones, fue compartido 23 veces y recibió 27 comentarios durante su transmisión en vivo.","La entrega a los participantes del producto desarrollado constituye pertenencia al proceso y de estrechar los lazos a escala barrial del IDPC con la comunidad. El link de descarga de los fanzines quedo inicialmente anclado a la sección de noticias de la página del IDPC, por lo cual para varios ciudadanos y ciudadanas fue confuso la descarga gratuita. Los fanzines se alojaron en la sección de descargas virtual del Centro de documentación para que pueda tener una consulta amplia y extensa en el tiempo.\nLos participantes de la cuadrilla constituyen agentes de cuidado y patrimonio en su localidad, gracias al trabajo técnico y de memoria realizado en el 2020, permite un acercamiento y cuidado al patrimonio local a través de las voces de los mismos participantes para que sean replicadores de saberes en su barrio y comunidad.\n",null,"Bosa\n1.\t (Segunda fase), se finalizó el Laboratorio de creación con la Cuadrilla Manos a la Obra y a la memoria los días 3 y 4 de mayo con 12 participantes, bajo los ejes temáticos : migración local y Festival del Sol y la luna, explorando las relaciones personales y la memoria colectiva de los cuadrilleros con estos temas. Los resultados del laboratorio serán difundidos en el podcast Patrimonios en Plural, producido por Fresa producciones durante el segundo semestre de 2021.\nLa Candelaria, Barrio Belén\n2.\t El 26 de mayo se inicia el proyecto y se reúne por primera vez la cuadrilla Manos a la obra y a la memoria en la Casa Comunitaria del barrio Belén. Durante el encuentro se presentan los diferentes equipos del IDPC y se realizan tres ejercicios sensibilización, reconocimiento y activación de memorias. Se hace entrega de camisetas y gorras y se finaliza con un recorrido por algunos lugares del barrio y toma de fotografías. \n 3. Se han ejecutado nueve de las doce sesiones programadas del Laboratorio de creación con la Cuadrilla Manos a la Obra y a la memoria los días 26, 27 y 28 de mayo y los días 1, 8,15, 21 y 28 de junio con 18 participantes. A partir de ejercicios de experimentación, exploración y documentación se adelantó un reconocimiento del territorio que permitió a los participantes conocer diversos procesos sociales y colectivos que suceden en el barrio, su historia y transformación urbana. El barrio no tiene plaza fundacional, por esa razón el inicio del proyecto fue a modo de carnaval recorriendo diferentes calles del barrio invitando a vecinas y vecinos a participar de los diferentes ejercicios.                                                                                                                                                                                                                    Durante el segundo trimestres se interactúa con 96 propietarios/ habitantes/residentes del barrio belén a quienes se les socializa el objetivo de PATRIMONIO BARRIALES del barrio belén que serán beneficiados.",156,"Bosa\nLa finalización del proceso en la localidad de Bosa permitió hacer una evaluación cualitativa, en la cual se destaca el interés de los cuadrilleros por ser gestores de memoria en su localidad a través de las relaciones, alianzas y conocimientos que adquieran en el proceso, las cuales fortalecen internamente a las organizaciones a las que pertenecen, al ser partícipes de un proyecto a nivel territorial. Por otro lado, se destaca el cambio de percepción frente al IDPC que se tenía en la localidad, y especialmente en el centro fundacional, al ver los resultados de la intervención técnica y la contratación de mano de obra local. Es muy importante seguir tejiendo relaciones de confianza entre propietarios, vecinas y vecinos de forma personalizada y certera, para continuar generando confianza en la institución y seguir siendo un aliado en los procesos patrimoniales y de memoria de la localidad.\n\n\nLa Candelaria\n1. La conformación de la cuadrilla a partir de mano de obra local ha sido un acierto al permitir que los participantes y actores de los procesos barriales se integren como parte del equipo de trabajo del IDPC.\n2. La articulación y vínculos con procesos artísticos, culturales y colectivos permitió ampliar la perspectiva de las dinámicas barriales. \n3. El trabajo en conjunto con otros equipos del IDPC abrió espacios de comunicación en los que se comprendió la necesidad de articular los proyectos y procesos. Es importante mantener un diálogo constante entre equipos de trabajo.                                                                                                                                                                           4. Desde el inicio de la contratación se brindó un acompañamiento constante a la cuadrilla en el proceso contractual. Se identificó que las personas que participan del proceso de selección, en general no tienen experiencia como contratistas y requieren asesoría permanente.",3,null,9,0]
[3,"Activación de entornos patrimoniales","Espacios de reconocimiento y activación social de entornos patrimoniales"," Subdirección de Gestión Territorial del Patrimonio","Equipo 7 entornos","Equipo de participación ciudadana del IDPC,\nEquipo de comunicaciones, otros equipos del IDPC","NA","Mesa de Consejeros Locales de Patrimonio Cultural y CLACP de localidades priorizadas","Idartes, Jardín Botánico, IDPAC, IDT, Alcaldías Locales, residentes y JAC, organizaciones sociales, culturales, artísticas, educativas y ambientales, instancias de participación, comerciantes y asociaciones de comerciantes, instituciones educativas","Reconocer y establecer relacionamiento con actores, intereses y procesos en territorio para la definición y desarrollo de acciones  de activación de los patrimonios en los entornos priorizados.\nFortalecer los tejidos sociales y cotidianos asociados a los patrimonios en los entornos priorizados.","Recorridos exploratorios de reconocimiento y relacionamiento con actores sociales e institucionales, encuestas, talleres, laboratorios de creación, ejercicios de expresión cultural y artística de grupos poblacionales, campañas informativas",12,2,2,"Para la vigencia de este primer trimestre se realizaron las siguientes acciones:                                                                                                                                                                       1. Articulación con el componente de participación y divulgación del PEMP del Centro Histórico de Bogotá se llevó a cabo la reunión presencial con actores estratégicos para identificación aspectos que debe tener en cuenta el proceso de activación del Parque Pueblo Viejo, localizado en el barrio La Concordia. Desde el proyecto de Activación de Entornos Patrimoniales se informó sobre el desarrollo del Convenio entre el IDPC y el JBB como herramienta para su activación, y se discutieron posibles acciones de visibilización y apropiación a desarrollar a corto plazo, las cuales se seguirán concertando en instancias locales de participación . Se contó con la participación de 5 personas externas al IDPC incluyendo miembros de la Junta de Acción Comunal La Concordia, Consejo de Planeación Local de La Candelaria y Universidad del Rosario. \n\n2. Articulación con el componente de participación y divulgación del PEMP del Centro Histórico de Bogotá,  acompañamiento en las reuniones para la activación de la Plaza de Mercado de Las Cruces (presencial) y de la Mesa de articulación de Las Cruces (virtual), aunque ambos escenarios tuvieron una amplia participación institucional, incluyendo al equipo de participación del IDPC, se espera lograr mayor vinculación de residentes y organizaciones del sector con el fin de que los procesos de activación propuestos logren generar la apropiación y sostenibilidad para la valoración de los patrimonios desde la integralidad. Se contó con la participación de 5 personas representantes de la Junta de Acción Comunal, organizaciones locales y la UNIMINUTO, además de representantes de entidades dependiendo de cada espacio. Ambas reuniones se cuentan como parte de un mismo proceso en el sector de Las Cruces, por lo cual no se cuentan de forma separada.                                                                                                                                                                                                                                                                                                                                                                La diferencia en la programación de los procesos de activación de entornos patrimoniales para el primer trimestre, que se proyectó para el desarrollo 3 procesos/actividades y en el reporte solo se encuentran 2, esta asociada a la dificultad que se presentó en el desarrollo de la línea de activación para el fortalecimiento de prácticas culturales y artísticas asociadas al reconocimiento, valoración y reflexión alrededor de los patrimonios, que para este año se adelantará a través del Convenio derivado entre el IDPC e IDARTES  (IDPC-CI-791-2020). Dentro de las actividades del Convenio inicialmente se tenía proyectado el lanzamiento de la convocatoria de la beca Festival de Artes Valientes en el Centro Histórico en el mes de marzo, sin embargo, el proceso de traslado de los recursos por parte de Secretaría de Hacienda a IDARTES tomó más tiempo del esperado, lo que implicó el aplazamiento de las actividades para el mes de abril. Como parte de las actividades programadas para el lanzamiento y convocatoria de esta beca, se tiene dispuesto el desarrollo de recorridos de reconocimiento del entorno con las personas interesadas en postular sus propuestas a esta beca, de forma que los recorridos definidos para finales del mes de marzo, debieron postergarse para finales del mes abril y comienzos del mes de mayo de 2021. Por lo anterior, esta actividad será reportada en el PIPC correspondiente al segundo trimestre de 2021. ","Articulación entre los proyectos y equipos del IDCP con el fin de llegar a los entornos y a las diferentes instancias de participación con un mismo lenguaje y propósito.\nPotenciar procesos previos y en curso desarrollados por otras instituciones del sector cultura que dialoguen con el propósito de integralidad y democratización de los patrimonios.\nInteracción con diferentes actores de los entornos con el fin de reconocer intereses, necesidades y propósitos desde una lectura multiactor.",null,"Para la vigencia de este primer trimestre se realizaron las siguientes acciones a través de tres procesos: \n1. Socialización proyecto 7 entornos y aproximación a las instancias locales de participación de los entornos priorizados (Suba, Bosa, Usme y Centro Histórico) para la identificación de actores y procesos interesados en la activación patrimonial: En articulación con el equipo de participación del IDPC para Suba y Bosa y del equipo del Parque Arqueológico en Usme, se llevó a cabo la socialización del proyecto en diferentes instancias locales de participación (Bosa: 15 de abril; Suba: 9 de abril; Usme: 19 de abril). Para el Centro Histórico en articulación con el PEMP del CHB se complementaron las socializaciones con la información de la activación de entornos patrimoniales en los CLACP de La Candelaria y Santa Fe (7 de abril y 11 de mayo, respectivamente). Total de asistentes (registrados acta y listados de asistencia): 66 personas. \nA partir de esta socialización se realizó el mapeo de actores y procesos en los entornos priorizados delegaciones de cada uno de los CLACP (Bosa: 6 y 18 de mayo; Suba:4 de mayo; Usme: 14 de mayo). Este ejercicio se realizó en articulación con el equipo de inventario de patrimonio cultural. Total de asistentes (registrados acta y listados de asistencia): 20 personas.\nSe adelantó la socialización del componente de patrimonio natural del proyecto en las Comisiones Locales de Ambiente (CAL) de Bosa (16 de junio) y de Usme (15 y 25 de junio), instancia con particip+T5ación de organizaciones y ciudadanía. Total asistentes: 15 personas.\nCon relación a la Mesa de Consejeros de Patrimonio se adelantó recorrido explicativo sobre el proceso de activación del patrimonio natural en el marco del PEMP del CHB (7 de abril) y se socializaron los criterios de priorización de los entornos patrimoniales como marco para la presentación de la implementación de los pilotos de inventario de PCI (21 de mayo). Total asistentes: 10 personas (en la sesión del 21 de mayo la asistencia fue mayor a la registrada en lista). \n2. Socialización convocatoria Beca Festival de las Artes Valientes- Centro Histórico de Bogotá. En articulación con la Gerencia de Artes Plásticas y visuales de IDARTES se fortaleció la divulgación de la convocatoria y el acercamiento a la ciudadanía interesada a través del desarrollo de: 3 recorridos (29 de abril: Las Cruces - 442 visualizaciones; 4 de mayo: Belén - 433 visualizaciones; y 6 de mayo: La Candelaria - 216 visualizaciones) y una jornada de Facebook Live (28 de mayo, con 766 reproducciones) en donde se presentó la contextualización de la beca y su relación con la activación patrimonial y se resolvieron inquietudes planteadas a través de redes sociales. \n3. Proceso participativo proyecto Barrio Vital-Las Cruces: Como parte de las procesos de articulación interinstitucional para el fortalecimiento de acciones en los entornos patrimoniales, se logró la priorización de Las Cruces como Barrio Vital por parte de Secretaría de Movilidad y la vinculación del equipo PEMP del CHB como apoyo para su implementación. De esta forma se construyeron conjuntamente  las herramientas metodológicas para realizar la lectura territorial compartida, que se inició en junio con dos actividades participativas: recorrido a la deriva (12 de junio) y mapeo espontáneo en espacio público (30 de junio). Total asistentes: 18 personas (en base de datos del proyecto para ambas actividades). ",129,"Es importante que los temas de avance de los procesos administrativos no demoren el inicio de la ejecución de los proyectos de activación de los entornos, dado que con la socialización del proyecto en las instancias de participación se genera una expectativa sobre el avance de los mismos y las posibilidades de gestión se dificultan sin los proyectos en marcha.\nHa sido fundamental la articulación con los diferentes proyectos y equipos del IDPC presentantes en los entornos patrimoniales, para posicionarlas apuestas institucional y la visión de integralidad, debe ser fundamental fortalecer la confluencia de acciones de los proyectos.\nDebe continuarse fortaleciendo los escenarios de participación virtuales debido a las medidas y condiciones sanitarias vigentes por la pandemia y comprender que las dinámicas se han transformado implicando menores cifras en la participación, pero posiblemente más impacto en la apropiación de los procesos que se convocan.",4,null,12,2]
[4,"Plan Especial de Manejo y Protección (PEMP) de Teusaquillo","Espacios de socialización y participación ciudadana para la fase de formulación del PEMP de Teusaquillo"," Subdirección de Gestión Territorial del Patrimonio","Equipo de participación y divulgación del PEMP de Teusaquillo y equipo técnico de la SGTP","Equipos de participación ciudadana IDPC","Equipo de participación ciudadana,  Subdirección de Divulgación y Apropiación del Patrimonio (área de comunicaciones) y Subdirección de Protección e Intervención del Patrimonio","Consejo Local de Arte, Cultura y Patrimonio de Teusaquillo (CLACP)","Junta Administradora Local (JAL), Consejo de Planeación Local (CPL) , Juntas de Acción Comunal, gremios, universidades, comerciantes, instancias de participación,  corporaciones patrimoniales, organizaciones sociales y ambientales.","Generar espacios de participación  enfocados para definir las líneas de acción que serán implementadas en la fase de formulación del PEMP y la metodología propuesta por el IDPC para esta fase. Reconocer y sistematizar la relación de la comunidad con el territorio, su medio natural y sus patrimonios (visión del territorio).","Encuentros ciudadanos participativos: mesas de trabajo, talleres, reuniones con comunidad, grupos focales, exposición de resultados.\nEstrategia de divulgación y comunicación: campaña informativa o consulta ciudadana a través de la página web del IDPC, Webinar y redes sociales.",14,2,0,"Para la vigencia de este primer trimestre se realizaron las siguientes acciones:                                                                                                                                                                                                                                                                               El Plan Especial de Manejo y Protección de –PEMP- Teusaquillo planificó realizar dos encuentros ciudadanos en el primer trimestre del año, el objetivo de estos escenarios de participación es presentar y poner en dialogo el resultado de la fase del diagnóstico con la comunidad y con algunas instancias de participación ciudadana. \nLa principal dificultad que se presentó para dar cumplimiento a esta meta fue el proceso de contratación, para llevar a cabo estas sesiones se requiere contar con la totalidad del equipo profesional del PEMP, ya que sus integrantes constituyen el grupo de ponentes que presentarán el resultado en mención.\nNo obstante, en los meses de febrero y marzo se hizo el aprestamiento correspondiente a estos dos encuentros, para lo cual se definió la metodología a implementar y se trabajó conjuntamente con el área de comunicaciones en la publicación del Documento Técnico de Soporte –DTS- del diagnóstico, la presentación síntesis y una serie de nueve infografías con los datos representativos de cada uno de los componentes analizados, dicho material fue alojado en la página web del Instituto Distrital de Patrimonio Cultural –IDPC- para que sean de acceso público.   \nParalelamente se trabajó en la actualización de la Base de Datos única y en la identificación de actores, con el fin de ampliar la base social del proyecto y garantizar la participación de la ciudadanía en la presentación del resultado del diagnóstico que se proyectan realizar de manera virtual el 7 y 9 de abril de 2021. ","Avanzar en los procesos de contratación para contar con la totalidad del equipo profesional del PEMP, ya que sus integrantes constituyen el grupo de ponentes que presentarán el resultado en mención.",null,"1.Socialización del resultado de la fase diagnóstico del PEMP Teusaquillo\nEn esta sesión se presentó a la comunidad el resultado de la fase de diagnóstico del Plan Especial de Manejo y Protección –PEMP- Teusaquillo; en esta exposición se socializó el estudio social y de participación; el estudio histórico y de valoración; el diagnóstico físico espacial (contexto urbano y territorial, estructura urbana, medio ambiente, espacio público y equipamientos, accesibilidad y movilidad, parámetros urbanísticos, vivienda, infraestructura vial y de servicios, instrumentos de gestión del suelo y amenazas y vulnerabilidades); el inventario de los Bienes de Interés Cultural –BIC- del grupo arquitectónico; la identificación y caracterización del Patrimonio Cultural Inmaterial –PCI- y el diagnóstico socioeconómico.\nEl principal resultado de esta sesión fue conocer las propuestas que la ciudadanía concibe como posible solución a las diferentes problemáticas que presenta el área de estudio del PEMP. Otro de los resultados es el compromiso de la comunidad, manifiesto en el número de participantes. Igualmente, fue determínate escuchar a los habitantes del sector y validar con ellos el resultado del diagnóstico.\n\nNúmero participantes registrados en la lista de asistencia: 86\nNúmero de personas conectadas a Facebook Live: 31\nTotal participantes: 117 \n\nEvidencia: Acta 210409 Relatoría socialización diagnóstico con comunidad\nPEMP live: FireShot Capture 986 - Creator Studio - business.facebook.com\n2.  Diálogos a través de grupos Focales componente Urbano, Habitacional, Medio Ambiente\n2.1 Grupo Focal componente urbano\nEn esta sesión se generó una conversación con representantes de la comunidad en torno a cinco preguntas que indagaban sobre aspectos del contexto y la estructura urbana del territorio; en este espacio de participación la ciudadanía presentó las opiniones, ideas y propuestas que consideran deben incidir en la formulación de los programas y proyectos del PEMP Teusaquillo. Igualmente, se revisó y puso en dialogó la visión que se precisó con base a los resultados de la fase del diagnóstico, el objetivo era fortalecer esta descripción para que en ella se contenga la prospectiva de los próximos 20 años.\n\nTotal participantes: 12\nEvidencia: Acta 210503 Grupo focal urbano\n\n\n2.2 Grupo focal componente habitacional\nEn este grupo focal se puso en diálogo con representantes de la comunidad el rol del Sector de Interés Cultural (SIC) de Teusaquillo en la provisión de vivienda en la localidad y en la ciudad; en términos normativos se analizaron algunas estrategias que se pueden adoptar para preservar el uso y carácter residencial de los barrios del área de estudio; se imaginaron las viviendas del futuro, que se pueden llegar a concebir en bienes patrimoniales; así mismo se habló respecto a la subdivisión de vivienda y la construcción de nuevos proyectos arquitectónicos. Todo ello, orientado a que la participación ciudadana incida en la formulación de los programas y proyectos del PEMP Teusaquillo. En esta sesión de trabajo también fue socializada la visión de este instrumento de planificación urbana, con el interés de validar con la comunidad la prospectiva plateada para los próximos 20 años.\n\nTotal participantes: 9\nEvidencia: Acta 210503 Grupo focal habitacional\n2.3 . Grupo focal componente medio ambiente\nEl grupo focal del componente ambiental estuvo dirigido a identificar qué reconoce la comunidad como patrimonio natural, a reseñar las causas que deterioran los bienes naturales del área de estudio del PEMP Teusaquillo y las propuestas o iniciativas ciudadanas de salvaguarda, manejo y gestión. De igual forma, se revisó conjuntamente la propuesta de la visión para recoger la opinión ciudadana y fortalecer esta prospectiva.\n\nTotal participantes: 10\nEvidencia: Acta 210504 Grupo focal medio ambiente\n\n3. Diálogos Grupo focales \n3.1 Componente patrimonio inmueble\nEn este grupo focal se desarrolló un conversatorio cuyo tema central fue la conservación de los Bienes de Interés Cultural (BIC) del grupo arquitectónico (inmuebles), su puesta en valor en las dinámicas inmobiliarias actuales; el fortalecimiento de la norma para preservarlos, así como el mantenimiento y el cuidado de los mismos a través de la creación y fortalecimiento de incentivos a los propietarios de BIC. Adicionalmente, se presentó y puso en diálogo con la comunidad la visión del PEMP Teusaquillo para conocer las opiniones frente a la prospectiva planteada para los próximos 20 años. Este ejercicio permitió que la participación ciudadana incida en la formulación de los programas y proyectos que contendrá este instrumento de planificación urbana.\n\nTotal participantes: 10\nEvidencia: Acta 210504 Grupo focal patrimonio inmueble\n\n3.2. Grupo focal componente bienes muebles\nLos asistentes a este grupo focal participaron en un conversatorio donde el tema central fueron los bienes muebles (monumentos o esculturas) del área de estudio del PEMP Teusaquillo, su representatividad, connotaciones, aspectos a mejorar y propuestas de salvaguarda. Adicional a ello, se puso en diálogo la visión propuesta para definir la prospectiva del territorio en los próximos 20 años.    \n\nTotal participantes: 8\nEvidencia: Acta 210505 Grupo focal bienes muebles\n\n3.3. Grupo focal socioeconómico\nA través de una conversación grupal, los participantes analizaron aspectos cómo: el uso de los Bienes de Interés Cultural (BIC) como hospedajes (Airbnb); las actividades económicas que deberían perdurar en el territorio; alternativas para garantizar el derecho al trabajo a los vendedores ambulantes; la relación de las actividades y la población flotante con la seguridad del sector y los incentivos que deberían recibir los propietarios de los BIC.  Además, fue puesta en común la descripción de la visión del PEMP Teusaquillo para conocer la opinión ciudadana para evaluar y mejorar dicha prospectiva.  \n \nTotal participantes: 9\nEvidencia: Acta 210505 Grupo focal socioeconómico\n3.4 . Grupo focal componente de movilidad\nEn este grupo focal se analizó con los participantes la infraestructura y seguridad de las ciclorrutas, el servicio del transporte público, la posibilidad de aplicar restricciones para el acceso vehicular, la identificación y apropiación de vías principales y la seguridad para los transeúntes en los cruces viales. Asimismo, se leyó y puso en diálogo la misión que se definió para el PEMP Teusaquillo como prospectiva y ruta de trabajo de este instrumento de planificación urbana, con el interés de ajustar el texto con la opinión ciudadana.  \n\nTotal participantes: 11\nEvidencia: Acta 210507 Grupo focal movilidad\n\n4. Grupo focal componente PCI\nEn esta sesión fue presentada, a actores y gestores culturales, la metodología participativa que implementó el IDPC para hacer el mapa del Patrimonio Cultural Inmaterial (PCI) en la ciudad. Del mismo modo, se socializó el proceso que se abrió en el área de estudio de PEMP Teusaquillo para llevar a cabo el inventario de las manifestaciones de PCI a partir de la conformación de un equipo local de ciudadanos interesados en su salvaguarda. Durante este encuentro los participantes del grupo focal fortalecieron la metodología mencionando los criterios que debía definir al equipo local en mención.\n\nTotal participantes: 8 \nEvidencia: Acta 210506 Grupo focal PCI   \nNota: Se consolida por componentes en relación con la naturaleza de la temática de los grupos focales.\nSe ajusta el número de reporte de área, a 4 procesos. ",194,"Toda convocatoria a comunidad debe ser pública, es decir, debe diseñarse una pieza de comunicación oficial para remitir por correo electrónico o WhatsApp, incluso si la estrategia de comunicación se centra en el contacto telefónico. Es importante contar con evidencias que den cuenta de la trazabilidad y transparencia del proceso de participación ciudadana.    ",4,null,{"$f":"L6","v":14},0]
[5,"Plan Especial de Manejo y Protección (PEMP) del Parque Nacional Enrique Olaya Herrera","Espacios de participación y socialización ciudadana para la fase de formulación del PEMP del Parque Nacional Enrique Olaya Herrera\n\n"," Subdirección de Gestión Territorial del Patrimonio","Fundación Alma bajo la coordinación del equipo de participación y divulgación de la Subdirección de Gestión Territorial del Patrimonio","Equipos de participación ciudadana IDPC","Equipo de participación ciudadana y Subdirección de Divulgación y Apropiación del Patrimonio (área de comunicaciones)","Consejo Local de Arte, Cultura y Patrimonio (CLACP) y el Consejo Local de Deportes, Recreación, Actividad Física, Parques y Equipamientos recreo-deportivos (DRAFE) de las localidades de Santa fe y Chapinero, Administración del Teatro del Parque, Instituto Distrital de Recreación y Deporte (IDRD), Instituto Distrital de Participación Ciudadana (IDPAC)","Junta Administradora Local (JAL) de Chapinero y Santa fe, Grupo de Veeduría Ciudadana Defendamos la Séptima; Consejo de Planeación Local (CPL) de Chapinero y Santa fe; Juntas de Acción Comunal de los barrios El Paraíso, La Merced, Sagrado Corazón y La Perseverancia; gremios y grupos ciudadanos que hacen uso del Parque Nacional Olaya Herrera (vecinos); universidades; instancias de participación; organizaciones sociales; corporaciones patrimoniales; Fundación Pro-Bogotá Región; Mesa de Cerros Orientales; Grupo Amigos de la Montaña; Departamento Administrativo de la Defensoría del Espacio Público (DADEP); Instituto Para La Economía Social (IPES); Instituto Distrital para la Protección de la Niñez y la Juventud (IDIPRON); Paqueros Bogotá","Formular los proyectos del Plan Especial de Manejo y Protección (PEMP) del Parque Nacional Enrique Olaya Herrera con la participación incidente de la ciudadanía.\n\nDefinir las competencias de cada entidad para garantizar la gestión y administración del Parque Nacional Enrique Olaya Herrera.","Encuentros ciudadanos participativos: talleres, reuniones con comunidad, entrevistas y encuentros con los diferentes grupos focales, salidas de campo, mesas de trabajo\n\nEstrategia de divulgación y comunicación: campaña informativa o consulta ciudadana a través de la página web del IDPC, participación y divulgación ciudadana en alianza con el IDPAC, Story Map en alianzas con ESRI, presentación  de resultados de la formulación y divulgación de los valores del BIC, Webinar y redes sociales.",{"$f":"#REF!+U7+M7+#REF!","v":{"$error":"#REF!"}},7,13,"Para la vigencia de este primer trimestre se realizaron las siguientes acciones:                                                                                                                                                                  1. Taller 2 Grupo Focal 2 (8 asistentes, semipresencial): este fue el primer espacio semipresencial, lo que permitió que nuevas personas asistieran y por lo tanto se hicieron nuevos aportes. En este caso las propuestas giraron en torno a: turismo comunitario; desaseo de algunas zonas del Parque; inseguridad del Parque; consumo de SPA en el Parque; y buscar nuevos espacios de participación.\n2. Recorrido Río Arzobispo (8 participantes): Durante la fase de Formulación se realizó un recorrido participativo con representantes de la SDA y la EAAB, para reconocer y visitar las zonas que se pueden delimitar como áreas para favorecer la conectividad y la integridad de los ecosistemas dentro del proyecto de Restauración Ecológica Participativa del componente Ambiental, y acotar las áreas a trabajar dentro del proyecto de gestión de manejo ambiental sostenible de la microcuenca del Río Arzobispo (Neuque).\n3. Mesa de Trabajo con el JBB (5 asistentes, virtual): se presentaron las propuestas del componente Ambiental, Paisaje, Turismo y Divulgación y se discutió la posibilidad de articulación con múltiples líneas de trabajo del Jardín Botánico y otras entidades del distrito, en el tema de restauración vegetal y huertas urbanas. Hubo énfasis en tener en cuenta el fallo reciente de los Cerros Orientales, que permite el desarrollo y uso de ciertas actividades en torno a la ecología y la restauración en las franjas de adecuación de la reserva de los Cerros, en donde entra el área de influencia del Parque Nacional.\n4. Mesa de Trabajo con SDH (4 asistentes, virtual), la mesa fue un espacio de retroalimentación en la normativa que aplica en el área de influencia del PEMP del Parque Nacional. Se hizo especial énfasis en la normativa de la Reserva de los Cerros Orientales. \n5. Mesa de Trabajo con SDA (4 asistentes, virtual), esta mesa permitió presentar las propuestas del componente Ambiental y discutir la articulación, especialmente en el Aula Ambiental y la restauración del río Arzobispo. Se recomienda buscar articulación similar con la EAAB, el Jardín Botánico y el IDT. \n6. Mesa de Trabajo con IDIGER (2 asistentes, virtual), este espacio permitió presentar las propuestas del componente Ambiental y aclarar dudas sobre los proyectos adelantados por el IDIGER en el área de influencia del PEMP Parque Nacional. \n7. Mesa de Trabajo Interinstitucional (9 asistentes, virtual), este espacio contó con la presencia de representantes de las siguientes entidades: IDT, JBB, PUJ, UPN, EAAB, IDIGER, SDA, y SDH. Durante la Mesa se presentaron las últimas versiones de las propuestas del PEMP Parque Nacional de los componentes Ambiental, Divulgación, Movilidad, Paisaje, Sociocultural y Turismo;  lo que reafirmó las propuestas de articulación que habían surgido en Mesas anteriores y dio oportunidad de que surgieran nuevas. La asistencia de la Universidad Javeriana y la Universidad Pedagógica abrieron la posibilidad de proyectos en torno a las artes y la educación. Para esta Mesa de Trabajo se utilizó la plataforma Jamboard, en donde los asistentes pudieron consignar sus propuestas.\n8. 2° Mesa de Trabajo IDT (2 asistentes, virtual): esta mesa permitió una conversación a mayor profundidad con representantes del IDT, que también asistieron a la Mesa de Trabajo Interinstitucional. Se confirma el apoyo del IDT en diferentes proyectos, mencionando especialmente la restauración y señalización de los senderos. Por parte de los representantes se sugiere que la persona asignada a los temas de turismo no sea asignada por el ente gestor a modo general, sino un profesional especializado que dinamice la actividad e impacto económico en el Parque Nacional. 9. \n9. Mesa de Trabajo IDU (7 asistentes, virtual): esta mesa de trabajo se centró principalmente en buscar la articulación entre el PEMP Parque Nacional y el proyecto de Corredor Verde de la 7ma. Surgieron propuestas centradas en los componentes: Movilidad, Espacio Público, Ambiental y Paisaje.\n10. Buzón Presencial (2 sesiones, 10 participantes: dentro de la actividad las personas se vieron interesadas en las preguntas, y el equipo recibió retroalimentación positiva por realizar la actividad.  Estas sesiones de aplicación mostraron que las preguntas son claras y que son herramientas útiles para recolectar las opiniones de la ciudadanía.\n11. Entrevista a Diana Ayala y Fernando Chaparro (líderes comunitarios, barrio La Perseverancia): durante la entrevista se indagó sobre la historia del barrio, los proyectos comunitarios que se están desarrollando y su posible articulación con el PEMP Parque Nacional. Las personas entrevistadas contaron cómo se llevan desarrollando procesos en pro del desarrollo político, social, cultural y ambiental del barrio desde hace más de 30 años, y cómo han buscado vincularse a múltiples iniciativas. Indican que en el Parque Nacional están llevando a cabo un proyecto denominado Huerta Biocultural Untucutu, en donde realizan actividades como charlas y talleres relacionados con la agronomía y la agroecología, además de la realización de caminatas una o dos veces por semana.\n12. Taller 2 Grupo Focal 1 (9 asistentes, virtual): el segundo espacio con usuarios y deportistas tuvo una menor acogida, sin embargo, permitió generar discusiones a profundidad con los asistentes. O7Surgieron los siguientes temas: darle acceso a la ciudadanía a información sobre los procesos de restauración vegetal, para que haya veeduría y control; ver el Parque Nacional desde lo Queer, pues siempre ha sido un espacio que acepta a todo el mundo; espacios designados para las mascotas pueden reducir que haya tantas heces en el Parque; hace falta proponer soluciones para los habitantes de calle del Parque; y el uso de materiales reciclables para la creación de la señalética. \n13. Taller 2 Grupo Focal 3 (20 asistentes, virtual): este taller logró una mayor convocatoria que el primero del mismo grupo, lo que permitió  escuchar a nuevas voces. En general se discutió: las incidencia del proceso participativo; las amenazas presentes y futuras del Parque (el corredor de la 7ma, edificios de CAR y Ecopetrol); la recuperación del río Arzobispo; la falta de baños públicos en el Parque; la restauración participativa; creación de pacas biodigestoras; y la generación de un proyecto de luminarias e iluminación que abarque todo el Parque. \t+O7","Realizar las comunicaciones a los encuentros con anticipación con el fin que los participantes de los mismo, puedan estudiar las propuestas, para si contribuir de manera mas eficiente en los proceso participativos. ",null,"\n1. Encuentros ciudadanos y otras metodologías participativas:\nCon este propósito se realizaron acciones interinstitucionales \na)\tMesa de trabajo con IDIPRON (2 asistentes, virtual): se discutieron los procedimientos y líneas de acción que se realizan con ciudadanos habitantes de calle entre los  6 y los 28 años de edad. Se hizo registro de posibles estrategias a aplicar para articular a esta población con el PEMP Parque Nacional.\nb)\tMesa de trabajo con SIDS (1 asistente, virtual): se discutieron los procedimientos y líneas de acción que se realizan con ciudadanos habitantes de calle mayores de 28 años de edad. Se hizo registro de posibles estrategias a aplicar para articular a esta población con el PEMP Parque Nacional.\nc)\tReto de participación ciudadana 1 en Alianza con el IDPAC (323 aportes, virtual): Se realizó un reto en la página del IDPAC sobre los escenarios deportivos y culturales del PNEOH, este se publicó por 45 días en la plataforma y se difundió con estrategias presenciales y virtuales. Todos los aportes se sistematizaron para que se tengan en cuenta en los diferentes proyectos.\nd)\tReto de participación ciudadana 2 en Alianza con el IDPAC (Inició el 28 de Abril y cierra el 14 de julio,  aportes hasta la fecha, virtual): Se está realizando el segundo reto en la plataforma sobre las acciones que se pueden realizar para mejorar el río Arzobispo. Teniendo en cuenta el curso completo del río, se está difundiendo con el apoyo del PEMP de Teusaquillo. Debido al buen desarrollo del reto anterior, se difundirá con las mismas estrategias virtuales y presenciales, adicional a una posible charla entre los directores de las dos instituciones.\n1.1 Entrevistas actores \na)\tEntrevista a miembro de Esperanza de los Remedios (1 asistente, presencial): se entrevistó a Ricardo Carvajalino para indagar sobre la historia de la práctica de Teatro Callejero en el Parque Nacional, y algunas problemáticas actuales. Se menciona la falta de infraestructura y la pobre articulación con el ente administrador del parque.\nb)\tEntrevista a miembro de Luz de Luna (1 asistente, presencial): se entrevistó a John Valero para indagar sobre la historia de la práctica de Teatro Callejero en el Parque Nacional, y algunas problemáticas actuales. Se mencionaron los diferentes colectivos y grupos de teatro callejero que utilizan el parque, la falta de infraestructura y la pobre articulación con el ente administrador del parque.\nc)\tEntrevista a La Pepa del Mamoncillo (1 asistente, presencial): se entrevistó a Andrés Loboguerrero para indagar sobre la historia de la práctica de Teatro Callejero en el Parque Nacional, y algunas problemáticas actuales. Se mencionaron la falta de espacios oficiales para realizar la práctica, y la pobre articulación con el ente administrador del parque.\n\nd)\t- Entrevista a la Libélula Dorada (1 asistente, presencial): se entrevistó a César Álvarez para indagar sobre la historia de la práctica de Teatro Callejero en el Parque Nacional, y algunas problemáticas actuales. Se mencionaron la importancia que esta práctica ha tenido en la apropiación y gobernanza del Parque, la falta de espacios oficiales para realizar la práctica, y la pobre articulación con el ente administrador del parque.\n\n\ne)\t- Entrevista a Mesa Interinstitucional del Pico del Águila (1 asistente, virtual): se entrevista a Claudia U783Mesa para escuchar proyectos y propuestas de la Mesa Interinstitucional del Pico del Águila, con la intención de proponer articulación con el PEMP Parque Nacional, específicamente en el tema del rio Arzobispo. Se listaron 4 líneas de trabajo que conectan el tema ambiental, cultural y comunitario a la restauración.\n1.2.  Mesa de trabajo Rio Arzobispo \na)\tMesa de trabajo con PUJ (1 asistente, virtual): se discutieron las líneas de trabajo en torno al río arzobispo, con el fin de encontrar articulación con el proyecto COSMOS y la Facultad de Estudios Ambientales y Rurales de la PUJ. Se señala interés en articular con el proyecto de ciencia abierta y la restauración del río.\nb)\tMesa de trabajo con PUJ (3 asistentes, virtual): se discutieron las líneas de trabajo en torno al río Arzobispo, con el fin de encontrar articulación con la Facultad de Ingeniería de la PUJ. Se señala interés en articular con el proyecto de ciencia abierta y la restauración del río.\nc)\t- Taller participativo sobre impacto ambiental del deporte (11 asistentes, virtual): se indicó la importancia de las prácticas deportivas como mecanismo de apropiación de espacios, pero que tienen un impacto ambiental considerable. Los participantes indicaron algunas propuestas para reducir este impacto: Definir las rutas de las prácticas; Lograr acuerdos de uso de espacios en el edificio de la administración del Parque; Proponer soluciones a la inseguridad de esta zona del Parque; Campañas de educación ambiental para reducir la contaminación del río arzobispo; Mejorar la infraestructura de las pistas para reducir el impacto ambiental de las prácticas relacionadas a la erosión. Hacer esto en conjunto con la reforestación y revitalización del río. \nd)\tTaller participativo sobre patrimonio ambiental y río arzobispo (17 asistentes, virtual): se describieron los diferentes proyectos en torno a restauración y apropiación del patrimonio ambiental del Parque Nacional, con énfasis en el río Arzobispo. Entre las múltiples intervenciones cabe resaltar la vinculación entre el patrimonio ambiental y el patrimonio cultural; la importancia del Parque Nacional como eje de conexión con los Cerros Orientales; y una preocupación generalizado por el estado de deterioro actual, lo que se conecta con un interés por apoyar las iniciativas de restauración.\ne)\tTaller participativo sobre artes vivas y el río Arzobispo (17 asistentes, virtual): se definieron las artes vivas y su importancia en el Parque Nacional para lograr la apropiación de los espacios. De las ideas propuestas vale la pena resaltar la idea de un festival del río, que podría atravesar no solo el Parque Nacional sino toda la ronda que pasa por Teusaquillo; una caravana o recorrido artístico a lo largo de diferentes zonas del Parque; y la articulación con la Casa de la Juventud de Chapinero, que están en un proceso similar de apropiación de los espacios públicos para la juventud. \n1.3 Talleres participativos\na)\tTaller participativo sobre espacio público y patrimonio mueble e inmueble (17 asistentes, virtual): se presentaron las propuestas en torno a espacio público y patrimonio muble e inmueble. Se puso en discusión la presencia de ciertos monumentos en el Parque Nacional, y la falta de plan de manejo a los mismos. Adicionalmente, se discutió la falta de pronunciamiento del IDPC, especialmente en contexto del PEMP Parque Nacional, en cuanto a los planes parciales de manejo y las construcciones que afectarán el Parque.\n1.4\tRecorridos \nA)\tRecorrido participativo sobre pacas biodigestoras y huertas urbanas (9 asistentes, presencial): se realizó un recorrido participativo en el que se visitaron diferentes puntos clave del Parque Nacional para discutir la posible ubicación de pacas biodigestoras y huertas urbanas. Se proponen tres posibles puntos y queda registrada la importancia de lograr articulación con la administración para poder realizar estos procesos.\nNota: Se consolida por tipo de metodología de participación ciudadana.  Se ajusta el número de reporte atendiendo la naturaleza de cada actividad del reporte del área de 16 actividades a 1 procesos.",466,"Reforzar las convocatorias y comunicaciones por medio de invitaciones directas a los actores de interés, o a aquellas personas que hayan declarado interés en el tema a tratar durante cada espacio. Las estrategias virtuales y presenciales se complementan entre sí, por lo que usar ambas herramientas permite alcanzar a una mayor diversidad de usuarios del Parque Nacional.",0,null,{"$error":"#REF!"},13]
[6,"Plan Especial de Manejo y Protección (PEMP) del Centro Histórico ","Iniciativas de divulgación, socialización y posicionamiento de los contenidos y proyectos del PEMP del Centro Histórico    "," Subdirección de Gestión Territorial del Patrimonio","Equipo de Gestión Territorial PEMP del Centro Histórico","Subdirección de Gestión Territorial, Equipo de comunicaciones  ","Equipo de comunicaciones","Consejo Local de Arte, Cultura y Patrimonio de La Candelaria, Santa Fe y Los Mártires (CLACP)","Alcaldías Locales, Consejos de Planeación Local, Juntas de Acción Comunal, organizaciones sociales, gremios, universidades, instancias de participación, medios de comunicación, Secretaría Distrital de Planeación, Secretaría Distrital de Cultura, Recreación y Deporte, FUGA, Ministerio de Cultura","Divulgar el PEMP del Centro Histórico, posicionar su enfoque de patrimonios integrados a partir de la implementación de su componente programático, y garantizar la apropiación ciudadana por medio de diálogos ciudadanos","Talleres, diálogos territoriales y campañas comunicativas",3,0,0,"Durante el primer trimestre se adelantaron las siguientes acciones:                                                                   Socialización del Plan Especial de Manejo y Protección del Centro Histórico a la Mesa de Consejeros Locales de Patrimonio Cultural liderada por el equipo de participación del IDPC el 12 de marzo. Durante la reunión se expusieron las fases, objetivos, componentes programáticos y normativos , y los proyectos del PEMP del Centro Histórico. Asimismo, se acordó realizar un recorrido el territorios con los consejeros y consejeras. Esta socialización se reporta dentro del Sistema Distrital de Arte Cultura y Patrimonio Cultural por la secretaría técnica a cargo del equipo de participación ciudadana IDPC","Dar continuidad a este vínculo con los consejeros y consejeras locales de Patrimonio Cultural como veedores del patrimonio de la ciudad",null,"1. Proceso de divulgación: en el segundo trimestre de 2021 se dio inicio a tres acciones dentro del proceso de divulgación que enmarcan los alcances de este ámbito:\na)\tDivulgación ciudadanía en general\n  En primer lugar se generaron espacios de divulgación a la ciudadanía en general relacionados con presentaciones  y transmisiones virtuales por la plataforma Facebook IDPC. El 26 de mayo se realizó la presentación general al público del PEMP CHB aprobado incluyendo 8 personas registradas en lista virtual pero registrando 200 personas conectadas en simultánea en las métricas de la plataforma.  El 22 de Junio se trasmitió el lanzamiento del PEMP CHB con la Alcaldesa Mayor incluyendo un recorrido en el cual se propició el dialogo territorial con 12 actores de la ciudadanía residente del centro histórico. La transmisión del IDPC registró 64 personas conectadas en simultanea, pero la trasmisión involucro las plataforma de 6 entidades incluyendo la de la Alcaldía Mayor (llegando a cerca de 26000 registros).\nb)\tDivulgación Instancias de participación\nEn segundo lugar se realizaron varias socializaciones del PEMP CHB en instancias de participación ciudadana distritales y locales, algunas de las cuales fueron articuladas con la presentación del proyecto 7 entornos y el equipo de participación IDPC: Mesa de Consejeros Locales de Patrimonio Cultural ( 6 participantes, abril 7). Consejos Local de Arte Cultura y Patrimonio de las Localidades de La Candelaria (7 participantes, abril 7);  Santa Fe (21 de mayo -7 participantes). Los Mártires  (8 de junio -8 participantes). Se presentó el Plan el 3 de junio a la Junta Administradora Local de La Candelaria con registro de 8 participantes (aunque la audiencia fue transmitida por los canales de la JAL)\nc)\tMesas de trabajo con otros actores.\n Se instalaron mesas de trabajo con diferentes actores ciudadanos para profundizar los contenidos programáticos del PEMP CHB: 27 de abril con la Lonja de Bogotá_ 45 participantes, 18 de junio se realizó mesa de trabajo con la Corporación de Curadores de Bogotá incluyendo 39 asistentes , 12 en lista); el 24 de junio con ASOJUNTAS La Candelaria ( 6 participantes en lista y 8 adicionales en pantallazo).              \n 3 acciones  con subactividades reportados de divulgación (10 actividades)\nNota: Se consolida por tipo de actores a los que va dirigido el proceso de divulgación.  Se ajusta el número de reporte atendiendo la naturaleza de cada actividad del reporte del área de 3 a 1 proceso.",418,"En el Consejo Local de Arte Cultura y Patrimonio de La Candelaria se continuó en un proceso de articulación con consejeros y consejeras que puede servir para imitar en otras localidades. Es importante seguir profundizando medios de recolección de información y consulta  por vía electrónica y o virtual mientras que se pasa la situación actual de pandemia. ",1,null,3,0]
[7,"Plan Especial de Manejo y Protección (PEMP) del Centro Histórico ","Procesos de gestión colaborativa para la revitalización y el cuidado del territorio y sus patrimonios dentro de la implementación del PEMP del Centro Histórico "," Subdirección de Gestión Territorial del Patrimonio","Equipo de  Gestión Territorial PEMP del Centro Histórico","Subdirección de Gestión Territorial (Equipo Activación de 7 Entornos Patrimoniales); Subdirección de   Protección e Intervención del Patrimonio; Equipo de participación ciudadana y equipo de comunicaciones ","NA","Consejo Local de Arte, Cultura y Patrimonio de La Candelaria, Santa Fe y Los Mártires (CLACP)","Alcaldías Locales, Consejos de Planeación Local, Juntas de Acción Comunal, organizaciones sociales, gremios, universidades, instancias de participación, medios de comunicación, Secretaría Distrital de Hábitat, Secretaría Distrital de Movilidad, Secretaría Distrital de Ambiente, JBB, IDU, IDT, IPES, Transmilenio, Empresa Metro, FUGA, IDARTES, CVP, ERU, UAESP, DADEP, Ministerio de Cultura  ","Generar sinergias y procesos de  colaboración entre actores públicos, privados y sociales que activen y  potencien la implementación de los  proyectos del PEMP del Centro Histórico ","Procesos de gestión colaborativa del patrimonio incluyendo diálogos y consultas ciudadanas, mesas de  trabajo o grupos focales multiactor, retos y pactos ciudadanos, entre otros","3 Procesos (12 actividades)",0,2,"Durante el primer trimestre se adelantaron las siguientes acciones:                                                                                                                                                                             Activación dos procesos de gestión colaborativa desarrollados en conjunto con el equipo 7 entornos  y con el equipo de la estrategia de participación del IDPC: 1) se realizó una primera actividad de diálogo y escucha en conjunto con el Jardín Botánico y  el equipo 7 Entornos en el territorio priorizado Pueblo Viejo (Localidad de la Candelaria) donde se convocó a representantes de la JAC de La Concordia y el Observatorio Ciudadano de La Candelaria el 10 de marzo para conocer su relación con el territorio y socializar el proyecto Pueblo Viejo. En esta reunión se acordó seguir mapeando y socializando los avances jurídicos y técnicos al tiempo que buscar actores estratégicos que puedan contribuir en esta fase de reconocimiento y activación.                                                                                                                                     2) De otra parte, en el territorio priorizado de Las Cruces (Localidad Santa Fe) se coordinó la convocatoria para dos escenarios de activación en conjunto con 7 entornos y la estrategia de participación: 1 Mesa de Articulación institucional de Mercado de Las Cruces el 9 de marzo donde participó el colectivo Abya Yala dentro de un proceso de coordinación institucional que busca aunar esfuerzos y vincular a la ciudadanía en la activación del entorno, y una reunión de la Mesa de Articulación de Las Cruces convocada el 27 de marzo con la FUGA y donde confluyen actores  institucionales, la Junta de Acción Comunal y organizaciones locales)","Articulación con otras entidades y con equipos del IDPC es vital para gestar y dar sostenibilidad a estos procesos.",null,"Para el segundo trimestre se dio a continuidad y profundidad a los siguientes procesos colaborativos de forma articulada con el proyecto 7 entornos y otros equipos del IDPC:\n1. El proceso de  reconocimiento y activación entorno al proyecto Parque Pueblo Viejo, espacio ubicado entre los barrios La Concordia y Las Aguas en La Candelaria: Se socializó la propuesta del proyecto en el Consejo Local de Riego y Cambio Climático (abril 7,  4 participantes ciudadanía), la Comisión Local Ambiental La Candelaria (abril 4- 11 participantes, mayo 13- 3 participantes). Diálogos con la grupos ciudadanos interesados (mayo 12 -4 participantes, mayo 19- 2 participantes);  El 26 de mayo se realizó un recorrido de reconocimiento contando con 10 participantes de la ciudadanía. El 21 de junio se realizó un taller de memoria y reflexión histórica en la Plaza de la Concordia que contó con  11 participantes de la ciudadanía. (Total trimestral: 7 actividades, 45 participantes).\n2.  En el territorio priorizado Barrio Las Cruces.  De abril 12 al 15 se realizó el taller de Dinámicas Humanas con la Universidad de los Andes e integrantes de la comunidad de este barrio (28 participantes); Se acompañó la mesa de articulación de Las Cruces ( mayo 7- 9 participantes, mayo 22-4 participantes,  junio 19-3 participantes);  Se ha trabajado en un proceso de articulación con la Universidad Minuto de Dios sede San Camilo (mayo 13-4 participantes, junio 23 -4 participantes)  Adicionalmente se ha apoyado  y participado dentro todo  de articulación del proyecto 7 entornos del IDPC y el proyecto Barrios Vitales de la Secretaría de la Movilidad (ver reporte ámbitos  7 entornos).(Total 6 actividades 52 participantes).\n3. Ruta Agroecológica en el Centro Histórico. Dentro de una alianza interinstitucional que gira entorno  al proyecto de Rutas del Jardín Botánico de Bogotá, y en articulación con el Museo de Bogotá y proyecto 7 entornos, se ha apoyado el proceso de consolidación y concertación de la ruta agroecológica del Centro Histórico. Esto ha incluido el acompañamiento a tres acciones con otros equipos del IDPC: el 28 de mayo donde se acompañó un recorrido por Museo de Bogotá y Hotel Botánico, el 11 de junio donde el Museo de Bogotá representó al IDPC en su articulación con otros Museos;  y el 24 de junio   donde se hizo el segundo proceso de concertación de la ruta. En total se cuentan 3 actividades y  8 participantes no institucionales.  3 procesos colaborativos(16 actividades)",105,"Es importante recalibrar el número de actividades que se puedan desarrollar dentro de procesos colaborativos en gestación. Este tema toma más relevancia en casos como el del PEMP del Centro Histórico que se encuentra en una etapa de transición que implica posicionamiento y experimentación.",4,null,12,2]
[8,"Proceso Declaratoria  de Sumapaz como Patrimonio de la Humanidad por la Unesco","Espacios de socialización y  divulgación del proceso de declaratoria"," Subdirección de Gestión Territorial del Patrimonio","Coordinación Proyecto Sumapaz","Subdirección de Divulgación y Apropiación del Patrimonio  otros equipos de la  Subdirección de Gestión Territorial del Patrimonio","NA","Consejo Local de Arte Cultura y Patrimonio Sumapaz. \nMesa Sectorial de Cultura.","Instancias de participación locales como el CPL CLIP Y CLACP , organizaciones sociales, y cultural y ambientales  indígenas  y campesinas, Alcaldía Local de Sumapaz, Secretaría de Planeación Distrital, IDPAC, RAPE, PDET;  gobiernos municipales de la región del Sumapaz.","Identificación preliminar de las manifestaciones del Patrimonio Cultural Inmaterial-PCI del Sumapaz a tráves de acciones de participación.","Espacios de socialización y divulgacion del proceso de declaratoria de Sumapaz como Patrimonio de la Humanidad por la Unesco. Talleres y espacios participativos para la valoración, identificación y documentación del PCI.",8,2,3,"Durante el primer trimestre se avanzó en las siguientes acciones:                                                                                                                                                                                     a. Febrero 19: Reunión virtual con integrantes de Corposumavida para la socialización del proyecto, en la cual también se propuso la realización del Foro de vidas campesinas, ordenamiento y cultura del agua como espacio para la reflexión de la cultura campesina sumapaceña. Se concertaron algunos delegados para la preparación del foro por parte de Corposumavida.\nParticipantes: 15\nb. Marzo 5: Reunión virtual 1 con delegados de Corposumavida para la preparación del Foro de vidas campesinas, ordenamiento y cultura del agua, en la que se acordaron los puntos claves que debían ser abordados por el foro. El IDPC se comprometió, con ayuda de los delegados, en la realización de 2 reuniones amplias preparatorias del evento en las que se invitara a representantes de la comunidad, con el fin de concertar metas, objetivos y alcances del Foro.\nParticipantes: 8\nc. Reunión presencial cartografía de sitios sagrados en Sumapaz en articulación con RAP-E y PNUD en Fusa, en la que participaron delegados de organizaciones campesinas y comunidades indígenas de la Provincia del Sumapaz, que tuvo como objetivo la identificación de lugares de importancia cultural en relación al tema patrimonial. \nParticipantes: 17                                                                                                                                                                                                                                                                                   d. Marzo 18: Mesa sectorial de Cultura. Cada entidad presentó las proyecciones previstas para el 2021 y se avanzó en la construcción de ruta de trabajo y. matriz para consolidar la oferta sectorial. \nParticipantes: 7 personas.","Fortalecer la comunicación con la comunidad para la programación de reuniones de carácter presencial.\nSe hace necesario contactar a personas de otras instituciones para la articulación de las convocatorias.",null,"Sumapaz \n1.\tEspacios de socialización y divulgación dirigido a comunidad del Sumapaz\na) Abril 22: Conversatorio: Campesinos paramunos: ordenamiento social y configuración regional del Sumapaz Conversatorio moderado por Catalina García en el que se abordó el tema de ordenamiento propio, gobernanza y rol de la comunidad dentro de la configuración del territorio sumapaceño. Invitados: Carlos Duarte y Alfredo Díaz Asistentes: comunidad del Sumapaz y actores interesados. Número de asistentes: 56 \nb). Junio 27: Reunión con la Junta Directiva del Sindicato Agrario en San Juan de Sumapaz para socializar la ruta y el alcance del Proyecto este año. \nNúmero de Asistentes: 14\n2.\t Espacios de socialización y divulgación en el marco de las instancias Locales de Sumapaz\na). Mayo 27: Primer encuentro del Consejo Local de Mujeres (CLM) en el marco del proceso de identificación participativa del patrimonio cultural del Sumapaz adelantado por el IDPC. Asistentes: Integrantes del Consejo Local del Mujeres de Sumapaz y comités veredales de mujeres e IDPC Número de asistentes: 26 \nb)   Junio 17: Segundo encuentro del Consejo Local de Mujeres (CLM) en el marco del proceso de identificación participativa del patrimonio cultural del Sumapaz adelantado por el IDPC. \nAsistentes: Integrantes del Consejo Local del Mujeres de Sumapaz y comités veredales de mujeres e IDPC\nNúmero de asistentes: 14\nNota: Se consolida por tipo de actores a los que va dirigido el proceso de divulgación de Declaratoria.  Se ajusta el número de reporte atendiendo la naturaleza de cada actividad del reporte del área de 4 a 2 procesos.",110,"* En cuento a lo metodológico, dadas las condiciones de conectividad del Sumapaz, se planteó una estrategia híbrida para llevar a cabo las reuniones con la comunidad. Así mismo, se resalta la importancia de generar metodologías participativas flexibles que puedan ser adaptadas según la dinámica de la reunión, espacialmente de las reuniones virtuales.\n* La participación de las mujeres sumapaceñas es fundamental en el proceso de identificación del PCI del Sumapaz. Las mujeres han sido personajes clave en la historia de las luchas por la defensa de la tierra y el territorio desde principios del siglo XX hasta hoy. La noción de patrimonio se manifiesta desde la experiencia cotidiana, en las prácticas de aprendizaje, construcción de conocimientos y prácticas de cuidado de la vida.\n* Los conversatorios se constituyen en escenarios para poner en común perspectivas, visiones, memorias sobre el territorio. Se planteó que la identidad cultural más representativa esta dada por la historia de organización social y política. Se propuso la noción geográfica de \"el gran macizo Sumapaz\" como elemento comprensivo de las territorialidades socialmente construidas en torno a las cuencas hidrográficas así como los derechos culturales del campesinado y las identidades propias del campesinado de alta montaña/campesinos paramunos.\n* Las instancias de articulación en lo local permiten compartir agendas y sumar esfuerzos interinstitucionales para ganar articulación en el territorio, trabajando como Distrito y no solo como entidades diferenciadas. ",3,null,{"$f":"L10","v":8},3]
[9,"Proyecto Parque Arqueológico Hacienda el Carmen","Espacios de socialización, encuentros locales e interculturales en el proceso de  formulación y activación del Proyecto de Parque Arqueológico en la Hacienda el Carmen"," Subdirección de Gestión Territorial del Patrimonio","Coordinación Proyecto Hacienda el Carmen","Subdirección de Divulgación y Apropiación del Patrimonio  otros equipos de la  Subdirección de Gestión Territorial del Patrimonio","Recorridos de Apropiación del Patrimonio","Consejo Local de Arte Cultura y Patrimonio Usme.\nMesa Sectorial de Cultura","Instancias de participación locales como el CPL CLIP Y CLACP , Mesa de Patrimonio Usmeka, organizaciones sociales, y culturales y ambientales  indígenas  y campesinas en el Borde Sur, Alcaldías Local  y JAL de Usme, IDPAC,  IDT, ICANH,Universidades, ","Generar diálogos interculturales   y territoriales que visibilicen y fomenten la apropiación de los diferentes tipos de patrimonio  que existen en el territorio de la Hacienda el Carmen y  mostrando la relevancia del proyecto del Parque Arqueológico para la Ciudad","Encuentros, festival del patrimonio, recorridos y visitas  territoriales para la visibilización y apropiación social e institucional de la integralidad de los patrimonios",10,3,5,"Durante el primer trimestre se avanzó en las siguientes acciones:                                                                                                                                                                                          1) 29 de enero: reunión entre entidades del sector ambiental donde participaron 8 personas en representación de: la Empresa de Acueducto Alcantarillado de Bogotá, la Secretaría Distrital de Ambiente y el Instituto Distrital de Patrimonio Cultural. Esta reunión tuvo como eje central los corredores de restauración de las cuatro quebradas de la Hacienda el Carmen, donde las entidades se comprometieron a participar del proyecto de Parque Arqueológico y a estar al tanto del proceso licitatorio que adelanta el IDPC. \n\n2)  12 de marzo:  encuentro para continuar con el proceso de armonización cultural. Este contó con el acompañamiento de: Gualcalá Alava en representación de la comunidad muisca, la Mesa de Patrimonio de Usme, el Instituto Distrital de Turismo, el Centro de Memoria Paz y Reconciliación, RAPE Región Central y el Programa de Naciones Unidas para el Desarrollo -PNUD. Durante la jornada se presentaron los avances desarrollados por el IDPC durante la vigencia 2020 en el marco del proyecto de Parque Arqueológico y del Patrimonio Cultural y se acordó la instalación de una mesa de trabajo interinstitucional y comunitaria con el objetivo de articular esfuerzos y acciones.\n\n3) 27 de febrero: Se realizó el recorrido de interpretación del patrimonio denominado \"Origen y retorno\" que tuvo como punto de inicio el Parque Ecológico Cantarrana y punto de finalización la AAP Hacienda El Carmen. Este recorrido se realiza en articulación con la Mesa de Patrimonio Ancestral, Cultural y Ambiental de Usme, el cual contó con la participación de 35 personas de la comunidad inscritos mediante formulario electrónico y tuvo como eje articulador la cuenca del río Tunjuelo y la importancia del área arqueológica protegida dentro de la Estructura Ecológica Principal de Bogotá.\n\n4) 23 de marzo: Se participó en la Comisión Ambiental Local donde se se presentó la propuesta del Parque Arqueológico y del Patrimonio Cultural de Usme invitando a realizar un recorrido por esta área protegida. Este espacio contó con la participación de 27 personas entre instituciones y comunidad.\n\n5) 27 de marzo de 2021: Se realizó el recorrido \"Saberes Ancestrales del Agua\" en el área arqueológica protegida de la Hacienda El Carmen; actividad planeada en articulación con la Comisión Ambiental Local de Usme para la celebración del día del agua\". El recorrido se desarrolló con un total de 44 participantes incluyendo 18 niños, niñas, adolescentes y jóvenes vinculados a la Fundación Red del Agua de la localidad de Usme, y 26 adultos principalmente actores institucionales y comunitarios que participan de la Comisión Ambiental Local. El recorrido permitió dar a conocer los antecedentes del área arqueológica, su importancia ecológica, histórica y cultural, así como la interpretación e intercambio de saberes alrededor del agua, principalmente asociado a las cuatro quebradas que configuran el sitio arqueológico de la Hacienda El Carmen. ","La activación de estos espacios afianza la convicción de la comunidad en cuanto a sus expectativas del AAP de la Hacienda El Carmen como futuro parque arqueológico y del patrimonio cultural.\n",null,"\n1. Mesa Gestora Comunitaria\n*14 de abril de 2021. Se instaló la Mesa Gestora Comunitaria como espacio integrado a la ruta de participación comunitaria generado desde el Instituto Distrital de Patrimonio Cultural para el proyecto Parque Arqueológico y del Patrimonio Cultural. Durante este primer espacio se contó con la asistencia de 48 personas de las cuales 10 corresponden a integrantes del equipo del Instituto Distrital de Patrimonio Cultural -IDPC- y 38 de la comunidad.  Para este primer encuentro se dio a conocer el equipo de trabajo actual desde el IDPC, los objetivos del espacio para la implicación de los diferentes actores, organizaciones, colectivos, y personas interesadas en el proyecto, las expectativas de trabajo para la vigencia 2020 -2024, haciendo un recuento breve histórico – social del proceso de movilización ciudadana e importancia del sitio arqueológico desde las diferentes miradas académicas, institucionales. En este primer espacio se solucionaron las dudas de los asistentes sobre los diferentes componentes del proyecto y su marco normativo. \n\n*11 de junio. Se llevó a cabo la segunda Mesa Gestora Comunitaria con la participación de 38 personas de las cuales 9 se integran al equipo institucional del Instituto Distrital de Patrimonio Cultural , donde se socializaron los compromisos adquiridos en la primera sesión incluyendo los documentos compartidos y solicitados por la comunidad como: la resolución de declaratoria del área arqueológica protegida, los videos de grabación  de la primera Mesa y las respuestas a las preguntas generadas durante esa primera jornada. De igual manera se abordaron los temas de la agenda actual del proyecto como son: el proceso de traspaso de predios, la caracterización de actores que se están integrando a este espacio de participación y el proceso de licitación y consultoría para la actualización del Plan de Manejo Arqueológico de El Carmen. Allí se recogieron de nuevo las dudas de la comunidad asociadas a estos temas abordados. \nParticipantes: 48\n*30 de junio: Se llevó a cabo la tercera sesión de la Mesa Gestora Comunitaria, donde se inicia con la exposición de algunos de los aportes comunitarios del taller de cartografías integrado al recorrido por el área arqueológica protegida de Usme del 26 de junio. A partir de la socialización de uno de los mapas realizados por integrantes de la comunidad se permitió un diálogo abierto con los asistentes a esta sesión de la mesa gestora, integrando visiones de personas que se reconocen como parte del pueblo muisca y población campesina. Esta última, del borde urbano rural a la que se integra el proyecto de Parque Arqueológico. En esta jornada se logra la participación de 50 personas conectadas en reunión virtual , con un registro de asistencia de 39 personas tanto habitantes locales, como de comunidad indígena e institución\n2. Mesa de Patrimonio Usmeka\n*22 abril de 2021, en alianza con la Mesa de Patrimonio Usmeka y el Grupo de Investigación del Patrimonio -GIPA- se acompañó la exposición “El Retorno de los Ancestros” en el Centro Comercial AltaVista. El evento constituyó la acción pedagógica del mes de abril, teniendo en cuenta las dificultades para desarrollar un ejercicio de convocatoria amplia para un recorrido durante el segundo pico de la pandemia.  A través de esta actividad se dieron a conocer los contenidos arqueológicos hallados en el Área Arqueológica Protegida El Carmen, así mismo, se recopilaron aportes de las y los visitantes a la exposición a través de la instalación de un tablero de opiniones y un buzón de sugerencias como estrategia para la participación abierta de la ciudadanía. Se registraron más de 150 opiniones, en donde se destacan temas relacionados con la arqueología, la historia local, el contacto con la naturaleza y los espacios de educación y recreación. Dada la buena recepción del ejercicio, se decidió continuar con la instalación del tablero y del buzón en otros espacios públicos. \nParticipantes: 150\n\n*30 de abril, se llevó a cabo reunión con el colectivo “Mesa de Patrimonio Usmeka” para la articulación de actividades de gestión social y comunitaria del área arqueológica protegida de Usme; allí se ratificaron las condiciones para el desarrollo conjunto de un boletín informativo sobre el proyecto Parque Arqueológico y del Patrimonio Cultural;  en su escritura, diseño y aspectos logísticos. De igual manera se hicieron acuerdos para el control de personas, protocolos de ingreso y roles en la convocatoria para el desarrollo de recorridos conjuntos entre institución y el colectivo.  Esta reunión contó con la participación de 8 personas, 4 del equipo de trabajo del Instituto Distrital de Patrimonio Cultural y 4 integrantes de la Mesa de Patrimonio Usmeka. \nParticipantes: 4\n\n23 de mayo: Se llevó a cabo una jornada pedagógica y campaña de socialización del proyecto “Parque Arqueológico y del Patrimonio Cultural” en el Centro Comercial AltaVista. Allí se realizaron diferentes actividades, entre las que destacan la presentación musical del grupo “Tropa Sikuri de Usme”, la entrega del kit “Mi Casa Usmeka” con niños y niñas visitantes del centro comercial AltaVista, así como la entrega de fanzines sobre la historia de “Guecha” como parte del material pedagógico facilitado por el Grupo de Investigación del Patrimonio de la Universidad Nacional (GIPA) y la Mesa de Patrimonio Usmeka. \nEn esta actividad se recopiló una base de datos de 23 personas de la comunidad y varios mensajes dejados en las zonas de intervención abierta (muro y buzón). Los aportes dejados por la ciudadanía para el proyecto abarcan temas relacionados al cuidado y preservación de la naturaleza, la exposición de la historia de la localidad, que en el parque arqueológico pueda encontrarse un lugar para la educación e investigación de población tanto rural como urbana, que se ejemplifique cómo era la vida de las comunidades que habitaron el lugar, así como la exposición de las piezas arqueológicas.  \nParticipantes: 23\n\n3. Instancias de participación y otros espacios ciudadanos\n28 de mayo. Se lleva a cabo la CLIP en la que se aprueba el Plan de Acción y se trabaja sobre la política de participación incidente y fortalecimiento de instancias de articulación. \nParticipan: 28 personas. \n*26 de junio. Mediante convocatoria abierta realizada por el Instituto Distrital d+T11e Patrimonio Cultural, se logra la participación de 74 personas en el recorrido de “Reconocimiento Participativo del Área Arqueológica Protegida de Usme”, enmarcado en la ruta de participación comunitaria para el proyecto de Parque Arqueológico y del Patrimonio Cultural. En este recorrido se recopilaron mediante mapas previamente diseñados del sitio arqueológico, los aportes de la comunidad donde se plasmaron las experiencias y visiones que se esperan tener en este lugar como Parque Arqueológico.\nNota: se asocian las actividades atendiendo la naturaleza  de los participantes o tipo de instancia de participación. Se ajusta del reporte del área de 9  a 3 acciones de dialogo con la ciudadanía.-",370,"Es un acierto en los procesos de apropiación social del patrimonio y la gestión cultural  afianzar el desarrollo de acciones pedagógicas, de divulgación y conocimiento colectivo del área arqueológica protegida de Usme, que se integren a la implementación de estrategias de recolección de aportes comunitarios como el buzón Usmeka y la cartelera mural, de manera que estos se alineen a las realidades y posibilidades para la gestión de este sitio arqueológico. \n\nEl mecanismo de confluencia y canalización de la participación social a través de la Mesa Gestora del Parque facilita la interlocución y el manejo ordenado de los temas ya gendas sobre los componentes estructurantes del parque. \n\nEs evidente el posicionamiento del proyecto y la receptividad y valor que le otorgan los diversos actores locales que defienden el patrimonio natural y cultural, ancestral de la región. ",3,null,10,5]
[10,"Recorridos  patrimoniales","Ejercicios de sensibilización y encuentros locales con  colectivos ciudadanos ","Subdirección de Divulgación y Apropiación del Patrimonio","Equipo de Apropiación Social del Patrimonio","Equipo Enfoque diferencial\n","Subdirección de Divulgación y Apropiación del Patrimonio (Civinautas, Muse de Bogotá). Subdirección de Gestión Territorial ( Participación Centro Histórico), Oficina Asesora de Planeación (Equipo de participación ciudadana). Subdirección de Protección e Intervención del Patrimonio (equipo de gestión social)","Articulación con Consejo de Cultura de Sectores Sociales","Colectivos ciudadanos interesados","Reconocimiento y valoración del patrimonio cultural en la apropiación urbana de colectivos ciudadanos","Ejercicios y  procesos de colaboración e innovación para la apropiación del patrimonio cultural",6,1,1,"Durante el primer trimestre se avanzó en las siguientes acciones:                                                                                                                                                                                 1. Encuentro Taller Cuadrilla Manos a la Obra y a la memoria – Localidad Bosa: desarrollo de un taller con Ciudadanos de la Localidad de Bosa en el marco del laboratorio Manos a la obra y a la memoria. El taller tuvo como objetivo  sensibilizar en los patrimonios y memorias de los ciudadanos participantes partiendo de objetos personales de su entorno. Preguntas clave ¿Cómo se relaciona ese patrimonio con su patrimonio local? ¿Por qué es importante ese objeto? ¿Ese objetivo habla de grupos de personas más amplios?.  18 de marzo de 2021, en la Casa de Participación.",null,null,"Recorridos: \nInicio del proceso de construcción participativa con Archivos del Búho, una comunidad de estudiantes de la Universidad Nacional de Colombia, para ello se llevó a cabo una reunión el día 11 de junio en la cual se presentó de manera general la idea de realizar una construcción colaborativa y participativa que active los archivos en clave de Recorrido. Participaron allí dos integrantes del colectivo Paola Rodríguez  y  Rodrigo Torrejano. El encuentro fue positivo en el sentido en que se mostró interés en realizar el acercamiento para poder desarrollar el proceso y así a través de este continuar con actividades a modo de laboratorio que incluya colectividades como Paisajes de la protesta, grupo de estudiantes preocupados por el archivo de violación de DDHH a estudiantes en el marco del Paro Nacional.                                                                                                                                                                                                                                                                                                 2- Se avanza en el fortalecimiento de la ruta metodológica con el objetivo de promover la apropiación social del patrimonio, a través de la interacción y el reconocimiento del patrimonio cultural material, inmaterial y natural de Bogotá. En ese sentido se convoca al  RECORRIDO «LA FLOR DE LA MONTAÑA» Se invita a la ciudadanía a descubrir las particularidades de la plaza fundacional de Suba. Más allá de su estructura física se hizo énfasis en la necesidad de caminarla y poner a disposición todos los sentidos para descubrir aquello que hace única a la plaza fundacional de Suba.\nDía: viernes 2 de abril+T12",2,"Es importante la presentación de lo metodológico a partir de un ejercicio práctico, para que de esta manera sea socializado con la comunidad de estudiantes y así concertar las ideas, tiempos, y actividades planteadas. ",2,null,6,1]
[11,"Procesos de declaratoria de patrimonio inmaterial \n","Proceso declaratoria Festival del Sol y la Luna del pueblo Muisca de Bosa","Subdirección de Divulgación y Apropiación del Patrimonio","Equipo declaratorias de Patrimonio Cultural Inmaterial","Enfoque diferencial","NA","NA","Sector cultura, sector gobierno (seguimiento acuerdos consulta previa y espacios de concertación)\n\nCabildo Muisca de Bosa","Continuar el proceso de declaratoria del Festival del Sol y la Luna del pueblo Muisca de Bosa como patrimonio cultural inmaterial del ámbito distrital a partir de un proceso de concertación,  reflexión y trabajo conjunto. ","Proceso de concertación y reflexión, mesas de trabajo conjunto con el cabildo muisca de Bosa.",12,1,1,"Durante el primer trimestre se avanzó en las siguientes acciones:                                                                                                                                                                                   1. Se gestionó y lideró una reunión virtual de balance del proceso adelantado durante la vigencia anterior así como el inicio del proceso de proyección y concertación de acciones para la vigencia 2021, fue realizada el 9 de febrero de 2021. Este espacio se desarrolló con integrantes del equipo de trabajo del Cabildo Muisca de Bosa conformado para apoyar el proceso de declaratoria del festival del sol y la luna y la gobernadora tradicional de esta comunidad. ",null,null,"1.\tMesa de trabajo abril  preparatorias ante el Consejo Distrital de Patrimonio:\nAbril: Dos  (2) sesiones en el mes de abril: se instaló la mesa de trabajo conjunto entre el IDPC y el Cabildo Muisca de Bosa con miras a culminar el documento de postulación y preparar la presentación ante el Consejo Distrital de Patrimonio Cultural. Se sostuvo la reunión de instalación y una reunión posterior (16 y 30 de abril). \n2.\tMesa de trabajo mayo  preparatorias ante el Consejo Distrital de Patrimonio:\nMayo: Dos (2)  sesiones de trabajo en el marco de la mesa de trabajo conjunto entre el IDPC y el Cabildo Muisca de Bosa, instalada en el mes de abril, con miras a culminar el documento de postulación y preparar la presentación ante el CDPC (04 y 21 de mayo). \n3.\tMesa de trabajo  junio  preparatorias ante el Consejo Distrital de Patrimonio:\nJunio se realizaron dos (2)sesiones de trabajo en el marco de la mesa de trabajo conjunto entre el IDPC y el Cabildo Muisca de Bosa, instalada en el mes de abril, con miras a culminar el documento de postulación, preparar la presentación ante el CDPC y articular acciones entre los equipos de comunicaciones para divulgar el proceso y generar los contenidos necesarios. Estas sesiones se sostuvieron los días 02, 10, 18 y 25 de junio .\n4 y 5.   Mesas de trabajo Comunicaciones  Cabildo Muisca de Bosa \nJunio, se realizaron cuatro (4)sesiones de trabajo en el marco de la mesa de trabajo conjunto entre el IDPC y el Cabildo Muisca de Bosa, instalada en el mes de abril, con articular acciones entre los equipos de comunicaciones para divulgar el proceso y generar los contenidos necesarios. Estas sesiones se sostuvieron los días 02, 10, 18 y 25 de junio y se trabajó en: desarrollo de guión o agenda de presentación (temas, tiempo y presentadores), desarrollo de estructura preliminar de video introductorio y episodio de podcast, intercambio de material fotográfico, audiovisual y de audio para tal fin, entre otras.\nNota: Se consolida por el contenido de las mesas de trabajo-  Se ajusta el número de reporte atendiendo la naturaleza y avance mensual de cada actividad del reporte del área de 8  a 5 acciones.",42,"Tener en cuenta para la postulación, los tiempos en los que el Cabildo de Bosa socializa y valida estos contenidos con la comunidad que representa. Igualmente, se hace necesario contar con el tiempo suficiente para trabajar los elementos audiovisuales complementarios a la postulación. Sobre todo en lo referente a la socialización de estos contenidos al interior del cabildo y los ajusten que puedan ir a lugar. ",3,null,12,1]
[12,"Procesos de declaratoria de patrimonio inmaterial \n","Proceso declaratoria metodología de creación colectiva del Teatro La Candelaria","Subdirección de Divulgación y Apropiación del Patrimonio","Equipo declaratorias de Patrimonio Cultural Inmaterial","N/A","NA","NA","IDARTES","Continuar el proceso de declaratoria de la metodología de creación colectiva del Teatro La Candelaria como patrimonio cultural inmaterial del ámbito distrital a partir de procesos de participación y reflexión colectiva. ","Reuniones, mesas de trabajo, espacios de discusión y reflexión. ",8,1,3,"Durante el primer trimestre se avanzó en las siguientes acciones:                                                                                                                                                                                   Se realizaron tres (3) reuniones virtuales con el fin de cerrar el convenio que se desarrolló con el grupo y avanzar en la planeación de actividades 2021. Además, se discutió el avance en el documento de postulación a la Lista Representativa de patrimonio cultural inmaterial del ámbito Distrital- LRPCID.\n- 27 de enero de 2021: Comité técnico para cierre del Convenio 704 de 2020 y planeación de acompañamiento y asesoría 2021.\n- 03 de febrero de 2021: Discusión sobre los avances del documento de postulación presentado por el grupo de Teatro La Candelaria.\n- 10 de febrero de 2021: Reunión de entrega de los productos realizados por el grupo en el convenio 658 de 2020 y balance del proceso.","Es necesario ajustar el documento de postulación y darle continuidad a las reuniones periódicas con el grupo para mantener la sinergia que se viene consolidando con el equipo del IDPC.",null,"\nDurante el segundo trimestre se avanzó en las siguientes acciones:\n1.\tAcciones Mayo\nEn el mes de mayo, se llevaron a cabo dos  (2) sesiones de trabajo con integrantes del Teatro la Candelaria con miras a retomar al trabajo sobre el documento de caracterización de la Creación Colectiva como Patrimonio Cultural Inmaterial de la ciudad (3 y 19 de mayo).  \n2.\tAcciones Junio\nJunio se continuó con el proceso de acompañamiento técnico y trabajo conjunto con el grupo del Teatro La Candelaria, desarrollándose dos( 2)  sesiones de trabajo con integrantes del Teatro la Candelaria (10 y 23 de junio).\nNota: Se consolida por avance mensual  de cada actividad del reporte del área de 4  a 2 acciones-",18,"Es necesario garantizar una participación cada vez más amplia en el proceso como una forma de validar las conclusiones y resultados que puedan salir de los ejercicios para el fortalecimiento de la postulación de la CREACIÓN COLECTIVA. Igualmente, es necesario mantener la continuidad de las reuniones/talleres para no perder la constancia del trabajo desarrollado hasta ahora.",3,null,8,3]
[13,"Procesos de declaratoria de patrimonio inmaterial \n","Proceso de participación en torno a la plaza de mercado Samper Mendoza","Subdirección de Divulgación y Apropiación del Patrimonio","Equipo declaratorias de Patrimonio Cultural Inmaterial","N/A","NA","Mesa de consejeros locales de Patrimonio Cultural ","IPES","Continuar el  acompañamiento al proceso participativo en torno a la plaza de mercado Samper Mendoza y su reconocimiento como patrimonio cultural inmaterial de la ciudad. ","Reuniones, mesas de trabajo, espacios de discusión y reflexión. ",11,0,3,"Durante el primer trimestre se avanzó en las siguientes acciones:                                                                                  Se realizaron tres reuniones presenciales de trabajo con el fin de reanudar el proceso participativo para la postulación de manifestaciones culturales asociadas a la plaza de mercado Samper Mendoza susceptibles a ser incluidas en la LRPCI de ámbito distrital, y construcción del plan de trabajo de la mesa de articulación social Samper Mendoza. Dichos encuentros se llevaron a cabo en el marco de la mesa de trabajo conformada para tal fin, integrada por representantes de los vivanderos y tamaleros, de colectivos culturales y artísticos de Los Mártires, el consejero de patrimonio de la localidad y representantes de la institucionalidad relacionada con la plaza (IPES, IDPC, CMPR, entre otras). Se realizaron en las siguientes fechas: \n- 4 de febrero de 2021\n- 16 de marzo de 2021\n- 30 de marzo de 2021","Continuar con las  sinergias  y acciones consensuadas para la apropiación  social del proceso de identificación, reflexión e investigación de las manifestaciones culturales presentes en la plaza de mercado ",null,"Durante el segundo trimestre se realizaron las siguientes actividades que incluyeron a la ciudadanía y a grupos comunitarios y sociales:\n\nEn el mes de abril, las actividades que incluyeron la realización de un recorrido por la plaza con el fin de ampliar la participación de los diferentes actores en las acciones propuestas por la Mesa de trabajo alrededor de una postulación que busca salvaguardar los saberes y prácticas tradicionales de la Plaza Samper Mendoza. \n\nEn el mes de mayo se realizaron cuatro reuniones, tanto virtuales como presenciales en el marco de la mesa de trabajo conformada previamente. Estos encuentros se adelantaron con el objetivo de adelantar los compromisos adquiridos en cuanto a la divulgación y participación de los diferentes actores sociales e institucionales en el proceso. En dichas reuniones se planearon las diferentes estrategias a trabajar desde un enfoque multidisciplinar, social y artístico, teniendo en cuenta las fortalezas que cada uno de los involucrados en el proceso que se viene desarrollando en la plaza de mercado Samper Mendoza (5, 18, 19 y 25 de mayo).  \n\nEn el mes de junio, se realizó una jornada de sensibilización y recorrido nocturno en la plaza Samper Mendoza, con el fin de activar la noción de patrimonio entre los comerciantes (el 10 de junio). ",39,"Ampliar la participación social y comunitaria más allá de la Mesa de Trabajo que ya está conformada entre representantes de los actores de la plaza y actores institucionales. La inclusión de nuevos actores sociales y comunitarios que hacen parte de las dinámicas de la plaza permitirá fortalecer el ejercicio de reflexión sobre la salvaguardia del espacio cultural de la plaza y la postulación que se quiere realizar.",3,null,11,3]
[14,"Procesos de declaratoria de patrimonio inmaterial \n","Proceso declaratoria Palo del ahorcado","Subdirección de Divulgación y Apropiación del Patrimonio","Equipo declaratorias de Patrimonio Cultural Inmaterial","N/A","Museo de Bogotá-museo de la ciudad autoconstruida","Por definir","Secretaría distrital de Ambiente","Iniciar el proceso de declaratoria del palo del ahorcado y el paisaje cultural asociado como patrimonio cultural del ámbito distrital a partir de procesos de participación y reflexión colectiva. ","Reuniones, mesas de trabajo, espacios de discusión y reflexión. ",4,0,0,"Durante el primer trimestre se avanzó en las siguientes acciones:                                                                            Se llevó a cabo una reunión presencial con la comunidad el día 30 de marzo de 2021, en el marco de la cual se estableció la necesidad de coordinar cronogramas de actividades entre los diferentes actores involucrados y retomar los talleres mensuales con el IDPC para fortalecer el proceso de declaratoria o inclusión en LRPCID que buscan las organizaciones del barrio Potosí frente al Palo del ahorcado.","Continuar acompañando a la comunidad en el fortalecimiento y activación de las nociones de patrimonio, para definir con los actores involucrados las tutas de salvaguardia y protección del patrimonio cultural asociado al palo del ahorcado y la zona de cerro seco.",null,"1.\tMesa de Memoria, organizaciones sociales y otros actores.\nEspacios de discusión y reflexión actividades que incluyeron a la ciudadanía y a grupos comunitarios y sociales:\nEn el mes de abril:\na)  Se preparó y desarrollo una (1)sesión de trabajo con la Mesa de Memoria de Ciudad Bolívar para presentar el proceso y ampliar la participación de actores sociales de la localidad. \nb) .Se desarrolló taller con las organizaciones sociales interesadas en el marco del cual se presentaron los resultados del taller de diciembre de 2020 y se amplió el mapa de actores a involucrar en el proceso. \nPor último en el mes de mayo \nc) Tres sesiones:  un proceso de articulación con el equipo de comunicaciones de la entidad con miras al desarrollo de laboratorios de producción radial en el marco del trabajo que se viene adelantando con organizaciones y colectivos de la localidad relacionados con el proceso de reconocimiento del Palo del Ahorcado. En tal sentido, se acompañaron los espacios presenciales del laboratorio (sábado 15 y 22 de mayo), así como a los diferentes acompañamientos en campo que se realizaron con los participantes (domingo 30 de mayo). Nota: Se consolida por avance del proceso, del reporte del área de 5  a 1 acción.",87,"Acompañar de manera constante a la comunidad en el procesos de fortalecimiento y activación de las nociones de patrimonio permitirá no solamente la apropiación de cualquier proceso de salvaguardia del Pci que se quiera realizar, sino ganar confianza de la comunidad con el IDPC (algo fundamental para procesos futuros).",2,null,4,0]
[15,"Procesos de declaratoria de patrimonio inmaterial \n","Proceso declaratoria cultura de la bicicleta","Subdirección de Divulgación y Apropiación del Patrimonio","Equipo declaratorias de Patrimonio Cultural Inmaterial","Enfoque diferencial","Por definir","Instancias de participación del sector gobierno (consejos locales de la bicicleta y otros)","Secretaría de Movilidad, Secretaría de la Mujer, IDPAC, IDRD","Iniciar el proceso de declaratoria de la cultura de la bicicleta como patrimonio cultural inmaterial del ámbito distrital a partir de procesos de participación y reflexión colectiva. ","Reuniones, mesas de trabajo, espacios de discusión y reflexión. ",6,0,0,"Durante este primer trimestre no se programaron acciones para este ámbito, se tiene proyectadas para  ejecución durante el tercer trimestre.",null,null,"Durante este segundo trimestre no se desarrollaron acciones de participación en lo refente a este ámbito. Esto responde a las dinámicas propias de los procesos administrativos, las cuales han retrasado el cronograma de contratación e inicio del proceso participativo, así como a circunstancias asociadas con la pandemia que han impedido el desarrollo de las dos acciones programadas. \n\nNo obstante, en junio se desarrollaron acciones preparatorias para el desarrollo de dos talleres presenciales y uno virtual con líderes de colectivos de ciclistas (documento metodológico de taller), que tendrán lugar en los meses de julio y agosto.\n",0,"La articulación con diversos actores instituciones puede permitir en un futuro ampliar la participación comunitaria y generar mayores impactos frente a los objetivos iniciales propuestos alrededor de la Cultura de la Bicicleta.",2,null,{"$f":"L17","v":6},0]
[16,"INVENTARIO DE PATRIMONIO CULTURAL","Inventario de patrimonio cultural inmaterial","Subdirección de Divulgación","Equipo de inventario de PCI","Equipo declaratorias de Patrimonio Cultural Inmaterial, Equipo de participación ciudadana","Subdirección de Intervención/Subdirección de Gestión Territorial","Mesa de consejeros locales de Patrimonio Cultural ","SCRD, IDARTES, IPES, Archivo de Bogotá","Desarrollar ejercicios  piloto de valoración,  identificación, documentación y registro del PCI de la ciudad ","talleres y espacios participativos para la valoración, identificación y documentación del PCI de la ciudad. ",4,0,0,"Durante este primer trimestre no se programaron acciones para este ámbito, se tiene proyectadas para  ejecución durante el tercer trimestre. ",null,null,"\n1.\tPILOTO METODOLOGIA DE INVENTARIO BOSA, SUBA, USME:\nEn el segundo trimestre se inició la implementación de los pilotos en campo de la metodología de inventario de PCI.  Se desarrollaron los siguientes espacios con participación comunitaria: \nBosa: \nEtapa de concertación: 2 sesiones para conformar el Equipo local de inventario y concertar el plan de trabajo para el proceso de inventario en la localidad. \nEtapa de investigación: 2 sesiones con el propósito de avanzar en  la contextualización  del proceso de inventario\nSuba\nEtapa de concertación: 2 sesiones para conformar el Equipo local de inventario y concertar el plan de trabajo para el proceso de inventario en la localidad. \nEtapa de investigación: 2 sesiones con el propósito de avanzar en  la contextualización  del proceso de inventario\nUsme: \nEtapa de concertación: 2 sesiones para conformar el Equipo local de inventario y concertar el plan de trabajo para el proceso de inventario en la localidad.  20 Bosa\n30 Suba\n31 Usme\nTotal: 81\n\nNota: Se consolida por avance del piloto de la metodología como ejercicio piloto de valoración y se asocia por localidades de cada actividad del reporte del área de 10 actividades   a 1  proceso-",81,"Es posible generar procesos en donde el incentivo  para la participación va mas allá de una compensación económica. Desde el proceso de Inventario de PCI hemos generado procesos amplios de dialógo en donde las personas encuentran sentido a continuar activas en el proceso, algunos elementos centrales para ello son: posibilidades de vincularse a un proceso de formación, coautoria en los productos de divulgación, generación de rutas de gestión y activación que permiten dar continuidad a las iniciativas de salvaguardia. ",2,null,4,0]
[17,"Política Sectorial de Fomento / Programa Distrital de Apoyos Concertados y Programa Distrital de Estímulos","\n\nFortalecimiento de las propuestas de activación, reconocimiento e investigación del patrimonio agenciadas por la ciudadanía, a través del programa Distrital de Estímulos y apoyos concertados . ","Subdirección de Divulgación y Apropiación del Patrimonio Cultural","Equipo de Fomento ","Equipo Patrimonio Cultural Inmaterial\nEquipo de Enfoque Diferencial\n\nEquipo de Participación\nEquipo de Investigación","Construcción de contenidos de las convocatorias: Equipo Patrimonio Cultural Inmaterial, \nEquipo de Participación\nEquipo de investigación,\nMuseo de Bogotá, Dirección General, Equipo de publicaciones.\n\nRecomendaciones para la formulación de contenidos:\nEquipo Civinautas, Equipo de Enfoque Diferencial, Equipo de Valoración, Equipo de Recorridos.\n","Mesa de Consejeros de Patrimonio Cultural, Consejo Cultural de Grupos Étnicos Consejo Cultural de Sectores Sociales. ","Organizaciones sociales, culturales y ambientales a nivel local, barrial y vecinal.\n\nAlcaldías locales\n\nEntidades públicas nacionales y distritales asociadas a temas asociados a las convocatorias (seguridad alimentaria, ruralidad, oficios, productividad, género, sectores etarios, espacio púbico, entre otros).","\n\n Fortalecer y visibilizar las iniciativas, proyectos y procesos desarrollados por la ciudadanía activa y los agentes artísticos, culturales y patrimoniales en Bogotá.","Convocatorias de fomento del IDPC en el marco del programa distrital de estímulos y apoyos concertados; propuestas de la ciudadanía ganadoras de estímulos para su fortalecimiento.        ",25,0,0,"Durante el primer trimestre se avanzó en las siguientes acciones:                                                                                                                                                                                                    El 15 de febrero se dio apertura al Programa Distrital de Estímulos 2021. El IDPC, en correspondencia con la meta de Fomento, dio apertura a 8 convocatorias mediante Acto Administrativo RESOLUCIÓN No. 000051 DE 15-02-2021“Por medio de la cual se ordena la apertura del Programa Distrital de Estímulos del Instituto Distrital de Patrimonio Cultural – IDPC 2021”. Durante el mes de febrero el equipo de fomento en articulación con el equipo de comunicaciones el IDPC ha realizado una estrategia de divulgación de las convocatorias para incentivar a la ciudadanía a postular sus propuestas en las Becas de Fomento IDPC 2021. La estrategia contiene piezas gráficas, videos, intervenciones en radio y difusión en redes sociales. \nEl 23 de marzo, de acuerdo al cronograma general de Fomento, finalizó el periodo de inscripción de propuestas en la plataforma SICON, contando con una participación de 135 propuestas para 11 estímulos relacionados a 4 becas, así:\nBECA DEBATES Y TENSIONES\nPropuestas Inscritas: 23\nBECA ESPACIOS DESAPARECIDOS\nPropuestas Inscritas: 60\nBECA PARA EL HACER APOYO A OFICIOS\nPropuestas Inscritas: 16\nBECA SECTORES SOCIALES\nPropuestas Inscritas: 36\nEl 23 de marzo, de acuerdo al cronograma general de Fomento, finalizó el periodo de inscripción de propuestas en la plataforma SICON, contando con una masiva participación, relacionada a continuación: \nPREMIO FOTOGRAFÍA Propuestas Inscritas: 47 \nPREMIO DIBUJATÓN Propuestas Inscritas: 125 \nLos listados fueron publicados en la página https://sicon.scrd.gov.co/admin_SCRD_pv/pages/convocatorias/list.html",null,null,"Durante el mes de ABRIL de acuerdo al cronograma general de Fomento, se hizo la publicación de los listados definitivos de propuestas de la ciudadanía habilitadas y rechazadas en siete convocatorias, distribuidas así: \nBECA DEBATES Y TENSIONES \nPropuestas habilitadas: 18 \nBECA ESPACIOS DESAPARECIDOS \nPropuestas habilitadas: 46 \nBECA PARA EL HACER APOYO A OFICIOS \nPropuestas habilitadas: 12 \nBECA SECTORES SOCIALES \nPropuestas habilitadas: 19 \nBECA MUSEO CIUDAD AUTOCONSTRUIDA\nPropuestas habilitadas: 7\nPREMIO FOTOGRAFÍA \nPropuestas Habilitadas: 40 \nPREMIO DIBUJATÓN Propuestas Habilitadas: 35 (se reportan en el ámbito 1) \nLos listados fueron publicados para revisión de la ciudadanía participante en la página https://sicon.scrd.gov.co/admin_SCRD_pv/pages/convocatorias/list.html \nSe llevó a cabo la revisión de perfiles de los inscritos en el Banco de Jurados y se realizó el comité técnico para la designación de jurados de las becas y los premios referidos para la evaluación de las propuestas ciudadanas habilitadas. \nDurante el mes de MAYO de acuerdo al cronograma general de Fomento, se otorgaron once (11) estímulos a once 11 propuestas de la ciudadanía, ganadoras en el marco de cuatro becas del portafolio IDPC 2021, así: \nBECA DEBATES Y TENSIONES - 2 estímulos otorgados a propuestas de la ciudadanía \nBECA ESPACIOS DESAPARECIDOS - 2 estímulos otorgados a propuestas de la ciudadanía\nBECA PARA EL HACER APOYO A OFICIOS - 2 estímulos otorgados a propuestas de la ciudadanía\nBECA SECTORES SOCIALES - 5 estímulos otorgados a propuestas de la ciudadanía\n\nLas resoluciones de ganadores fueron publicadas para conocimiento público de las personas participantes en la página https://sicon.scrd.gov.co/admin_SCRD_pv/pages/convocatorias/list.html\n\nFinalmente, en Mayo se adelantaron mesas de trabajo con los siguientes grupos étnicos para la formulación de la Beca de Pueblos étnicos que será publicada en el mes de junio para ejecutar 6 estímulos: Raizal, Palenque, Romm, Bakatá, Autoridades Indígenas. Sigue pendiente el diálogo con afros razón por la cual se decide abrir una beca exclusiva para ese pueblo en segundo semestre por fuera de beca étnica.\n\nDurante el mes de JUNIO se realizó la publicación en la plataforma SICON de la resolución de ganadores de la BECA DE PROGRAMACION DEL MUSEO DE LA CIUDAD AUTOCONSTRUIDA, con UN (1) estímulo asociado. Así mismo, se culminó la evaluación de propuestas de la ciudadanía habilitadas en el premio de fotografía y se otorgaron 3 estímulos asociados a dicho premio mediante resolución de ganadores con fecha de 10 de junio de 2021.  Las resoluciones fueron publicadas en la página https://sicon.scrd.gov.co/admin_SCRD_pv/pages/convocatorias/list.html. \n\nAdicionalmente, el 5 de junio se realizó la jornada de Dibujatón con 30 participantes habilitados para la jornada. Los dibujos resultados de la jornada se encuentran en evaluación. por parte de los jurados asignados. La publicación de resolución de ganadores mediante la cual se otorgarán 3 estímulos se prevé para el 16 de julio. \nFinalmente, el 10 de junio de 2021 se dio apertura a la Beca para el fortalecimiento del patrimonio cultural de grupos étnicos en la ciudad de Bogotá, dirigida a 4 pueblos étnicos en el marco de las acciones concertadas del artículo 66. La beca busca otorgar y ejecutar 4 estímulos, uno para cada uno de los siguientes pueblos: Raizal, Palenque, Romm, Bakatá, Autoridades indígenas. \n\nEl total de participantes en los procesos de fomento durante el segundo trimestre de 2021 son 67, distribuidos así:  37 integrantes de propuestas ganadoras de estímulos y 30 participantes en la jornada de Dibujatón. \n\nComo soporte de la gestión se adjuntan las resoluciones de ganadores referidas en el reporte, la resolución de apertura de la beca para el fortalecimiento de pueblos étnicos en Bogotá y los soportes de asistencia y fotográficos de la jornada de Dibujatón. ",37,null,19,null,{"$f":"L19","v":25},0]
[18,"Política Sectorial de Fomento / Programa Distrital de Apoyos Concertados y Programa Distrital de Estímulos\n\n","Propuestas ganadoras y en ejecución en el marco de los Programas Distritales de Apoyos Concertados y Estímulos, para el fortalecimiento de la participación ciudadana.","Subdirección de Divulgación y Apropiación del Patrimonio Cultural","Museo de Bogotá","Equipo de participación ciudadana y Equipo de Fomento IDPC","Equipo de participación ciudadana y Fomento IDPC","Mesa de Consejeros de Patrimonio Cultural, Consejo Cultural de Grupos Étnicos Consejo Cultural de Sectores Sociales. ","Secretaría Distrital de Cultura, Recreación y Deporte, entidades del sector cultura, organizaciones, agrupaciones y agentes culturales","Fomentar la participación ciudadana en el desarrollo de los proyectos museológicos del Museo de Bogotá","Instancias de participación",4,0,0,"Durante el primer trimestre se avanzó en las siguientes acciones:                                                            Apertura al proceso de convocatoria. Las becas Proyectos Museográficos para Vivir Juntos y Beca Museo de la Ciudad Autoconstruida permanecen abiertas para inscripción de propuestas hasta el 5 de abril.",0,null,"La Beca Proyectos Museográficos para Vivir Juntos (Usme, Sumapaz, Bosa y Kennedy) contó con 24 propuestas inscritas, de las cuales fueron habilitadas 15. La Beca otorgó cuatro estímulos de $20.000.000 a cuatro de estas propuestas. De la localidad de Bosa el proyecto ganador fue Voces de la Tchupqua del Chiguasuque, que cuenta con 6 personas en su equipo principal; de Sumapaz el proyecto ganador fue Rescatando sabores y saberes sumapaceños, cuyo equipo principal cuenta con 4 integrantes; de Kennedy el proyecto ganador fue Apicápsula: Una experiencia pedagógica museográfica, con 5 integrantes en su equipo principal; por la localidad de Usme el proyecto ganador fue Jardín Comunitario Jaime Beltrán, homenaje a los ancestros y a la identidad campesina, cuyo equipo principal está compuesto por 5 personas.",20,"La participación en las propuestas fue menor en relación con 2020. Lo anterior se puede deber a que el monto que se adjudica es mucho menor y también que se trata de una convocatoria abierta para localidades específicas. Entre las lecciones está concentrar las labores de divulgación en los territorios específicos desde la apertura de las convocatorias",4,null,4,0]
[19,"Participación ciudadana en la activación social del Museo de la Ciudad Autoconstruida","Aportes ciudadanos para la activación social del Museo de la Ciudad Autoconstruida","Subdirección de Divulgación y Apropiación del Patrimonio","Museo de Bogotá","Equipo de participación ciudadana IDPC, Grupo de Inventarios (Subdirección de Divulgación y Apropiación)","Equipo de participación ciudadana IDPC","Consejo Local de Arte, Cultura y Patrimonio de Ciudad Bolívar","Mesas de otros sistemas de participación (Secretaría de Gobierno, independientes) organizaciones sociales y comunitarias/ agentes culturales","Diálogos y proceso de co-creación de los contenidos para el Museo de la Ciudad Autoconstruida","Mesa de trabajo, taller, ejercicios de colaboración e innovación",37,9,9,"Durante el primer trimestre se avanzó en las siguientes acciones:                                                                                                                                                                                  Activación social del Museo de la Ciudad Autoconstruida -MCA-: presentación del Museo y de la Beca de Programación IDPC del MCA ante el Comité Operativo Local de Juventud (presencial, 45 asistentes) y Consejo Local de Discapacidad (virtual, 21 asistentes). Se realizó el 12avo encuentro de la Mesa Local de Memoria para dialogar sobre iniciativas de educación en la localidad que sirvan como insumos para el programa educativo del MCA. Se realizó el 13avo encuentro de la Mesa Local de Memoria para dialogar sobre el desarrollo de contenidos museográficos En esta sesión se presentaron adelantos del piloto en torno al Paro de 1993 y las recomendaciones en torno a las zonas verdes del Museo (presenciales, total 42 asistentes). Se realizaron talleres por parte de la Mesa Técnica de Altos de la Estancia para desarrollar ideas en torno a las zonas verdes del Museo (presencial, 25 asistentes) y se llevó a cabo un encuentro para conocer iniciativas de comunidades afrocolombianas y negras en la localidad (presencial, 33 asistentes). Estas iniciativas tienen como objeto recibir información de las comunidades sobre las necesidades y posibilidades de que el Museo responda a lo que grupos y organizaciones del territorio han adelantado.\n\nSe realizó una jornada de día completo con la Mesa Local Indígena (presencial, 16 asistentes). En esta reunión se discutieron dos temas fundamentales: formas, metodologías y personas que deben estar involucradas en la creación de contenidos y programación y educación. Con maestros del colegio Fanny Mikey en reunión virtual se propuso realizar un taller con jóvenes para involucrarlos en el desarrollo creativo de la imagen del MCA (30 asistentes).","Establecer mecanismos claros de participación y vinculación de grupos étnicos a los procesos del Museo.",null,"Durante el segundo trimestre se avanzó en las siguientes actividades:\n1.\tMesa Local de Memoria\nDos encuentros de la Mesa Local de Memoria (14 y 15) en los que se abordaron los procesos de inclusión en inventario de prácticas relacionadas con el patrimonio aquellas que se gestan en torno al Palo del Ahorcado y sobre monumentos, patrimonio y la noción de lo monumental (virtual, 47 personas). \nNota  los asistentes  de una de las mesas locales de memoria, fue reportada en el ámbito de declaratoria del Palo del Horcado.\n2.\tMesa Local Indígena\nMesa Local Indígena: visita al edificio del MCA y reunión de seguimiento (presencial, 17 personas) \n3.\tMesa con Consultiva Afrocolombiana\n una reunión con miembros de la consultiva afrocolombiana de la localidad (virtual, 9 asistentes) \n4.\tMesa Medios Comunitarios \nEn espacios de participación se presentó el proyecto del MCA ante el CLACP (virtual, 21 asistentes)\n5.\tMesa de Medios Comunitarios (virtual, 9 asistentes), \n6.\tMesa con la Junta Administradora Local-JAL (virtual, sin lista de asistencia)\nPara el proceso de creación de contenidos concretamente se llevaron a cabo:\n7.\tLideres y lideresas integrantes de Organizaciones s y colectivos locales tema: exposiciones del sótano.\nReuniones con lideresas y miembros de diversas agrupaciones de la localidad para acordar formas de representación de los temas de la exposición del sótano (23 reuniones virtuales, 2 presenciales) y 15 participantes. \n8.\tReuniones para construcción de contenidos (2 presenciales, 6 personas)\nNota: se consolida por el contenido y tipo de participantes de las mesas de trabajo-  Se ajusta el reporte del área de 15 a 8 acciones,",133,"La construcción de contenidos pasa también por vincular laboralmente a las personas y es necesario contemplar los tiempos y necesidades de esta ruta de trabajo.",10,null,37,9]
[20,"Sistema Distrital de Arte, Cultura y Patrimonio","Instancias de participación ciudadana del Sistema Distrital de Arte, Cultura y Patrimonio","Dirección General, Subdirección de Divulgación y Apropiación del Patrimonio, Oficina Asesora de Planeación, ","Dirección General, Subdirección de Divulgación y Apropiación del Patrimonio, Equipo de Participación Ciudadana, Equipo de Enfoques Diferenciales,  Museo de Bogotá","NA","Equipo de Patrimonio Cultural Inmaterial, Equipo de Fomento, Equipo de Comunicaciones. Equipo de Recorridos de Apropiación del Patrimonio","NA","Secretaría de Cultura, Recreación y Deporte","Deliberar y concertar la gestión del IDPC con los integrantes de las instancias, con miras a fortalecer el control social","Instancias de participación ciudadana (Consejo Distrital de Arte, Cultura y Patrimonio, Consejos Distritales de Cultura Poblacional, Mesa Temática de Museos, y Consejos Locales de Arte, Cultura y\nPatrimonio). La única instancia que es convocada por el IDPC es la Mesa Temática de Museos cuya secretaría técnica está a cargo del Museo de Bogotá.","15 Mesa Temática Museos",4,5,"Durante el primer trimestre se avanzó en las siguientes acciones:                                                                                                                                                                                          1. Mesa temática de Museos: se llevaron a cabo cinco (5) sesiones ordinarias y extraordinarias virtuales de la Mesa Temática de Museos de Bogotá (21 de enero; 04, 18 y 25 de febrero y 18 de marzo de 2021).  Se contó con 135 asistentes, incluyendo los 16 miembros de la mesa, los invitados y los apoyos de la Secretaría Técnica a cargo del Museo de Bogotá. Se cuentan entre los productos: actas.\n\nLos temas estuvieron asociados a la organización y gestión de la mesa temática, la situación de los museos en el segundo pico de la pandemia, presentación de la ruta procedimental para el trámite de un acuerdo en el Concejo de Bogotá, socialización de la experiencia de formulación y gestión del Acuerdo Municipal por parte de la Mesa de Museos de Medellín, presentación a los museos de la ciudad de la Convocatoria Corea, formalización del Comité de Entidades de Apoyo y del Comité de Capacitación y Formación, realización de la convocatoria y elección de la vacante de representante de Museos de Historia, Arqueología y Etnografía, presentación de propuestas de acción para apoyar postulaciones de los museos de la ciudad en convocatorias y a la generación de propuestas de acción de entidades de apoyo.                                                                                                                                                                                                                                                                                       2. Durante el primer trimestre se acompaño la sesión ordinaria del Consejo Local de Arte, Cultura y Patrimonio de Suba. ","Promover la participación de las entidades museales que conforman la mesa en la gestión de actividades y comités de trabajo, para evitar que la gestión se concentre en las entidades de apoyo. ",null,"Se llevaron a cabo cuatro (4) sesiones extraordinarias virtuales de la Mesa Temática de Museos de Bogotá (8 de abril; 06 y 20 de mayo y 24 de junio de 2021).  \n\nSe contó con 75 asistentes, incluyendo los 17 miembros de la mesa, los invitados y los apoyos de la Secretaría Técnica a cargo del Museo de Bogotá. \n\nSe cuentan entre los productos: actas.\n\nLos temas estuvieron asociados a la organización y gestión de la mesa temática, la situación de los museos de la ciudad frente a las restricciones por la pandemia y los problemas de orden público, la programación de actividades propuestas por entidades de apoyo, la participación del Consejo Consultivo de Niñas, Niños y Adolescentes, y las presentaciones de la Red Distrital de Turismo Accesible, la estrategia Distritos Creativos y la estrategia Bogotá Productiva Veinticuatro Horas.  ",75,"Crear nuevos espacios de relacionamiento con las entidades museales de la ciudad que no hacen parte de la Mesa Temática de Museos, para evitar el desconocimiento sobre sus necesidades y condiciones actuales, y fomentar su participación en las actividades de apoyo propuestas. ",4,null,15,5]
[21,"Programa Civinautas","Formación a formadores (Diplomado de Formación en patrimonio cultural) y a niños, niñas y jóvenes  (Cátedra en patrimonio Cultural / Aulas Colegios SED)","Subdirección de Divulgación y Apropiación del Patrimonio","Formación en patrimonio cultural - Civinautas","Subdirección de Divulgación y Apropiación del Patrimonio (Enfoque diferencial, Fomento, investigación, PCI Equipo de Comunicaciones, Museo de Bogotá)\n. Oficina Asesora de Planeación (Equipo de participación ciudadana)  \n\n","Subdirección de Divulgación y Apropiación del Patrimonio (Recorridos de Apropiación Patrimonial, equipo de publicaciones,   Museo de Bogotá). Subdirección de Intervención y Protección del Patrimonio (Equipo de Enlucimiento de Fachadas). Subdirección de Gestión Territorial (Equipo de participación divulgación). Oficina Asesora de Planeación (Equipo de participación ciudadana) Relaciones internacionales.",". Participación en el comité SIDFAC (Sistema Distrital de Formación en Arte Cultura y Patrimonio). Desde primer semestre 2020 participación en la mesa de la Unidad Técnica de Apoyo UTA - Decreto 863 de 2019.  ","Secretaría Distrital de Cultura, Recreación y Deporte (IDARTES, SIDFAC, OFB, IDRD, FUGA), Secretaría de Educación Distrital, Instituto Caro y Cuervo, colegios públicos y privados que apoyan el programa, Programa de fortalecimiento de Museos. Red Papas, Mesa Distrital de Museos. UNCOLI,  Escuela Taller del Ministerio de Cultura","Con este ámbito el programa de formación en patrimonio en el ciclo integral de educación para la vida en Bogotá, (Civinautas) en este 2021, espera fortalecer sus escenarios de formación, formulando estrategias de implementación para educación inicial, media vocacional y en otros escenarios de educación no formal, al trabajar con sabedores y maestros de oficios en Bogotá. ","Espacios pedagógicos permanentes guiados por la metodología Investigación Acción Participativa (a través de encuentros informativos, visitas, entrevistas, ejercicios de colaboración e innovación) . Se cuentan los procesos de planeación participativa entre mediadores y docentes   ",10,2,12,"Durante el primer trimestre se avanzó en las siguientes acciones:                                                                                                                                                                                    En el mes de enero no se realizaron sesiones de planeación, dado que los colegios inician actividades formalmente en febrero. Sin embargo en Enero se realizaron las reuniones con la SED para proyectar las acciones a seguir para el inicio de operación 2021.\nEntre febrero y marzo se inició el proceso de presentación y seguimiento a colegios para el inicio de operación, y se realizaron los primeros encuentros de planeación en 8 instituciones educativas Distritales y en 4 Privadas. Cabe recordar que este año por recortes presupuestales, implementamos dos modalidades de atención, una asistida con los colegios que tendrán nuestro acompañamiento y autónomas, con colegios que implementarán solos, pero a los cuales haremos seguimiento. Por lo tanto las sesiones de planeación en le caso de la autónomas no contará con nuestro acompañamiento, solo cuando hagamos reunión de seguimiento. ","Continuar con los escenarios a través de la virtualidad dado que los picos de contagio no disminuyen y la alternancia de los colegios con los que trabajamos no se está implementando. El hecho de no tener mediadores por el tema de recorte presupuestal, dificulta la implementación y evidencia la importancia y necesidad del trabajo que ellos realizan y de su aporte al proceso.",null,"\n\nSe continúan los procesos de planeación y seguimiento a los proyectos de aula de las doce (12) instituciones educativas, publicas, privadas y familias que educan en casa, con un promedio de proyectos de aula de 18. De acuerdo a las condiciones, posibilidades y contextos de cada institución se tienen entre 1 y 3 sesiones de planeación, esto debido a los procesos de regreso progresivo y seguro a los colegios, la alternancia y las condiciones de bio seguridad.                                                                                                                                           Durante los meses de mayo y junio, la continuidad de reuniones se vio afectada por el paro y por algunos cierres de actividades por parte de algunos docentes. Adicionalmente las dificultades que tienen los docentes al concretar el contacto con los estudiantes no permite generar los momentos de encuentro para la planeación con la frecuencia habitual.  ",27,"El equipo de trabajo ha tenido que adaptarse a las dificultades y particularidades de cada modalidad de atención e incrementar el seguimiento dadas las intermitencias en la continuidad de cada contexto escolar. ",10,null,{"$f":"L23","v":10},12]
[22,"Programa Civinautas","Formación a formadores (Diplomado de Formación en patrimonio cultural) y a niños, niñas y jóvenes  (Cátedra en patrimonio Cultural / Aulas Colegios SED)","Subdirección de Divulgación y Apropiación del Patrimonio","Formación en patrimonio cultural - Civinautas","Subdirección de Divulgación y Apropiación del Patrimonio (Enfoque diferencial, Fomento, investigación, PCI Equipo de Comunicaciones, Museo de Bogotá)\n. Oficina Asesora de Planeación (Equipo de participación ciudadana)  \n\n","Subdirección de Divulgación y Apropiación del Patrimonio (Recorridos de Apropiación Patrimonial, equipo de publicaciones,   Museo de Bogotá). Subdirección de Intervención y Protección del Patrimonio (Equipo de Enlucimiento de Fachadas). Subdirección de Gestión Territorial (Equipo de participación divulgación). Oficina Asesora de Planeación (Equipo de participación ciudadana) Relaciones internacionales.",". Participación en el comité SIDFAC (Sistema Distrital de Formación en Arte Cultura y Patrimonio). Desde primer semestre 2020 participación en la mesa de la Unidad Técnica de Apoyo UTA - Decreto 863 de 2019.  ","Secretaría Distrital de Cultura, Recreación y Deporte (IDARTES, SIDFAC, OFB, IDRD, FUGA), Secretaría de Educación Distrital, Instituto Caro y Cuervo, colegios públicos y privados que apoyan el programa, Programa de fortalecimiento de Museos. Red Papas, Mesa Distrital de Museos. UNCOLI,  Escuela Taller del Ministerio de Cultura","Realizar el proceso de formación a formadores, en modalidad mixta (virtual y semi- presencial)","Líneas de formación",3,0,0,"Durante el primer trimestre se avanzó en las siguientes acciones:                                                                                                                                                                                          El proceso de formación, apunta a tener tres líneas de implementación \na. Diplomado \nb. Curso \nc. Taller \nSe avanza en la revisión y formulación de los contenidos y plataformas y para ello se han llevado a cabo reuniones internas y externas con la SCRD. ","Las alianzas son fundamentales para fortalecer el sector y en época de pandemia y con recortes presupuestales permiten reforzar las acciones y procesos que nos permitan mantener los avances en formación de docentes, madres, padres cuidadores, formadores y otras comunidades. Sin embargo se espera que las asignaciones presupuestales se restablezcan para lograr ampliar el programa y llegar con enfoque diferencial a mas comunidades",null,"Durante el segundo trimestre se avanzó en las siguientes acciones: \nEl proceso de formación, apunta a tener tres líneas de implementación  con los siguientes avances\na. Diplomado. Se ha realizado la revisión y corrección de los contenidos del modulo introductorio, el modulo 1. Fase de diseño y proyección de implementación en plataforma. \nb. Curso; Se concertó la realización del contenido de un corso, con la Universidad Nacional De Colombia en el marco del convenio que esta en proceso de firmas. \nc. Taller: Se llevaron a cabo 3 talleres con diversos grupos de formadores con instituciones pares como IDARTEs en su programa NIDOS y con la Universidad Nacional. Se proyectan próximos talleres con los grupos de comunidades con enfoque étnico para los próximos meses.\nSe avanza en la revisión y formulación de los contenidos y plataformas y para ello se han llevado a cabo reuniones internas y externas con la SCRD. ",95,"Los procesos de diseño y realización de cada línea de formación a formadores, requieren acciones de adaptación a los diferentes momentos que se adelantan con los diferentes grupos. Dado que el equipo de trabajo del programa Civinautas, tuvo un recorte presupuestal y humano importante, la capacidad de atender todos los frentes, dificulta los avances. No obstante se determinó´que la revisión de contenidos del diplomado tiene prioridad, y que los cursos se integraran de manera progresiva. Los talleres se están proyectando según la necesidad y están siendo programados según las necesidades y avances. ",3,null,3,0]
[23,"Rendición permanente de cuentas","Escenarios de rendición de cuentas\n*Articulado con actividades 3.1.3 y  3.2.5 del PAAC","Oficina Asesora de Planeación","Oficina Asesora de Planeación, Equipo de Participación Ciudadana","Subdirección de Gestión Corporativa (Equipo de Transparencia y Atención a la Ciudadanía), Subdirección de Divulgación y Apropiación del Patrimonio (Equipo de comunicaciones), Subdirecciones misionales. ","Subdirección de Gestión Corporativa (Equipo de Transparencia y Atención a la Ciudadanía), Subdirección de Divulgación y Apropiación del Patrimonio (Equipo de comunicaciones), Subdirecciones misionales. ","Mesa de Consejeros Locales de Patrimonio","Secretaría Distrital de Cultura, Recreación y Deporte. Veeduría Distrital,  Secretaría Distrital de Planeación. Secretaría Distrital de Gobierno. Secretaria General de la Alcaldía Mayor ","Rendir cuenta permanente  de la gestión del IDPC y recibir retroalimentación de la ciudadanía - Diálogos ciudadanos","Audiencia pública sectorial o de la entidad. Sensibilización a la ciudadanía sobre los procesos de rendición de cuentas. Consulta Ciudadana a través de encuestas ",1,0,0,"Durante el primer trimestre se avanzó en las siguientes acciones:                                                                                                                                                                                                Se desarrolló el documento de la Estrategia de Rendición de Cuentas 2020-2024, alineado al cronograma de actividades del PAAC y el PIPC.  El documento se encuentra publicado en la página web del IDPC  en el link:   https://idpc.gov.co/rendicion-de-cuentas-idpc/plan-de-rendicion-de-cuentas-para-los-sujetos-obligados/- El documento se divide en tres partes dentro de las cuales se presenta el diagnóstico de la Rendición de Cuentas 2020, los resultados evaluados en el avance de la gestión durante la vigencia 2019 en materia del proceso de Rendición de Cuentas y participación ciudadana, y el diseño de la estrategia de rendición de cuentas, establecido en su fase de ejecución y seguimiento en el Plan Anticorrupción y Atención al Ciudadano PAAC.","La entidad debe continuar fortaleciendo los canales de comunicación interna y externa, para\ninformar y sensibilizar la importancia de los procesos de rendición de cuentas, mediante el uso de\ncarteleras, correos, talleres, videos y fortalecer la capacitación en esta materia. ",null,"Durante este segundo trimestre no se reporta acciones para esta acción.",null,null,0,null,1,0]
[24,"Planes de acción de Políticas Públicas Distritales relacionadas con participación ciudadana","Concertación, seguimiento y evaluación a los acuerdos para la orientación de la inversión y los resultados de la ejecución de las Políticas Públicas Distritales","Oficina Asesora de Planeación","Oficina Asesora de Planeación, Equipo de Participación Ciudadana, Asesores de enfoques diferenciales. ","Distintas subdirecciones y equipos del IDPC responsables del cumplimiento de las Políticas Públicas Distritales","Distintas subdirecciones y equipos del IDPC responsables del cumplimiento de las Políticas Públicas Distritales","Mesa de Consejeros de Patrimonio Cultural, Consejo Cultural de Grupos Étnicos Consejo Cultural de Sectores Sociales. ","Secretaría Distrital de Cultura, Recreación y Deporte, Secretaría de Gobierno (oficina de Planeación), y demás Secretarías responsables de otras Políticas Públicas Distritales","Aporte a la garantía de derechos de poblaciones y sectores sociales específicos a través del Cumplimiento de las Políticas Públicas Distritales concertadas con la ciudadanía","Instan ias de Participación; Mesas de trabajo de Políticas Públicas Distritales (Mesa PIAA, LGBTI, artesanos, entre otras); reportes de avance y entrega de información.","Según convocatoria o a solicitud  del Sector Cultura, Recreación y Deporte y otros",null,null,"Durante este primer trimestre no se reporta acciones para esta acción.",null,null,"Se participó en la Mesa de Trabajo actualización Plan de Acción PPIA Sector Cultura- SDIS. En este espacio se revisaron las metas a cargo de cada entidad de la Secretaría de Cultura asociadas con el cumplimiento de la Política Pública de Infancia y Adolescencia. \t11\nSe participó en la primera sesión del Consejo Distrital de Grupos Etarios, realizada el 11 de mayo de 2021. Se presentaron los nuevos consejeros, se definen participativamente los delegados a otras instancias (Consejo Poblacional, Consejo Distrital de Arte, Cultura y Patrimonio, Consejo Distrital de las Artes y Consejo Operativo de Envejecimiento y Vejez) y se recogieron las propuestas de los delegados al consejo para construir la agenda anual del Consejo. \t19\nSe participó en la Mesa de Trabajo - APA del Consejo De grupos Etarios, realizada el 31 de mayo. En esta mesa se construyó la Agenda Participativa Anual.\t9\nSe participó en dos sesiones de la Mesa Intersectorial Poblacional convocada por la Secretaría de Cultura Recreación y Deporte. Estas sesiones se llevaron a cabo el 27 de mayo y 24 de junio.\t17",56,null,null,null,"Según convocatoria o a solicitud  del Sector Cultura, Recreación y Deporte y otros",0]
[25,"Compromisos ciudadanos","Concertación y seguimiento a compromisos ciudadanos\n* Articulado con actividades 3.2.6 del PAAC","Oficina Asesora de Planeación","Oficina Asesora de Planeación, Equipo de Participación Ciudadana","Distintas subdirecciones y equipos del IDPC responsables del cumplimiento de los compromisos ciudadanos","Distintas subdirecciones y equipos del IDPC responsables del cumplimiento de los compromisos ciudadanos","NA","Veeduría Distrital","Recibir y atender iniciativas ciudadanas sobre la orientación de la inversión y evaluación de los resultados de la ejecución de Políticas Públicas Distritales","Mesa de trabajo","Según convocatorias de la Veeduría Distrital",null,null,"Durante este primer trimestre no se reporta acciones para esta acción.",null,null,"El IDPC, realizo 9 mesas de escucha y diálogo con el objetivo de intercambiar aproximaciones, debates, consensos y recomendaciones entorno a los significados, tensiones y gestión de los monumentos en la ciudad.  Hasta el momento han participado 115 personas aproximadamente, incluidos miembros de la Mesa de consejeros y Consejeras de Patrimonio locales, integrantes de la Asociación Colombiana de Restauradores, académicos y organizaciones sociales representantes de pueblos étnicos, colectivas feministas y agrupaciones de jóvenes que trabajan en temas concernientes a la memoria, al patrimonio y las prácticas culturales y artísticas, entre otros ciudadanos interesados en la discusión. Se relacionan a continuación, fechas y asistentes:\n1.\tDiálogo  Virtual Monumentos, Memoria y Patrimonio dirigido a: Mesa de Consejeros y Consejeras  Locales de Patrimonio.\t14/05/2021\t15 asistentes \n2.\tDiálogo Presencial Monumentos, Memoria y Patrimonio dirigido a: Asociación Colombiana de Restauradores. \t20/05/2021\t25 asistentes. \n3.\tDiálogo Presencial Monumentos, Memoria y Patrimonio dirigido a: Sectores sociales (organizaciones Sociales, étnicas, jóvenes y mujeres). \t20/05/2021\t27 asistentes \n4.\tDiálogo Presencial Monumentos, Memoria y Patrimonio dirigido a: Centros de pensamientos, Universidades y Academia. \t25/05/2021\t29 asistentes \n5.\tDiálogo virtual  Monumentos, Memoria y Patrimonio dirigido a: Mesa del Museo de la Ciudad Autoconstruida (Ciudad Bolívar).  27/05/2021\t27 asistentes\n6.\tDiálogo virtual Monumentos, Memoria y Patrimonio dirigido a: Arquitectos y Urbanistas. 28/05/2021\t24 asistentes\n7.\tDiálogo Virtual Monumentos, Memoria y Patrimonio dirigido a: Mesa de Museos de Bogotá. \t28/05/2021\t17 asistentes\n8.\tDiálogo Virtual Monumentos, Memoria y Patrimonio dirigido a: Centros de pensamientos, Universidades y Academia. \t01/06/2021\t18 asistentes\n9.\tDiálogo Virtual Monumentos, Memoria y Patrimonio dirigido a: Sectores sociales (organizaciones Sociales, étnicas, jóvenes y mujeres) \t04/06/2021\t13 asistentes",115,null,null,null,"Según convocatorias de la Veeduría Distrital",0]
[26,"Sistema Distrital de Patrimonio Cultural ","Instancias de participación ciudadana del Sistema Distrital de Patrimonio Cultural ","Dirección General, Subdirección de Divulgación y Apropiación del Patrimonio, Subdirección de Protección e Intervención del Patrimonio, Oficina Asesora de Planeación, Equipo de Valoración, Equipo de Participación Ciudadana","Dirección General, Subdirección de Divulgación y Apropiación del Patrimonio, Subdirección de Protección e Intervención del Patrimonio, Oficina Asesora de Planeación, Equipo de Valoración, Equipo de Participación Ciudadana","NA","Equipo de Patrimonio Cultural Inmaterial"," \n\nConsejo Distrital de Patrimonio Cultural - una sesión al mes a partir de febrero.\n\n Mesa de Consejeros Locales del Patrimonio  - una sesión cada 3 meses.","Secretaría de Cultura, Recreación y Deporte","Deliberar y concertar la gestión del IDPC con los integrantes de las instancias, con miras a fortalecer el control social","Instancias de participación ciudadana \n\nConsejo Distrital de Patrimonio Cultural - una sesión al mes a partir de febrero.\n\n Mesa de Consejeros Locales del Patrimonio  - una sesión cada 3 meses.",15,3,3,"Durante el primer trimestre se avanzó en las siguientes acciones:                                                                                                                                                                                         Se reporta las siguientes sesiones en el marco de las instancias de participación:                                                                                                                         1. Sesión No 1 Consejo Distrital de Participación Ciudadana-CDPC 2021 (27 de enero de 2021 / Virtual): \nCasos presentados:\na. Modificación de la Resolución del Secretaría de Cultura, Recreación y Deporte -SCRD No. 718 de septiembre 27 de 2019 \"Por la cual se resuelve una solicitud de inclusión en el listado de Bienes de Interés Cultural del ámbito Distrital del Edificio Teusacá, ubicado en la Avenida Carrera 7 No. 37 - 69 en el barrio Sagrado Corazón en la UPZ del mismo nombre, en la localidad de Santa Fe en Bogotá D.C.\", expedida por la Secretaría Distrital de Cultura, Recreación y Deporte.\nb. Solicitud de exclusión de 1238.13 m2 del predio del Colegio Cafam localizado en la Avenida Carrera 68 No. 64 – 45 / 83.\nc. Recurso de Reposición interpuesto en contra de la Resolución SCRD 782 de 2020 relacionada con el trámite de cambio de categoría de intervención de los inmuebles localizados en la Calle 10 A 3-15 Este, Carrera 3 Este 9 A-46 y Calle 10 A 3-25 Este.\n\n2. Sesión No 2. Consejo Distrital de Participación Ciudadana -CDPC 2021 (17 de marzo de 2021 / Virtual): \nCasos presentados:\na. Solicitud de exclusión del inmueble localizado en Avenida Carrera 24 No. 39 B - 07, barrio La Soledad.\nb. Solicitud de exclusión de 4748.79 m2 del predio de la Unidad Deportiva El Salitre localizado en la Avenida Calle 63 No. 68 – 45.\nVarios:  revisión del procedimiento de inclusión en la Lista Representativa de Patrimonio Cultural Inmaterial del ámbito distrital. Generalidades del Festival del sol y la luna de la comunidad muisca de Bosa.                                                                                                                                                                                                                               3. Mesa de Consejeros Locales de Patrimonio Cultural.  Sesión ordinaria  y extraordinaria del 05  y 12 de marzo de 2021 respectivamente- con la asistencia de  (18) Consejeros(as) en cada sesión.\nSesión Ordinaria: se desarrollan  las siguientes temáticas:  intervención del delegado del Consejo Nacional de Patrimonio, diálogo con los colaboradores del IPES sobre el Sistema Distrital de Plazas de Mercado. Se proyectan la visibilización del trabajo de los y las  Consejeros de la Mesa a través de medios digitales y alternativos, difundiendo programas, podcasts y nuevas acciones en el territorio. Recorridos patrimoniales.                                                                                                            Sesión Extraordinaria: presentación Plan Especial de Manejo y protección del Centro Histórico.",null,null,"Consejo Distrital de Patrimonio Cultural-CDPC:\nDurante el segundo trimestre se avanzó en las siguientes acciones:                                                                                                                                                                                         Se reporta las siguientes sesiones en el marco de las instancias de participación:     \n1. Sesión No. 3 Consejo Distrital de Patrimonio Cultural - CDPC (22 de abril de 2021 / Virtual). Sesión extraordinaria.\nCasos presentados:\na. Presentación del proyecto susceptible de ser financiado con recursos del Impuesto Nacional al Consumo a la telefonía móvil 2021: \"Estudios técnicos y diseños para la consolidación del reforzamiento estructural de los Columbarios”.\n2. Sesión No. 4 Consejo Distrital de Patrimonio Cultural - CDPC (19 de mayo de 2021 / Virtual). Sesión ordinaria.\nCasos presentados:\na. Recurso de reposición contra la Resolución SCRD No. 043 de 2021. Inmueble localizado en la Calle 75 No. 11 - 57 (actual) y/o Calle 75 No. 12 - 01 (dirección de declaratoria).\nb.  Solicitud de exclusión del listado de Bienes de Interés Cultural del ámbito distrital para el inmueble ubicado en la Carrera 7 No. 2 - 18.\nc. Solicitud de inclusión en el listado de Bienes de Interés Cultural del ámbito distrital para el inmueble ubicado en la Carrera 9 No. 77 - 19/39/07/45 y/o Calle 77 No. 9 - 08.\nd. Recurso de Reposición interpuesto en contra de la Resolución SCRD No. 782 de 2020 relacionada con el trámite de cambio de categoría de intervención de los predios localizados en la Calle 10A No. 3 - 15 Este, Carrera 3 Este No. 9A - 46 y Calle 10A No. 3 - 25 Este.\n3. Sesión No. 5 Consejo Distrital de Patrimonio Cultural - CDPC (23 de junio de 2021 / Virtual). Sesión extraordinaria.\nCasos presentados: \na. Solicitud de exclusión del listado de Bienes de Interés Cultural del ámbito distrital de cinco inmuebles localizados en el Barrio San Bernardo, en la Carrera 11 No. 2 – 97, Carrera 11 No. 2 – 89, Carrera 11 No. 2 – 87, Carrera 11 No. 2 – 71, y Carrera 11 No. 2 – 67.\n\nSistema Distrital de Arte, Cultura y Patrimonio- SDACP:\nMesa de consejero y Consejeras Locales de Patrimonio y Consejo Local de Arte Cultura y Patrimonio-CLACP:\n4. Se acompaña dos sesiones: ordinaria y  extraordinaria de la Mesa de Patrimonio de Consejeros Locales. Se realiza proyección de agenda, convocatoria, confirmación de asistencia por parte de integrantes así:\n4.1.Segunda sesión ordinaria Mesa de Consejeros Locales de Patrimonio Cultural, mayo. Temas abordados: Dialogo y escucha en torno al debate sobre resignificación de Monumentos.  Avances ruta de acción 2021 (14_05_2021)\n4.2 Sesión Extraordinaria Mesa de consejeros y Consejeras de Patrimonio. Temas abordados: 1) Definición delegada/delegado ante el Consejo Distrital de Patrimonio. 2) Presentación y dialogo participativo sobre la metodología del inventario de Patrimonio Cultural Inmaterial, a cargo de la Subdirección de Divulgación y Apropiación del -IDPC. 3) Presentación y retroalimentación estrategia de medios, cronograma de grabación de videos de consejeros y consejeras.(21_05_2021)\n4.3 Sesiones ordinarias y extraordinarias Consejo Local de Arte Cultura de Suba, La Candelaria, Santa Fe y  Los Mártires del  mes de Abril, Mayo, Junio . ",45,"29 participantes en las 3 sesiones. Aproximadamente 10 participantes por sesión",4,null,15,3]
[27,"Causas Ciudadanas","Acompañamiento, implementación y seguimiento a Causas Ciudadanas viabilizadas de competencia del IDPC","Oficina Asesora de Planeación, Equipo de Participación Ciudadana, Subdirección de Divulgación y Apropiación del Patrimonio, Subdirección de Protección e Intervención del Patrimonio, Subdirección de Gestión Territorial del Patrimonio","Oficina Asesora de Planeación, Equipo de Participación Ciudadana","Equipo de Comunicaciones",null,"NA","Secretaría Distrital de Gobierno","Recibir y dar cumplimiento a las Causas Ciudadanas asignadas al IDPC que promuevan soluciones para problemáticas relacionadas con el patrimonio de la ciudad.","Número de Causas Ciudadanas implementadas / Número de Causas Ciudadanas delegadas al IDPC","Según demanda de la ciudadanía y posterior asignación al IDPC",null,null,null,null,null,null,null,null,null,null,null,0]
[null,null,null,null,null,null,null,null,null,null,null,null,null,null,null,null,null,null,null,null,null,null,{"$f":"L30","v":0}]